Workbook

Sheet Title
C41: The following individuals contributed to these budgets in their specialty area
D42: Robert J. Wright | G42: Extension Entomologist
D43: Tamra A. Jackson-Ziems | G43: Plant Pathologist - Corn and Sorghum
D44: Loren J. Giesler | G44: Plant Pathologist - Soybean and Turf
D45: Stephen N. Wegulo | G45: Plant Pathologist - Wheat and Ornamental
D46: Paul J. Jasa | G46: Extension Biological Systems Engineer
D47: James A. Schild | G47: Extension Educator in Scotts Bluff and Morrill Counties

Sheet General Variables
A1: Farm Wide Inputs
A3: Year | B3: 2017 | E3: Real Estate Values
A4: Wage Rate | B4: 20 | C4: / Hr | E4: Description | F4: Value
A5: Diesel Price | B5: 2.25 | C5: / gal | E5: Dryland (State) | F5: 3470
A6: Lube Factor | B6: 1.15 | E6: Dryland (Panhandle) | F6: 745
A7: Diesel & Lube | B7: =B5*B6 -> 2.5875 | C7: / gal | E7: Gravity (State) | F7: 6480
A8: Elect. Price | B8: 0.105 | C8: / kwh | E8: Gravity (Panhandle) | F8: 2970
A9: Taxes, Ins., Housing Factor | B9: 0.02 | E9: Pivot (State) | F9: 6940
A10: Investment Interest Rate | B10: 0.04 | E10: Pivot (Panhandle) | F10: 3290
A11: Operations Borrowing Rate | B11: 0.055 | E11: Dryland (Southwest) | F11: 1955
A12: Operations Borrowing Time | B12: 6 | C12: months | E12: Fall Establishment | F12: 0
A13: Real Estate Tax Rate | B13: 0.01 | E13: Pivot (Marginal Land) | F13: =F9*0.7 -> 4858
A14: Overhead Cost per Acre | B14: 20 | E14: Dryland (Eastern) | F14: 6360
A16: Crop Insurance
A17: Crop | B17: Premium
A18: Corn Dryland | B18: 23
A19: Corn Dryland Ecofallow | B19: 20
A20: Corn Irrigated | B20: 10
A21: Dry Beans | B21: 21
A22: Grain Sorghum Dryland | B22: 11
A23: Grain Sorghum Irrigated | B23: 10
A24: Millet | B24: 15
A25: Oats | B25: 11
A26: Soybeans Dryland | B26: 16
A27: Soybeans Irrigated | B27: 8.5
A28: Sugar Beets | B28: 20
A29: Sunflower Dryland | B29: 14
A30: Sunflower Irrigated | B30: 19
A31: Wheat After Crop | B31: 14.5
A32: Wheat Fallowed | B32: 9.5 | M32: Budget | N32: County
A33: Wheat Irrigated | B33: 13.25 | L33: 1 | M33: Alfalfa | N33: N/A
L34: 2 | M34: Alfalfa | N34: N/A
L35: 3 | M35: Alfalfa | N35: N/A
L36: 4 | M36: Alfalfa | N36: N/A
L37: 5 | M37: Alfalfa | N37: N/A
L38: 6 | M38: Alfalfa | N38: N/A
L39: 7 | M39: Alfalfa | N39: N/A
A40: Budget | B40: County | D40: Budget | F40: County | H40: Budget | I40: County | L40: 8 | M40: Alfalfa | N40: N/A
A41: =CONCATENATE(L33,"-",M33) -> 1-Alfalfa | B41: =N33 -> N/A | D41: =CONCATENATE(L56,"-",M56) -> 24-Corn | E41: =CONCATENATE(P33,"-",Q33) -> - | F41: =N56 -> Buffalo | H41: =CONCATENATE(L78,"-",M78) -> 46-Soybeans | I41: =N78 -> Buffalo | L41: 9 | M41: Alfalfa | N41: N/A
A42: =CONCATENATE(L34,"-",M34) -> 2-Alfalfa | B42: =N34 -> N/A | D42: 25-Corn | E42: - | F42: =N57 -> Buffalo | H42: 47-Soybeans | I42: =N79 -> Buffalo | L42: 10 | M42: Alfalfa | N42: N/A
A43: 3-Alfalfa | B43: N/A | D43: 26-Corn | E43: - | F43: Buffalo | H43: 48-Soybeans | I43: Buffalo | L43: 11 | M43: Alfalfa | N43: N/A
A44: 4-Alfalfa | B44: N/A | D44: 27-Corn | E44: - | F44: Buffalo | H44: 49-Soybeans | I44: Buffalo | L44: 12 | M44: Alfalfa | N44: N/A
A45: 5-Alfalfa | B45: N/A | D45: 28-Corn | E45: - | F45: Buffalo | H45: 50-Soybeans | I45: Buffalo | L45: 13 | M45: Alfalfa | N45: N/A
A46: 6-Alfalfa | B46: N/A | D46: 29-Corn | E46: - | F46: Buffalo | H46: 51-Soybeans | I46: Buffalo | L46: 14 | M46: Alfalfa | N46: N/A
A47: 7-Alfalfa | B47: N/A | D47: 30-Dry Beans | E47: - | F47: Cheyenne | H47: 52-Soybeans | I47: Buffalo | L47: 15 | M47: Corn | N47: Buffalo
A48: 8-Alfalfa | B48: N/A | D48: 31-Dry Beans | E48: - | F48: Cheyenne | H48: 53-Soybeans | I48: Buffalo | L48: 16 | M48: Corn | N48: Buffalo
A49: 9-Alfalfa | B49: N/A | D49: 32-Dry Beans | E49: - | F49: Cheyenne | H49: 54-Sugar Beets | I49: Box Butte | L49: 17 | M49: Corn | N49: Buffalo
A50: 10-Alfalfa | B50: N/A | D50: 33-Dry Beans | E50: - | F50: Cheyenne | H50: 55-Sugar Beets | I50: Box Butte | L50: 18 | M50: Corn | N50: Buffalo
A51: 11-Alfalfa | B51: N/A | D51: 34-Grain Sorghum | E51: - | F51: Jefferson | H51: 56-Sugar Beets | I51: Box Butte | L51: 19 | M51: Corn | N51: Perkins
A52: 12-Alfalfa | B52: N/A | D52: 35-Grain Sorghum | E52: - | F52: Jefferson | H52: 57-Sugar Beets | I52: Box Butte | L52: 20 | M52: Corn | N52: Buffalo
A53: 13-Alfalfa | B53: N/A | D53: 36-Grain Sorghum | E53: - | F53: Jefferson | H53: 58-Sunflower | I53: Perkins | L53: 21 | M53: Corn | N53: Buffalo
A54: 14-Alfalfa | B54: N/A | D54: 37-Grain Sorghum | E54: - | F54: Jefferson | H54: 59-Sunflower | I54: Perkins | L54: 22 | M54: Corn | N54: Buffalo
A55: 15-Corn | B55: Buffalo | D55: 38-Grass | E55: - | F55: N/A | H55: 60-Sunflower | I55: Perkins | L55: 23 | M55: Corn | N55: Buffalo
A56: 16-Corn | B56: Buffalo | D56: 39-Grass Hay | E56: - | F56: N/A | H56: 61-Wheat | I56: Keith | L56: 24 | M56: Corn | N56: Buffalo
A57: 17-Corn | B57: Buffalo | D57: 40-Millet | E57: - | F57: Cheyenne | H57: 62-Wheat | I57: Keith | L57: 25 | M57: Corn | N57: Buffalo
A58: 18-Corn | B58: Buffalo | D58: 41-Millet | E58: - | F58: Cheyenne | H58: 63-Wheat | I58: Keith | L58: 26 | M58: Corn | N58: Buffalo
A59: 19-Corn | B59: Perkins | D59: 42-Oats | E59: - | F59: Burt | H59: 64-Wheat | I59: Keith | L59: 27 | M59: Corn | N59: Buffalo
A60: 20-Corn | B60: Buffalo | D60: 43-Pasture | E60: - | F60: N/A | H60: 65-Wheat | I60: Keith | L60: 28 | M60: Corn | N60: Buffalo
A61: 21-Corn | B61: Buffalo | D61: 44-Peas | E61: - | F61: N/A | H61: 66-Wheat | I61: Keith | L61: 29 | M61: Corn | N61: Buffalo
A62: 22-Corn | B62: Buffalo | D62: 45-Sorghum-Sudan | E62: - | F62: N/A | H62: 67-Wheat | I62: Keith | L62: 30 | M62: Dry Beans | N62: Cheyenne
A63: 23-Corn | B63: Buffalo | L63: 31 | M63: Dry Beans | N63: Cheyenne
L64: 32 | M64: Dry Beans | N64: Cheyenne
L65: 33 | M65: Dry Beans | N65: Cheyenne
L66: 34 | M66: Grain Sorghum | N66: Jefferson
L67: 35 | M67: Grain Sorghum | N67: Jefferson
L68: 36 | M68: Grain Sorghum | N68: Jefferson
L69: 37 | M69: Grain Sorghum | N69: Jefferson
L70: 38 | M70: Grass | N70: N/A
L71: 39 | M71: Grass Hay | N71: N/A
L72: 40 | M72: Millet | N72: Cheyenne
L73: 41 | M73: Millet | N73: Cheyenne
L74: 42 | M74: Oats | N74: Burt
L75: 43 | M75: Pasture | N75: N/A
L76: 44 | M76: Peas | N76: N/A
L77: 45 | M77: Sorghum-Sudan | N77: N/A
L78: 46 | M78: Soybeans | N78: Buffalo
L79: 47 | M79: Soybeans | N79: Buffalo
L80: 48 | M80: Soybeans | N80: Buffalo
L81: 49 | M81: Soybeans | N81: Buffalo
L82: 50 | M82: Soybeans | N82: Buffalo
L83: 51 | M83: Soybeans | N83: Buffalo
L84: 52 | M84: Soybeans | N84: Buffalo
L85: 53 | M85: Soybeans | N85: Buffalo
L86: 54 | M86: Sugar Beets | N86: Box Butte
L87: 55 | M87: Sugar Beets | N87: Box Butte
L88: 56 | M88: Sugar Beets | N88: Box Butte
L89: 57 | M89: Sugar Beets | N89: Box Butte
L90: 58 | M90: Sunflower | N90: Perkins
L91: 59 | M91: Sunflower | N91: Perkins
L92: 60 | M92: Sunflower | N92: Perkins
L93: 61 | M93: Wheat | N93: Keith
L94: 62 | M94: Wheat | N94: Keith
L95: 63 | M95: Wheat | N95: Keith
L96: 64 | M96: Wheat | N96: Keith
L97: 65 | M97: Wheat | N97: Keith
L98: 66 | M98: Wheat | N98: Keith
L99: 67 | M99: Wheat | N99: Keith

Sheet Materials
A1: Index | B1: Material | C1: Category | D1: Purchase Price | E1: Purchase Unit | F1: Applied Unit | G1: Applied Units / Purchased Units | H1: Applied Price
A2: 1 | B2: 21-0-0-24S | C2: Additive | D2: 0.35 | E2: pound | F2: pound | G2: 1 | H2: =IF(G2=0,0,D2/G2) -> 0.35
A3: 2 | B3: Crop Oil Concentrate | C3: Additive | D3: 9 | E3: gallon | F3: pint | G3: 8 | H3: =IF(G3=0,0,D3/G3) -> 1.125
A4: 3 | B4: NIS | C4: Additive | D4: 16 | E4: gallon | F4: ounce | G4: 128 | H4: =IF(G4=0,0,D4/G4) -> 0.125
A5: 4 | B5: UAN | C5: Additive | D5: 1.5 | E5: gallon | F5: pint | G5: 8 | H5: =IF(G5=0,0,D5/G5) -> 0.1875
A6: 5 | B6: Aerial Spray | C6: Custom | D6: 10 | E6: acre | F6: acre | G6: 1 | H6: 10
A7: 6 | B7: Bale Lg Sq 1360 lb | C7: Custom | D7: 15 | E7: bale | F7: ton | G7: =1360/2000 -> 0.68 | H7: =IF(G7=0,0,D7/G7) -> 22.05882353
A8: 7 | B8: Chop, Haul, Pack | C8: Custom | D8: 10.75 | E8: ton | F8: ton | G8: 1 | H8: 10.75
A9: 8 | B9: Dry 2 Points Removed | C9: Custom | D9: 0.08 | E9: bushel | F9: bushel | G9: 1 | H9: 0.08
A10: 9 | B10: Haul & Apply Manure | C10: Custom | D10: 6 | E10: ton | F10: ton | G10: 1 | H10: 6
A11: 10 | B11: Haul Beets | C11: Custom | D11: 5 | E11: ton | F11: ton | G11: 1 | H11: 5
A12: 11 | B12: Haul Grain (Dry Beans) | C12: Custom | D12: 0.28 | E12: cwt | F12: cwt | G12: 1 | H12: 0.28
A13: 12 | B13: Haul Grain (Millet) | C13: Custom | D13: 0.24 | E13: cwt | F13: cwt | G13: 1 | H13: 0.24
A14: 13 | B14: Haul Grain (Sunflower) | C14: Custom | D14: 0.3 | E14: cwt | F14: cwt | G14: 1 | H14: 0.3
A15: 14 | B15: Haul Grain Bushels | C15: Custom | D15: 0.11 | E15: bushel | F15: bushel | G15: 1 | H15: 0.11
A16: 15 | B16: Load Large Square Bales | C16: Custom | D16: 2 | E16: bale | F16: ton | G16: =1362/2000 -> 0.681 | H16: 2.936857562
A17: 16 | B17: Spray | C17: Custom | D17: 7 | E17: acre | F17: acre | G17: 1 | H17: 7
A18: 17 | B18: 10-34-0 | C18: Fertilizer | D18: 2.4 | E18: gallon | F18: gallon | G18: 1 | H18: 2.4
A19: 18 | B19: 10-34-0-1Z | C19: Fertilizer | D19: 2.45 | E19: gallon | F19: gallon | G19: 1 | H19: 2.45
A20: 19 | B20: 11-52-0 | C20: Fertilizer | D20: 0.24 | E20: pound | F20: pound | G20: 1 | H20: 0.24
A21: 20 | B21: 28-0-0 | C21: Fertilizer | D21: 1.3 | E21: gallon | F21: lbs N | G21: 3 | H21: 0.4333333333
A22: 21 | B22: 32-0-0 | C22: Fertilizer | D22: 0.42 | E22: lbs N | F22: lbs N | G22: 1 | H22: 0.42
A23: 22 | B23: 32-0-0 (Applied by Pivot) | C23: Fertilizer | D23: 0.42 | E23: lbs N | F23: lbs N | G23: 1 | H23: 0.42
A24: 23 | B24: 32-0-0 (Applied by R2) | C24: Fertilizer | D24: 0.42 | E24: lbs N | F24: lbs N | G24: 1 | H24: 0.42
A25: 24 | B25: 46-0-0 | C25: Fertilizer | D25: 0.38 | E25: lb N | F25: lbs N | G25: 1 | H25: 0.38
A26: 25 | B26: 82-0-0 | C26: Fertilizer | D26: 0.28 | E26: lb N | F26: lbs N | G26: 1 | H26: 0.28
A27: 26 | B27: Uncomposted manure | C27: Fertilizer | D27: 1 | E27: ton | F27: ton | G27: 1 | H27: 1
A28: 27 | B28: Copper | C28: Fungicide | D28: 3.5 | E28: pint | F28: pint | G28: 1 | H28: 3.5
A29: 28 | B29: Headline AMP | C29: Fungicide | D29: 340 | E29: gallon | F29: ounce | G29: 128 | H29: 2.65625
A30: 29 | B30: Pea Seed Innoculent | C30: Fungicide | D30: 8 | E30: pound | F30: pound | G30: 1 | H30: 8
A31: 30 | B31: Priaxor | C31: Fungicide | D31: 700 | E31: gallon | F31: ounce | G31: 128 | H31: 5.46875
A32: 31 | B32: Quadris | C32: Fungicide | D32: 300 | E32: gallon | F32: ounce | G32: 128 | H32: 2.34375
A33: 32 | B33: Quilt Xcel | C33: Fungicide | D33: 220 | E33: gallon | F33: ounce | G33: 128 | H33: 1.71875
A34: 33 | B34: Stratego YLD | C34: Fungicide | D34: 600 | E34: gallon | F34: ounce | G34: 128 | H34: 4.6875
A35: 34 | B35: Tilt | C35: Fungicide | D35: 105 | E35: gallon | F35: ounce | G35: 128 | H35: 0.8203125
A36: 35 | B36: 2,4-D Amine | C36: Herbicide | D36: 14 | E36: gallon | F36: pint | G36: 8 | H36: 1.75
A37: 36 | B37: 2,4-D Ester 4# | C37: Herbicide | D37: 18 | E37: gallon | F37: pint | G37: 8 | H37: 2.25
A38: 37 | B38: AAtrex 4L | C38: Herbicide | D38: 20 | E38: gallon | F38: quart | G38: 4 | H38: 5
A39: 38 | B39: Acuron | C39: Herbicide | D39: 77 | E39: gallon | F39: quart | G39: 4 | H39: =IF(G39=0,0,D39/G39) -> 19.25
A40: 39 | B40: Aim 2EC | C40: Herbicide | D40: 200 | E40: quart | F40: ounce | G40: 32 | H40: 6.25
A41: 40 | B41: Ally Extra SGW/TOTSOL | C41: Herbicide | D41: 9 | E41: ounce | F41: ounce | G41: 1 | H41: 9
A42: 41 | B42: Atrazine 4L | C42: Herbicide | D42: 14 | E42: gallon | F42: quart | G42: 4 | H42: 3.5
A43: 42 | B43: Atrazine 90 DF | C43: Herbicide | D43: 3.3 | E43: pound | F43: pound | G43: 1 | H43: 3.3
A44: 43 | B44: Authority First DF | C44: Herbicide | D44: 95 | E44: pound | F44: ounce | G44: 16 | H44: 5.9375
A45: 44 | B45: Balance Flexx | C45: Herbicide | D45: 6 | E45: ounce | F45: ounce | G45: 1 | H45: 6
A46: 45 | B46: Basagran | C46: Herbicide | D46: 80 | E46: gallon | F46: pint | G46: 8 | H46: 10
A47: 46 | B47: Beyond | C47: Herbicide | D47: 625 | E47: gallon | F47: ounce | G47: 128 | H47: 4.8828125
A48: 47 | B48: Bicep II Magnum | C48: Herbicide | D48: 48 | E48: gallon | F48: quart | G48: 4 | H48: 12
A49: 48 | B49: Brox 2EC | C49: Herbicide | D49: 34 | E49: gallon | F49: pint | G49: 8 | H49: 4.25
A50: 49 | B50: Dicamba | C50: Herbicide | D50: 50 | E50: gallon | F50: ounce | G50: 128 | H50: 0.390625
A51: 50 | B51: Distinct | C51: Herbicide | D51: 40 | E51: gallon | F51: ounce | G51: 128 | H51: 0.3125
A52: 51 | B52: Expert | C52: Herbicide | D52: 37 | E52: gallon | F52: quart | G52: 4 | H52: 9.25
A53: 52 | B53: Glyphosate w/Surf | C53: Herbicide | D53: 12.5 | E53: gallon | F53: ounce | G53: 128 | H53: 0.09765625
A54: 53 | B54: Gramoxone SL | C54: Herbicide | D54: 38 | E54: gallon | F54: pint | G54: 8 | H54: 4.75
A55: 54 | B55: Huskie | C55: Herbicide | D55: 120 | E55: gallon | F55: ounce | G55: 128 | H55: 0.9375
A56: 55 | B56: Landmaster BW | C56: Herbicide | D56: 19 | E56: gallon | F56: ounce | G56: 128 | H56: 0.1484375
A57: 56 | B57: Laudis | C57: Herbicide | D57: 830 | E57: gallon | F57: ounce | G57: 128 | H57: 6.484375
A58: 57 | B58: Lumax EZ | C58: Herbicide | D58: 80 | E58: gallon | F58: quart | G58: 4 | H58: 20
A59: 58 | B59: Outlook | C59: Herbicide | D59: 150 | E59: gallon | F59: ounce | G59: 128 | H59: 1.171875
A60: 59 | B60: Peak | C60: Herbicide | D60: 18 | E60: ounce | F60: ounce | G60: 1 | H60: 18
A61: 60 | B61: Prowl H2O | C61: Herbicide | D61: 52 | E61: gallon | F61: pint | G61: 8 | H61: 6.5
A62: 61 | B62: Pursuit | C62: Herbicide | D62: 490 | E62: gallon | F62: ounce | G62: 128 | H62: 3.828125
A63: 62 | B63: Raptor | C63: Herbicide | D63: 610 | E63: gallon | F63: ounce | G63: 128 | H63: 4.765625
A64: 63 | B64: Roundup WeatherMax | C64: Herbicide | D64: 32 | E64: gallon | F64: ounce | G64: 128 | H64: 0.25
A65: 64 | B65: Rugged | C65: Herbicide | D65: 45 | E65: gallon | F65: quart | G65: 4 | H65: 11.25
A66: 65 | B66: Select Max | C66: Herbicide | D66: 110 | E66: gallon | F66: ounce | G66: 128 | H66: 0.859375
A67: 66 | B67: Sharpen | C67: Herbicide | D67: 900 | E67: gallon | F67: ounce | G67: 128 | H67: 7.03125
A68: 67 | B68: Spartan 4F | C68: Herbicide | D68: 600 | E68: gallon | F68: ounce | G68: 128 | H68: 4.6875
A69: 68 | B69: Spirit | C69: Herbicide | D69: 12 | E69: ounce | F69: ounce | G69: 1 | H69: 12
A70: 69 | B70: Status | C70: Herbicide | D70: 4.3 | E70: ounce | F70: ounce | G70: 1 | H70: 4.3
A71: 70 | B71: Valor XLT | C71: Herbicide | D71: 92 | E71: pound | F71: ounce | G71: 16 | H71: =IF(G71=0,0,D71/G71) -> 5.75
A72: 71 | B72: Velpar 75DF | C72: Herbicide | D72: 37 | E72: pound | F72: pound | G72: 1 | H72: 37
A73: 72 | B73: Vida | C73: Herbicide | D73: 9 | E73: ounce | F73: ounce | G73: 1 | H73: 9
A74: 73 | B74: Asana XL | C74: Insecticide | D74: 85 | E74: gallon | F74: ounce | G74: 128 | H74: 0.6640625
A75: 74 | B75: Brigade 2EC | C75: Insecticide | D75: 145 | E75: gallon | F75: ounce | G75: 128 | H75: 1.1328125
A76: 75 | B76: Capture LFR | C76: Insecticide | D76: 360 | E76: gallon | F76: ounce | G76: 128 | H76: 2.8125
A77: 76 | B77: Lorsban 15 G | C77: Insecticide | D77: 2.65 | E77: pound | F77: pound | G77: 1 | H77: 2.65
A78: 77 | B78: Lorsban 4 E | C78: Insecticide | D78: 55 | E78: gallon | F78: pint | G78: 8 | H78: 6.875
A79: 78 | B79: Lorsban Advanced | C79: Insecticide | D79: 55 | E79: gallon | F79: pint | G79: 8 | H79: 6.875
A80: 79 | B80: Mustang Max EC | C80: Insecticide | D80: 190 | E80: gallon | F80: ounce | G80: 128 | H80: 1.484375
A81: 80 | B81: Regent 4 SC | C81: Insecticide | D81: 9.9 | E81: ounce | F81: ounce | G81: 1 | H81: 9.9
A82: 81 | B82: Warrior II/Zeon | C82: Insecticide | D82: 380 | E82: gallon | F82: ounce | G82: 128 | H82: 2.96875
A83: 82 | B83: Electricity Fixed | C83: Other | D83: 30 | E83: acre | F83: acre | G83: 1 | H83: 30
A84: 83 | B84: Electricity Usage | C84: Other | D84: 0.105 | E84: kw | F84: kw | G84: 1 | H84: 0.105
A85: 84 | B85: Fence/Water Repairs | C85: Other | D85: 260 | E85: circle | F85: acre | G85: 130 | H85: 2
A86: 85 | B86: Irrigation District O&M Charge | C86: Other | D86: 30 | E86: acre | F86: acre | G86: 1 | H86: 30
A87: 86 | B87: Move Cattle | C87: Other | D87: 20 | E87: hour | F87: hour | G87: 1 | H87: 20
A88: 87 | B88: Twine Large Round | C88: Other | D88: 0.7 | E88: bale | F88: ton | G88: =1539/2000 -> 0.7695 | H88: 0.9096816114
A89: 88 | B89: Twine Large Square | C89: Other | D89: 1.23 | E89: bale | F89: ton | G89: =1362/2000 -> 0.681 | H89: 1.806167401
A90: 89 | B90: Twine Small Square | C90: Other | D90: 0.07 | E90: bale | F90: ton | G90: =60/2000 -> 0.03 | H90: 2.333333333
A91: 90 | B91: Grass Drill | C91: Rental | D91: 15 | E91: acre | F91: acre | G91: 1 | H91: 15
A92: 91 | B92: Seeder/Packer | C92: Rental | D92: 13 | E92: acre | F92: acre | G92: 1 | H92: 13
A93: 92 | B93: Scouting Dry Beans | C93: Scouting | D93: 10 | E93: acre | F93: acre | G93: 1 | H93: 10
A94: 93 | B94: Scouting Dryland Corn | C94: Scouting | D94: 7 | E94: acre | F94: acre | G94: 1 | H94: 7
A95: 94 | B95: Scouting Dryland Soybeans | C95: Scouting | D95: 7 | E95: acre | F95: acre | G95: 1 | H95: 7
A96: 95 | B96: Scouting Dryland Wheat | C96: Scouting | D96: 7 | E96: acre | F96: acre | G96: 1 | H96: 7
A97: 96 | B97: Scouting Grain Sorghum | C97: Scouting | D97: 7 | E97: acre | F97: acre | G97: 1 | H97: 7
A98: 97 | B98: Scouting Irrigated Corn | C98: Scouting | D98: 9 | E98: acre | F98: acre | G98: 1 | H98: 9
A99: 98 | B99: Scouting Irrigated Soybeans | C99: Scouting | D99: 9 | E99: acre | F99: acre | G99: 1 | H99: 9
A100: 99 | B100: Scouting Irrigated Wheat | C100: Scouting | D100: 9 | E100: acre | F100: acre | G100: 2 | H100: 4.5
A101: 100 | B101: Scouting Sugar Beets | C101: Scouting | D101: 16 | E101: acre | F101: acre | G101: 1 | H101: 16
A102: 101 | B102: Alfalfa RR w/Inoculant | C102: Seed | D102: 9 | E102: pound | F102: pound | G102: 1 | H102: 9
A103: 102 | B103: Alfalfa w/Inoculant | C103: Seed | D103: 6 | E103: pound | F103: pound | G103: 1 | H103: =IF(G103=0,0,D103/G103) -> 6
A104: 103 | B104: Corn | C104: Seed | D104: 200 | E104: bag | F104: k seed | G104: 80 | H104: 2.5
A105: 104 | B105: Corn Bt & ECB | C105: Seed | D105: 230 | E105: bag | F105: k seed | G105: 80 | H105: 2.875
A106: 105 | B106: Corn Bt, ECB & RW | C106: Seed | D106: 230 | E106: bag | F106: k seed | G106: 80 | H106: 2.875
A107: 106 | B107: Corn Bt, ECB, RW & RR2 | C107: Seed | D107: 270 | E107: bag | F107: k seed | G107: 80 | H107: 3.375
A108: 107 | B108: Corn ECB & RR2 | C108: Seed | D108: 260 | E108: bag | F108: k seed | G108: 80 | H108: 3.25
A109: 108 | B109: Corn RR2 | C109: Seed | D109: 240 | E109: bag | F109: k seed | G109: 80 | H109: 3
A110: 109 | B110: Corn SmartStax RIB Complete | C110: Seed | D110: 330 | E110: bag | F110: k seed | G110: 80 | H110: 4.125
A111: 110 | B111: Cover Crop | C111: Seed | D111: 15 | E111: acre | F111: acre | G111: 1 | H111: 15
A112: 111 | B112: Cover Crop Legume | C112: Seed | D112: 30 | E112: acre | F112: acre | G112: 1 | H112: 30
A113: 112 | B113: Edible Beans | C113: Seed | D113: 92 | E113: cwt | F113: cwt | G113: 1 | H113: 92
A114: 113 | B114: Grass Seed | C114: Seed | D114: 75 | E114: acre | F114: acre | G114: 1 | H114: 75
A115: 114 | B115: Millet | C115: Seed | D115: 0.45 | E115: pound | F115: pound | G115: 1 | H115: 0.45
A116: 115 | B116: Oats | C116: Seed | D116: 9 | E116: bushel | F116: bushel | G116: 1 | H116: 9
A117: 116 | B117: Peas | C117: Seed | D117: 18 | E117: bushel | F117: bushel | G117: 1 | H117: 18
A118: 117 | B118: RR Soybeans | C118: Seed | D118: 50 | E118: bag | F118: bag | G118: 1 | H118: 50
A119: 118 | B119: RR Soybeans Treated | C119: Seed | D119: 65 | E119: bag | F119: bag | G119: 1 | H119: 65
A120: 119 | B120: RR2 Soybeans Extend | C120: Seed | D120: 65 | E120: bag | F120: bag | G120: 1 | H120: 65
A121: 120 | B121: RR2 Soybeans Treated | C121: Seed | D121: 65 | E121: bag | F121: bag | G121: 1 | H121: 65
A122: 121 | B122: Sorghum Safened/Insect | C122: Seed | D122: 2.1 | E122: pound | F122: pound | G122: 1 | H122: 2.1
A123: 122 | B123: Sorghum Sudan | C123: Seed | D123: 0.6 | E123: pound | F123: pound | G123: 1 | H123: 0.6
A124: 123 | B124: Sorghum Sudan (Treated) | C124: Seed | D124: 0.8 | E124: pound | F124: pound | G124: 1 | H124: 0.8
A125: 124 | B125: Sorghum Sudan Brown (Treated) | C125: Seed | D125: 1.5 | E125: pound | F125: pound | G125: 1 | H125: 1.5
A126: 125 | B126: Sorghum Sudan Brown Midrib | C126: Seed | D126: 1.3 | E126: pound | F126: pound | G126: 1 | H126: 1.3
A127: 126 | B127: Sugar Beets RR Poncho | C127: Seed | D127: 180 | E127: acre | F127: acre | G127: 1 | H127: 180
A128: 127 | B128: Sunflower Clearfield | C128: Seed | D128: 320 | E128: bag | F128: thousand | G128: 250 | H128: 1.28
A129: 128 | B129: Wheat | C129: Seed | D129: 0.1 | E129: pound | F129: pound | G129: 1 | H129: 0.1
A130: 129 | B130: Wheat (Certified and Treated) | C130: Seed | D130: 0.2 | E130: pound | F130: pound | G130: 1 | H130: 0.2
A131: 130
A132: 131
A133: 132
A134: 133
A135: 134
A136: 135

Sheet Start (hidden)

Sheet 1-Alfalfa
A2: =REPLACE(CELL("filename",A1),1,FIND("]",CELL("filename",A1)),"") -> 1-Alfalfa | I2: Dryland | L2: ='General Variables'!A3&" "&'General Variables'!B3 -> Year 2017 | O2: Acre
A3: Fall Establishment | I3: acre/inches | O3: ai
J4: Does Crop Follow a Legume? | O4: =B4 -> 0
A5: =A2 & IF(C2="","", ", " &C2 ) & ", " & A3 & ", " & I2 -> 1-Alfalfa, Fall Establishment, Dryland
A7: ='General Variables'!B3 & " Budget " & A2 &", " & IF(C2=0,"", " " & C2 & ", ") & A3 & IF(A4=""," ", " (") & A4 & " " & B4 & IF(A4="",""," Actual Yield)") -> 2017 Budget 1-Alfalfa, Fall Establishment
A8: =IF(I2="Dryland","Dryland",I2 & IF(J2="","",", "&J2)&IF(H3="","",", "&H3&" "&I3)) -> Dryland
B10: Field Operations | C10: Times or Qty | E10: ="Labor @ $" &TEXT('General Variables'!B4,"#.00")& " /Hr" -> Labor @ $20.00 /Hr | F10: ="Fuel @ $" & TEXT('General Variables'!B5,"#.00") & " and Lube" -> Fuel @ $2.25 and Lube | G10: Repairs | I10: Ownership | K10: Total | L10: Your Estimate
D11: Unit | G11: Power | H11: Imp. | I11: Power | J11: Imp.
A12: 1 | B12: Spread Fertilizer | C12: 1 | E12: =IF(B12=0,"",IF(C12>9999,"",ROUND('General Variables'!$B$4*VLOOKUP(B12,#REF!,10,FALSE)/VLOOKUP(B12,#REF!,9,FALSE)*C12,2))) ->  | F12: =IF(B12=0,0,IF(C12>9999,"",ROUND(IF(VLOOKUP(B12,#REF!,12,FALSE)=0,VLOOKUP(B12,#REF!,13,FALSE)*'General Variables'!$B$8,VLOOKUP(B12,#REF!,12,FALSE)*'General Variables'!$B$7)/VLOOKUP(B12,#REF!,9,FALSE)*C12,2))) ->  | G12: =IF(B12=0,0,IF(C12>9999,"",ROUND(VLOOKUP(VLOOKUP(B12,#REF!,11,FALSE),#REF!,10,FALSE)/VLOOKUP(B12,#REF!,9,FALSE)*C12,2))) ->  | H12: =IF(B12=0,"",IF(C12>9999,"",ROUND(VLOOKUP($B12,#REF!,15,FALSE)*C12,2))) ->  | I12: =IF(B12=0,0,IF(C12>9999,"",ROUND(VLOOKUP(VLOOKUP(B12,#REF!,11,FALSE),#REF!,16,FALSE)/VLOOKUP(B12,#REF!,9,FALSE)*C12,2))) ->  | J12: =IF(B12=0,"",IF(C12>9999,"",ROUND(VLOOKUP($B12,#REF!,21,FALSE)*$C12,2))) ->  | K12: =IF(C12>9999,"",SUM(E12:J12)) -> 
A13: 2 | B13: Disk | C13: 1 | E13: =IF(B13=0,"",IF(C13>9999,"",ROUND('General Variables'!$B$4*VLOOKUP(B13,#REF!,10,FALSE)/VLOOKUP(B13,#REF!,9,FALSE)*C13,2))) ->  | F13: =IF(B13=0,0,IF(C13>9999,"",ROUND(IF(VLOOKUP(B13,#REF!,12,FALSE)=0,VLOOKUP(B13,#REF!,13,FALSE)*'General Variables'!$B$8,VLOOKUP(B13,#REF!,12,FALSE)*'General Variables'!$B$7)/VLOOKUP(B13,#REF!,9,FALSE)*C13,2))) ->  | G13: =IF(B13=0,0,IF(C13>9999,"",ROUND(VLOOKUP(VLOOKUP(B13,#REF!,11,FALSE),#REF!,10,FALSE)/VLOOKUP(B13,#REF!,9,FALSE)*C13,2))) ->  | H13: =IF(B13=0,"",IF(C13>9999,"",ROUND(VLOOKUP($B13,#REF!,15,FALSE)*C13,2))) ->  | I13: =IF(B13=0,0,IF(C13>9999,"",ROUND(VLOOKUP(VLOOKUP(B13,#REF!,11,FALSE),#REF!,16,FALSE)/VLOOKUP(B13,#REF!,9,FALSE)*C13,2))) ->  | J13: =IF(B13=0,"",IF(C13>9999,"",ROUND(VLOOKUP($B13,#REF!,21,FALSE)*$C13,2))) ->  | K13: =IF(C13>9999,"",SUM(E13:J13)) -> 
A14: 3 | B14: Harrow | C14: 1 | E14: =IF(B14=0,"",IF(C14>9999,"",ROUND('General Variables'!$B$4*VLOOKUP(B14,#REF!,10,FALSE)/VLOOKUP(B14,#REF!,9,FALSE)*C14,2))) ->  | F14: =IF(B14=0,0,IF(C14>9999,"",ROUND(IF(VLOOKUP(B14,#REF!,12,FALSE)=0,VLOOKUP(B14,#REF!,13,FALSE)*'General Variables'!$B$8,VLOOKUP(B14,#REF!,12,FALSE)*'General Variables'!$B$7)/VLOOKUP(B14,#REF!,9,FALSE)*C14,2))) ->  | G14: =IF(B14=0,0,IF(C14>9999,"",ROUND(VLOOKUP(VLOOKUP(B14,#REF!,11,FALSE),#REF!,10,FALSE)/VLOOKUP(B14,#REF!,9,FALSE)*C14,2))) ->  | H14: =IF(B14=0,"",IF(C14>9999,"",ROUND(VLOOKUP($B14,#REF!,15,FALSE)*C14,2))) ->  | I14: =IF(B14=0,0,IF(C14>9999,"",ROUND(VLOOKUP(VLOOKUP(B14,#REF!,11,FALSE),#REF!,16,FALSE)/VLOOKUP(B14,#REF!,9,FALSE)*C14,2))) ->  | J14: =IF(B14=0,"",IF(C14>9999,"",ROUND(VLOOKUP($B14,#REF!,21,FALSE)*$C14,2))) -> 
A15: 4 | B15: Harrow | C15: 1 | E15: =IF(B15=0,"",IF(C15>9999,"",ROUND('General Variables'!$B$4*VLOOKUP(B15,#REF!,10,FALSE)/VLOOKUP(B15,#REF!,9,FALSE)*C15,2))) ->  | F15: =IF(B15=0,0,IF(C15>9999,"",ROUND(IF(VLOOKUP(B15,#REF!,12,FALSE)=0,VLOOKUP(B15,#REF!,13,FALSE)*'General Variables'!$B$8,VLOOKUP(B15,#REF!,12,FALSE)*'General Variables'!$B$7)/VLOOKUP(B15,#REF!,9,FALSE)*C15,2))) ->  | G15: =IF(B15=0,0,IF(C15>9999,"",ROUND(VLOOKUP(VLOOKUP(B15,#REF!,11,FALSE),#REF!,10,FALSE)/VLOOKUP(B15,#REF!,9,FALSE)*C15,2))) ->  | H15: =IF(B15=0,"",IF(C15>9999,"",ROUND(VLOOKUP($B15,#REF!,15,FALSE)*C15,2))) ->  | I15: =IF(B15=0,0,IF(C15>9999,"",ROUND(VLOOKUP(VLOOKUP(B15,#REF!,11,FALSE),#REF!,16,FALSE)/VLOOKUP(B15,#REF!,9,FALSE)*C15,2))) ->  | J15: =IF(B15=0,"",IF(C15>9999,"",ROUND(VLOOKUP($B15,#REF!,21,FALSE)*$C15,2))) -> 
A16: 5 | B16: Roll | C16: 1 | E16: =IF(B16=0,"",IF(C16>9999,"",ROUND('General Variables'!$B$4*VLOOKUP(B16,#REF!,10,FALSE)/VLOOKUP(B16,#REF!,9,FALSE)*C16,2))) ->  | F16: =IF(B16=0,0,IF(C16>9999,"",ROUND(IF(VLOOKUP(B16,#REF!,12,FALSE)=0,VLOOKUP(B16,#REF!,13,FALSE)*'General Variables'!$B$8,VLOOKUP(B16,#REF!,12,FALSE)*'General Variables'!$B$7)/VLOOKUP(B16,#REF!,9,FALSE)*C16,2))) ->  | G16: =IF(B16=0,0,IF(C16>9999,"",ROUND(VLOOKUP(VLOOKUP(B16,#REF!,11,FALSE),#REF!,10,FALSE)/VLOOKUP(B16,#REF!,9,FALSE)*C16,2))) ->  | H16: =IF(B16=0,"",IF(C16>9999,"",ROUND(VLOOKUP($B16,#REF!,15,FALSE)*C16,2))) ->  | I16: =IF(B16=0,0,IF(C16>9999,"",ROUND(VLOOKUP(VLOOKUP(B16,#REF!,11,FALSE),#REF!,16,FALSE)/VLOOKUP(B16,#REF!,9,FALSE)*C16,2))) ->  | J16: =IF(B16=0,"",IF(C16>9999,"",ROUND(VLOOKUP($B16,#REF!,21,FALSE)*$C16,2))) -> 
A17: 6 | B17: Drill | C17: 1 | E17: =IF(B17=0,"",IF(C17>9999,"",ROUND('General Variables'!$B$4*VLOOKUP(B17,#REF!,10,FALSE)/VLOOKUP(B17,#REF!,9,FALSE)*C17,2))) ->  | F17: =IF(B17=0,0,IF(C17>9999,"",ROUND(IF(VLOOKUP(B17,#REF!,12,FALSE)=0,VLOOKUP(B17,#REF!,13,FALSE)*'General Variables'!$B$8,VLOOKUP(B17,#REF!,12,FALSE)*'General Variables'!$B$7)/VLOOKUP(B17,#REF!,9,FALSE)*C17,2))) ->  | G17: =IF(B17=0,0,IF(C17>9999,"",ROUND(VLOOKUP(VLOOKUP(B17,#REF!,11,FALSE),#REF!,10,FALSE)/VLOOKUP(B17,#REF!,9,FALSE)*C17,2))) ->  | H17: =IF(B17=0,"",IF(C17>9999,"",ROUND(VLOOKUP($B17,#REF!,15,FALSE)*C17,2))) ->  | I17: =IF(B17=0,0,IF(C17>9999,"",ROUND(VLOOKUP(VLOOKUP(B17,#REF!,11,FALSE),#REF!,16,FALSE)/VLOOKUP(B17,#REF!,9,FALSE)*C17,2))) ->  | J17: =IF(B17=0,"",IF(C17>9999,"",ROUND(VLOOKUP($B17,#REF!,21,FALSE)*$C17,2))) -> 
A18: 7 | B18: Spray | C18: 1 | E18: =IF(B18=0,"",IF(C18>9999,"",ROUND('General Variables'!$B$4*VLOOKUP(B18,#REF!,10,FALSE)/VLOOKUP(B18,#REF!,9,FALSE)*C18,2))) ->  | F18: =IF(B18=0,0,IF(C18>9999,"",ROUND(IF(VLOOKUP(B18,#REF!,12,FALSE)=0,VLOOKUP(B18,#REF!,13,FALSE)*'General Variables'!$B$8,VLOOKUP(B18,#REF!,12,FALSE)*'General Variables'!$B$7)/VLOOKUP(B18,#REF!,9,FALSE)*C18,2))) ->  | G18: =IF(B18=0,0,IF(C18>9999,"",ROUND(VLOOKUP(VLOOKUP(B18,#REF!,11,FALSE),#REF!,10,FALSE)/VLOOKUP(B18,#REF!,9,FALSE)*C18,2))) ->  | H18: =IF(B18=0,"",IF(C18>9999,"",ROUND(VLOOKUP($B18,#REF!,15,FALSE)*C18,2))) ->  | I18: =IF(B18=0,0,IF(C18>9999,"",ROUND(VLOOKUP(VLOOKUP(B18,#REF!,11,FALSE),#REF!,16,FALSE)/VLOOKUP(B18,#REF!,9,FALSE)*C18,2))) ->  | J18: =IF(B18=0,"",IF(C18>9999,"",ROUND(VLOOKUP($B18,#REF!,21,FALSE)*$C18,2))) -> 
A19: 8 | B19: Spray | C19: 0.2 | E19: =IF(B19=0,"",IF(C19>9999,"",ROUND('General Variables'!$B$4*VLOOKUP(B19,#REF!,10,FALSE)/VLOOKUP(B19,#REF!,9,FALSE)*C19,2))) ->  | F19: =IF(B19=0,0,IF(C19>9999,"",ROUND(IF(VLOOKUP(B19,#REF!,12,FALSE)=0,VLOOKUP(B19,#REF!,13,FALSE)*'General Variables'!$B$8,VLOOKUP(B19,#REF!,12,FALSE)*'General Variables'!$B$7)/VLOOKUP(B19,#REF!,9,FALSE)*C19,2))) ->  | G19: =IF(B19=0,0,IF(C19>9999,"",ROUND(VLOOKUP(VLOOKUP(B19,#REF!,11,FALSE),#REF!,10,FALSE)/VLOOKUP(B19,#REF!,9,FALSE)*C19,2))) ->  | H19: =IF(B19=0,"",IF(C19>9999,"",ROUND(VLOOKUP($B19,#REF!,15,FALSE)*C19,2))) ->  | I19: =IF(B19=0,0,IF(C19>9999,"",ROUND(VLOOKUP(VLOOKUP(B19,#REF!,11,FALSE),#REF!,16,FALSE)/VLOOKUP(B19,#REF!,9,FALSE)*C19,2))) ->  | J19: =IF(B19=0,"",IF(C19>9999,"",ROUND(VLOOKUP($B19,#REF!,21,FALSE)*$C19,2))) -> 
A20: 9 | E20: =IF(B20=0,"",IF(C20>9999,"",ROUND('General Variables'!$B$4*VLOOKUP(B20,#REF!,10,FALSE)/VLOOKUP(B20,#REF!,9,FALSE)*C20,2))) ->  | F20: =IF(B20=0,0,IF(C20>9999,"",ROUND(IF(VLOOKUP(B20,#REF!,12,FALSE)=0,VLOOKUP(B20,#REF!,13,FALSE)*'General Variables'!$B$8,VLOOKUP(B20,#REF!,12,FALSE)*'General Variables'!$B$7)/VLOOKUP(B20,#REF!,9,FALSE)*C20,2))) -> 0 | G20: =IF(B20=0,0,IF(C20>9999,"",ROUND(VLOOKUP(VLOOKUP(B20,#REF!,11,FALSE),#REF!,10,FALSE)/VLOOKUP(B20,#REF!,9,FALSE)*C20,2))) -> 0 | H20: =IF(B20=0,"",IF(C20>9999,"",ROUND(VLOOKUP($B20,#REF!,15,FALSE)*C20,2))) ->  | I20: =IF(B20=0,0,IF(C20>9999,"",ROUND(VLOOKUP(VLOOKUP(B20,#REF!,11,FALSE),#REF!,16,FALSE)/VLOOKUP(B20,#REF!,9,FALSE)*C20,2))) -> 0 | J20: =IF(B20=0,"",IF(C20>9999,"",ROUND(VLOOKUP($B20,#REF!,21,FALSE)*$C20,2))) ->  | K20: 0
A21: 10 | E21: =IF(B21=0,"",IF(C21>9999,"",ROUND('General Variables'!$B$4*VLOOKUP(B21,#REF!,10,FALSE)/VLOOKUP(B21,#REF!,9,FALSE)*C21,2))) ->  | F21: =IF(B21=0,0,IF(C21>9999,"",ROUND(IF(VLOOKUP(B21,#REF!,12,FALSE)=0,VLOOKUP(B21,#REF!,13,FALSE)*'General Variables'!$B$8,VLOOKUP(B21,#REF!,12,FALSE)*'General Variables'!$B$7)/VLOOKUP(B21,#REF!,9,FALSE)*C21,2))) -> 0 | G21: =IF(B21=0,0,IF(C21>9999,"",ROUND(VLOOKUP(VLOOKUP(B21,#REF!,11,FALSE),#REF!,10,FALSE)/VLOOKUP(B21,#REF!,9,FALSE)*C21,2))) -> 0 | H21: =IF(B21=0,"",IF(C21>9999,"",ROUND(VLOOKUP($B21,#REF!,15,FALSE)*C21,2))) ->  | I21: =IF(B21=0,0,IF(C21>9999,"",ROUND(VLOOKUP(VLOOKUP(B21,#REF!,11,FALSE),#REF!,16,FALSE)/VLOOKUP(B21,#REF!,9,FALSE)*C21,2))) -> 0 | J21: =IF(B21=0,"",IF(C21>9999,"",ROUND(VLOOKUP($B21,#REF!,21,FALSE)*$C21,2))) ->  | K21: 0
A22: 11 | E22: =IF(B22=0,"",IF(C22>9999,"",ROUND('General Variables'!$B$4*VLOOKUP(B22,#REF!,10,FALSE)/VLOOKUP(B22,#REF!,9,FALSE)*C22,2))) ->  | F22: =IF(B22=0,0,IF(C22>9999,"",ROUND(IF(VLOOKUP(B22,#REF!,12,FALSE)=0,VLOOKUP(B22,#REF!,13,FALSE)*'General Variables'!$B$8,VLOOKUP(B22,#REF!,12,FALSE)*'General Variables'!$B$7)/VLOOKUP(B22,#REF!,9,FALSE)*C22,2))) -> 0 | G22: =IF(B22=0,0,IF(C22>9999,"",ROUND(VLOOKUP(VLOOKUP(B22,#REF!,11,FALSE),#REF!,10,FALSE)/VLOOKUP(B22,#REF!,9,FALSE)*C22,2))) -> 0 | H22: =IF(B22=0,"",IF(C22>9999,"",ROUND(VLOOKUP($B22,#REF!,15,FALSE)*C22,2))) ->  | I22: =IF(B22=0,0,IF(C22>9999,"",ROUND(VLOOKUP(VLOOKUP(B22,#REF!,11,FALSE),#REF!,16,FALSE)/VLOOKUP(B22,#REF!,9,FALSE)*C22,2))) -> 0 | J22: =IF(B22=0,"",IF(C22>9999,"",ROUND(VLOOKUP($B22,#REF!,21,FALSE)*$C22,2))) ->  | K22: 0
A23: 12 | E23: =IF(B23=0,"",IF(C23>9999,"",ROUND('General Variables'!$B$4*VLOOKUP(B23,#REF!,10,FALSE)/VLOOKUP(B23,#REF!,9,FALSE)*C23,2))) ->  | F23: =IF(B23=0,0,IF(C23>9999,"",ROUND(IF(VLOOKUP(B23,#REF!,12,FALSE)=0,VLOOKUP(B23,#REF!,13,FALSE)*'General Variables'!$B$8,VLOOKUP(B23,#REF!,12,FALSE)*'General Variables'!$B$7)/VLOOKUP(B23,#REF!,9,FALSE)*C23,2))) -> 0 | G23: =IF(B23=0,0,IF(C23>9999,"",ROUND(VLOOKUP(VLOOKUP(B23,#REF!,11,FALSE),#REF!,10,FALSE)/VLOOKUP(B23,#REF!,9,FALSE)*C23,2))) -> 0 | H23: =IF(B23=0,"",IF(C23>9999,"",ROUND(VLOOKUP($B23,#REF!,15,FALSE)*C23,2))) ->  | I23: =IF(B23=0,0,IF(C23>9999,"",ROUND(VLOOKUP(VLOOKUP(B23,#REF!,11,FALSE),#REF!,16,FALSE)/VLOOKUP(B23,#REF!,9,FALSE)*C23,2))) -> 0 | J23: =IF(B23=0,"",IF(C23>9999,"",ROUND(VLOOKUP($B23,#REF!,21,FALSE)*$C23,2))) ->  | K23: 0
A24: 13 | E24: =IF(B24=0,"",IF(C24>9999,"",ROUND('General Variables'!$B$4*VLOOKUP(B24,#REF!,10,FALSE)/VLOOKUP(B24,#REF!,9,FALSE)*C24,2))) ->  | F24: =IF(B24=0,0,IF(C24>9999,"",ROUND(IF(VLOOKUP(B24,#REF!,12,FALSE)=0,VLOOKUP(B24,#REF!,13,FALSE)*'General Variables'!$B$8,VLOOKUP(B24,#REF!,12,FALSE)*'General Variables'!$B$7)/VLOOKUP(B24,#REF!,9,FALSE)*C24,2))) -> 0 | G24: =IF(B24=0,0,IF(C24>9999,"",ROUND(VLOOKUP(VLOOKUP(B24,#REF!,11,FALSE),#REF!,10,FALSE)/VLOOKUP(B24,#REF!,9,FALSE)*C24,2))) -> 0 | H24: =IF(B24=0,"",IF(C24>9999,"",ROUND(VLOOKUP($B24,#REF!,15,FALSE)*C24,2))) ->  | I24: =IF(B24=0,0,IF(C24>9999,"",ROUND(VLOOKUP(VLOOKUP(B24,#REF!,11,FALSE),#REF!,16,FALSE)/VLOOKUP(B24,#REF!,9,FALSE)*C24,2))) -> 0 | J24: =IF(B24=0,"",IF(C24>9999,"",ROUND(VLOOKUP($B24,#REF!,21,FALSE)*$C24,2))) ->  | K24: 0
A25: 14 | E25: =IF(B25=0,"",IF(C25>9999,"",ROUND('General Variables'!$B$4*VLOOKUP(B25,#REF!,10,FALSE)/VLOOKUP(B25,#REF!,9,FALSE)*C25,2))) ->  | F25: =IF(B25=0,0,IF(C25>9999,"",ROUND(IF(VLOOKUP(B25,#REF!,12,FALSE)=0,VLOOKUP(B25,#REF!,13,FALSE)*'General Variables'!$B$8,VLOOKUP(B25,#REF!,12,FALSE)*'General Variables'!$B$7)/VLOOKUP(B25,#REF!,9,FALSE)*C25,2))) -> 0 | G25: =IF(B25=0,0,IF(C25>9999,"",ROUND(VLOOKUP(VLOOKUP(B25,#REF!,11,FALSE),#REF!,10,FALSE)/VLOOKUP(B25,#REF!,9,FALSE)*C25,2))) -> 0 | H25: =IF(B25=0,"",IF(C25>9999,"",ROUND(VLOOKUP($B25,#REF!,15,FALSE)*C25,2))) ->  | I25: =IF(B25=0,0,IF(C25>9999,"",ROUND(VLOOKUP(VLOOKUP(B25,#REF!,11,FALSE),#REF!,16,FALSE)/VLOOKUP(B25,#REF!,9,FALSE)*C25,2))) -> 0 | J25: =IF(B25=0,"",IF(C25>9999,"",ROUND(VLOOKUP($B25,#REF!,21,FALSE)*$C25,2))) ->  | K25: 0
A26: 15 | E26: =IF(B26=0,"",IF(C26>9999,"",ROUND('General Variables'!$B$4*VLOOKUP(B26,#REF!,10,FALSE)/VLOOKUP(B26,#REF!,9,FALSE)*C26,2))) ->  | F26: =IF(B26=0,0,IF(C26>9999,"",ROUND(IF(VLOOKUP(B26,#REF!,12,FALSE)=0,VLOOKUP(B26,#REF!,13,FALSE)*'General Variables'!$B$8,VLOOKUP(B26,#REF!,12,FALSE)*'General Variables'!$B$7)/VLOOKUP(B26,#REF!,9,FALSE)*C26,2))) -> 0 | G26: =IF(B26=0,0,IF(C26>9999,"",ROUND(VLOOKUP(VLOOKUP(B26,#REF!,11,FALSE),#REF!,10,FALSE)/VLOOKUP(B26,#REF!,9,FALSE)*C26,2))) -> 0 | H26: =IF(B26=0,"",IF(C26>9999,"",ROUND(VLOOKUP($B26,#REF!,15,FALSE)*C26,2))) ->  | I26: =IF(B26=0,0,IF(C26>9999,"",ROUND(VLOOKUP(VLOOKUP(B26,#REF!,11,FALSE),#REF!,16,FALSE)/VLOOKUP(B26,#REF!,9,FALSE)*C26,2))) -> 0 | J26: =IF(B26=0,"",IF(C26>9999,"",ROUND(VLOOKUP($B26,#REF!,21,FALSE)*$C26,2))) ->  | K26: 0
A27: 16 | E27: =IF(B27=0,"",IF(C27>9999,"",ROUND('General Variables'!$B$4*VLOOKUP(B27,#REF!,10,FALSE)/VLOOKUP(B27,#REF!,9,FALSE)*C27,2))) ->  | F27: =IF(B27=0,0,IF(C27>9999,"",ROUND(IF(VLOOKUP(B27,#REF!,12,FALSE)=0,VLOOKUP(B27,#REF!,13,FALSE)*'General Variables'!$B$8,VLOOKUP(B27,#REF!,12,FALSE)*'General Variables'!$B$7)/VLOOKUP(B27,#REF!,9,FALSE)*C27,2))) -> 0 | G27: =IF(B27=0,0,IF(C27>9999,"",ROUND(VLOOKUP(VLOOKUP(B27,#REF!,11,FALSE),#REF!,10,FALSE)/VLOOKUP(B27,#REF!,9,FALSE)*C27,2))) -> 0 | H27: =IF(B27=0,"",IF(C27>9999,"",ROUND(VLOOKUP($B27,#REF!,15,FALSE)*C27,2))) ->  | I27: =IF(B27=0,0,IF(C27>9999,"",ROUND(VLOOKUP(VLOOKUP(B27,#REF!,11,FALSE),#REF!,16,FALSE)/VLOOKUP(B27,#REF!,9,FALSE)*C27,2))) -> 0 | J27: =IF(B27=0,"",IF(C27>9999,"",ROUND(VLOOKUP($B27,#REF!,21,FALSE)*$C27,2))) ->  | K27: 0
A28: 17 | E28: =IF(B28=0,"",IF(C28>9999,"",ROUND('General Variables'!$B$4*VLOOKUP(B28,#REF!,10,FALSE)/VLOOKUP(B28,#REF!,9,FALSE)*C28,2))) ->  | F28: =IF(B28=0,0,IF(C28>9999,"",ROUND(IF(VLOOKUP(B28,#REF!,12,FALSE)=0,VLOOKUP(B28,#REF!,13,FALSE)*'General Variables'!$B$8,VLOOKUP(B28,#REF!,12,FALSE)*'General Variables'!$B$7)/VLOOKUP(B28,#REF!,9,FALSE)*C28,2))) -> 0 | G28: =IF(B28=0,0,IF(C28>9999,"",ROUND(VLOOKUP(VLOOKUP(B28,#REF!,11,FALSE),#REF!,10,FALSE)/VLOOKUP(B28,#REF!,9,FALSE)*C28,2))) -> 0 | H28: =IF(B28=0,"",IF(C28>9999,"",ROUND(VLOOKUP($B28,#REF!,15,FALSE)*C28,2))) ->  | I28: =IF(B28=0,0,IF(C28>9999,"",ROUND(VLOOKUP(VLOOKUP(B28,#REF!,11,FALSE),#REF!,16,FALSE)/VLOOKUP(B28,#REF!,9,FALSE)*C28,2))) -> 0 | J28: =IF(B28=0,"",IF(C28>9999,"",ROUND(VLOOKUP($B28,#REF!,21,FALSE)*$C28,2))) ->  | K28: 0
A29: 18 | E29: =IF(B29=0,"",IF(C29>9999,"",ROUND('General Variables'!$B$4*VLOOKUP(B29,#REF!,10,FALSE)/VLOOKUP(B29,#REF!,9,FALSE)*C29,2))) ->  | F29: =IF(B29=0,0,IF(C29>9999,"",ROUND(IF(VLOOKUP(B29,#REF!,12,FALSE)=0,VLOOKUP(B29,#REF!,13,FALSE)*'General Variables'!$B$8,VLOOKUP(B29,#REF!,12,FALSE)*'General Variables'!$B$7)/VLOOKUP(B29,#REF!,9,FALSE)*C29,2))) -> 0 | G29: =IF(B29=0,0,IF(C29>9999,"",ROUND(VLOOKUP(VLOOKUP(B29,#REF!,11,FALSE),#REF!,10,FALSE)/VLOOKUP(B29,#REF!,9,FALSE)*C29,2))) -> 0 | H29: =IF(B29=0,"",IF(C29>9999,"",ROUND(VLOOKUP($B29,#REF!,15,FALSE)*C29,2))) ->  | I29: =IF(B29=0,0,IF(C29>9999,"",ROUND(VLOOKUP(VLOOKUP(B29,#REF!,11,FALSE),#REF!,16,FALSE)/VLOOKUP(B29,#REF!,9,FALSE)*C29,2))) -> 0 | J29: =IF(B29=0,"",IF(C29>9999,"",ROUND(VLOOKUP($B29,#REF!,21,FALSE)*$C29,2))) ->  | K29: 0
A30: 19 | E30: =IF(B30=0,"",IF(C30>9999,"",ROUND('General Variables'!$B$4*VLOOKUP(B30,#REF!,10,FALSE)/VLOOKUP(B30,#REF!,9,FALSE)*C30,2))) ->  | F30: =IF(B30=0,0,IF(C30>9999,"",ROUND(IF(VLOOKUP(B30,#REF!,12,FALSE)=0,VLOOKUP(B30,#REF!,13,FALSE)*'General Variables'!$B$8,VLOOKUP(B30,#REF!,12,FALSE)*'General Variables'!$B$7)/VLOOKUP(B30,#REF!,9,FALSE)*C30,2))) -> 0 | G30: =IF(B30=0,0,IF(C30>9999,"",ROUND(VLOOKUP(VLOOKUP(B30,#REF!,11,FALSE),#REF!,10,FALSE)/VLOOKUP(B30,#REF!,9,FALSE)*C30,2))) -> 0 | H30: =IF(B30=0,"",IF(C30>9999,"",ROUND(VLOOKUP($B30,#REF!,15,FALSE)*C30,2))) ->  | I30: =IF(B30=0,0,IF(C30>9999,"",ROUND(VLOOKUP(VLOOKUP(B30,#REF!,11,FALSE),#REF!,16,FALSE)/VLOOKUP(B30,#REF!,9,FALSE)*C30,2))) -> 0 | J30: =IF(B30=0,"",IF(C30>9999,"",ROUND(VLOOKUP($B30,#REF!,21,FALSE)*$C30,2))) ->  | K30: 0
A31: 20 | E31: =IF(B31=0,"",IF(C31>9999,"",ROUND('General Variables'!$B$4*VLOOKUP(B31,#REF!,10,FALSE)/VLOOKUP(B31,#REF!,9,FALSE)*C31,2))) ->  | F31: =IF(B31=0,0,IF(C31>9999,"",ROUND(IF(VLOOKUP(B31,#REF!,12,FALSE)=0,VLOOKUP(B31,#REF!,13,FALSE)*'General Variables'!$B$8,VLOOKUP(B31,#REF!,12,FALSE)*'General Variables'!$B$7)/VLOOKUP(B31,#REF!,9,FALSE)*C31,2))) -> 0 | G31: =IF(B31=0,0,IF(C31>9999,"",ROUND(VLOOKUP(VLOOKUP(B31,#REF!,11,FALSE),#REF!,10,FALSE)/VLOOKUP(B31,#REF!,9,FALSE)*C31,2))) -> 0 | H31: =IF(B31=0,"",IF(C31>9999,"",ROUND(VLOOKUP($B31,#REF!,15,FALSE)*C31,2))) ->  | I31: =IF(B31=0,0,IF(C31>9999,"",ROUND(VLOOKUP(VLOOKUP(B31,#REF!,11,FALSE),#REF!,16,FALSE)/VLOOKUP(B31,#REF!,9,FALSE)*C31,2))) -> 0 | J31: =IF(B31=0,"",IF(C31>9999,"",ROUND(VLOOKUP($B31,#REF!,21,FALSE)*$C31,2))) ->  | K31: 0
C33: Total for Field Operations | E33: =SUM(E12:E31) ->  | F33: =SUM(F12:F31) -> 
F35: Operation Index | G35: Percent Acres Applied | H35: Application | J35: Applied Price | L35: Your Estimate
B36: Materials & Services | H36: Rate | I36: Unit | K36: Total
B37: 11-52-0 | C37: =IF(B37=0,"",VLOOKUP($B37,Table2[],2,FALSE)) -> Fertilizer | F37: 1 | G37: 1 | H37: 100 | I37: =IF($B37=0,"",VLOOKUP($B37,Table2[],5,FALSE)) -> pound | J37: =IF($B37=0,"",VLOOKUP($B37,Table2[],7,FALSE)) -> 0.24 | K37: =IF(B37=0,0,ROUND(G37*H37*J37,2)) -> 24
B38: Alfalfa w/Inoculant | C38: =IF(B38=0,"",VLOOKUP($B38,Table2[],2,FALSE)) -> Seed | F38: 6 | G38: 1 | H38: 12 | I38: =IF($B38=0,"",VLOOKUP($B38,Table2[],5,FALSE)) -> pound | J38: =IF($B38=0,"",VLOOKUP($B38,Table2[],7,FALSE)) -> 6 | K38: =IF(B38=0,0,ROUND(G38*H38*J38,2)) -> 72
B39: Pursuit | C39: =IF(B39=0,"",VLOOKUP($B39,Table2[],2,FALSE)) -> Herbicide | F39: 7 | G39: 1 | H39: 3 | I39: =IF($B39=0,"",VLOOKUP($B39,Table2[],5,FALSE)) -> ounce | J39: =IF($B39=0,"",VLOOKUP($B39,Table2[],7,FALSE)) -> 3.828125 | K39: =IF(B39=0,0,ROUND(G39*H39*J39,2)) -> 11.48
B40: Crop Oil Concentrate | C40: =IF(B40=0,"",VLOOKUP($B40,Table2[],2,FALSE)) -> Additive | F40: 7 | G40: 1 | H40: 1.6 | I40: =IF($B40=0,"",VLOOKUP($B40,Table2[],5,FALSE)) -> pint | J40: =IF($B40=0,"",VLOOKUP($B40,Table2[],7,FALSE)) -> 1.125 | K40: =IF(B40=0,0,ROUND(G40*H40*J40,2)) -> 1.8
B41: UAN | C41: =IF(B41=0,"",VLOOKUP($B41,Table2[],2,FALSE)) -> Additive | F41: 7 | G41: 1 | H41: 2 | I41: =IF($B41=0,"",VLOOKUP($B41,Table2[],5,FALSE)) -> pint | J41: =IF($B41=0,"",VLOOKUP($B41,Table2[],7,FALSE)) -> 0.1875 | K41: 0.38
B42: Lorsban Advanced | C42: =IF(B42=0,"",VLOOKUP($B42,Table2[],2,FALSE)) -> Insecticide | F42: 8 | G42: 0.2 | H42: 1 | I42: =IF($B42=0,"",VLOOKUP($B42,Table2[],5,FALSE)) -> pint | J42: =IF($B42=0,"",VLOOKUP($B42,Table2[],7,FALSE)) -> 6.875 | K42: 1.38
C43: =IF(B43=0,"",VLOOKUP($B43,Table2[],2,FALSE)) ->  | I43: =IF($B43=0,"",VLOOKUP($B43,Table2[],5,FALSE)) ->  | J43: =IF($B43=0,"",VLOOKUP($B43,Table2[],7,FALSE)) ->  | K43: 0
C44: =IF(B44=0,"",VLOOKUP($B44,Table2[],2,FALSE)) ->  | I44: =IF($B44=0,"",VLOOKUP($B44,Table2[],5,FALSE)) ->  | J44: =IF($B44=0,"",VLOOKUP($B44,Table2[],7,FALSE)) ->  | K44: 0
C45: =IF(B45=0,"",VLOOKUP($B45,Table2[],2,FALSE)) ->  | I45: =IF($B45=0,"",VLOOKUP($B45,Table2[],5,FALSE)) ->  | J45: =IF($B45=0,"",VLOOKUP($B45,Table2[],7,FALSE)) ->  | K45: 0
C46: =IF(B46=0,"",VLOOKUP($B46,Table2[],2,FALSE)) ->  | I46: =IF($B46=0,"",VLOOKUP($B46,Table2[],5,FALSE)) ->  | J46: =IF($B46=0,"",VLOOKUP($B46,Table2[],7,FALSE)) ->  | K46: 0
C47: =IF(B47=0,"",VLOOKUP($B47,Table2[],2,FALSE)) ->  | I47: =IF($B47=0,"",VLOOKUP($B47,Table2[],5,FALSE)) ->  | J47: =IF($B47=0,"",VLOOKUP($B47,Table2[],7,FALSE)) ->  | K47: 0
C48: =IF(B48=0,"",VLOOKUP($B48,Table2[],2,FALSE)) ->  | I48: =IF($B48=0,"",VLOOKUP($B48,Table2[],5,FALSE)) ->  | J48: =IF($B48=0,"",VLOOKUP($B48,Table2[],7,FALSE)) ->  | K48: 0
C49: =IF(B49=0,"",VLOOKUP($B49,Table2[],2,FALSE)) ->  | I49: =IF($B49=0,"",VLOOKUP($B49,Table2[],5,FALSE)) ->  | J49: =IF($B49=0,"",VLOOKUP($B49,Table2[],7,FALSE)) ->  | K49: 0
C50: =IF(B50=0,"",VLOOKUP($B50,Table2[],2,FALSE)) ->  | I50: =IF($B50=0,"",VLOOKUP($B50,Table2[],5,FALSE)) ->  | J50: =IF($B50=0,"",VLOOKUP($B50,Table2[],7,FALSE)) ->  | K50: 0
C51: =IF(B51=0,"",VLOOKUP($B51,Table2[],2,FALSE)) ->  | I51: =IF($B51=0,"",VLOOKUP($B51,Table2[],5,FALSE)) ->  | J51: =IF($B51=0,"",VLOOKUP($B51,Table2[],7,FALSE)) ->  | K51: 0
C52: =IF(B52=0,"",VLOOKUP($B52,Table2[],2,FALSE)) ->  | I52: =IF($B52=0,"",VLOOKUP($B52,Table2[],5,FALSE)) ->  | J52: =IF($B52=0,"",VLOOKUP($B52,Table2[],7,FALSE)) ->  | K52: 0
C53: =IF(B53=0,"",VLOOKUP($B53,Table2[],2,FALSE)) ->  | I53: =IF($B53=0,"",VLOOKUP($B53,Table2[],5,FALSE)) ->  | J53: =IF($B53=0,"",VLOOKUP($B53,Table2[],7,FALSE)) ->  | K53: 0
C54: =IF(B54=0,"",VLOOKUP($B54,Table2[],2,FALSE)) ->  | I54: =IF($B54=0,"",VLOOKUP($B54,Table2[],5,FALSE)) ->  | J54: =IF($B54=0,"",VLOOKUP($B54,Table2[],7,FALSE)) ->  | K54: 0
C55: =IF(B55=0,"",VLOOKUP($B55,Table2[],2,FALSE)) ->  | I55: =IF($B55=0,"",VLOOKUP($B55,Table2[],5,FALSE)) ->  | J55: =IF($B55=0,"",VLOOKUP($B55,Table2[],7,FALSE)) ->  | K55: 0
C56: =IF(B56=0,"",VLOOKUP($B56,Table2[],2,FALSE)) ->  | I56: =IF($B56=0,"",VLOOKUP($B56,Table2[],5,FALSE)) ->  | J56: =IF($B56=0,"",VLOOKUP($B56,Table2[],7,FALSE)) ->  | K56: =IF(B56=0,0,ROUND(G56*H56*J56,2)) -> 0
C57: =IF(B57=0,"",VLOOKUP($B57,Table2[],2,FALSE)) ->  | I57: =IF($B57=0,"",VLOOKUP($B57,Table2[],5,FALSE)) ->  | J57: =IF($B57=0,"",VLOOKUP($B57,Table2[],7,FALSE)) ->  | K57: =IF(B57=0,0,ROUND(G57*H57*J57,2)) -> 0
C58: =IF(B58=0,"",VLOOKUP($B58,Table2[],2,FALSE)) ->  | I58: =IF($B58=0,"",VLOOKUP($B58,Table2[],5,FALSE)) ->  | J58: =IF($B58=0,"",VLOOKUP($B58,Table2[],7,FALSE)) ->  | K58: =IF(B58=0,0,ROUND(G58*H58*J58,2)) -> 0
C59: =IF(B59=0,"",VLOOKUP($B59,Table2[],2,FALSE)) ->  | I59: =IF($B59=0,"",VLOOKUP($B59,Table2[],5,FALSE)) ->  | J59: =IF($B59=0,"",VLOOKUP($B59,Table2[],7,FALSE)) ->  | K59: =IF(B59=0,0,ROUND(G59*H59*J59,2)) -> 0
C60: =IF(B60=0,"",VLOOKUP($B60,Table2[],2,FALSE)) ->  | I60: =IF($B60=0,"",VLOOKUP($B60,Table2[],5,FALSE)) ->  | J60: =IF($B60=0,"",VLOOKUP($B60,Table2[],7,FALSE)) ->  | K60: =IF(B60=0,0,ROUND(G60*H60*J60,2)) -> 0
C61: Crop Insurance | J61: =IF($B61=0,"",VLOOKUP($B61,Materials!$B$2:$H$127,7,FALSE)) ->  | K61: 0
C63: Total Materials & Services | K63: =SUM(K37:K61) -> 111.04
B65: Total listed costs for Field Operations and Materials and Services | K65: =K33+K63 -> 
D66: Interest on Operations Capital | E66: =ROUND(SUM($E$33:$H$33)+$K$63,2) ->  | F66: cash expense @ | H66: ='General Variables'!$B$11 -> 0.055 | I66: =CONCATENATE("for ",TEXT('General Variables'!$B$12,"0.0")," mo.") -> for 6.0 mo. | K66: =E66*H66*'General Variables'!$B$12/12 -> 
B67: Total Operating and Use Related Ownership Costs | K67: =SUM(K65:K66) -> 
B69: Overhead (accounting, liability insurance, vehicle cost, office expense) | K69: ='General Variables'!B14 -> 20
B70: Real Estate Opportunity | C70: Fall Establishment | F70: =IF(C70=0,0,VLOOKUP(C70,RETable,2,FALSE)) -> 0 | G70: per acre @ | I70: ='General Variables'!$B$10 -> 0.04 | K70: =ROUND(F70*I70,2) -> 0
B71: Real Estate Taxes | F71: =IF(C70=0,0,VLOOKUP(C70,RETable,2,FALSE)) -> 0 | G71: per acre @ | I71: ='General Variables'!$B$13 -> 0.01 | K71: =ROUND(F71*I71,2) -> 0
B72: Total Cost per Acre Including Overhead | K72: =SUM(K67:K71) -> 
K111: Yes
K112: No
B240: =IF(#REF!="","",#REF!) ->  | C240: =IF(Materials!B132="","",Materials!B132) -> 
B241: =IF(#REF!="","",#REF!) ->  | C241: =IF(Materials!B133="","",Materials!B133) -> 
B242: =IF(#REF!="","",#REF!) ->  | C242: =IF(Materials!B134="","",Materials!B134) -> 
B243: =IF(#REF!="","",#REF!) ->  | C243: =IF(Materials!B135="","",Materials!B135) -> 
B244: =IF(#REF!="","",#REF!) ->  | C244: =IF(Materials!B136="","",Materials!B136) -> 

Sheet 2-Alfalfa
A2: =REPLACE(CELL("filename",A1),1,FIND("]",CELL("filename",A1)),"") -> 2-Alfalfa | C2: Roundup Ready® No-Till | I2: Dryland | L2: ='General Variables'!A3&" "&'General Variables'!B3 -> Year 2017 | O2: Acre
A3: Fall Establishment | I3: acre/inches | O3: ai
J4: Does Crop Follow a Legume? | O4: =B4 -> 0
A5: =A2 & IF(C2="","", ", " &C2 ) & ", " & A3 & ", " & I2 -> 2-Alfalfa, Roundup Ready® No-Till, Fall Establishment, Dryland
A7: ='General Variables'!B3 & " Budget " & A2 &", " & IF(C2=0,"", " " & C2 & ", ") & A3 & IF(A4=""," ", " (") & A4 & " " & B4 & IF(A4="",""," Actual Yield)") -> 2017 Budget 2-Alfalfa, Roundup Ready® No-Till, Fall Establishment
A8: =IF(I2="Dryland","Dryland",I2 & IF(J2="","",", "&J2)&IF(H3="","",", "&H3&" "&I3)) -> Dryland
B10: Field Operations | C10: Times or Qty | E10: ="Labor @ $" &TEXT('General Variables'!B4,"#.00")& " /Hr" -> Labor @ $20.00 /Hr | F10: ="Fuel @ $" & TEXT('General Variables'!B5,"#.00") & " and Lube" -> Fuel @ $2.25 and Lube | G10: Repairs | I10: Ownership | K10: Total | L10: Your Estimate
D11: Unit | G11: Power | H11: Imp. | I11: Power | J11: Imp.
A12: 1 | B12: Spray | C12: 1 | E12: =IF(B12=0,"",IF(C12>9999,"",ROUND('General Variables'!$B$4*VLOOKUP(B12,#REF!,10,FALSE)/VLOOKUP(B12,#REF!,9,FALSE)*C12,2))) ->  | F12: =IF(B12=0,0,IF(C12>9999,"",ROUND(IF(VLOOKUP(B12,#REF!,12,FALSE)=0,VLOOKUP(B12,#REF!,13,FALSE)*'General Variables'!$B$8,VLOOKUP(B12,#REF!,12,FALSE)*'General Variables'!$B$7)/VLOOKUP(B12,#REF!,9,FALSE)*C12,2))) ->  | G12: =IF(B12=0,0,IF(C12>9999,"",ROUND(VLOOKUP(VLOOKUP(B12,#REF!,11,FALSE),#REF!,10,FALSE)/VLOOKUP(B12,#REF!,9,FALSE)*C12,2))) ->  | H12: =IF(B12=0,"",IF(C12>9999,"",ROUND(VLOOKUP($B12,#REF!,15,FALSE)*C12,2))) ->  | I12: =IF(B12=0,0,IF(C12>9999,"",ROUND(VLOOKUP(VLOOKUP(B12,#REF!,11,FALSE),#REF!,16,FALSE)/VLOOKUP(B12,#REF!,9,FALSE)*C12,2))) ->  | J12: =IF(B12=0,"",IF(C12>9999,"",ROUND(VLOOKUP($B12,#REF!,21,FALSE)*$C12,2))) ->  | K12: =IF(C12>9999,"",SUM(E12:J12)) -> 
A13: 2 | B13: Drill w/ Fertilizer | C13: 1 | E13: =IF(B13=0,"",IF(C13>9999,"",ROUND('General Variables'!$B$4*VLOOKUP(B13,#REF!,10,FALSE)/VLOOKUP(B13,#REF!,9,FALSE)*C13,2))) ->  | F13: =IF(B13=0,0,IF(C13>9999,"",ROUND(IF(VLOOKUP(B13,#REF!,12,FALSE)=0,VLOOKUP(B13,#REF!,13,FALSE)*'General Variables'!$B$8,VLOOKUP(B13,#REF!,12,FALSE)*'General Variables'!$B$7)/VLOOKUP(B13,#REF!,9,FALSE)*C13,2))) ->  | G13: =IF(B13=0,0,IF(C13>9999,"",ROUND(VLOOKUP(VLOOKUP(B13,#REF!,11,FALSE),#REF!,10,FALSE)/VLOOKUP(B13,#REF!,9,FALSE)*C13,2))) ->  | H13: =IF(B13=0,"",IF(C13>9999,"",ROUND(VLOOKUP($B13,#REF!,15,FALSE)*C13,2))) ->  | I13: =IF(B13=0,0,IF(C13>9999,"",ROUND(VLOOKUP(VLOOKUP(B13,#REF!,11,FALSE),#REF!,16,FALSE)/VLOOKUP(B13,#REF!,9,FALSE)*C13,2))) ->  | J13: =IF(B13=0,"",IF(C13>9999,"",ROUND(VLOOKUP($B13,#REF!,21,FALSE)*$C13,2))) ->  | K13: =IF(C13>9999,"",SUM(E13:J13)) -> 
A14: 3 | B14: Spray | C14: 1 | E14: =IF(B14=0,"",IF(C14>9999,"",ROUND('General Variables'!$B$4*VLOOKUP(B14,#REF!,10,FALSE)/VLOOKUP(B14,#REF!,9,FALSE)*C14,2))) ->  | F14: =IF(B14=0,0,IF(C14>9999,"",ROUND(IF(VLOOKUP(B14,#REF!,12,FALSE)=0,VLOOKUP(B14,#REF!,13,FALSE)*'General Variables'!$B$8,VLOOKUP(B14,#REF!,12,FALSE)*'General Variables'!$B$7)/VLOOKUP(B14,#REF!,9,FALSE)*C14,2))) ->  | G14: =IF(B14=0,0,IF(C14>9999,"",ROUND(VLOOKUP(VLOOKUP(B14,#REF!,11,FALSE),#REF!,10,FALSE)/VLOOKUP(B14,#REF!,9,FALSE)*C14,2))) ->  | H14: =IF(B14=0,"",IF(C14>9999,"",ROUND(VLOOKUP($B14,#REF!,15,FALSE)*C14,2))) ->  | I14: =IF(B14=0,0,IF(C14>9999,"",ROUND(VLOOKUP(VLOOKUP(B14,#REF!,11,FALSE),#REF!,16,FALSE)/VLOOKUP(B14,#REF!,9,FALSE)*C14,2))) ->  | J14: =IF(B14=0,"",IF(C14>9999,"",ROUND(VLOOKUP($B14,#REF!,21,FALSE)*$C14,2))) -> 
A15: 4 | B15: Spray | C15: 0.2 | E15: =IF(B15=0,"",IF(C15>9999,"",ROUND('General Variables'!$B$4*VLOOKUP(B15,#REF!,10,FALSE)/VLOOKUP(B15,#REF!,9,FALSE)*C15,2))) ->  | F15: =IF(B15=0,0,IF(C15>9999,"",ROUND(IF(VLOOKUP(B15,#REF!,12,FALSE)=0,VLOOKUP(B15,#REF!,13,FALSE)*'General Variables'!$B$8,VLOOKUP(B15,#REF!,12,FALSE)*'General Variables'!$B$7)/VLOOKUP(B15,#REF!,9,FALSE)*C15,2))) ->  | G15: =IF(B15=0,0,IF(C15>9999,"",ROUND(VLOOKUP(VLOOKUP(B15,#REF!,11,FALSE),#REF!,10,FALSE)/VLOOKUP(B15,#REF!,9,FALSE)*C15,2))) ->  | H15: =IF(B15=0,"",IF(C15>9999,"",ROUND(VLOOKUP($B15,#REF!,15,FALSE)*C15,2))) ->  | I15: =IF(B15=0,0,IF(C15>9999,"",ROUND(VLOOKUP(VLOOKUP(B15,#REF!,11,FALSE),#REF!,16,FALSE)/VLOOKUP(B15,#REF!,9,FALSE)*C15,2))) ->  | J15: =IF(B15=0,"",IF(C15>9999,"",ROUND(VLOOKUP($B15,#REF!,21,FALSE)*$C15,2))) -> 
A16: 5 | E16: =IF(B16=0,"",IF(C16>9999,"",ROUND('General Variables'!$B$4*VLOOKUP(B16,#REF!,10,FALSE)/VLOOKUP(B16,#REF!,9,FALSE)*C16,2))) ->  | F16: =IF(B16=0,0,IF(C16>9999,"",ROUND(IF(VLOOKUP(B16,#REF!,12,FALSE)=0,VLOOKUP(B16,#REF!,13,FALSE)*'General Variables'!$B$8,VLOOKUP(B16,#REF!,12,FALSE)*'General Variables'!$B$7)/VLOOKUP(B16,#REF!,9,FALSE)*C16,2))) -> 0 | G16: =IF(B16=0,0,IF(C16>9999,"",ROUND(VLOOKUP(VLOOKUP(B16,#REF!,11,FALSE),#REF!,10,FALSE)/VLOOKUP(B16,#REF!,9,FALSE)*C16,2))) -> 0 | H16: =IF(B16=0,"",IF(C16>9999,"",ROUND(VLOOKUP($B16,#REF!,15,FALSE)*C16,2))) ->  | I16: =IF(B16=0,0,IF(C16>9999,"",ROUND(VLOOKUP(VLOOKUP(B16,#REF!,11,FALSE),#REF!,16,FALSE)/VLOOKUP(B16,#REF!,9,FALSE)*C16,2))) -> 0 | J16: =IF(B16=0,"",IF(C16>9999,"",ROUND(VLOOKUP($B16,#REF!,21,FALSE)*$C16,2))) ->  | K16: 0
A17: 6 | E17: =IF(B17=0,"",IF(C17>9999,"",ROUND('General Variables'!$B$4*VLOOKUP(B17,#REF!,10,FALSE)/VLOOKUP(B17,#REF!,9,FALSE)*C17,2))) ->  | F17: =IF(B17=0,0,IF(C17>9999,"",ROUND(IF(VLOOKUP(B17,#REF!,12,FALSE)=0,VLOOKUP(B17,#REF!,13,FALSE)*'General Variables'!$B$8,VLOOKUP(B17,#REF!,12,FALSE)*'General Variables'!$B$7)/VLOOKUP(B17,#REF!,9,FALSE)*C17,2))) -> 0 | G17: =IF(B17=0,0,IF(C17>9999,"",ROUND(VLOOKUP(VLOOKUP(B17,#REF!,11,FALSE),#REF!,10,FALSE)/VLOOKUP(B17,#REF!,9,FALSE)*C17,2))) -> 0 | H17: =IF(B17=0,"",IF(C17>9999,"",ROUND(VLOOKUP($B17,#REF!,15,FALSE)*C17,2))) ->  | I17: =IF(B17=0,0,IF(C17>9999,"",ROUND(VLOOKUP(VLOOKUP(B17,#REF!,11,FALSE),#REF!,16,FALSE)/VLOOKUP(B17,#REF!,9,FALSE)*C17,2))) -> 0 | J17: =IF(B17=0,"",IF(C17>9999,"",ROUND(VLOOKUP($B17,#REF!,21,FALSE)*$C17,2))) ->  | K17: 0
A18: 7 | E18: =IF(B18=0,"",IF(C18>9999,"",ROUND('General Variables'!$B$4*VLOOKUP(B18,#REF!,10,FALSE)/VLOOKUP(B18,#REF!,9,FALSE)*C18,2))) ->  | F18: =IF(B18=0,0,IF(C18>9999,"",ROUND(IF(VLOOKUP(B18,#REF!,12,FALSE)=0,VLOOKUP(B18,#REF!,13,FALSE)*'General Variables'!$B$8,VLOOKUP(B18,#REF!,12,FALSE)*'General Variables'!$B$7)/VLOOKUP(B18,#REF!,9,FALSE)*C18,2))) -> 0 | G18: =IF(B18=0,0,IF(C18>9999,"",ROUND(VLOOKUP(VLOOKUP(B18,#REF!,11,FALSE),#REF!,10,FALSE)/VLOOKUP(B18,#REF!,9,FALSE)*C18,2))) -> 0 | H18: =IF(B18=0,"",IF(C18>9999,"",ROUND(VLOOKUP($B18,#REF!,15,FALSE)*C18,2))) ->  | I18: =IF(B18=0,0,IF(C18>9999,"",ROUND(VLOOKUP(VLOOKUP(B18,#REF!,11,FALSE),#REF!,16,FALSE)/VLOOKUP(B18,#REF!,9,FALSE)*C18,2))) -> 0 | J18: =IF(B18=0,"",IF(C18>9999,"",ROUND(VLOOKUP($B18,#REF!,21,FALSE)*$C18,2))) ->  | K18: 0
A19: 8 | E19: =IF(B19=0,"",IF(C19>9999,"",ROUND('General Variables'!$B$4*VLOOKUP(B19,#REF!,10,FALSE)/VLOOKUP(B19,#REF!,9,FALSE)*C19,2))) ->  | F19: =IF(B19=0,0,IF(C19>9999,"",ROUND(IF(VLOOKUP(B19,#REF!,12,FALSE)=0,VLOOKUP(B19,#REF!,13,FALSE)*'General Variables'!$B$8,VLOOKUP(B19,#REF!,12,FALSE)*'General Variables'!$B$7)/VLOOKUP(B19,#REF!,9,FALSE)*C19,2))) -> 0 | G19: =IF(B19=0,0,IF(C19>9999,"",ROUND(VLOOKUP(VLOOKUP(B19,#REF!,11,FALSE),#REF!,10,FALSE)/VLOOKUP(B19,#REF!,9,FALSE)*C19,2))) -> 0 | H19: =IF(B19=0,"",IF(C19>9999,"",ROUND(VLOOKUP($B19,#REF!,15,FALSE)*C19,2))) ->  | I19: =IF(B19=0,0,IF(C19>9999,"",ROUND(VLOOKUP(VLOOKUP(B19,#REF!,11,FALSE),#REF!,16,FALSE)/VLOOKUP(B19,#REF!,9,FALSE)*C19,2))) -> 0 | J19: =IF(B19=0,"",IF(C19>9999,"",ROUND(VLOOKUP($B19,#REF!,21,FALSE)*$C19,2))) ->  | K19: 0
A20: 9 | E20: =IF(B20=0,"",IF(C20>9999,"",ROUND('General Variables'!$B$4*VLOOKUP(B20,#REF!,10,FALSE)/VLOOKUP(B20,#REF!,9,FALSE)*C20,2))) ->  | F20: =IF(B20=0,0,IF(C20>9999,"",ROUND(IF(VLOOKUP(B20,#REF!,12,FALSE)=0,VLOOKUP(B20,#REF!,13,FALSE)*'General Variables'!$B$8,VLOOKUP(B20,#REF!,12,FALSE)*'General Variables'!$B$7)/VLOOKUP(B20,#REF!,9,FALSE)*C20,2))) -> 0 | G20: =IF(B20=0,0,IF(C20>9999,"",ROUND(VLOOKUP(VLOOKUP(B20,#REF!,11,FALSE),#REF!,10,FALSE)/VLOOKUP(B20,#REF!,9,FALSE)*C20,2))) -> 0 | H20: =IF(B20=0,"",IF(C20>9999,"",ROUND(VLOOKUP($B20,#REF!,15,FALSE)*C20,2))) ->  | I20: =IF(B20=0,0,IF(C20>9999,"",ROUND(VLOOKUP(VLOOKUP(B20,#REF!,11,FALSE),#REF!,16,FALSE)/VLOOKUP(B20,#REF!,9,FALSE)*C20,2))) -> 0 | J20: =IF(B20=0,"",IF(C20>9999,"",ROUND(VLOOKUP($B20,#REF!,21,FALSE)*$C20,2))) ->  | K20: 0
A21: 10 | E21: =IF(B21=0,"",IF(C21>9999,"",ROUND('General Variables'!$B$4*VLOOKUP(B21,#REF!,10,FALSE)/VLOOKUP(B21,#REF!,9,FALSE)*C21,2))) ->  | F21: =IF(B21=0,0,IF(C21>9999,"",ROUND(IF(VLOOKUP(B21,#REF!,12,FALSE)=0,VLOOKUP(B21,#REF!,13,FALSE)*'General Variables'!$B$8,VLOOKUP(B21,#REF!,12,FALSE)*'General Variables'!$B$7)/VLOOKUP(B21,#REF!,9,FALSE)*C21,2))) -> 0 | G21: =IF(B21=0,0,IF(C21>9999,"",ROUND(VLOOKUP(VLOOKUP(B21,#REF!,11,FALSE),#REF!,10,FALSE)/VLOOKUP(B21,#REF!,9,FALSE)*C21,2))) -> 0 | H21: =IF(B21=0,"",IF(C21>9999,"",ROUND(VLOOKUP($B21,#REF!,15,FALSE)*C21,2))) ->  | I21: =IF(B21=0,0,IF(C21>9999,"",ROUND(VLOOKUP(VLOOKUP(B21,#REF!,11,FALSE),#REF!,16,FALSE)/VLOOKUP(B21,#REF!,9,FALSE)*C21,2))) -> 0 | J21: =IF(B21=0,"",IF(C21>9999,"",ROUND(VLOOKUP($B21,#REF!,21,FALSE)*$C21,2))) ->  | K21: 0
A22: 11 | E22: =IF(B22=0,"",IF(C22>9999,"",ROUND('General Variables'!$B$4*VLOOKUP(B22,#REF!,10,FALSE)/VLOOKUP(B22,#REF!,9,FALSE)*C22,2))) ->  | F22: =IF(B22=0,0,IF(C22>9999,"",ROUND(IF(VLOOKUP(B22,#REF!,12,FALSE)=0,VLOOKUP(B22,#REF!,13,FALSE)*'General Variables'!$B$8,VLOOKUP(B22,#REF!,12,FALSE)*'General Variables'!$B$7)/VLOOKUP(B22,#REF!,9,FALSE)*C22,2))) -> 0 | G22: =IF(B22=0,0,IF(C22>9999,"",ROUND(VLOOKUP(VLOOKUP(B22,#REF!,11,FALSE),#REF!,10,FALSE)/VLOOKUP(B22,#REF!,9,FALSE)*C22,2))) -> 0 | H22: =IF(B22=0,"",IF(C22>9999,"",ROUND(VLOOKUP($B22,#REF!,15,FALSE)*C22,2))) ->  | I22: =IF(B22=0,0,IF(C22>9999,"",ROUND(VLOOKUP(VLOOKUP(B22,#REF!,11,FALSE),#REF!,16,FALSE)/VLOOKUP(B22,#REF!,9,FALSE)*C22,2))) -> 0 | J22: =IF(B22=0,"",IF(C22>9999,"",ROUND(VLOOKUP($B22,#REF!,21,FALSE)*$C22,2))) ->  | K22: 0
A23: 12 | E23: =IF(B23=0,"",IF(C23>9999,"",ROUND('General Variables'!$B$4*VLOOKUP(B23,#REF!,10,FALSE)/VLOOKUP(B23,#REF!,9,FALSE)*C23,2))) ->  | F23: =IF(B23=0,0,IF(C23>9999,"",ROUND(IF(VLOOKUP(B23,#REF!,12,FALSE)=0,VLOOKUP(B23,#REF!,13,FALSE)*'General Variables'!$B$8,VLOOKUP(B23,#REF!,12,FALSE)*'General Variables'!$B$7)/VLOOKUP(B23,#REF!,9,FALSE)*C23,2))) -> 0 | G23: =IF(B23=0,0,IF(C23>9999,"",ROUND(VLOOKUP(VLOOKUP(B23,#REF!,11,FALSE),#REF!,10,FALSE)/VLOOKUP(B23,#REF!,9,FALSE)*C23,2))) -> 0 | H23: =IF(B23=0,"",IF(C23>9999,"",ROUND(VLOOKUP($B23,#REF!,15,FALSE)*C23,2))) ->  | I23: =IF(B23=0,0,IF(C23>9999,"",ROUND(VLOOKUP(VLOOKUP(B23,#REF!,11,FALSE),#REF!,16,FALSE)/VLOOKUP(B23,#REF!,9,FALSE)*C23,2))) -> 0 | J23: =IF(B23=0,"",IF(C23>9999,"",ROUND(VLOOKUP($B23,#REF!,21,FALSE)*$C23,2))) ->  | K23: 0
A24: 13 | E24: =IF(B24=0,"",IF(C24>9999,"",ROUND('General Variables'!$B$4*VLOOKUP(B24,#REF!,10,FALSE)/VLOOKUP(B24,#REF!,9,FALSE)*C24,2))) ->  | F24: =IF(B24=0,0,IF(C24>9999,"",ROUND(IF(VLOOKUP(B24,#REF!,12,FALSE)=0,VLOOKUP(B24,#REF!,13,FALSE)*'General Variables'!$B$8,VLOOKUP(B24,#REF!,12,FALSE)*'General Variables'!$B$7)/VLOOKUP(B24,#REF!,9,FALSE)*C24,2))) -> 0 | G24: =IF(B24=0,0,IF(C24>9999,"",ROUND(VLOOKUP(VLOOKUP(B24,#REF!,11,FALSE),#REF!,10,FALSE)/VLOOKUP(B24,#REF!,9,FALSE)*C24,2))) -> 0 | H24: =IF(B24=0,"",IF(C24>9999,"",ROUND(VLOOKUP($B24,#REF!,15,FALSE)*C24,2))) ->  | I24: =IF(B24=0,0,IF(C24>9999,"",ROUND(VLOOKUP(VLOOKUP(B24,#REF!,11,FALSE),#REF!,16,FALSE)/VLOOKUP(B24,#REF!,9,FALSE)*C24,2))) -> 0 | J24: =IF(B24=0,"",IF(C24>9999,"",ROUND(VLOOKUP($B24,#REF!,21,FALSE)*$C24,2))) ->  | K24: 0
A25: 14 | E25: =IF(B25=0,"",IF(C25>9999,"",ROUND('General Variables'!$B$4*VLOOKUP(B25,#REF!,10,FALSE)/VLOOKUP(B25,#REF!,9,FALSE)*C25,2))) ->  | F25: =IF(B25=0,0,IF(C25>9999,"",ROUND(IF(VLOOKUP(B25,#REF!,12,FALSE)=0,VLOOKUP(B25,#REF!,13,FALSE)*'General Variables'!$B$8,VLOOKUP(B25,#REF!,12,FALSE)*'General Variables'!$B$7)/VLOOKUP(B25,#REF!,9,FALSE)*C25,2))) -> 0 | G25: =IF(B25=0,0,IF(C25>9999,"",ROUND(VLOOKUP(VLOOKUP(B25,#REF!,11,FALSE),#REF!,10,FALSE)/VLOOKUP(B25,#REF!,9,FALSE)*C25,2))) -> 0 | H25: =IF(B25=0,"",IF(C25>9999,"",ROUND(VLOOKUP($B25,#REF!,15,FALSE)*C25,2))) ->  | I25: =IF(B25=0,0,IF(C25>9999,"",ROUND(VLOOKUP(VLOOKUP(B25,#REF!,11,FALSE),#REF!,16,FALSE)/VLOOKUP(B25,#REF!,9,FALSE)*C25,2))) -> 0 | J25: =IF(B25=0,"",IF(C25>9999,"",ROUND(VLOOKUP($B25,#REF!,21,FALSE)*$C25,2))) ->  | K25: 0
A26: 15 | E26: =IF(B26=0,"",IF(C26>9999,"",ROUND('General Variables'!$B$4*VLOOKUP(B26,#REF!,10,FALSE)/VLOOKUP(B26,#REF!,9,FALSE)*C26,2))) ->  | F26: =IF(B26=0,0,IF(C26>9999,"",ROUND(IF(VLOOKUP(B26,#REF!,12,FALSE)=0,VLOOKUP(B26,#REF!,13,FALSE)*'General Variables'!$B$8,VLOOKUP(B26,#REF!,12,FALSE)*'General Variables'!$B$7)/VLOOKUP(B26,#REF!,9,FALSE)*C26,2))) -> 0 | G26: =IF(B26=0,0,IF(C26>9999,"",ROUND(VLOOKUP(VLOOKUP(B26,#REF!,11,FALSE),#REF!,10,FALSE)/VLOOKUP(B26,#REF!,9,FALSE)*C26,2))) -> 0 | H26: =IF(B26=0,"",IF(C26>9999,"",ROUND(VLOOKUP($B26,#REF!,15,FALSE)*C26,2))) ->  | I26: =IF(B26=0,0,IF(C26>9999,"",ROUND(VLOOKUP(VLOOKUP(B26,#REF!,11,FALSE),#REF!,16,FALSE)/VLOOKUP(B26,#REF!,9,FALSE)*C26,2))) -> 0 | J26: =IF(B26=0,"",IF(C26>9999,"",ROUND(VLOOKUP($B26,#REF!,21,FALSE)*$C26,2))) ->  | K26: 0
A27: 16 | E27: =IF(B27=0,"",IF(C27>9999,"",ROUND('General Variables'!$B$4*VLOOKUP(B27,#REF!,10,FALSE)/VLOOKUP(B27,#REF!,9,FALSE)*C27,2))) ->  | F27: =IF(B27=0,0,IF(C27>9999,"",ROUND(IF(VLOOKUP(B27,#REF!,12,FALSE)=0,VLOOKUP(B27,#REF!,13,FALSE)*'General Variables'!$B$8,VLOOKUP(B27,#REF!,12,FALSE)*'General Variables'!$B$7)/VLOOKUP(B27,#REF!,9,FALSE)*C27,2))) -> 0 | G27: =IF(B27=0,0,IF(C27>9999,"",ROUND(VLOOKUP(VLOOKUP(B27,#REF!,11,FALSE),#REF!,10,FALSE)/VLOOKUP(B27,#REF!,9,FALSE)*C27,2))) -> 0 | H27: =IF(B27=0,"",IF(C27>9999,"",ROUND(VLOOKUP($B27,#REF!,15,FALSE)*C27,2))) ->  | I27: =IF(B27=0,0,IF(C27>9999,"",ROUND(VLOOKUP(VLOOKUP(B27,#REF!,11,FALSE),#REF!,16,FALSE)/VLOOKUP(B27,#REF!,9,FALSE)*C27,2))) -> 0 | J27: =IF(B27=0,"",IF(C27>9999,"",ROUND(VLOOKUP($B27,#REF!,21,FALSE)*$C27,2))) ->  | K27: 0
A28: 17 | E28: =IF(B28=0,"",IF(C28>9999,"",ROUND('General Variables'!$B$4*VLOOKUP(B28,#REF!,10,FALSE)/VLOOKUP(B28,#REF!,9,FALSE)*C28,2))) ->  | F28: =IF(B28=0,0,IF(C28>9999,"",ROUND(IF(VLOOKUP(B28,#REF!,12,FALSE)=0,VLOOKUP(B28,#REF!,13,FALSE)*'General Variables'!$B$8,VLOOKUP(B28,#REF!,12,FALSE)*'General Variables'!$B$7)/VLOOKUP(B28,#REF!,9,FALSE)*C28,2))) -> 0 | G28: =IF(B28=0,0,IF(C28>9999,"",ROUND(VLOOKUP(VLOOKUP(B28,#REF!,11,FALSE),#REF!,10,FALSE)/VLOOKUP(B28,#REF!,9,FALSE)*C28,2))) -> 0 | H28: =IF(B28=0,"",IF(C28>9999,"",ROUND(VLOOKUP($B28,#REF!,15,FALSE)*C28,2))) ->  | I28: =IF(B28=0,0,IF(C28>9999,"",ROUND(VLOOKUP(VLOOKUP(B28,#REF!,11,FALSE),#REF!,16,FALSE)/VLOOKUP(B28,#REF!,9,FALSE)*C28,2))) -> 0 | J28: =IF(B28=0,"",IF(C28>9999,"",ROUND(VLOOKUP($B28,#REF!,21,FALSE)*$C28,2))) ->  | K28: 0
A29: 18 | E29: =IF(B29=0,"",IF(C29>9999,"",ROUND('General Variables'!$B$4*VLOOKUP(B29,#REF!,10,FALSE)/VLOOKUP(B29,#REF!,9,FALSE)*C29,2))) ->  | F29: =IF(B29=0,0,IF(C29>9999,"",ROUND(IF(VLOOKUP(B29,#REF!,12,FALSE)=0,VLOOKUP(B29,#REF!,13,FALSE)*'General Variables'!$B$8,VLOOKUP(B29,#REF!,12,FALSE)*'General Variables'!$B$7)/VLOOKUP(B29,#REF!,9,FALSE)*C29,2))) -> 0 | G29: =IF(B29=0,0,IF(C29>9999,"",ROUND(VLOOKUP(VLOOKUP(B29,#REF!,11,FALSE),#REF!,10,FALSE)/VLOOKUP(B29,#REF!,9,FALSE)*C29,2))) -> 0 | H29: =IF(B29=0,"",IF(C29>9999,"",ROUND(VLOOKUP($B29,#REF!,15,FALSE)*C29,2))) ->  | I29: =IF(B29=0,0,IF(C29>9999,"",ROUND(VLOOKUP(VLOOKUP(B29,#REF!,11,FALSE),#REF!,16,FALSE)/VLOOKUP(B29,#REF!,9,FALSE)*C29,2))) -> 0 | J29: =IF(B29=0,"",IF(C29>9999,"",ROUND(VLOOKUP($B29,#REF!,21,FALSE)*$C29,2))) ->  | K29: 0
A30: 19 | E30: =IF(B30=0,"",IF(C30>9999,"",ROUND('General Variables'!$B$4*VLOOKUP(B30,#REF!,10,FALSE)/VLOOKUP(B30,#REF!,9,FALSE)*C30,2))) ->  | F30: =IF(B30=0,0,IF(C30>9999,"",ROUND(IF(VLOOKUP(B30,#REF!,12,FALSE)=0,VLOOKUP(B30,#REF!,13,FALSE)*'General Variables'!$B$8,VLOOKUP(B30,#REF!,12,FALSE)*'General Variables'!$B$7)/VLOOKUP(B30,#REF!,9,FALSE)*C30,2))) -> 0 | G30: =IF(B30=0,0,IF(C30>9999,"",ROUND(VLOOKUP(VLOOKUP(B30,#REF!,11,FALSE),#REF!,10,FALSE)/VLOOKUP(B30,#REF!,9,FALSE)*C30,2))) -> 0 | H30: =IF(B30=0,"",IF(C30>9999,"",ROUND(VLOOKUP($B30,#REF!,15,FALSE)*C30,2))) ->  | I30: =IF(B30=0,0,IF(C30>9999,"",ROUND(VLOOKUP(VLOOKUP(B30,#REF!,11,FALSE),#REF!,16,FALSE)/VLOOKUP(B30,#REF!,9,FALSE)*C30,2))) -> 0 | J30: =IF(B30=0,"",IF(C30>9999,"",ROUND(VLOOKUP($B30,#REF!,21,FALSE)*$C30,2))) ->  | K30: 0
A31: 20 | E31: =IF(B31=0,"",IF(C31>9999,"",ROUND('General Variables'!$B$4*VLOOKUP(B31,#REF!,10,FALSE)/VLOOKUP(B31,#REF!,9,FALSE)*C31,2))) ->  | F31: =IF(B31=0,0,IF(C31>9999,"",ROUND(IF(VLOOKUP(B31,#REF!,12,FALSE)=0,VLOOKUP(B31,#REF!,13,FALSE)*'General Variables'!$B$8,VLOOKUP(B31,#REF!,12,FALSE)*'General Variables'!$B$7)/VLOOKUP(B31,#REF!,9,FALSE)*C31,2))) -> 0 | G31: =IF(B31=0,0,IF(C31>9999,"",ROUND(VLOOKUP(VLOOKUP(B31,#REF!,11,FALSE),#REF!,10,FALSE)/VLOOKUP(B31,#REF!,9,FALSE)*C31,2))) -> 0 | H31: =IF(B31=0,"",IF(C31>9999,"",ROUND(VLOOKUP($B31,#REF!,15,FALSE)*C31,2))) ->  | I31: =IF(B31=0,0,IF(C31>9999,"",ROUND(VLOOKUP(VLOOKUP(B31,#REF!,11,FALSE),#REF!,16,FALSE)/VLOOKUP(B31,#REF!,9,FALSE)*C31,2))) -> 0 | J31: =IF(B31=0,"",IF(C31>9999,"",ROUND(VLOOKUP($B31,#REF!,21,FALSE)*$C31,2))) ->  | K31: 0
C33: Total for Field Operations | E33: =SUM(E12:E31) ->  | F33: =SUM(F12:F31) -> 
F35: Operation Index | G35: Percent Acres Applied | H35: Application | J35: Applied Price | L35: Your Estimate
B36: Materials & Services | H36: Rate | I36: Unit | K36: Total
B37: Gramoxone SL | C37: =IF(B37=0,"",VLOOKUP($B37,Table2[],2,FALSE)) -> Herbicide | F37: 1 | G37: 1 | H37: 2 | I37: =IF($B37=0,"",VLOOKUP($B37,Table2[],5,FALSE)) -> pint | J37: =IF($B37=0,"",VLOOKUP($B37,Table2[],7,FALSE)) -> 4.75 | K37: =IF(B37=0,0,ROUND(G37*H37*J37,2)) -> 9.5
B38: 11-52-0 | C38: =IF(B38=0,"",VLOOKUP($B38,Table2[],2,FALSE)) -> Fertilizer | F38: 2 | G38: 1 | H38: 100 | I38: =IF($B38=0,"",VLOOKUP($B38,Table2[],5,FALSE)) -> pound | J38: =IF($B38=0,"",VLOOKUP($B38,Table2[],7,FALSE)) -> 0.24 | K38: =IF(B38=0,0,ROUND(G38*H38*J38,2)) -> 24
B39: Alfalfa RR w/Inoculant | C39: =IF(B39=0,"",VLOOKUP($B39,Table2[],2,FALSE)) -> Seed | F39: 7 | G39: 1 | H39: 12 | I39: =IF($B39=0,"",VLOOKUP($B39,Table2[],5,FALSE)) -> pound | J39: =IF($B39=0,"",VLOOKUP($B39,Table2[],7,FALSE)) -> 9 | K39: 108
B40: Roundup WeatherMax | C40: =IF(B40=0,"",VLOOKUP($B40,Table2[],2,FALSE)) -> Herbicide | F40: 7 | G40: 1 | H40: 44 | I40: =IF($B40=0,"",VLOOKUP($B40,Table2[],5,FALSE)) -> ounce | J40: =IF($B40=0,"",VLOOKUP($B40,Table2[],7,FALSE)) -> 0.25 | K40: 11
B41: 21-0-0-24S | C41: =IF(B41=0,"",VLOOKUP($B41,Table2[],2,FALSE)) -> Additive | F41: 7 | G41: 1 | H41: 1.7 | I41: =IF($B41=0,"",VLOOKUP($B41,Table2[],5,FALSE)) -> pound | J41: =IF($B41=0,"",VLOOKUP($B41,Table2[],7,FALSE)) -> 0.35 | K41: 0.6
B42: Lorsban Advanced | C42: =IF(B42=0,"",VLOOKUP($B42,Table2[],2,FALSE)) -> Insecticide | F42: 8 | G42: 0.2 | H42: 1 | I42: =IF($B42=0,"",VLOOKUP($B42,Table2[],5,FALSE)) -> pint | J42: =IF($B42=0,"",VLOOKUP($B42,Table2[],7,FALSE)) -> 6.875 | K42: 1.38
C43: =IF(B43=0,"",VLOOKUP($B43,Table2[],2,FALSE)) ->  | I43: =IF($B43=0,"",VLOOKUP($B43,Table2[],5,FALSE)) ->  | J43: =IF($B43=0,"",VLOOKUP($B43,Table2[],7,FALSE)) ->  | K43: 0
C44: =IF(B44=0,"",VLOOKUP($B44,Table2[],2,FALSE)) ->  | I44: =IF($B44=0,"",VLOOKUP($B44,Table2[],5,FALSE)) ->  | J44: =IF($B44=0,"",VLOOKUP($B44,Table2[],7,FALSE)) ->  | K44: 0
C45: =IF(B45=0,"",VLOOKUP($B45,Table2[],2,FALSE)) ->  | I45: =IF($B45=0,"",VLOOKUP($B45,Table2[],5,FALSE)) ->  | J45: =IF($B45=0,"",VLOOKUP($B45,Table2[],7,FALSE)) ->  | K45: 0
C46: =IF(B46=0,"",VLOOKUP($B46,Table2[],2,FALSE)) ->  | I46: =IF($B46=0,"",VLOOKUP($B46,Table2[],5,FALSE)) ->  | J46: =IF($B46=0,"",VLOOKUP($B46,Table2[],7,FALSE)) ->  | K46: 0
C47: =IF(B47=0,"",VLOOKUP($B47,Table2[],2,FALSE)) ->  | I47: =IF($B47=0,"",VLOOKUP($B47,Table2[],5,FALSE)) ->  | J47: =IF($B47=0,"",VLOOKUP($B47,Table2[],7,FALSE)) ->  | K47: 0
C48: =IF(B48=0,"",VLOOKUP($B48,Table2[],2,FALSE)) ->  | I48: =IF($B48=0,"",VLOOKUP($B48,Table2[],5,FALSE)) ->  | J48: =IF($B48=0,"",VLOOKUP($B48,Table2[],7,FALSE)) ->  | K48: 0
C49: =IF(B49=0,"",VLOOKUP($B49,Table2[],2,FALSE)) ->  | I49: =IF($B49=0,"",VLOOKUP($B49,Table2[],5,FALSE)) ->  | J49: =IF($B49=0,"",VLOOKUP($B49,Table2[],7,FALSE)) ->  | K49: 0
C50: =IF(B50=0,"",VLOOKUP($B50,Table2[],2,FALSE)) ->  | I50: =IF($B50=0,"",VLOOKUP($B50,Table2[],5,FALSE)) ->  | J50: =IF($B50=0,"",VLOOKUP($B50,Table2[],7,FALSE)) ->  | K50: 0
C51: =IF(B51=0,"",VLOOKUP($B51,Table2[],2,FALSE)) ->  | I51: =IF($B51=0,"",VLOOKUP($B51,Table2[],5,FALSE)) ->  | J51: =IF($B51=0,"",VLOOKUP($B51,Table2[],7,FALSE)) ->  | K51: 0
C52: =IF(B52=0,"",VLOOKUP($B52,Table2[],2,FALSE)) ->  | I52: =IF($B52=0,"",VLOOKUP($B52,Table2[],5,FALSE)) ->  | J52: =IF($B52=0,"",VLOOKUP($B52,Table2[],7,FALSE)) ->  | K52: 0
C53: =IF(B53=0,"",VLOOKUP($B53,Table2[],2,FALSE)) ->  | I53: =IF($B53=0,"",VLOOKUP($B53,Table2[],5,FALSE)) ->  | J53: =IF($B53=0,"",VLOOKUP($B53,Table2[],7,FALSE)) ->  | K53: 0
C54: =IF(B54=0,"",VLOOKUP($B54,Table2[],2,FALSE)) ->  | I54: =IF($B54=0,"",VLOOKUP($B54,Table2[],5,FALSE)) ->  | J54: =IF($B54=0,"",VLOOKUP($B54,Table2[],7,FALSE)) ->  | K54: 0
C55: =IF(B55=0,"",VLOOKUP($B55,Table2[],2,FALSE)) ->  | I55: =IF($B55=0,"",VLOOKUP($B55,Table2[],5,FALSE)) ->  | J55: =IF($B55=0,"",VLOOKUP($B55,Table2[],7,FALSE)) ->  | K55: 0
C56: =IF(B56=0,"",VLOOKUP($B56,Table2[],2,FALSE)) ->  | I56: =IF($B56=0,"",VLOOKUP($B56,Table2[],5,FALSE)) ->  | J56: =IF($B56=0,"",VLOOKUP($B56,Table2[],7,FALSE)) ->  | K56: =IF(B56=0,0,ROUND(G56*H56*J56,2)) -> 0
C57: =IF(B57=0,"",VLOOKUP($B57,Table2[],2,FALSE)) ->  | I57: =IF($B57=0,"",VLOOKUP($B57,Table2[],5,FALSE)) ->  | J57: =IF($B57=0,"",VLOOKUP($B57,Table2[],7,FALSE)) ->  | K57: =IF(B57=0,0,ROUND(G57*H57*J57,2)) -> 0
C58: =IF(B58=0,"",VLOOKUP($B58,Table2[],2,FALSE)) ->  | I58: =IF($B58=0,"",VLOOKUP($B58,Table2[],5,FALSE)) ->  | J58: =IF($B58=0,"",VLOOKUP($B58,Table2[],7,FALSE)) ->  | K58: =IF(B58=0,0,ROUND(G58*H58*J58,2)) -> 0
C59: =IF(B59=0,"",VLOOKUP($B59,Table2[],2,FALSE)) ->  | I59: =IF($B59=0,"",VLOOKUP($B59,Table2[],5,FALSE)) ->  | J59: =IF($B59=0,"",VLOOKUP($B59,Table2[],7,FALSE)) ->  | K59: =IF(B59=0,0,ROUND(G59*H59*J59,2)) -> 0
C60: =IF(B60=0,"",VLOOKUP($B60,Table2[],2,FALSE)) ->  | I60: =IF($B60=0,"",VLOOKUP($B60,Table2[],5,FALSE)) ->  | J60: =IF($B60=0,"",VLOOKUP($B60,Table2[],7,FALSE)) ->  | K60: =IF(B60=0,0,ROUND(G60*H60*J60,2)) -> 0
C61: Crop Insurance | J61: =IF($B61=0,"",VLOOKUP($B61,Materials!$B$2:$H$127,7,FALSE)) ->  | K61: 0
C63: Total Materials & Services | K63: =SUM(K37:K61) -> 154.48
B65: Total listed costs for Field Operations and Materials and Services | K65: =K33+K63 -> 
D66: Interest on Operations Capital | E66: =ROUND(SUM($E$33:$H$33)+$K$63,2) ->  | F66: cash expense @ | H66: ='General Variables'!$B$11 -> 0.055 | I66: =CONCATENATE("for ",TEXT('General Variables'!$B$12,"0.0")," mo.") -> for 6.0 mo. | K66: =E66*H66*'General Variables'!$B$12/12 -> 
B67: Total Operating and Use Related Ownership Costs | K67: =SUM(K65:K66) -> 
B69: Overhead (accounting, liability insurance, vehicle cost, office expense) | K69: ='General Variables'!B14 -> 20
B70: Real Estate Opportunity | C70: Fall Establishment | F70: =IF(C70=0,0,VLOOKUP(C70,RETable,2,FALSE)) -> 0 | G70: per acre @ | I70: ='General Variables'!$B$10 -> 0.04 | K70: =ROUND(F70*I70,2) -> 0
B71: Real Estate Taxes | F71: =IF(C70=0,0,VLOOKUP(C70,RETable,2,FALSE)) -> 0 | G71: per acre @ | I71: ='General Variables'!$B$13 -> 0.01 | K71: =ROUND(F71*I71,2) -> 0
B72: Total Cost per Acre Including Overhead | K72: =SUM(K67:K71) -> 
K111: Yes
K112: No
B240: =IF(#REF!="","",#REF!) ->  | C240: =IF(Materials!B132="","",Materials!B132) -> 
B241: =IF(#REF!="","",#REF!) ->  | C241: =IF(Materials!B133="","",Materials!B133) -> 
B242: =IF(#REF!="","",#REF!) ->  | C242: =IF(Materials!B134="","",Materials!B134) -> 
B243: =IF(#REF!="","",#REF!) ->  | C243: =IF(Materials!B135="","",Materials!B135) -> 
B244: =IF(#REF!="","",#REF!) ->  | C244: =IF(Materials!B136="","",Materials!B136) -> 

Sheet 3-Alfalfa
A2: =REPLACE(CELL("filename",A1),1,FIND("]",CELL("filename",A1)),"") -> 3-Alfalfa | C2: Roundup Ready® | I2: Dryland | L2: ='General Variables'!A3&" "&'General Variables'!B3 -> Year 2017 | O2: Acre
A3: Fall Establishment | I3: acre/inches | O3: ai
J4: Does Crop Follow a Legume? | O4: =B4 -> 0
A5: =A2 & IF(C2="","", ", " &C2 ) & ", " & A3 & ", " & I2 -> 3-Alfalfa, Roundup Ready®, Fall Establishment, Dryland
A7: ='General Variables'!B3 & " Budget " & A2 &", " & IF(C2=0,"", " " & C2 & ", ") & A3 & IF(A4=""," ", " (") & A4 & " " & B4 & IF(A4="",""," Actual Yield)") -> 2017 Budget 3-Alfalfa, Roundup Ready®, Fall Establishment
A8: =IF(I2="Dryland","Dryland",I2 & IF(J2="","",", "&J2)&IF(H3="","",", "&H3&" "&I3)) -> Dryland
B10: Field Operations | C10: Times or Qty | E10: ="Labor @ $" &TEXT('General Variables'!B4,"#.00")& " /Hr" -> Labor @ $20.00 /Hr | F10: ="Fuel @ $" & TEXT('General Variables'!B5,"#.00") & " and Lube" -> Fuel @ $2.25 and Lube | G10: Repairs | I10: Ownership | K10: Total | L10: Your Estimate
D11: Unit | G11: Power | H11: Imp. | I11: Power | J11: Imp.
A12: 1 | B12: Spread Fertilizer | C12: 1 | E12: =IF(B12=0,"",IF(C12>9999,"",ROUND('General Variables'!$B$4*VLOOKUP(B12,#REF!,10,FALSE)/VLOOKUP(B12,#REF!,9,FALSE)*C12,2))) ->  | F12: =IF(B12=0,0,IF(C12>9999,"",ROUND(IF(VLOOKUP(B12,#REF!,12,FALSE)=0,VLOOKUP(B12,#REF!,13,FALSE)*'General Variables'!$B$8,VLOOKUP(B12,#REF!,12,FALSE)*'General Variables'!$B$7)/VLOOKUP(B12,#REF!,9,FALSE)*C12,2))) ->  | G12: =IF(B12=0,0,IF(C12>9999,"",ROUND(VLOOKUP(VLOOKUP(B12,#REF!,11,FALSE),#REF!,10,FALSE)/VLOOKUP(B12,#REF!,9,FALSE)*C12,2))) ->  | H12: =IF(B12=0,"",IF(C12>9999,"",ROUND(VLOOKUP($B12,#REF!,15,FALSE)*C12,2))) ->  | I12: =IF(B12=0,0,IF(C12>9999,"",ROUND(VLOOKUP(VLOOKUP(B12,#REF!,11,FALSE),#REF!,16,FALSE)/VLOOKUP(B12,#REF!,9,FALSE)*C12,2))) ->  | J12: =IF(B12=0,"",IF(C12>9999,"",ROUND(VLOOKUP($B12,#REF!,21,FALSE)*$C12,2))) ->  | K12: =IF(C12>9999,"",SUM(E12:J12)) -> 
A13: 2 | B13: Disk | C13: 1 | E13: =IF(B13=0,"",IF(C13>9999,"",ROUND('General Variables'!$B$4*VLOOKUP(B13,#REF!,10,FALSE)/VLOOKUP(B13,#REF!,9,FALSE)*C13,2))) ->  | F13: =IF(B13=0,0,IF(C13>9999,"",ROUND(IF(VLOOKUP(B13,#REF!,12,FALSE)=0,VLOOKUP(B13,#REF!,13,FALSE)*'General Variables'!$B$8,VLOOKUP(B13,#REF!,12,FALSE)*'General Variables'!$B$7)/VLOOKUP(B13,#REF!,9,FALSE)*C13,2))) ->  | G13: =IF(B13=0,0,IF(C13>9999,"",ROUND(VLOOKUP(VLOOKUP(B13,#REF!,11,FALSE),#REF!,10,FALSE)/VLOOKUP(B13,#REF!,9,FALSE)*C13,2))) ->  | H13: =IF(B13=0,"",IF(C13>9999,"",ROUND(VLOOKUP($B13,#REF!,15,FALSE)*C13,2))) ->  | I13: =IF(B13=0,0,IF(C13>9999,"",ROUND(VLOOKUP(VLOOKUP(B13,#REF!,11,FALSE),#REF!,16,FALSE)/VLOOKUP(B13,#REF!,9,FALSE)*C13,2))) ->  | J13: =IF(B13=0,"",IF(C13>9999,"",ROUND(VLOOKUP($B13,#REF!,21,FALSE)*$C13,2))) ->  | K13: =IF(C13>9999,"",SUM(E13:J13)) -> 
A14: 3 | B14: Harrow | C14: 1 | E14: =IF(B14=0,"",IF(C14>9999,"",ROUND('General Variables'!$B$4*VLOOKUP(B14,#REF!,10,FALSE)/VLOOKUP(B14,#REF!,9,FALSE)*C14,2))) ->  | F14: =IF(B14=0,0,IF(C14>9999,"",ROUND(IF(VLOOKUP(B14,#REF!,12,FALSE)=0,VLOOKUP(B14,#REF!,13,FALSE)*'General Variables'!$B$8,VLOOKUP(B14,#REF!,12,FALSE)*'General Variables'!$B$7)/VLOOKUP(B14,#REF!,9,FALSE)*C14,2))) ->  | G14: =IF(B14=0,0,IF(C14>9999,"",ROUND(VLOOKUP(VLOOKUP(B14,#REF!,11,FALSE),#REF!,10,FALSE)/VLOOKUP(B14,#REF!,9,FALSE)*C14,2))) ->  | H14: =IF(B14=0,"",IF(C14>9999,"",ROUND(VLOOKUP($B14,#REF!,15,FALSE)*C14,2))) ->  | I14: =IF(B14=0,0,IF(C14>9999,"",ROUND(VLOOKUP(VLOOKUP(B14,#REF!,11,FALSE),#REF!,16,FALSE)/VLOOKUP(B14,#REF!,9,FALSE)*C14,2))) ->  | J14: =IF(B14=0,"",IF(C14>9999,"",ROUND(VLOOKUP($B14,#REF!,21,FALSE)*$C14,2))) -> 
A15: 4 | B15: Harrow | C15: 1 | E15: =IF(B15=0,"",IF(C15>9999,"",ROUND('General Variables'!$B$4*VLOOKUP(B15,#REF!,10,FALSE)/VLOOKUP(B15,#REF!,9,FALSE)*C15,2))) ->  | F15: =IF(B15=0,0,IF(C15>9999,"",ROUND(IF(VLOOKUP(B15,#REF!,12,FALSE)=0,VLOOKUP(B15,#REF!,13,FALSE)*'General Variables'!$B$8,VLOOKUP(B15,#REF!,12,FALSE)*'General Variables'!$B$7)/VLOOKUP(B15,#REF!,9,FALSE)*C15,2))) ->  | G15: =IF(B15=0,0,IF(C15>9999,"",ROUND(VLOOKUP(VLOOKUP(B15,#REF!,11,FALSE),#REF!,10,FALSE)/VLOOKUP(B15,#REF!,9,FALSE)*C15,2))) ->  | H15: =IF(B15=0,"",IF(C15>9999,"",ROUND(VLOOKUP($B15,#REF!,15,FALSE)*C15,2))) ->  | I15: =IF(B15=0,0,IF(C15>9999,"",ROUND(VLOOKUP(VLOOKUP(B15,#REF!,11,FALSE),#REF!,16,FALSE)/VLOOKUP(B15,#REF!,9,FALSE)*C15,2))) ->  | J15: =IF(B15=0,"",IF(C15>9999,"",ROUND(VLOOKUP($B15,#REF!,21,FALSE)*$C15,2))) -> 
A16: 5 | B16: Roll | C16: 1 | E16: =IF(B16=0,"",IF(C16>9999,"",ROUND('General Variables'!$B$4*VLOOKUP(B16,#REF!,10,FALSE)/VLOOKUP(B16,#REF!,9,FALSE)*C16,2))) ->  | F16: =IF(B16=0,0,IF(C16>9999,"",ROUND(IF(VLOOKUP(B16,#REF!,12,FALSE)=0,VLOOKUP(B16,#REF!,13,FALSE)*'General Variables'!$B$8,VLOOKUP(B16,#REF!,12,FALSE)*'General Variables'!$B$7)/VLOOKUP(B16,#REF!,9,FALSE)*C16,2))) ->  | G16: =IF(B16=0,0,IF(C16>9999,"",ROUND(VLOOKUP(VLOOKUP(B16,#REF!,11,FALSE),#REF!,10,FALSE)/VLOOKUP(B16,#REF!,9,FALSE)*C16,2))) ->  | H16: =IF(B16=0,"",IF(C16>9999,"",ROUND(VLOOKUP($B16,#REF!,15,FALSE)*C16,2))) ->  | I16: =IF(B16=0,0,IF(C16>9999,"",ROUND(VLOOKUP(VLOOKUP(B16,#REF!,11,FALSE),#REF!,16,FALSE)/VLOOKUP(B16,#REF!,9,FALSE)*C16,2))) ->  | J16: =IF(B16=0,"",IF(C16>9999,"",ROUND(VLOOKUP($B16,#REF!,21,FALSE)*$C16,2))) -> 
A17: 6 | B17: Drill | C17: 1 | E17: =IF(B17=0,"",IF(C17>9999,"",ROUND('General Variables'!$B$4*VLOOKUP(B17,#REF!,10,FALSE)/VLOOKUP(B17,#REF!,9,FALSE)*C17,2))) ->  | F17: =IF(B17=0,0,IF(C17>9999,"",ROUND(IF(VLOOKUP(B17,#REF!,12,FALSE)=0,VLOOKUP(B17,#REF!,13,FALSE)*'General Variables'!$B$8,VLOOKUP(B17,#REF!,12,FALSE)*'General Variables'!$B$7)/VLOOKUP(B17,#REF!,9,FALSE)*C17,2))) ->  | G17: =IF(B17=0,0,IF(C17>9999,"",ROUND(VLOOKUP(VLOOKUP(B17,#REF!,11,FALSE),#REF!,10,FALSE)/VLOOKUP(B17,#REF!,9,FALSE)*C17,2))) ->  | H17: =IF(B17=0,"",IF(C17>9999,"",ROUND(VLOOKUP($B17,#REF!,15,FALSE)*C17,2))) ->  | I17: =IF(B17=0,0,IF(C17>9999,"",ROUND(VLOOKUP(VLOOKUP(B17,#REF!,11,FALSE),#REF!,16,FALSE)/VLOOKUP(B17,#REF!,9,FALSE)*C17,2))) ->  | J17: =IF(B17=0,"",IF(C17>9999,"",ROUND(VLOOKUP($B17,#REF!,21,FALSE)*$C17,2))) -> 
A18: 7 | B18: Spray | C18: 1 | E18: =IF(B18=0,"",IF(C18>9999,"",ROUND('General Variables'!$B$4*VLOOKUP(B18,#REF!,10,FALSE)/VLOOKUP(B18,#REF!,9,FALSE)*C18,2))) ->  | F18: =IF(B18=0,0,IF(C18>9999,"",ROUND(IF(VLOOKUP(B18,#REF!,12,FALSE)=0,VLOOKUP(B18,#REF!,13,FALSE)*'General Variables'!$B$8,VLOOKUP(B18,#REF!,12,FALSE)*'General Variables'!$B$7)/VLOOKUP(B18,#REF!,9,FALSE)*C18,2))) ->  | G18: =IF(B18=0,0,IF(C18>9999,"",ROUND(VLOOKUP(VLOOKUP(B18,#REF!,11,FALSE),#REF!,10,FALSE)/VLOOKUP(B18,#REF!,9,FALSE)*C18,2))) ->  | H18: =IF(B18=0,"",IF(C18>9999,"",ROUND(VLOOKUP($B18,#REF!,15,FALSE)*C18,2))) ->  | I18: =IF(B18=0,0,IF(C18>9999,"",ROUND(VLOOKUP(VLOOKUP(B18,#REF!,11,FALSE),#REF!,16,FALSE)/VLOOKUP(B18,#REF!,9,FALSE)*C18,2))) ->  | J18: =IF(B18=0,"",IF(C18>9999,"",ROUND(VLOOKUP($B18,#REF!,21,FALSE)*$C18,2))) -> 
A19: 8 | B19: Spray | C19: 0.2 | E19: =IF(B19=0,"",IF(C19>9999,"",ROUND('General Variables'!$B$4*VLOOKUP(B19,#REF!,10,FALSE)/VLOOKUP(B19,#REF!,9,FALSE)*C19,2))) ->  | F19: =IF(B19=0,0,IF(C19>9999,"",ROUND(IF(VLOOKUP(B19,#REF!,12,FALSE)=0,VLOOKUP(B19,#REF!,13,FALSE)*'General Variables'!$B$8,VLOOKUP(B19,#REF!,12,FALSE)*'General Variables'!$B$7)/VLOOKUP(B19,#REF!,9,FALSE)*C19,2))) ->  | G19: =IF(B19=0,0,IF(C19>9999,"",ROUND(VLOOKUP(VLOOKUP(B19,#REF!,11,FALSE),#REF!,10,FALSE)/VLOOKUP(B19,#REF!,9,FALSE)*C19,2))) ->  | H19: =IF(B19=0,"",IF(C19>9999,"",ROUND(VLOOKUP($B19,#REF!,15,FALSE)*C19,2))) ->  | I19: =IF(B19=0,0,IF(C19>9999,"",ROUND(VLOOKUP(VLOOKUP(B19,#REF!,11,FALSE),#REF!,16,FALSE)/VLOOKUP(B19,#REF!,9,FALSE)*C19,2))) ->  | J19: =IF(B19=0,"",IF(C19>9999,"",ROUND(VLOOKUP($B19,#REF!,21,FALSE)*$C19,2))) -> 
A20: 9 | E20: =IF(B20=0,"",IF(C20>9999,"",ROUND('General Variables'!$B$4*VLOOKUP(B20,#REF!,10,FALSE)/VLOOKUP(B20,#REF!,9,FALSE)*C20,2))) ->  | F20: =IF(B20=0,0,IF(C20>9999,"",ROUND(IF(VLOOKUP(B20,#REF!,12,FALSE)=0,VLOOKUP(B20,#REF!,13,FALSE)*'General Variables'!$B$8,VLOOKUP(B20,#REF!,12,FALSE)*'General Variables'!$B$7)/VLOOKUP(B20,#REF!,9,FALSE)*C20,2))) -> 0 | G20: =IF(B20=0,0,IF(C20>9999,"",ROUND(VLOOKUP(VLOOKUP(B20,#REF!,11,FALSE),#REF!,10,FALSE)/VLOOKUP(B20,#REF!,9,FALSE)*C20,2))) -> 0 | H20: =IF(B20=0,"",IF(C20>9999,"",ROUND(VLOOKUP($B20,#REF!,15,FALSE)*C20,2))) ->  | I20: =IF(B20=0,0,IF(C20>9999,"",ROUND(VLOOKUP(VLOOKUP(B20,#REF!,11,FALSE),#REF!,16,FALSE)/VLOOKUP(B20,#REF!,9,FALSE)*C20,2))) -> 0 | J20: =IF(B20=0,"",IF(C20>9999,"",ROUND(VLOOKUP($B20,#REF!,21,FALSE)*$C20,2))) ->  | K20: 0
A21: 10 | E21: =IF(B21=0,"",IF(C21>9999,"",ROUND('General Variables'!$B$4*VLOOKUP(B21,#REF!,10,FALSE)/VLOOKUP(B21,#REF!,9,FALSE)*C21,2))) ->  | F21: =IF(B21=0,0,IF(C21>9999,"",ROUND(IF(VLOOKUP(B21,#REF!,12,FALSE)=0,VLOOKUP(B21,#REF!,13,FALSE)*'General Variables'!$B$8,VLOOKUP(B21,#REF!,12,FALSE)*'General Variables'!$B$7)/VLOOKUP(B21,#REF!,9,FALSE)*C21,2))) -> 0 | G21: =IF(B21=0,0,IF(C21>9999,"",ROUND(VLOOKUP(VLOOKUP(B21,#REF!,11,FALSE),#REF!,10,FALSE)/VLOOKUP(B21,#REF!,9,FALSE)*C21,2))) -> 0 | H21: =IF(B21=0,"",IF(C21>9999,"",ROUND(VLOOKUP($B21,#REF!,15,FALSE)*C21,2))) ->  | I21: =IF(B21=0,0,IF(C21>9999,"",ROUND(VLOOKUP(VLOOKUP(B21,#REF!,11,FALSE),#REF!,16,FALSE)/VLOOKUP(B21,#REF!,9,FALSE)*C21,2))) -> 0 | J21: =IF(B21=0,"",IF(C21>9999,"",ROUND(VLOOKUP($B21,#REF!,21,FALSE)*$C21,2))) ->  | K21: 0
A22: 11 | E22: =IF(B22=0,"",IF(C22>9999,"",ROUND('General Variables'!$B$4*VLOOKUP(B22,#REF!,10,FALSE)/VLOOKUP(B22,#REF!,9,FALSE)*C22,2))) ->  | F22: =IF(B22=0,0,IF(C22>9999,"",ROUND(IF(VLOOKUP(B22,#REF!,12,FALSE)=0,VLOOKUP(B22,#REF!,13,FALSE)*'General Variables'!$B$8,VLOOKUP(B22,#REF!,12,FALSE)*'General Variables'!$B$7)/VLOOKUP(B22,#REF!,9,FALSE)*C22,2))) -> 0 | G22: =IF(B22=0,0,IF(C22>9999,"",ROUND(VLOOKUP(VLOOKUP(B22,#REF!,11,FALSE),#REF!,10,FALSE)/VLOOKUP(B22,#REF!,9,FALSE)*C22,2))) -> 0 | H22: =IF(B22=0,"",IF(C22>9999,"",ROUND(VLOOKUP($B22,#REF!,15,FALSE)*C22,2))) ->  | I22: =IF(B22=0,0,IF(C22>9999,"",ROUND(VLOOKUP(VLOOKUP(B22,#REF!,11,FALSE),#REF!,16,FALSE)/VLOOKUP(B22,#REF!,9,FALSE)*C22,2))) -> 0 | J22: =IF(B22=0,"",IF(C22>9999,"",ROUND(VLOOKUP($B22,#REF!,21,FALSE)*$C22,2))) ->  | K22: 0
A23: 12 | E23: =IF(B23=0,"",IF(C23>9999,"",ROUND('General Variables'!$B$4*VLOOKUP(B23,#REF!,10,FALSE)/VLOOKUP(B23,#REF!,9,FALSE)*C23,2))) ->  | F23: =IF(B23=0,0,IF(C23>9999,"",ROUND(IF(VLOOKUP(B23,#REF!,12,FALSE)=0,VLOOKUP(B23,#REF!,13,FALSE)*'General Variables'!$B$8,VLOOKUP(B23,#REF!,12,FALSE)*'General Variables'!$B$7)/VLOOKUP(B23,#REF!,9,FALSE)*C23,2))) -> 0 | G23: =IF(B23=0,0,IF(C23>9999,"",ROUND(VLOOKUP(VLOOKUP(B23,#REF!,11,FALSE),#REF!,10,FALSE)/VLOOKUP(B23,#REF!,9,FALSE)*C23,2))) -> 0 | H23: =IF(B23=0,"",IF(C23>9999,"",ROUND(VLOOKUP($B23,#REF!,15,FALSE)*C23,2))) ->  | I23: =IF(B23=0,0,IF(C23>9999,"",ROUND(VLOOKUP(VLOOKUP(B23,#REF!,11,FALSE),#REF!,16,FALSE)/VLOOKUP(B23,#REF!,9,FALSE)*C23,2))) -> 0 | J23: =IF(B23=0,"",IF(C23>9999,"",ROUND(VLOOKUP($B23,#REF!,21,FALSE)*$C23,2))) ->  | K23: 0
A24: 13 | E24: =IF(B24=0,"",IF(C24>9999,"",ROUND('General Variables'!$B$4*VLOOKUP(B24,#REF!,10,FALSE)/VLOOKUP(B24,#REF!,9,FALSE)*C24,2))) ->  | F24: =IF(B24=0,0,IF(C24>9999,"",ROUND(IF(VLOOKUP(B24,#REF!,12,FALSE)=0,VLOOKUP(B24,#REF!,13,FALSE)*'General Variables'!$B$8,VLOOKUP(B24,#REF!,12,FALSE)*'General Variables'!$B$7)/VLOOKUP(B24,#REF!,9,FALSE)*C24,2))) -> 0 | G24: =IF(B24=0,0,IF(C24>9999,"",ROUND(VLOOKUP(VLOOKUP(B24,#REF!,11,FALSE),#REF!,10,FALSE)/VLOOKUP(B24,#REF!,9,FALSE)*C24,2))) -> 0 | H24: =IF(B24=0,"",IF(C24>9999,"",ROUND(VLOOKUP($B24,#REF!,15,FALSE)*C24,2))) ->  | I24: =IF(B24=0,0,IF(C24>9999,"",ROUND(VLOOKUP(VLOOKUP(B24,#REF!,11,FALSE),#REF!,16,FALSE)/VLOOKUP(B24,#REF!,9,FALSE)*C24,2))) -> 0 | J24: =IF(B24=0,"",IF(C24>9999,"",ROUND(VLOOKUP($B24,#REF!,21,FALSE)*$C24,2))) ->  | K24: 0
A25: 14 | E25: =IF(B25=0,"",IF(C25>9999,"",ROUND('General Variables'!$B$4*VLOOKUP(B25,#REF!,10,FALSE)/VLOOKUP(B25,#REF!,9,FALSE)*C25,2))) ->  | F25: =IF(B25=0,0,IF(C25>9999,"",ROUND(IF(VLOOKUP(B25,#REF!,12,FALSE)=0,VLOOKUP(B25,#REF!,13,FALSE)*'General Variables'!$B$8,VLOOKUP(B25,#REF!,12,FALSE)*'General Variables'!$B$7)/VLOOKUP(B25,#REF!,9,FALSE)*C25,2))) -> 0 | G25: =IF(B25=0,0,IF(C25>9999,"",ROUND(VLOOKUP(VLOOKUP(B25,#REF!,11,FALSE),#REF!,10,FALSE)/VLOOKUP(B25,#REF!,9,FALSE)*C25,2))) -> 0 | H25: =IF(B25=0,"",IF(C25>9999,"",ROUND(VLOOKUP($B25,#REF!,15,FALSE)*C25,2))) ->  | I25: =IF(B25=0,0,IF(C25>9999,"",ROUND(VLOOKUP(VLOOKUP(B25,#REF!,11,FALSE),#REF!,16,FALSE)/VLOOKUP(B25,#REF!,9,FALSE)*C25,2))) -> 0 | J25: =IF(B25=0,"",IF(C25>9999,"",ROUND(VLOOKUP($B25,#REF!,21,FALSE)*$C25,2))) ->  | K25: 0
A26: 15 | E26: =IF(B26=0,"",IF(C26>9999,"",ROUND('General Variables'!$B$4*VLOOKUP(B26,#REF!,10,FALSE)/VLOOKUP(B26,#REF!,9,FALSE)*C26,2))) ->  | F26: =IF(B26=0,0,IF(C26>9999,"",ROUND(IF(VLOOKUP(B26,#REF!,12,FALSE)=0,VLOOKUP(B26,#REF!,13,FALSE)*'General Variables'!$B$8,VLOOKUP(B26,#REF!,12,FALSE)*'General Variables'!$B$7)/VLOOKUP(B26,#REF!,9,FALSE)*C26,2))) -> 0 | G26: =IF(B26=0,0,IF(C26>9999,"",ROUND(VLOOKUP(VLOOKUP(B26,#REF!,11,FALSE),#REF!,10,FALSE)/VLOOKUP(B26,#REF!,9,FALSE)*C26,2))) -> 0 | H26: =IF(B26=0,"",IF(C26>9999,"",ROUND(VLOOKUP($B26,#REF!,15,FALSE)*C26,2))) ->  | I26: =IF(B26=0,0,IF(C26>9999,"",ROUND(VLOOKUP(VLOOKUP(B26,#REF!,11,FALSE),#REF!,16,FALSE)/VLOOKUP(B26,#REF!,9,FALSE)*C26,2))) -> 0 | J26: =IF(B26=0,"",IF(C26>9999,"",ROUND(VLOOKUP($B26,#REF!,21,FALSE)*$C26,2))) ->  | K26: 0
A27: 16 | E27: =IF(B27=0,"",IF(C27>9999,"",ROUND('General Variables'!$B$4*VLOOKUP(B27,#REF!,10,FALSE)/VLOOKUP(B27,#REF!,9,FALSE)*C27,2))) ->  | F27: =IF(B27=0,0,IF(C27>9999,"",ROUND(IF(VLOOKUP(B27,#REF!,12,FALSE)=0,VLOOKUP(B27,#REF!,13,FALSE)*'General Variables'!$B$8,VLOOKUP(B27,#REF!,12,FALSE)*'General Variables'!$B$7)/VLOOKUP(B27,#REF!,9,FALSE)*C27,2))) -> 0 | G27: =IF(B27=0,0,IF(C27>9999,"",ROUND(VLOOKUP(VLOOKUP(B27,#REF!,11,FALSE),#REF!,10,FALSE)/VLOOKUP(B27,#REF!,9,FALSE)*C27,2))) -> 0 | H27: =IF(B27=0,"",IF(C27>9999,"",ROUND(VLOOKUP($B27,#REF!,15,FALSE)*C27,2))) ->  | I27: =IF(B27=0,0,IF(C27>9999,"",ROUND(VLOOKUP(VLOOKUP(B27,#REF!,11,FALSE),#REF!,16,FALSE)/VLOOKUP(B27,#REF!,9,FALSE)*C27,2))) -> 0 | J27: =IF(B27=0,"",IF(C27>9999,"",ROUND(VLOOKUP($B27,#REF!,21,FALSE)*$C27,2))) ->  | K27: 0
A28: 17 | E28: =IF(B28=0,"",IF(C28>9999,"",ROUND('General Variables'!$B$4*VLOOKUP(B28,#REF!,10,FALSE)/VLOOKUP(B28,#REF!,9,FALSE)*C28,2))) ->  | F28: =IF(B28=0,0,IF(C28>9999,"",ROUND(IF(VLOOKUP(B28,#REF!,12,FALSE)=0,VLOOKUP(B28,#REF!,13,FALSE)*'General Variables'!$B$8,VLOOKUP(B28,#REF!,12,FALSE)*'General Variables'!$B$7)/VLOOKUP(B28,#REF!,9,FALSE)*C28,2))) -> 0 | G28: =IF(B28=0,0,IF(C28>9999,"",ROUND(VLOOKUP(VLOOKUP(B28,#REF!,11,FALSE),#REF!,10,FALSE)/VLOOKUP(B28,#REF!,9,FALSE)*C28,2))) -> 0 | H28: =IF(B28=0,"",IF(C28>9999,"",ROUND(VLOOKUP($B28,#REF!,15,FALSE)*C28,2))) ->  | I28: =IF(B28=0,0,IF(C28>9999,"",ROUND(VLOOKUP(VLOOKUP(B28,#REF!,11,FALSE),#REF!,16,FALSE)/VLOOKUP(B28,#REF!,9,FALSE)*C28,2))) -> 0 | J28: =IF(B28=0,"",IF(C28>9999,"",ROUND(VLOOKUP($B28,#REF!,21,FALSE)*$C28,2))) ->  | K28: 0
A29: 18 | E29: =IF(B29=0,"",IF(C29>9999,"",ROUND('General Variables'!$B$4*VLOOKUP(B29,#REF!,10,FALSE)/VLOOKUP(B29,#REF!,9,FALSE)*C29,2))) ->  | F29: =IF(B29=0,0,IF(C29>9999,"",ROUND(IF(VLOOKUP(B29,#REF!,12,FALSE)=0,VLOOKUP(B29,#REF!,13,FALSE)*'General Variables'!$B$8,VLOOKUP(B29,#REF!,12,FALSE)*'General Variables'!$B$7)/VLOOKUP(B29,#REF!,9,FALSE)*C29,2))) -> 0 | G29: =IF(B29=0,0,IF(C29>9999,"",ROUND(VLOOKUP(VLOOKUP(B29,#REF!,11,FALSE),#REF!,10,FALSE)/VLOOKUP(B29,#REF!,9,FALSE)*C29,2))) -> 0 | H29: =IF(B29=0,"",IF(C29>9999,"",ROUND(VLOOKUP($B29,#REF!,15,FALSE)*C29,2))) ->  | I29: =IF(B29=0,0,IF(C29>9999,"",ROUND(VLOOKUP(VLOOKUP(B29,#REF!,11,FALSE),#REF!,16,FALSE)/VLOOKUP(B29,#REF!,9,FALSE)*C29,2))) -> 0 | J29: =IF(B29=0,"",IF(C29>9999,"",ROUND(VLOOKUP($B29,#REF!,21,FALSE)*$C29,2))) ->  | K29: 0
A30: 19 | E30: =IF(B30=0,"",IF(C30>9999,"",ROUND('General Variables'!$B$4*VLOOKUP(B30,#REF!,10,FALSE)/VLOOKUP(B30,#REF!,9,FALSE)*C30,2))) ->  | F30: =IF(B30=0,0,IF(C30>9999,"",ROUND(IF(VLOOKUP(B30,#REF!,12,FALSE)=0,VLOOKUP(B30,#REF!,13,FALSE)*'General Variables'!$B$8,VLOOKUP(B30,#REF!,12,FALSE)*'General Variables'!$B$7)/VLOOKUP(B30,#REF!,9,FALSE)*C30,2))) -> 0 | G30: =IF(B30=0,0,IF(C30>9999,"",ROUND(VLOOKUP(VLOOKUP(B30,#REF!,11,FALSE),#REF!,10,FALSE)/VLOOKUP(B30,#REF!,9,FALSE)*C30,2))) -> 0 | H30: =IF(B30=0,"",IF(C30>9999,"",ROUND(VLOOKUP($B30,#REF!,15,FALSE)*C30,2))) ->  | I30: =IF(B30=0,0,IF(C30>9999,"",ROUND(VLOOKUP(VLOOKUP(B30,#REF!,11,FALSE),#REF!,16,FALSE)/VLOOKUP(B30,#REF!,9,FALSE)*C30,2))) -> 0 | J30: =IF(B30=0,"",IF(C30>9999,"",ROUND(VLOOKUP($B30,#REF!,21,FALSE)*$C30,2))) ->  | K30: 0
A31: 20 | E31: =IF(B31=0,"",IF(C31>9999,"",ROUND('General Variables'!$B$4*VLOOKUP(B31,#REF!,10,FALSE)/VLOOKUP(B31,#REF!,9,FALSE)*C31,2))) ->  | F31: =IF(B31=0,0,IF(C31>9999,"",ROUND(IF(VLOOKUP(B31,#REF!,12,FALSE)=0,VLOOKUP(B31,#REF!,13,FALSE)*'General Variables'!$B$8,VLOOKUP(B31,#REF!,12,FALSE)*'General Variables'!$B$7)/VLOOKUP(B31,#REF!,9,FALSE)*C31,2))) -> 0 | G31: =IF(B31=0,0,IF(C31>9999,"",ROUND(VLOOKUP(VLOOKUP(B31,#REF!,11,FALSE),#REF!,10,FALSE)/VLOOKUP(B31,#REF!,9,FALSE)*C31,2))) -> 0 | H31: =IF(B31=0,"",IF(C31>9999,"",ROUND(VLOOKUP($B31,#REF!,15,FALSE)*C31,2))) ->  | I31: =IF(B31=0,0,IF(C31>9999,"",ROUND(VLOOKUP(VLOOKUP(B31,#REF!,11,FALSE),#REF!,16,FALSE)/VLOOKUP(B31,#REF!,9,FALSE)*C31,2))) -> 0 | J31: =IF(B31=0,"",IF(C31>9999,"",ROUND(VLOOKUP($B31,#REF!,21,FALSE)*$C31,2))) ->  | K31: 0
C33: Total for Field Operations | E33: =SUM(E12:E31) ->  | F33: =SUM(F12:F31) -> 
F35: Operation Index | G35: Percent Acres Applied | H35: Application | J35: Applied Price | L35: Your Estimate
B36: Materials & Services | H36: Rate | I36: Unit | K36: Total
B37: 11-52-0 | C37: =IF(B37=0,"",VLOOKUP($B37,Table2[],2,FALSE)) -> Fertilizer | F37: 1 | G37: 1 | H37: 100 | I37: =IF($B37=0,"",VLOOKUP($B37,Table2[],5,FALSE)) -> pound | J37: =IF($B37=0,"",VLOOKUP($B37,Table2[],7,FALSE)) -> 0.24 | K37: =IF(B37=0,0,ROUND(G37*H37*J37,2)) -> 24
B38: Alfalfa RR w/Inoculant | C38: =IF(B38=0,"",VLOOKUP($B38,Table2[],2,FALSE)) -> Seed | F38: 6 | G38: 1 | H38: 12 | I38: =IF($B38=0,"",VLOOKUP($B38,Table2[],5,FALSE)) -> pound | J38: =IF($B38=0,"",VLOOKUP($B38,Table2[],7,FALSE)) -> 9 | K38: =IF(B38=0,0,ROUND(G38*H38*J38,2)) -> 108
B39: Roundup WeatherMax | C39: =IF(B39=0,"",VLOOKUP($B39,Table2[],2,FALSE)) -> Herbicide | F39: 7 | G39: 1 | H39: 44 | I39: =IF($B39=0,"",VLOOKUP($B39,Table2[],5,FALSE)) -> ounce | J39: =IF($B39=0,"",VLOOKUP($B39,Table2[],7,FALSE)) -> 0.25 | K39: 11
B40: 21-0-0-24S | C40: =IF(B40=0,"",VLOOKUP($B40,Table2[],2,FALSE)) -> Additive | F40: 7 | G40: 1 | H40: 1.7 | I40: =IF($B40=0,"",VLOOKUP($B40,Table2[],5,FALSE)) -> pound | J40: =IF($B40=0,"",VLOOKUP($B40,Table2[],7,FALSE)) -> 0.35 | K40: 0.6
B41: Lorsban Advanced | C41: =IF(B41=0,"",VLOOKUP($B41,Table2[],2,FALSE)) -> Insecticide | F41: 8 | G41: 0.2 | H41: 1 | I41: =IF($B41=0,"",VLOOKUP($B41,Table2[],5,FALSE)) -> pint | J41: =IF($B41=0,"",VLOOKUP($B41,Table2[],7,FALSE)) -> 6.875 | K41: 1.38
C42: =IF(B42=0,"",VLOOKUP($B42,Table2[],2,FALSE)) ->  | I42: =IF($B42=0,"",VLOOKUP($B42,Table2[],5,FALSE)) ->  | J42: =IF($B42=0,"",VLOOKUP($B42,Table2[],7,FALSE)) ->  | K42: 0
C43: =IF(B43=0,"",VLOOKUP($B43,Table2[],2,FALSE)) ->  | I43: =IF($B43=0,"",VLOOKUP($B43,Table2[],5,FALSE)) ->  | J43: =IF($B43=0,"",VLOOKUP($B43,Table2[],7,FALSE)) ->  | K43: 0
C44: =IF(B44=0,"",VLOOKUP($B44,Table2[],2,FALSE)) ->  | I44: =IF($B44=0,"",VLOOKUP($B44,Table2[],5,FALSE)) ->  | J44: =IF($B44=0,"",VLOOKUP($B44,Table2[],7,FALSE)) ->  | K44: 0
C45: =IF(B45=0,"",VLOOKUP($B45,Table2[],2,FALSE)) ->  | I45: =IF($B45=0,"",VLOOKUP($B45,Table2[],5,FALSE)) ->  | J45: =IF($B45=0,"",VLOOKUP($B45,Table2[],7,FALSE)) ->  | K45: 0
C46: =IF(B46=0,"",VLOOKUP($B46,Table2[],2,FALSE)) ->  | I46: =IF($B46=0,"",VLOOKUP($B46,Table2[],5,FALSE)) ->  | J46: =IF($B46=0,"",VLOOKUP($B46,Table2[],7,FALSE)) ->  | K46: 0
C47: =IF(B47=0,"",VLOOKUP($B47,Table2[],2,FALSE)) ->  | I47: =IF($B47=0,"",VLOOKUP($B47,Table2[],5,FALSE)) ->  | J47: =IF($B47=0,"",VLOOKUP($B47,Table2[],7,FALSE)) ->  | K47: 0
C48: =IF(B48=0,"",VLOOKUP($B48,Table2[],2,FALSE)) ->  | I48: =IF($B48=0,"",VLOOKUP($B48,Table2[],5,FALSE)) ->  | J48: =IF($B48=0,"",VLOOKUP($B48,Table2[],7,FALSE)) ->  | K48: 0
C49: =IF(B49=0,"",VLOOKUP($B49,Table2[],2,FALSE)) ->  | I49: =IF($B49=0,"",VLOOKUP($B49,Table2[],5,FALSE)) ->  | J49: =IF($B49=0,"",VLOOKUP($B49,Table2[],7,FALSE)) ->  | K49: 0
C50: =IF(B50=0,"",VLOOKUP($B50,Table2[],2,FALSE)) ->  | I50: =IF($B50=0,"",VLOOKUP($B50,Table2[],5,FALSE)) ->  | J50: =IF($B50=0,"",VLOOKUP($B50,Table2[],7,FALSE)) ->  | K50: 0
C51: =IF(B51=0,"",VLOOKUP($B51,Table2[],2,FALSE)) ->  | I51: =IF($B51=0,"",VLOOKUP($B51,Table2[],5,FALSE)) ->  | J51: =IF($B51=0,"",VLOOKUP($B51,Table2[],7,FALSE)) ->  | K51: 0
C52: =IF(B52=0,"",VLOOKUP($B52,Table2[],2,FALSE)) ->  | I52: =IF($B52=0,"",VLOOKUP($B52,Table2[],5,FALSE)) ->  | J52: =IF($B52=0,"",VLOOKUP($B52,Table2[],7,FALSE)) ->  | K52: 0
C53: =IF(B53=0,"",VLOOKUP($B53,Table2[],2,FALSE)) ->  | I53: =IF($B53=0,"",VLOOKUP($B53,Table2[],5,FALSE)) ->  | J53: =IF($B53=0,"",VLOOKUP($B53,Table2[],7,FALSE)) ->  | K53: 0
C54: =IF(B54=0,"",VLOOKUP($B54,Table2[],2,FALSE)) ->  | I54: =IF($B54=0,"",VLOOKUP($B54,Table2[],5,FALSE)) ->  | J54: =IF($B54=0,"",VLOOKUP($B54,Table2[],7,FALSE)) ->  | K54: 0
C55: =IF(B55=0,"",VLOOKUP($B55,Table2[],2,FALSE)) ->  | I55: =IF($B55=0,"",VLOOKUP($B55,Table2[],5,FALSE)) ->  | J55: =IF($B55=0,"",VLOOKUP($B55,Table2[],7,FALSE)) ->  | K55: 0
C56: =IF(B56=0,"",VLOOKUP($B56,Table2[],2,FALSE)) ->  | I56: =IF($B56=0,"",VLOOKUP($B56,Table2[],5,FALSE)) ->  | J56: =IF($B56=0,"",VLOOKUP($B56,Table2[],7,FALSE)) ->  | K56: =IF(B56=0,0,ROUND(G56*H56*J56,2)) -> 0
C57: =IF(B57=0,"",VLOOKUP($B57,Table2[],2,FALSE)) ->  | I57: =IF($B57=0,"",VLOOKUP($B57,Table2[],5,FALSE)) ->  | J57: =IF($B57=0,"",VLOOKUP($B57,Table2[],7,FALSE)) ->  | K57: =IF(B57=0,0,ROUND(G57*H57*J57,2)) -> 0
C58: =IF(B58=0,"",VLOOKUP($B58,Table2[],2,FALSE)) ->  | I58: =IF($B58=0,"",VLOOKUP($B58,Table2[],5,FALSE)) ->  | J58: =IF($B58=0,"",VLOOKUP($B58,Table2[],7,FALSE)) ->  | K58: =IF(B58=0,0,ROUND(G58*H58*J58,2)) -> 0
C59: =IF(B59=0,"",VLOOKUP($B59,Table2[],2,FALSE)) ->  | I59: =IF($B59=0,"",VLOOKUP($B59,Table2[],5,FALSE)) ->  | J59: =IF($B59=0,"",VLOOKUP($B59,Table2[],7,FALSE)) ->  | K59: =IF(B59=0,0,ROUND(G59*H59*J59,2)) -> 0
C60: =IF(B60=0,"",VLOOKUP($B60,Table2[],2,FALSE)) ->  | I60: =IF($B60=0,"",VLOOKUP($B60,Table2[],5,FALSE)) ->  | J60: =IF($B60=0,"",VLOOKUP($B60,Table2[],7,FALSE)) ->  | K60: =IF(B60=0,0,ROUND(G60*H60*J60,2)) -> 0
C61: Crop Insurance | J61: =IF($B61=0,"",VLOOKUP($B61,Materials!$B$2:$H$127,7,FALSE)) ->  | K61: 0
C63: Total Materials & Services | K63: =SUM(K37:K61) -> 144.98
B65: Total listed costs for Field Operations and Materials and Services | K65: =K33+K63 -> 
D66: Interest on Operations Capital | E66: =ROUND(SUM($E$33:$H$33)+$K$63,2) ->  | F66: cash expense @ | H66: ='General Variables'!$B$11 -> 0.055 | I66: =CONCATENATE("for ",TEXT('General Variables'!$B$12,"0.0")," mo.") -> for 6.0 mo. | K66: =E66*H66*'General Variables'!$B$12/12 -> 
B67: Total Operating and Use Related Ownership Costs | K67: =SUM(K65:K66) -> 
B69: Overhead (accounting, liability insurance, vehicle cost, office expense) | K69: ='General Variables'!B14 -> 20
B70: Real Estate Opportunity | C70: Fall Establishment | F70: =IF(C70=0,0,VLOOKUP(C70,RETable,2,FALSE)) -> 0 | G70: per acre @ | I70: ='General Variables'!$B$10 -> 0.04 | K70: =ROUND(F70*I70,2) -> 0
B71: Real Estate Taxes | F71: =IF(C70=0,0,VLOOKUP(C70,RETable,2,FALSE)) -> 0 | G71: per acre @ | I71: ='General Variables'!$B$13 -> 0.01 | K71: =ROUND(F71*I71,2) -> 0
B72: Total Cost per Acre Including Overhead | K72: =SUM(K67:K71) -> 
K111: Yes
K112: No
B240: =IF(#REF!="","",#REF!) ->  | C240: =IF(Materials!B132="","",Materials!B132) -> 
B241: =IF(#REF!="","",#REF!) ->  | C241: =IF(Materials!B133="","",Materials!B133) -> 
B242: =IF(#REF!="","",#REF!) ->  | C242: =IF(Materials!B134="","",Materials!B134) -> 
B243: =IF(#REF!="","",#REF!) ->  | C243: =IF(Materials!B135="","",Materials!B135) -> 
B244: =IF(#REF!="","",#REF!) ->  | C244: =IF(Materials!B136="","",Materials!B136) -> 

Sheet 4-Alfalfa
A2: =REPLACE(CELL("filename",A1),1,FIND("]",CELL("filename",A1)),"") -> 4-Alfalfa | I2: Dryland | L2: ='General Variables'!A3&" "&'General Variables'!B3 -> Year 2017 | O2: Acre
A3: Establish Spring Seed with Herbicides | I3: acre/inches | O3: ai
A4: 2.8 | B4: ton | J4: Does Crop Follow a Legume? | O4: =B4 -> ton
A5: =A2 & IF(C2="","", ", " &C2 ) & ", " & A3 & ", " & I2 -> 4-Alfalfa, Establish Spring Seed with Herbicides, Dryland
A7: ='General Variables'!B3 & " Budget " & A2 &", " & IF(C2=0,"", " " & C2 & ", ") & A3 & IF(A4=""," ", " (") & A4 & " " & B4 & IF(A4="",""," Actual Yield)") -> 2017 Budget 4-Alfalfa, Establish Spring Seed with Herbicides (2.8 ton Actual Yield)
A8: =IF(I2="Dryland","Dryland",I2 & IF(J2="","",", "&J2)&IF(H3="","",", "&H3&" "&I3)) -> Dryland
B10: Field Operations | C10: Times or Qty | E10: ="Labor @ $" &TEXT('General Variables'!B4,"#.00")& " /Hr" -> Labor @ $20.00 /Hr | F10: ="Fuel @ $" & TEXT('General Variables'!B5,"#.00") & " and Lube" -> Fuel @ $2.25 and Lube | G10: Repairs | I10: Ownership | K10: Total | L10: Your Estimate
D11: Unit | G11: Power | H11: Imp. | I11: Power | J11: Imp.
A12: 1 | B12: Spread Fertilizer | C12: 1 | E12: =IF(B12=0,"",IF(C12>9999,"",ROUND('General Variables'!$B$4*VLOOKUP(B12,#REF!,10,FALSE)/VLOOKUP(B12,#REF!,9,FALSE)*C12,2))) ->  | F12: =IF(B12=0,0,IF(C12>9999,"",ROUND(IF(VLOOKUP(B12,#REF!,12,FALSE)=0,VLOOKUP(B12,#REF!,13,FALSE)*'General Variables'!$B$8,VLOOKUP(B12,#REF!,12,FALSE)*'General Variables'!$B$7)/VLOOKUP(B12,#REF!,9,FALSE)*C12,2))) ->  | G12: =IF(B12=0,0,IF(C12>9999,"",ROUND(VLOOKUP(VLOOKUP(B12,#REF!,11,FALSE),#REF!,10,FALSE)/VLOOKUP(B12,#REF!,9,FALSE)*C12,2))) ->  | H12: =IF(B12=0,"",IF(C12>9999,"",ROUND(VLOOKUP($B12,#REF!,15,FALSE)*C12,2))) ->  | I12: =IF(B12=0,0,IF(C12>9999,"",ROUND(VLOOKUP(VLOOKUP(B12,#REF!,11,FALSE),#REF!,16,FALSE)/VLOOKUP(B12,#REF!,9,FALSE)*C12,2))) ->  | J12: =IF(B12=0,"",IF(C12>9999,"",ROUND(VLOOKUP($B12,#REF!,21,FALSE)*$C12,2))) ->  | K12: =IF(C12>9999,"",ROUND(SUM(E12:J12),2)) -> 
A13: 2 | B13: Disk | C13: 1 | E13: =IF(B13=0,"",IF(C13>9999,"",ROUND('General Variables'!$B$4*VLOOKUP(B13,#REF!,10,FALSE)/VLOOKUP(B13,#REF!,9,FALSE)*C13,2))) ->  | F13: =IF(B13=0,0,IF(C13>9999,"",ROUND(IF(VLOOKUP(B13,#REF!,12,FALSE)=0,VLOOKUP(B13,#REF!,13,FALSE)*'General Variables'!$B$8,VLOOKUP(B13,#REF!,12,FALSE)*'General Variables'!$B$7)/VLOOKUP(B13,#REF!,9,FALSE)*C13,2))) ->  | G13: =IF(B13=0,0,IF(C13>9999,"",ROUND(VLOOKUP(VLOOKUP(B13,#REF!,11,FALSE),#REF!,10,FALSE)/VLOOKUP(B13,#REF!,9,FALSE)*C13,2))) ->  | H13: =IF(B13=0,"",IF(C13>9999,"",ROUND(VLOOKUP($B13,#REF!,15,FALSE)*C13,2))) ->  | I13: =IF(B13=0,0,IF(C13>9999,"",ROUND(VLOOKUP(VLOOKUP(B13,#REF!,11,FALSE),#REF!,16,FALSE)/VLOOKUP(B13,#REF!,9,FALSE)*C13,2))) ->  | J13: =IF(B13=0,"",IF(C13>9999,"",ROUND(VLOOKUP($B13,#REF!,21,FALSE)*$C13,2))) ->  | K13: =IF(C13>9999,"",ROUND(SUM(E13:J13),2)) -> 
A14: 3 | B14: Field Cultivation | C14: 1 | E14: =IF(B14=0,"",IF(C14>9999,"",ROUND('General Variables'!$B$4*VLOOKUP(B14,#REF!,10,FALSE)/VLOOKUP(B14,#REF!,9,FALSE)*C14,2))) ->  | F14: =IF(B14=0,0,IF(C14>9999,"",ROUND(IF(VLOOKUP(B14,#REF!,12,FALSE)=0,VLOOKUP(B14,#REF!,13,FALSE)*'General Variables'!$B$8,VLOOKUP(B14,#REF!,12,FALSE)*'General Variables'!$B$7)/VLOOKUP(B14,#REF!,9,FALSE)*C14,2))) ->  | G14: =IF(B14=0,0,IF(C14>9999,"",ROUND(VLOOKUP(VLOOKUP(B14,#REF!,11,FALSE),#REF!,10,FALSE)/VLOOKUP(B14,#REF!,9,FALSE)*C14,2))) ->  | H14: =IF(B14=0,"",IF(C14>9999,"",ROUND(VLOOKUP($B14,#REF!,15,FALSE)*C14,2))) ->  | I14: =IF(B14=0,0,IF(C14>9999,"",ROUND(VLOOKUP(VLOOKUP(B14,#REF!,11,FALSE),#REF!,16,FALSE)/VLOOKUP(B14,#REF!,9,FALSE)*C14,2))) ->  | J14: =IF(B14=0,"",IF(C14>9999,"",ROUND(VLOOKUP($B14,#REF!,21,FALSE)*$C14,2))) -> 
A15: 4 | B15: Seeder/Packer | C15: 1 | E15: =IF(B15=0,"",IF(C15>9999,"",ROUND('General Variables'!$B$4*VLOOKUP(B15,#REF!,10,FALSE)/VLOOKUP(B15,#REF!,9,FALSE)*C15,2))) ->  | F15: =IF(B15=0,0,IF(C15>9999,"",ROUND(IF(VLOOKUP(B15,#REF!,12,FALSE)=0,VLOOKUP(B15,#REF!,13,FALSE)*'General Variables'!$B$8,VLOOKUP(B15,#REF!,12,FALSE)*'General Variables'!$B$7)/VLOOKUP(B15,#REF!,9,FALSE)*C15,2))) ->  | G15: =IF(B15=0,0,IF(C15>9999,"",ROUND(VLOOKUP(VLOOKUP(B15,#REF!,11,FALSE),#REF!,10,FALSE)/VLOOKUP(B15,#REF!,9,FALSE)*C15,2))) ->  | H15: =IF(B15=0,"",IF(C15>9999,"",ROUND(VLOOKUP($B15,#REF!,15,FALSE)*C15,2))) ->  | I15: =IF(B15=0,0,IF(C15>9999,"",ROUND(VLOOKUP(VLOOKUP(B15,#REF!,11,FALSE),#REF!,16,FALSE)/VLOOKUP(B15,#REF!,9,FALSE)*C15,2))) ->  | J15: =IF(B15=0,"",IF(C15>9999,"",ROUND(VLOOKUP($B15,#REF!,21,FALSE)*$C15,2))) -> 
A16: 5 | B16: Spray | C16: 0.2 | E16: =IF(B16=0,"",IF(C16>9999,"",ROUND('General Variables'!$B$4*VLOOKUP(B16,#REF!,10,FALSE)/VLOOKUP(B16,#REF!,9,FALSE)*C16,2))) ->  | F16: =IF(B16=0,0,IF(C16>9999,"",ROUND(IF(VLOOKUP(B16,#REF!,12,FALSE)=0,VLOOKUP(B16,#REF!,13,FALSE)*'General Variables'!$B$8,VLOOKUP(B16,#REF!,12,FALSE)*'General Variables'!$B$7)/VLOOKUP(B16,#REF!,9,FALSE)*C16,2))) ->  | G16: =IF(B16=0,0,IF(C16>9999,"",ROUND(VLOOKUP(VLOOKUP(B16,#REF!,11,FALSE),#REF!,10,FALSE)/VLOOKUP(B16,#REF!,9,FALSE)*C16,2))) ->  | H16: =IF(B16=0,"",IF(C16>9999,"",ROUND(VLOOKUP($B16,#REF!,15,FALSE)*C16,2))) ->  | I16: =IF(B16=0,0,IF(C16>9999,"",ROUND(VLOOKUP(VLOOKUP(B16,#REF!,11,FALSE),#REF!,16,FALSE)/VLOOKUP(B16,#REF!,9,FALSE)*C16,2))) ->  | J16: =IF(B16=0,"",IF(C16>9999,"",ROUND(VLOOKUP($B16,#REF!,21,FALSE)*$C16,2))) -> 
A17: 6 | B17: Spray | C17: 1 | E17: =IF(B17=0,"",IF(C17>9999,"",ROUND('General Variables'!$B$4*VLOOKUP(B17,#REF!,10,FALSE)/VLOOKUP(B17,#REF!,9,FALSE)*C17,2))) ->  | F17: =IF(B17=0,0,IF(C17>9999,"",ROUND(IF(VLOOKUP(B17,#REF!,12,FALSE)=0,VLOOKUP(B17,#REF!,13,FALSE)*'General Variables'!$B$8,VLOOKUP(B17,#REF!,12,FALSE)*'General Variables'!$B$7)/VLOOKUP(B17,#REF!,9,FALSE)*C17,2))) ->  | G17: =IF(B17=0,0,IF(C17>9999,"",ROUND(VLOOKUP(VLOOKUP(B17,#REF!,11,FALSE),#REF!,10,FALSE)/VLOOKUP(B17,#REF!,9,FALSE)*C17,2))) ->  | H17: =IF(B17=0,"",IF(C17>9999,"",ROUND(VLOOKUP($B17,#REF!,15,FALSE)*C17,2))) ->  | I17: =IF(B17=0,0,IF(C17>9999,"",ROUND(VLOOKUP(VLOOKUP(B17,#REF!,11,FALSE),#REF!,16,FALSE)/VLOOKUP(B17,#REF!,9,FALSE)*C17,2))) ->  | J17: =IF(B17=0,"",IF(C17>9999,"",ROUND(VLOOKUP($B17,#REF!,21,FALSE)*$C17,2))) -> 
A18: 7 | B18: Swath/Condition Hay | C18: 2 | E18: =IF(B18=0,"",IF(C18>9999,"",ROUND('General Variables'!$B$4*VLOOKUP(B18,#REF!,10,FALSE)/VLOOKUP(B18,#REF!,9,FALSE)*C18,2))) ->  | F18: =IF(B18=0,0,IF(C18>9999,"",ROUND(IF(VLOOKUP(B18,#REF!,12,FALSE)=0,VLOOKUP(B18,#REF!,13,FALSE)*'General Variables'!$B$8,VLOOKUP(B18,#REF!,12,FALSE)*'General Variables'!$B$7)/VLOOKUP(B18,#REF!,9,FALSE)*C18,2))) ->  | G18: =IF(B18=0,0,IF(C18>9999,"",ROUND(VLOOKUP(VLOOKUP(B18,#REF!,11,FALSE),#REF!,10,FALSE)/VLOOKUP(B18,#REF!,9,FALSE)*C18,2))) ->  | H18: =IF(B18=0,"",IF(C18>9999,"",ROUND(VLOOKUP($B18,#REF!,15,FALSE)*C18,2))) ->  | I18: =IF(B18=0,0,IF(C18>9999,"",ROUND(VLOOKUP(VLOOKUP(B18,#REF!,11,FALSE),#REF!,16,FALSE)/VLOOKUP(B18,#REF!,9,FALSE)*C18,2))) ->  | J18: =IF(B18=0,"",IF(C18>9999,"",ROUND(VLOOKUP($B18,#REF!,21,FALSE)*$C18,2))) -> 
A19: 8 | B19: Turn Windrows | C19: 0.5 | E19: =IF(B19=0,"",IF(C19>9999,"",ROUND('General Variables'!$B$4*VLOOKUP(B19,#REF!,10,FALSE)/VLOOKUP(B19,#REF!,9,FALSE)*C19,2))) ->  | F19: =IF(B19=0,0,IF(C19>9999,"",ROUND(IF(VLOOKUP(B19,#REF!,12,FALSE)=0,VLOOKUP(B19,#REF!,13,FALSE)*'General Variables'!$B$8,VLOOKUP(B19,#REF!,12,FALSE)*'General Variables'!$B$7)/VLOOKUP(B19,#REF!,9,FALSE)*C19,2))) ->  | G19: =IF(B19=0,0,IF(C19>9999,"",ROUND(VLOOKUP(VLOOKUP(B19,#REF!,11,FALSE),#REF!,10,FALSE)/VLOOKUP(B19,#REF!,9,FALSE)*C19,2))) ->  | H19: =IF(B19=0,"",IF(C19>9999,"",ROUND(VLOOKUP($B19,#REF!,15,FALSE)*C19,2))) ->  | I19: =IF(B19=0,0,IF(C19>9999,"",ROUND(VLOOKUP(VLOOKUP(B19,#REF!,11,FALSE),#REF!,16,FALSE)/VLOOKUP(B19,#REF!,9,FALSE)*C19,2))) ->  | J19: =IF(B19=0,"",IF(C19>9999,"",ROUND(VLOOKUP($B19,#REF!,21,FALSE)*$C19,2))) -> 
A20: 9 | B20: Bale Small Square | C20: =A4 -> 2.8 | D20: ton | E20: =IF(B20=0,"",IF(C20>9999,"",ROUND('General Variables'!$B$4*VLOOKUP(B20,#REF!,10,FALSE)/VLOOKUP(B20,#REF!,9,FALSE)*C20,2))) ->  | F20: =IF(B20=0,0,IF(C20>9999,"",ROUND(IF(VLOOKUP(B20,#REF!,12,FALSE)=0,VLOOKUP(B20,#REF!,13,FALSE)*'General Variables'!$B$8,VLOOKUP(B20,#REF!,12,FALSE)*'General Variables'!$B$7)/VLOOKUP(B20,#REF!,9,FALSE)*C20,2))) ->  | G20: =IF(B20=0,0,IF(C20>9999,"",ROUND(VLOOKUP(VLOOKUP(B20,#REF!,11,FALSE),#REF!,10,FALSE)/VLOOKUP(B20,#REF!,9,FALSE)*C20,2))) ->  | H20: =IF(B20=0,"",IF(C20>9999,"",ROUND(VLOOKUP($B20,#REF!,15,FALSE)*C20,2))) ->  | I20: =IF(B20=0,0,IF(C20>9999,"",ROUND(VLOOKUP(VLOOKUP(B20,#REF!,11,FALSE),#REF!,16,FALSE)/VLOOKUP(B20,#REF!,9,FALSE)*C20,2))) ->  | J20: =IF(B20=0,"",IF(C20>9999,"",ROUND(VLOOKUP($B20,#REF!,21,FALSE)*$C20,2))) ->  | K20: =IF(C20>9999,"",ROUND(SUM(E20:J20),2)) -> 
A21: 10 | B21: Stack Small Square | C21: =A4 -> 2.8 | D21: ton | E21: =IF(B21=0,"",IF(C21>9999,"",ROUND('General Variables'!$B$4*VLOOKUP(B21,#REF!,10,FALSE)/VLOOKUP(B21,#REF!,9,FALSE)*C21,2))) ->  | F21: =IF(B21=0,0,IF(C21>9999,"",ROUND(IF(VLOOKUP(B21,#REF!,12,FALSE)=0,VLOOKUP(B21,#REF!,13,FALSE)*'General Variables'!$B$8,VLOOKUP(B21,#REF!,12,FALSE)*'General Variables'!$B$7)/VLOOKUP(B21,#REF!,9,FALSE)*C21,2))) ->  | G21: =IF(B21=0,0,IF(C21>9999,"",ROUND(VLOOKUP(VLOOKUP(B21,#REF!,11,FALSE),#REF!,10,FALSE)/VLOOKUP(B21,#REF!,9,FALSE)*C21,2))) ->  | H21: =IF(B21=0,"",IF(C21>9999,"",ROUND(VLOOKUP($B21,#REF!,15,FALSE)*C21,2))) ->  | I21: =IF(B21=0,0,IF(C21>9999,"",ROUND(VLOOKUP(VLOOKUP(B21,#REF!,11,FALSE),#REF!,16,FALSE)/VLOOKUP(B21,#REF!,9,FALSE)*C21,2))) ->  | J21: =IF(B21=0,"",IF(C21>9999,"",ROUND(VLOOKUP($B21,#REF!,21,FALSE)*$C21,2))) ->  | K21: =IF(C21>9999,"",ROUND(SUM(E21:J21),2)) -> 
A22: 11 | E22: =IF(B22=0,"",IF(C22>9999,"",ROUND('General Variables'!$B$4*VLOOKUP(B22,#REF!,10,FALSE)/VLOOKUP(B22,#REF!,9,FALSE)*C22,2))) ->  | F22: =IF(B22=0,0,IF(C22>9999,"",ROUND(IF(VLOOKUP(B22,#REF!,12,FALSE)=0,VLOOKUP(B22,#REF!,13,FALSE)*'General Variables'!$B$8,VLOOKUP(B22,#REF!,12,FALSE)*'General Variables'!$B$7)/VLOOKUP(B22,#REF!,9,FALSE)*C22,2))) -> 0 | G22: =IF(B22=0,0,IF(C22>9999,"",ROUND(VLOOKUP(VLOOKUP(B22,#REF!,11,FALSE),#REF!,10,FALSE)/VLOOKUP(B22,#REF!,9,FALSE)*C22,2))) -> 0 | H22: =IF(B22=0,"",IF(C22>9999,"",ROUND(VLOOKUP($B22,#REF!,15,FALSE)*C22,2))) ->  | I22: =IF(B22=0,0,IF(C22>9999,"",ROUND(VLOOKUP(VLOOKUP(B22,#REF!,11,FALSE),#REF!,16,FALSE)/VLOOKUP(B22,#REF!,9,FALSE)*C22,2))) -> 0 | J22: =IF(B22=0,"",IF(C22>9999,"",ROUND(VLOOKUP($B22,#REF!,21,FALSE)*$C22,2))) ->  | K22: 0
A23: 12 | E23: =IF(B23=0,"",IF(C23>9999,"",ROUND('General Variables'!$B$4*VLOOKUP(B23,#REF!,10,FALSE)/VLOOKUP(B23,#REF!,9,FALSE)*C23,2))) ->  | F23: =IF(B23=0,0,IF(C23>9999,"",ROUND(IF(VLOOKUP(B23,#REF!,12,FALSE)=0,VLOOKUP(B23,#REF!,13,FALSE)*'General Variables'!$B$8,VLOOKUP(B23,#REF!,12,FALSE)*'General Variables'!$B$7)/VLOOKUP(B23,#REF!,9,FALSE)*C23,2))) -> 0 | G23: =IF(B23=0,0,IF(C23>9999,"",ROUND(VLOOKUP(VLOOKUP(B23,#REF!,11,FALSE),#REF!,10,FALSE)/VLOOKUP(B23,#REF!,9,FALSE)*C23,2))) -> 0 | H23: =IF(B23=0,"",IF(C23>9999,"",ROUND(VLOOKUP($B23,#REF!,15,FALSE)*C23,2))) ->  | I23: =IF(B23=0,0,IF(C23>9999,"",ROUND(VLOOKUP(VLOOKUP(B23,#REF!,11,FALSE),#REF!,16,FALSE)/VLOOKUP(B23,#REF!,9,FALSE)*C23,2))) -> 0 | J23: =IF(B23=0,"",IF(C23>9999,"",ROUND(VLOOKUP($B23,#REF!,21,FALSE)*$C23,2))) ->  | K23: 0
A24: 13 | E24: =IF(B24=0,"",IF(C24>9999,"",ROUND('General Variables'!$B$4*VLOOKUP(B24,#REF!,10,FALSE)/VLOOKUP(B24,#REF!,9,FALSE)*C24,2))) ->  | F24: =IF(B24=0,0,IF(C24>9999,"",ROUND(IF(VLOOKUP(B24,#REF!,12,FALSE)=0,VLOOKUP(B24,#REF!,13,FALSE)*'General Variables'!$B$8,VLOOKUP(B24,#REF!,12,FALSE)*'General Variables'!$B$7)/VLOOKUP(B24,#REF!,9,FALSE)*C24,2))) -> 0 | G24: =IF(B24=0,0,IF(C24>9999,"",ROUND(VLOOKUP(VLOOKUP(B24,#REF!,11,FALSE),#REF!,10,FALSE)/VLOOKUP(B24,#REF!,9,FALSE)*C24,2))) -> 0 | H24: =IF(B24=0,"",IF(C24>9999,"",ROUND(VLOOKUP($B24,#REF!,15,FALSE)*C24,2))) ->  | I24: =IF(B24=0,0,IF(C24>9999,"",ROUND(VLOOKUP(VLOOKUP(B24,#REF!,11,FALSE),#REF!,16,FALSE)/VLOOKUP(B24,#REF!,9,FALSE)*C24,2))) -> 0 | J24: =IF(B24=0,"",IF(C24>9999,"",ROUND(VLOOKUP($B24,#REF!,21,FALSE)*$C24,2))) ->  | K24: 0
A25: 14 | E25: =IF(B25=0,"",IF(C25>9999,"",ROUND('General Variables'!$B$4*VLOOKUP(B25,#REF!,10,FALSE)/VLOOKUP(B25,#REF!,9,FALSE)*C25,2))) ->  | F25: =IF(B25=0,0,IF(C25>9999,"",ROUND(IF(VLOOKUP(B25,#REF!,12,FALSE)=0,VLOOKUP(B25,#REF!,13,FALSE)*'General Variables'!$B$8,VLOOKUP(B25,#REF!,12,FALSE)*'General Variables'!$B$7)/VLOOKUP(B25,#REF!,9,FALSE)*C25,2))) -> 0 | G25: =IF(B25=0,0,IF(C25>9999,"",ROUND(VLOOKUP(VLOOKUP(B25,#REF!,11,FALSE),#REF!,10,FALSE)/VLOOKUP(B25,#REF!,9,FALSE)*C25,2))) -> 0 | H25: =IF(B25=0,"",IF(C25>9999,"",ROUND(VLOOKUP($B25,#REF!,15,FALSE)*C25,2))) ->  | I25: =IF(B25=0,0,IF(C25>9999,"",ROUND(VLOOKUP(VLOOKUP(B25,#REF!,11,FALSE),#REF!,16,FALSE)/VLOOKUP(B25,#REF!,9,FALSE)*C25,2))) -> 0 | J25: =IF(B25=0,"",IF(C25>9999,"",ROUND(VLOOKUP($B25,#REF!,21,FALSE)*$C25,2))) ->  | K25: 0
A26: 15 | E26: =IF(B26=0,"",IF(C26>9999,"",ROUND('General Variables'!$B$4*VLOOKUP(B26,#REF!,10,FALSE)/VLOOKUP(B26,#REF!,9,FALSE)*C26,2))) ->  | F26: =IF(B26=0,0,IF(C26>9999,"",ROUND(IF(VLOOKUP(B26,#REF!,12,FALSE)=0,VLOOKUP(B26,#REF!,13,FALSE)*'General Variables'!$B$8,VLOOKUP(B26,#REF!,12,FALSE)*'General Variables'!$B$7)/VLOOKUP(B26,#REF!,9,FALSE)*C26,2))) -> 0 | G26: =IF(B26=0,0,IF(C26>9999,"",ROUND(VLOOKUP(VLOOKUP(B26,#REF!,11,FALSE),#REF!,10,FALSE)/VLOOKUP(B26,#REF!,9,FALSE)*C26,2))) -> 0 | H26: =IF(B26=0,"",IF(C26>9999,"",ROUND(VLOOKUP($B26,#REF!,15,FALSE)*C26,2))) ->  | I26: =IF(B26=0,0,IF(C26>9999,"",ROUND(VLOOKUP(VLOOKUP(B26,#REF!,11,FALSE),#REF!,16,FALSE)/VLOOKUP(B26,#REF!,9,FALSE)*C26,2))) -> 0 | J26: =IF(B26=0,"",IF(C26>9999,"",ROUND(VLOOKUP($B26,#REF!,21,FALSE)*$C26,2))) ->  | K26: 0
A27: 16 | E27: =IF(B27=0,"",IF(C27>9999,"",ROUND('General Variables'!$B$4*VLOOKUP(B27,#REF!,10,FALSE)/VLOOKUP(B27,#REF!,9,FALSE)*C27,2))) ->  | F27: =IF(B27=0,0,IF(C27>9999,"",ROUND(IF(VLOOKUP(B27,#REF!,12,FALSE)=0,VLOOKUP(B27,#REF!,13,FALSE)*'General Variables'!$B$8,VLOOKUP(B27,#REF!,12,FALSE)*'General Variables'!$B$7)/VLOOKUP(B27,#REF!,9,FALSE)*C27,2))) -> 0 | G27: =IF(B27=0,0,IF(C27>9999,"",ROUND(VLOOKUP(VLOOKUP(B27,#REF!,11,FALSE),#REF!,10,FALSE)/VLOOKUP(B27,#REF!,9,FALSE)*C27,2))) -> 0 | H27: =IF(B27=0,"",IF(C27>9999,"",ROUND(VLOOKUP($B27,#REF!,15,FALSE)*C27,2))) ->  | I27: =IF(B27=0,0,IF(C27>9999,"",ROUND(VLOOKUP(VLOOKUP(B27,#REF!,11,FALSE),#REF!,16,FALSE)/VLOOKUP(B27,#REF!,9,FALSE)*C27,2))) -> 0 | J27: =IF(B27=0,"",IF(C27>9999,"",ROUND(VLOOKUP($B27,#REF!,21,FALSE)*$C27,2))) ->  | K27: 0
A28: 17 | E28: =IF(B28=0,"",IF(C28>9999,"",ROUND('General Variables'!$B$4*VLOOKUP(B28,#REF!,10,FALSE)/VLOOKUP(B28,#REF!,9,FALSE)*C28,2))) ->  | F28: =IF(B28=0,0,IF(C28>9999,"",ROUND(IF(VLOOKUP(B28,#REF!,12,FALSE)=0,VLOOKUP(B28,#REF!,13,FALSE)*'General Variables'!$B$8,VLOOKUP(B28,#REF!,12,FALSE)*'General Variables'!$B$7)/VLOOKUP(B28,#REF!,9,FALSE)*C28,2))) -> 0 | G28: =IF(B28=0,0,IF(C28>9999,"",ROUND(VLOOKUP(VLOOKUP(B28,#REF!,11,FALSE),#REF!,10,FALSE)/VLOOKUP(B28,#REF!,9,FALSE)*C28,2))) -> 0 | H28: =IF(B28=0,"",IF(C28>9999,"",ROUND(VLOOKUP($B28,#REF!,15,FALSE)*C28,2))) ->  | I28: =IF(B28=0,0,IF(C28>9999,"",ROUND(VLOOKUP(VLOOKUP(B28,#REF!,11,FALSE),#REF!,16,FALSE)/VLOOKUP(B28,#REF!,9,FALSE)*C28,2))) -> 0 | J28: =IF(B28=0,"",IF(C28>9999,"",ROUND(VLOOKUP($B28,#REF!,21,FALSE)*$C28,2))) ->  | K28: 0
A29: 18 | E29: =IF(B29=0,"",IF(C29>9999,"",ROUND('General Variables'!$B$4*VLOOKUP(B29,#REF!,10,FALSE)/VLOOKUP(B29,#REF!,9,FALSE)*C29,2))) ->  | F29: =IF(B29=0,0,IF(C29>9999,"",ROUND(IF(VLOOKUP(B29,#REF!,12,FALSE)=0,VLOOKUP(B29,#REF!,13,FALSE)*'General Variables'!$B$8,VLOOKUP(B29,#REF!,12,FALSE)*'General Variables'!$B$7)/VLOOKUP(B29,#REF!,9,FALSE)*C29,2))) -> 0 | G29: =IF(B29=0,0,IF(C29>9999,"",ROUND(VLOOKUP(VLOOKUP(B29,#REF!,11,FALSE),#REF!,10,FALSE)/VLOOKUP(B29,#REF!,9,FALSE)*C29,2))) -> 0 | H29: =IF(B29=0,"",IF(C29>9999,"",ROUND(VLOOKUP($B29,#REF!,15,FALSE)*C29,2))) ->  | I29: =IF(B29=0,0,IF(C29>9999,"",ROUND(VLOOKUP(VLOOKUP(B29,#REF!,11,FALSE),#REF!,16,FALSE)/VLOOKUP(B29,#REF!,9,FALSE)*C29,2))) -> 0 | J29: =IF(B29=0,"",IF(C29>9999,"",ROUND(VLOOKUP($B29,#REF!,21,FALSE)*$C29,2))) ->  | K29: 0
A30: 19 | E30: =IF(B30=0,"",IF(C30>9999,"",ROUND('General Variables'!$B$4*VLOOKUP(B30,#REF!,10,FALSE)/VLOOKUP(B30,#REF!,9,FALSE)*C30,2))) ->  | F30: =IF(B30=0,0,IF(C30>9999,"",ROUND(IF(VLOOKUP(B30,#REF!,12,FALSE)=0,VLOOKUP(B30,#REF!,13,FALSE)*'General Variables'!$B$8,VLOOKUP(B30,#REF!,12,FALSE)*'General Variables'!$B$7)/VLOOKUP(B30,#REF!,9,FALSE)*C30,2))) -> 0 | G30: =IF(B30=0,0,IF(C30>9999,"",ROUND(VLOOKUP(VLOOKUP(B30,#REF!,11,FALSE),#REF!,10,FALSE)/VLOOKUP(B30,#REF!,9,FALSE)*C30,2))) -> 0 | H30: =IF(B30=0,"",IF(C30>9999,"",ROUND(VLOOKUP($B30,#REF!,15,FALSE)*C30,2))) ->  | I30: =IF(B30=0,0,IF(C30>9999,"",ROUND(VLOOKUP(VLOOKUP(B30,#REF!,11,FALSE),#REF!,16,FALSE)/VLOOKUP(B30,#REF!,9,FALSE)*C30,2))) -> 0 | J30: =IF(B30=0,"",IF(C30>9999,"",ROUND(VLOOKUP($B30,#REF!,21,FALSE)*$C30,2))) ->  | K30: 0
A31: 20 | E31: =IF(B31=0,"",IF(C31>9999,"",ROUND('General Variables'!$B$4*VLOOKUP(B31,#REF!,10,FALSE)/VLOOKUP(B31,#REF!,9,FALSE)*C31,2))) ->  | F31: =IF(B31=0,0,IF(C31>9999,"",ROUND(IF(VLOOKUP(B31,#REF!,12,FALSE)=0,VLOOKUP(B31,#REF!,13,FALSE)*'General Variables'!$B$8,VLOOKUP(B31,#REF!,12,FALSE)*'General Variables'!$B$7)/VLOOKUP(B31,#REF!,9,FALSE)*C31,2))) -> 0 | G31: =IF(B31=0,0,IF(C31>9999,"",ROUND(VLOOKUP(VLOOKUP(B31,#REF!,11,FALSE),#REF!,10,FALSE)/VLOOKUP(B31,#REF!,9,FALSE)*C31,2))) -> 0 | H31: =IF(B31=0,"",IF(C31>9999,"",ROUND(VLOOKUP($B31,#REF!,15,FALSE)*C31,2))) ->  | I31: =IF(B31=0,0,IF(C31>9999,"",ROUND(VLOOKUP(VLOOKUP(B31,#REF!,11,FALSE),#REF!,16,FALSE)/VLOOKUP(B31,#REF!,9,FALSE)*C31,2))) -> 0 | J31: =IF(B31=0,"",IF(C31>9999,"",ROUND(VLOOKUP($B31,#REF!,21,FALSE)*$C31,2))) ->  | K31: 0
C33: Total for Field Operations | E33: =SUM(E12:E31) ->  | F33: =SUM(F12:F31) -> 
F35: Operation Index | G35: Percent Acres Applied | H35: Application | J35: Applied Price | L35: Your Estimate
B36: Materials & Services | H36: Rate | I36: Unit | K36: Total
B37: 11-52-0 | C37: =IF(B37=0,"",VLOOKUP($B37,Table2[],2,FALSE)) -> Fertilizer | F37: 1 | G37: 1 | H37: 100 | I37: =IF($B37=0,"",VLOOKUP($B37,Table2[],5,FALSE)) -> pound | J37: =IF($B37=0,"",VLOOKUP($B37,Table2[],7,FALSE)) -> 0.24 | K37: =IF(B37=0,0,ROUND(G37*H37*J37,2)) -> 24
B38: Seeder/Packer | C38: =IF(B38=0,"",VLOOKUP($B38,Table2[],2,FALSE)) -> Rental | F38: 4 | G38: 1 | H38: 1 | I38: =IF($B38=0,"",VLOOKUP($B38,Table2[],5,FALSE)) -> acre | J38: =IF($B38=0,"",VLOOKUP($B38,Table2[],7,FALSE)) -> 13 | K38: =IF(B38=0,0,ROUND(G38*H38*J38,2)) -> 13
B39: Alfalfa w/Inoculant | C39: =IF(B39=0,"",VLOOKUP($B39,Table2[],2,FALSE)) -> Seed | F39: 4 | G39: 1 | H39: 12 | I39: =IF($B39=0,"",VLOOKUP($B39,Table2[],5,FALSE)) -> pound | J39: =IF($B39=0,"",VLOOKUP($B39,Table2[],7,FALSE)) -> 6 | K39: 72
B40: Lorsban Advanced | C40: =IF(B40=0,"",VLOOKUP($B40,Table2[],2,FALSE)) -> Insecticide | F40: 5 | G40: 0.2 | H40: 1 | I40: =IF($B40=0,"",VLOOKUP($B40,Table2[],5,FALSE)) -> pint | J40: =IF($B40=0,"",VLOOKUP($B40,Table2[],7,FALSE)) -> 6.875 | K40: 1.38
B41: Brox 2EC | C41: =IF(B41=0,"",VLOOKUP($B41,Table2[],2,FALSE)) -> Herbicide | F41: 6 | G41: 1 | H41: 0.5 | I41: =IF($B41=0,"",VLOOKUP($B41,Table2[],5,FALSE)) -> pint | J41: =IF($B41=0,"",VLOOKUP($B41,Table2[],7,FALSE)) -> 4.25 | K41: 2.13
B42: Pursuit | C42: =IF(B42=0,"",VLOOKUP($B42,Table2[],2,FALSE)) -> Herbicide | F42: 6 | G42: 1 | H42: 3 | I42: =IF($B42=0,"",VLOOKUP($B42,Table2[],5,FALSE)) -> ounce | J42: =IF($B42=0,"",VLOOKUP($B42,Table2[],7,FALSE)) -> 3.828125 | K42: 11.48
B43: Twine Small Square | C43: =IF(B43=0,"",VLOOKUP($B43,Table2[],2,FALSE)) -> Other | F43: 9 | G43: 1 | H43: =A4 -> 2.8 | I43: =IF($B43=0,"",VLOOKUP($B43,Table2[],5,FALSE)) -> ton | J43: =IF($B43=0,"",VLOOKUP($B43,Table2[],7,FALSE)) -> 2.333333333 | K43: 6.53
C44: =IF(B44=0,"",VLOOKUP($B44,Table2[],2,FALSE)) ->  | I44: =IF($B44=0,"",VLOOKUP($B44,Table2[],5,FALSE)) ->  | J44: =IF($B44=0,"",VLOOKUP($B44,Table2[],7,FALSE)) ->  | K44: 0
C45: =IF(B45=0,"",VLOOKUP($B45,Table2[],2,FALSE)) ->  | I45: =IF($B45=0,"",VLOOKUP($B45,Table2[],5,FALSE)) ->  | J45: =IF($B45=0,"",VLOOKUP($B45,Table2[],7,FALSE)) ->  | K45: 0
C46: =IF(B46=0,"",VLOOKUP($B46,Table2[],2,FALSE)) ->  | I46: =IF($B46=0,"",VLOOKUP($B46,Table2[],5,FALSE)) ->  | J46: =IF($B46=0,"",VLOOKUP($B46,Table2[],7,FALSE)) ->  | K46: 0
C47: =IF(B47=0,"",VLOOKUP($B47,Table2[],2,FALSE)) ->  | I47: =IF($B47=0,"",VLOOKUP($B47,Table2[],5,FALSE)) ->  | J47: =IF($B47=0,"",VLOOKUP($B47,Table2[],7,FALSE)) ->  | K47: 0
C48: =IF(B48=0,"",VLOOKUP($B48,Table2[],2,FALSE)) ->  | I48: =IF($B48=0,"",VLOOKUP($B48,Table2[],5,FALSE)) ->  | J48: =IF($B48=0,"",VLOOKUP($B48,Table2[],7,FALSE)) ->  | K48: 0
C49: =IF(B49=0,"",VLOOKUP($B49,Table2[],2,FALSE)) ->  | I49: =IF($B49=0,"",VLOOKUP($B49,Table2[],5,FALSE)) ->  | J49: =IF($B49=0,"",VLOOKUP($B49,Table2[],7,FALSE)) ->  | K49: 0
C50: =IF(B50=0,"",VLOOKUP($B50,Table2[],2,FALSE)) ->  | I50: =IF($B50=0,"",VLOOKUP($B50,Table2[],5,FALSE)) ->  | J50: =IF($B50=0,"",VLOOKUP($B50,Table2[],7,FALSE)) ->  | K50: 0
C51: =IF(B51=0,"",VLOOKUP($B51,Table2[],2,FALSE)) ->  | I51: =IF($B51=0,"",VLOOKUP($B51,Table2[],5,FALSE)) ->  | J51: =IF($B51=0,"",VLOOKUP($B51,Table2[],7,FALSE)) ->  | K51: 0
C52: =IF(B52=0,"",VLOOKUP($B52,Table2[],2,FALSE)) ->  | I52: =IF($B52=0,"",VLOOKUP($B52,Table2[],5,FALSE)) ->  | J52: =IF($B52=0,"",VLOOKUP($B52,Table2[],7,FALSE)) ->  | K52: 0
C53: =IF(B53=0,"",VLOOKUP($B53,Table2[],2,FALSE)) ->  | I53: =IF($B53=0,"",VLOOKUP($B53,Table2[],5,FALSE)) ->  | J53: =IF($B53=0,"",VLOOKUP($B53,Table2[],7,FALSE)) ->  | K53: 0
C54: =IF(B54=0,"",VLOOKUP($B54,Table2[],2,FALSE)) ->  | I54: =IF($B54=0,"",VLOOKUP($B54,Table2[],5,FALSE)) ->  | J54: =IF($B54=0,"",VLOOKUP($B54,Table2[],7,FALSE)) ->  | K54: 0
C55: =IF(B55=0,"",VLOOKUP($B55,Table2[],2,FALSE)) ->  | I55: =IF($B55=0,"",VLOOKUP($B55,Table2[],5,FALSE)) ->  | J55: =IF($B55=0,"",VLOOKUP($B55,Table2[],7,FALSE)) ->  | K55: 0
C56: =IF(B56=0,"",VLOOKUP($B56,Table2[],2,FALSE)) ->  | I56: =IF($B56=0,"",VLOOKUP($B56,Table2[],5,FALSE)) ->  | J56: =IF($B56=0,"",VLOOKUP($B56,Table2[],7,FALSE)) ->  | K56: =IF(B56=0,0,ROUND(G56*H56*J56,2)) -> 0
C57: =IF(B57=0,"",VLOOKUP($B57,Table2[],2,FALSE)) ->  | I57: =IF($B57=0,"",VLOOKUP($B57,Table2[],5,FALSE)) ->  | J57: =IF($B57=0,"",VLOOKUP($B57,Table2[],7,FALSE)) ->  | K57: =IF(B57=0,0,ROUND(G57*H57*J57,2)) -> 0
C58: =IF(B58=0,"",VLOOKUP($B58,Table2[],2,FALSE)) ->  | I58: =IF($B58=0,"",VLOOKUP($B58,Table2[],5,FALSE)) ->  | J58: =IF($B58=0,"",VLOOKUP($B58,Table2[],7,FALSE)) ->  | K58: =IF(B58=0,0,ROUND(G58*H58*J58,2)) -> 0
C59: =IF(B59=0,"",VLOOKUP($B59,Table2[],2,FALSE)) ->  | I59: =IF($B59=0,"",VLOOKUP($B59,Table2[],5,FALSE)) ->  | J59: =IF($B59=0,"",VLOOKUP($B59,Table2[],7,FALSE)) ->  | K59: =IF(B59=0,0,ROUND(G59*H59*J59,2)) -> 0
C60: =IF(B60=0,"",VLOOKUP($B60,Table2[],2,FALSE)) ->  | I60: =IF($B60=0,"",VLOOKUP($B60,Table2[],5,FALSE)) ->  | J60: =IF($B60=0,"",VLOOKUP($B60,Table2[],7,FALSE)) ->  | K60: =IF(B60=0,0,ROUND(G60*H60*J60,2)) -> 0
C61: Crop Insurance | J61: =IF($B61=0,"",VLOOKUP($B61,Materials!$B$2:$H$127,7,FALSE)) ->  | K61: 0
C63: Total Materials & Services | K63: =SUM(K37:K61) -> 130.52
B65: Total listed costs for Field Operations and Materials and Services | K65: =K33+K63 -> 
D66: Interest on Operations Capital | E66: =ROUND(SUM($E$33:$H$33)+$K$63,2) ->  | F66: cash expense @ | H66: ='General Variables'!$B$11 -> 0.055 | I66: =CONCATENATE("for ",TEXT('General Variables'!$B$12,"0.0")," mo.") -> for 6.0 mo. | K66: =E66*H66*'General Variables'!$B$12/12 -> 
B67: Total Operating and Use Related Ownership Costs | K67: =SUM(K65:K66) -> 
B69: Overhead (accounting, liability insurance, vehicle cost, office expense) | K69: ='General Variables'!B14 -> 20
B70: Real Estate Opportunity | C70: Dryland (State) | F70: =IF(C70=0,0,VLOOKUP(C70,RETable,2,FALSE)) -> 3470 | G70: per acre @ | I70: ='General Variables'!$B$10 -> 0.04 | K70: =ROUND(F70*I70,2) -> 138.8
B71: Real Estate Taxes | F71: =IF(C70=0,0,VLOOKUP(C70,RETable,2,FALSE)) -> 3470 | G71: per acre @ | I71: ='General Variables'!$B$13 -> 0.01 | K71: =ROUND(F71*I71,2) -> 34.7
B72: Total Cost per Acre Including Overhead | K72: =SUM(K67:K71) -> 
B74: ="Cost per "&$B$4 -> Cost per ton | K74: =IF(A4="Yield",0,K72/$A$4) -> 
B75: ="Cash Cost per "&$B$4 -> Cash Cost per ton | K75: =IF($A$4="Yield",0,(E66+K66+K71)/$A$4) -> 
K111: Yes
K112: No
B240: =IF(#REF!="","",#REF!) ->  | C240: =IF(Materials!B132="","",Materials!B132) -> 
B241: =IF(#REF!="","",#REF!) ->  | C241: =IF(Materials!B133="","",Materials!B133) -> 
B242: =IF(#REF!="","",#REF!) ->  | C242: =IF(Materials!B134="","",Materials!B134) -> 
B243: =IF(#REF!="","",#REF!) ->  | C243: =IF(Materials!B135="","",Materials!B135) -> 
B244: =IF(#REF!="","",#REF!) ->  | C244: =IF(Materials!B136="","",Materials!B136) -> 

Sheet 5-Alfalfa
A2: =REPLACE(CELL("filename",A1),1,FIND("]",CELL("filename",A1)),"") -> 5-Alfalfa | C2: Roundup Ready® | I2: Dryland | L2: ='General Variables'!A3&" "&'General Variables'!B3 -> Year 2017 | O2: Acre
A3: Establish Spring Seed | I3: acre/inches | O3: ai
A4: 2.8 | B4: ton | J4: Does Crop Follow a Legume? | O4: =B4 -> ton
A5: =A2 & IF(C2="","", ", " &C2 ) & ", " & A3 & ", " & I2 -> 5-Alfalfa, Roundup Ready®, Establish Spring Seed, Dryland
A7: ='General Variables'!B3 & " Budget " & A2 &", " & IF(C2=0,"", " " & C2 & ", ") & A3 & IF(A4=""," ", " (") & A4 & " " & B4 & IF(A4="",""," Actual Yield)") -> 2017 Budget 5-Alfalfa, Roundup Ready®, Establish Spring Seed (2.8 ton Actual Yield)
A8: =IF(I2="Dryland","Dryland",I2 & IF(J2="","",", "&J2)&IF(H3="","",", "&H3&" "&I3)) -> Dryland
B10: Field Operations | C10: Times or Qty | E10: ="Labor @ $" &TEXT('General Variables'!B4,"#.00")& " /Hr" -> Labor @ $20.00 /Hr | F10: ="Fuel @ $" & TEXT('General Variables'!B5,"#.00") & " and Lube" -> Fuel @ $2.25 and Lube | G10: Repairs | I10: Ownership | K10: Total | L10: Your Estimate
D11: Unit | G11: Power | H11: Imp. | I11: Power | J11: Imp.
A12: 1 | B12: Spread Fertilizer | C12: 1 | E12: =IF(B12=0,"",IF(C12>9999,"",ROUND('General Variables'!$B$4*VLOOKUP(B12,#REF!,10,FALSE)/VLOOKUP(B12,#REF!,9,FALSE)*C12,2))) ->  | F12: =IF(B12=0,0,IF(C12>9999,"",ROUND(IF(VLOOKUP(B12,#REF!,12,FALSE)=0,VLOOKUP(B12,#REF!,13,FALSE)*'General Variables'!$B$8,VLOOKUP(B12,#REF!,12,FALSE)*'General Variables'!$B$7)/VLOOKUP(B12,#REF!,9,FALSE)*C12,2))) ->  | G12: =IF(B12=0,0,IF(C12>9999,"",ROUND(VLOOKUP(VLOOKUP(B12,#REF!,11,FALSE),#REF!,10,FALSE)/VLOOKUP(B12,#REF!,9,FALSE)*C12,2))) ->  | H12: =IF(B12=0,"",IF(C12>9999,"",ROUND(VLOOKUP($B12,#REF!,15,FALSE)*C12,2))) ->  | I12: =IF(B12=0,0,IF(C12>9999,"",ROUND(VLOOKUP(VLOOKUP(B12,#REF!,11,FALSE),#REF!,16,FALSE)/VLOOKUP(B12,#REF!,9,FALSE)*C12,2))) ->  | J12: =IF(B12=0,"",IF(C12>9999,"",ROUND(VLOOKUP($B12,#REF!,21,FALSE)*$C12,2))) ->  | K12: =IF(C12>9999,"",ROUND(SUM(E12:J12),2)) -> 
A13: 2 | B13: Disk | C13: 1 | E13: =IF(B13=0,"",IF(C13>9999,"",ROUND('General Variables'!$B$4*VLOOKUP(B13,#REF!,10,FALSE)/VLOOKUP(B13,#REF!,9,FALSE)*C13,2))) ->  | F13: =IF(B13=0,0,IF(C13>9999,"",ROUND(IF(VLOOKUP(B13,#REF!,12,FALSE)=0,VLOOKUP(B13,#REF!,13,FALSE)*'General Variables'!$B$8,VLOOKUP(B13,#REF!,12,FALSE)*'General Variables'!$B$7)/VLOOKUP(B13,#REF!,9,FALSE)*C13,2))) ->  | G13: =IF(B13=0,0,IF(C13>9999,"",ROUND(VLOOKUP(VLOOKUP(B13,#REF!,11,FALSE),#REF!,10,FALSE)/VLOOKUP(B13,#REF!,9,FALSE)*C13,2))) ->  | H13: =IF(B13=0,"",IF(C13>9999,"",ROUND(VLOOKUP($B13,#REF!,15,FALSE)*C13,2))) ->  | I13: =IF(B13=0,0,IF(C13>9999,"",ROUND(VLOOKUP(VLOOKUP(B13,#REF!,11,FALSE),#REF!,16,FALSE)/VLOOKUP(B13,#REF!,9,FALSE)*C13,2))) ->  | J13: =IF(B13=0,"",IF(C13>9999,"",ROUND(VLOOKUP($B13,#REF!,21,FALSE)*$C13,2))) ->  | K13: =IF(C13>9999,"",ROUND(SUM(E13:J13),2)) -> 
A14: 3 | B14: Field Cultivation | C14: 1 | E14: =IF(B14=0,"",IF(C14>9999,"",ROUND('General Variables'!$B$4*VLOOKUP(B14,#REF!,10,FALSE)/VLOOKUP(B14,#REF!,9,FALSE)*C14,2))) ->  | F14: =IF(B14=0,0,IF(C14>9999,"",ROUND(IF(VLOOKUP(B14,#REF!,12,FALSE)=0,VLOOKUP(B14,#REF!,13,FALSE)*'General Variables'!$B$8,VLOOKUP(B14,#REF!,12,FALSE)*'General Variables'!$B$7)/VLOOKUP(B14,#REF!,9,FALSE)*C14,2))) ->  | G14: =IF(B14=0,0,IF(C14>9999,"",ROUND(VLOOKUP(VLOOKUP(B14,#REF!,11,FALSE),#REF!,10,FALSE)/VLOOKUP(B14,#REF!,9,FALSE)*C14,2))) ->  | H14: =IF(B14=0,"",IF(C14>9999,"",ROUND(VLOOKUP($B14,#REF!,15,FALSE)*C14,2))) ->  | I14: =IF(B14=0,0,IF(C14>9999,"",ROUND(VLOOKUP(VLOOKUP(B14,#REF!,11,FALSE),#REF!,16,FALSE)/VLOOKUP(B14,#REF!,9,FALSE)*C14,2))) ->  | J14: =IF(B14=0,"",IF(C14>9999,"",ROUND(VLOOKUP($B14,#REF!,21,FALSE)*$C14,2))) -> 
A15: 4 | B15: Seeder/Packer | C15: 1 | E15: =IF(B15=0,"",IF(C15>9999,"",ROUND('General Variables'!$B$4*VLOOKUP(B15,#REF!,10,FALSE)/VLOOKUP(B15,#REF!,9,FALSE)*C15,2))) ->  | F15: =IF(B15=0,0,IF(C15>9999,"",ROUND(IF(VLOOKUP(B15,#REF!,12,FALSE)=0,VLOOKUP(B15,#REF!,13,FALSE)*'General Variables'!$B$8,VLOOKUP(B15,#REF!,12,FALSE)*'General Variables'!$B$7)/VLOOKUP(B15,#REF!,9,FALSE)*C15,2))) ->  | G15: =IF(B15=0,0,IF(C15>9999,"",ROUND(VLOOKUP(VLOOKUP(B15,#REF!,11,FALSE),#REF!,10,FALSE)/VLOOKUP(B15,#REF!,9,FALSE)*C15,2))) ->  | H15: =IF(B15=0,"",IF(C15>9999,"",ROUND(VLOOKUP($B15,#REF!,15,FALSE)*C15,2))) ->  | I15: =IF(B15=0,0,IF(C15>9999,"",ROUND(VLOOKUP(VLOOKUP(B15,#REF!,11,FALSE),#REF!,16,FALSE)/VLOOKUP(B15,#REF!,9,FALSE)*C15,2))) ->  | J15: =IF(B15=0,"",IF(C15>9999,"",ROUND(VLOOKUP($B15,#REF!,21,FALSE)*$C15,2))) -> 
A16: 5 | B16: Spray | C16: 0.2 | E16: =IF(B16=0,"",IF(C16>9999,"",ROUND('General Variables'!$B$4*VLOOKUP(B16,#REF!,10,FALSE)/VLOOKUP(B16,#REF!,9,FALSE)*C16,2))) ->  | F16: =IF(B16=0,0,IF(C16>9999,"",ROUND(IF(VLOOKUP(B16,#REF!,12,FALSE)=0,VLOOKUP(B16,#REF!,13,FALSE)*'General Variables'!$B$8,VLOOKUP(B16,#REF!,12,FALSE)*'General Variables'!$B$7)/VLOOKUP(B16,#REF!,9,FALSE)*C16,2))) ->  | G16: =IF(B16=0,0,IF(C16>9999,"",ROUND(VLOOKUP(VLOOKUP(B16,#REF!,11,FALSE),#REF!,10,FALSE)/VLOOKUP(B16,#REF!,9,FALSE)*C16,2))) ->  | H16: =IF(B16=0,"",IF(C16>9999,"",ROUND(VLOOKUP($B16,#REF!,15,FALSE)*C16,2))) ->  | I16: =IF(B16=0,0,IF(C16>9999,"",ROUND(VLOOKUP(VLOOKUP(B16,#REF!,11,FALSE),#REF!,16,FALSE)/VLOOKUP(B16,#REF!,9,FALSE)*C16,2))) ->  | J16: =IF(B16=0,"",IF(C16>9999,"",ROUND(VLOOKUP($B16,#REF!,21,FALSE)*$C16,2))) -> 
A17: 6 | B17: Spray | C17: 1 | E17: =IF(B17=0,"",IF(C17>9999,"",ROUND('General Variables'!$B$4*VLOOKUP(B17,#REF!,10,FALSE)/VLOOKUP(B17,#REF!,9,FALSE)*C17,2))) ->  | F17: =IF(B17=0,0,IF(C17>9999,"",ROUND(IF(VLOOKUP(B17,#REF!,12,FALSE)=0,VLOOKUP(B17,#REF!,13,FALSE)*'General Variables'!$B$8,VLOOKUP(B17,#REF!,12,FALSE)*'General Variables'!$B$7)/VLOOKUP(B17,#REF!,9,FALSE)*C17,2))) ->  | G17: =IF(B17=0,0,IF(C17>9999,"",ROUND(VLOOKUP(VLOOKUP(B17,#REF!,11,FALSE),#REF!,10,FALSE)/VLOOKUP(B17,#REF!,9,FALSE)*C17,2))) ->  | H17: =IF(B17=0,"",IF(C17>9999,"",ROUND(VLOOKUP($B17,#REF!,15,FALSE)*C17,2))) ->  | I17: =IF(B17=0,0,IF(C17>9999,"",ROUND(VLOOKUP(VLOOKUP(B17,#REF!,11,FALSE),#REF!,16,FALSE)/VLOOKUP(B17,#REF!,9,FALSE)*C17,2))) ->  | J17: =IF(B17=0,"",IF(C17>9999,"",ROUND(VLOOKUP($B17,#REF!,21,FALSE)*$C17,2))) -> 
A18: 7 | B18: Swath/Condition Hay | C18: 2 | E18: =IF(B18=0,"",IF(C18>9999,"",ROUND('General Variables'!$B$4*VLOOKUP(B18,#REF!,10,FALSE)/VLOOKUP(B18,#REF!,9,FALSE)*C18,2))) ->  | F18: =IF(B18=0,0,IF(C18>9999,"",ROUND(IF(VLOOKUP(B18,#REF!,12,FALSE)=0,VLOOKUP(B18,#REF!,13,FALSE)*'General Variables'!$B$8,VLOOKUP(B18,#REF!,12,FALSE)*'General Variables'!$B$7)/VLOOKUP(B18,#REF!,9,FALSE)*C18,2))) ->  | G18: =IF(B18=0,0,IF(C18>9999,"",ROUND(VLOOKUP(VLOOKUP(B18,#REF!,11,FALSE),#REF!,10,FALSE)/VLOOKUP(B18,#REF!,9,FALSE)*C18,2))) ->  | H18: =IF(B18=0,"",IF(C18>9999,"",ROUND(VLOOKUP($B18,#REF!,15,FALSE)*C18,2))) ->  | I18: =IF(B18=0,0,IF(C18>9999,"",ROUND(VLOOKUP(VLOOKUP(B18,#REF!,11,FALSE),#REF!,16,FALSE)/VLOOKUP(B18,#REF!,9,FALSE)*C18,2))) ->  | J18: =IF(B18=0,"",IF(C18>9999,"",ROUND(VLOOKUP($B18,#REF!,21,FALSE)*$C18,2))) -> 
A19: 8 | B19: Turn Windrows | C19: 0.5 | E19: =IF(B19=0,"",IF(C19>9999,"",ROUND('General Variables'!$B$4*VLOOKUP(B19,#REF!,10,FALSE)/VLOOKUP(B19,#REF!,9,FALSE)*C19,2))) ->  | F19: =IF(B19=0,0,IF(C19>9999,"",ROUND(IF(VLOOKUP(B19,#REF!,12,FALSE)=0,VLOOKUP(B19,#REF!,13,FALSE)*'General Variables'!$B$8,VLOOKUP(B19,#REF!,12,FALSE)*'General Variables'!$B$7)/VLOOKUP(B19,#REF!,9,FALSE)*C19,2))) ->  | G19: =IF(B19=0,0,IF(C19>9999,"",ROUND(VLOOKUP(VLOOKUP(B19,#REF!,11,FALSE),#REF!,10,FALSE)/VLOOKUP(B19,#REF!,9,FALSE)*C19,2))) ->  | H19: =IF(B19=0,"",IF(C19>9999,"",ROUND(VLOOKUP($B19,#REF!,15,FALSE)*C19,2))) ->  | I19: =IF(B19=0,0,IF(C19>9999,"",ROUND(VLOOKUP(VLOOKUP(B19,#REF!,11,FALSE),#REF!,16,FALSE)/VLOOKUP(B19,#REF!,9,FALSE)*C19,2))) ->  | J19: =IF(B19=0,"",IF(C19>9999,"",ROUND(VLOOKUP($B19,#REF!,21,FALSE)*$C19,2))) -> 
A20: 9 | B20: Bale Small Square | C20: =A4 -> 2.8 | D20: ton | E20: =IF(B20=0,"",IF(C20>9999,"",ROUND('General Variables'!$B$4*VLOOKUP(B20,#REF!,10,FALSE)/VLOOKUP(B20,#REF!,9,FALSE)*C20,2))) ->  | F20: =IF(B20=0,0,IF(C20>9999,"",ROUND(IF(VLOOKUP(B20,#REF!,12,FALSE)=0,VLOOKUP(B20,#REF!,13,FALSE)*'General Variables'!$B$8,VLOOKUP(B20,#REF!,12,FALSE)*'General Variables'!$B$7)/VLOOKUP(B20,#REF!,9,FALSE)*C20,2))) ->  | G20: =IF(B20=0,0,IF(C20>9999,"",ROUND(VLOOKUP(VLOOKUP(B20,#REF!,11,FALSE),#REF!,10,FALSE)/VLOOKUP(B20,#REF!,9,FALSE)*C20,2))) ->  | H20: =IF(B20=0,"",IF(C20>9999,"",ROUND(VLOOKUP($B20,#REF!,15,FALSE)*C20,2))) ->  | I20: =IF(B20=0,0,IF(C20>9999,"",ROUND(VLOOKUP(VLOOKUP(B20,#REF!,11,FALSE),#REF!,16,FALSE)/VLOOKUP(B20,#REF!,9,FALSE)*C20,2))) ->  | J20: =IF(B20=0,"",IF(C20>9999,"",ROUND(VLOOKUP($B20,#REF!,21,FALSE)*$C20,2))) ->  | K20: =IF(C20>9999,"",ROUND(SUM(E20:J20),2)) -> 
A21: 10 | B21: Stack Small Square | C21: =A4 -> 2.8 | D21: ton | E21: =IF(B21=0,"",IF(C21>9999,"",ROUND('General Variables'!$B$4*VLOOKUP(B21,#REF!,10,FALSE)/VLOOKUP(B21,#REF!,9,FALSE)*C21,2))) ->  | F21: =IF(B21=0,0,IF(C21>9999,"",ROUND(IF(VLOOKUP(B21,#REF!,12,FALSE)=0,VLOOKUP(B21,#REF!,13,FALSE)*'General Variables'!$B$8,VLOOKUP(B21,#REF!,12,FALSE)*'General Variables'!$B$7)/VLOOKUP(B21,#REF!,9,FALSE)*C21,2))) ->  | G21: =IF(B21=0,0,IF(C21>9999,"",ROUND(VLOOKUP(VLOOKUP(B21,#REF!,11,FALSE),#REF!,10,FALSE)/VLOOKUP(B21,#REF!,9,FALSE)*C21,2))) ->  | H21: =IF(B21=0,"",IF(C21>9999,"",ROUND(VLOOKUP($B21,#REF!,15,FALSE)*C21,2))) ->  | I21: =IF(B21=0,0,IF(C21>9999,"",ROUND(VLOOKUP(VLOOKUP(B21,#REF!,11,FALSE),#REF!,16,FALSE)/VLOOKUP(B21,#REF!,9,FALSE)*C21,2))) ->  | J21: =IF(B21=0,"",IF(C21>9999,"",ROUND(VLOOKUP($B21,#REF!,21,FALSE)*$C21,2))) ->  | K21: =IF(C21>9999,"",ROUND(SUM(E21:J21),2)) -> 
A22: 11 | E22: =IF(B22=0,"",IF(C22>9999,"",ROUND('General Variables'!$B$4*VLOOKUP(B22,#REF!,10,FALSE)/VLOOKUP(B22,#REF!,9,FALSE)*C22,2))) ->  | F22: =IF(B22=0,0,IF(C22>9999,"",ROUND(IF(VLOOKUP(B22,#REF!,12,FALSE)=0,VLOOKUP(B22,#REF!,13,FALSE)*'General Variables'!$B$8,VLOOKUP(B22,#REF!,12,FALSE)*'General Variables'!$B$7)/VLOOKUP(B22,#REF!,9,FALSE)*C22,2))) -> 0 | G22: =IF(B22=0,0,IF(C22>9999,"",ROUND(VLOOKUP(VLOOKUP(B22,#REF!,11,FALSE),#REF!,10,FALSE)/VLOOKUP(B22,#REF!,9,FALSE)*C22,2))) -> 0 | H22: =IF(B22=0,"",IF(C22>9999,"",ROUND(VLOOKUP($B22,#REF!,15,FALSE)*C22,2))) ->  | I22: =IF(B22=0,0,IF(C22>9999,"",ROUND(VLOOKUP(VLOOKUP(B22,#REF!,11,FALSE),#REF!,16,FALSE)/VLOOKUP(B22,#REF!,9,FALSE)*C22,2))) -> 0 | J22: =IF(B22=0,"",IF(C22>9999,"",ROUND(VLOOKUP($B22,#REF!,21,FALSE)*$C22,2))) ->  | K22: 0
A23: 12 | E23: =IF(B23=0,"",IF(C23>9999,"",ROUND('General Variables'!$B$4*VLOOKUP(B23,#REF!,10,FALSE)/VLOOKUP(B23,#REF!,9,FALSE)*C23,2))) ->  | F23: =IF(B23=0,0,IF(C23>9999,"",ROUND(IF(VLOOKUP(B23,#REF!,12,FALSE)=0,VLOOKUP(B23,#REF!,13,FALSE)*'General Variables'!$B$8,VLOOKUP(B23,#REF!,12,FALSE)*'General Variables'!$B$7)/VLOOKUP(B23,#REF!,9,FALSE)*C23,2))) -> 0 | G23: =IF(B23=0,0,IF(C23>9999,"",ROUND(VLOOKUP(VLOOKUP(B23,#REF!,11,FALSE),#REF!,10,FALSE)/VLOOKUP(B23,#REF!,9,FALSE)*C23,2))) -> 0 | H23: =IF(B23=0,"",IF(C23>9999,"",ROUND(VLOOKUP($B23,#REF!,15,FALSE)*C23,2))) ->  | I23: =IF(B23=0,0,IF(C23>9999,"",ROUND(VLOOKUP(VLOOKUP(B23,#REF!,11,FALSE),#REF!,16,FALSE)/VLOOKUP(B23,#REF!,9,FALSE)*C23,2))) -> 0 | J23: =IF(B23=0,"",IF(C23>9999,"",ROUND(VLOOKUP($B23,#REF!,21,FALSE)*$C23,2))) ->  | K23: 0
A24: 13 | E24: =IF(B24=0,"",IF(C24>9999,"",ROUND('General Variables'!$B$4*VLOOKUP(B24,#REF!,10,FALSE)/VLOOKUP(B24,#REF!,9,FALSE)*C24,2))) ->  | F24: =IF(B24=0,0,IF(C24>9999,"",ROUND(IF(VLOOKUP(B24,#REF!,12,FALSE)=0,VLOOKUP(B24,#REF!,13,FALSE)*'General Variables'!$B$8,VLOOKUP(B24,#REF!,12,FALSE)*'General Variables'!$B$7)/VLOOKUP(B24,#REF!,9,FALSE)*C24,2))) -> 0 | G24: =IF(B24=0,0,IF(C24>9999,"",ROUND(VLOOKUP(VLOOKUP(B24,#REF!,11,FALSE),#REF!,10,FALSE)/VLOOKUP(B24,#REF!,9,FALSE)*C24,2))) -> 0 | H24: =IF(B24=0,"",IF(C24>9999,"",ROUND(VLOOKUP($B24,#REF!,15,FALSE)*C24,2))) ->  | I24: =IF(B24=0,0,IF(C24>9999,"",ROUND(VLOOKUP(VLOOKUP(B24,#REF!,11,FALSE),#REF!,16,FALSE)/VLOOKUP(B24,#REF!,9,FALSE)*C24,2))) -> 0 | J24: =IF(B24=0,"",IF(C24>9999,"",ROUND(VLOOKUP($B24,#REF!,21,FALSE)*$C24,2))) ->  | K24: 0
A25: 14 | E25: =IF(B25=0,"",IF(C25>9999,"",ROUND('General Variables'!$B$4*VLOOKUP(B25,#REF!,10,FALSE)/VLOOKUP(B25,#REF!,9,FALSE)*C25,2))) ->  | F25: =IF(B25=0,0,IF(C25>9999,"",ROUND(IF(VLOOKUP(B25,#REF!,12,FALSE)=0,VLOOKUP(B25,#REF!,13,FALSE)*'General Variables'!$B$8,VLOOKUP(B25,#REF!,12,FALSE)*'General Variables'!$B$7)/VLOOKUP(B25,#REF!,9,FALSE)*C25,2))) -> 0 | G25: =IF(B25=0,0,IF(C25>9999,"",ROUND(VLOOKUP(VLOOKUP(B25,#REF!,11,FALSE),#REF!,10,FALSE)/VLOOKUP(B25,#REF!,9,FALSE)*C25,2))) -> 0 | H25: =IF(B25=0,"",IF(C25>9999,"",ROUND(VLOOKUP($B25,#REF!,15,FALSE)*C25,2))) ->  | I25: =IF(B25=0,0,IF(C25>9999,"",ROUND(VLOOKUP(VLOOKUP(B25,#REF!,11,FALSE),#REF!,16,FALSE)/VLOOKUP(B25,#REF!,9,FALSE)*C25,2))) -> 0 | J25: =IF(B25=0,"",IF(C25>9999,"",ROUND(VLOOKUP($B25,#REF!,21,FALSE)*$C25,2))) ->  | K25: 0
A26: 15 | E26: =IF(B26=0,"",IF(C26>9999,"",ROUND('General Variables'!$B$4*VLOOKUP(B26,#REF!,10,FALSE)/VLOOKUP(B26,#REF!,9,FALSE)*C26,2))) ->  | F26: =IF(B26=0,0,IF(C26>9999,"",ROUND(IF(VLOOKUP(B26,#REF!,12,FALSE)=0,VLOOKUP(B26,#REF!,13,FALSE)*'General Variables'!$B$8,VLOOKUP(B26,#REF!,12,FALSE)*'General Variables'!$B$7)/VLOOKUP(B26,#REF!,9,FALSE)*C26,2))) -> 0 | G26: =IF(B26=0,0,IF(C26>9999,"",ROUND(VLOOKUP(VLOOKUP(B26,#REF!,11,FALSE),#REF!,10,FALSE)/VLOOKUP(B26,#REF!,9,FALSE)*C26,2))) -> 0 | H26: =IF(B26=0,"",IF(C26>9999,"",ROUND(VLOOKUP($B26,#REF!,15,FALSE)*C26,2))) ->  | I26: =IF(B26=0,0,IF(C26>9999,"",ROUND(VLOOKUP(VLOOKUP(B26,#REF!,11,FALSE),#REF!,16,FALSE)/VLOOKUP(B26,#REF!,9,FALSE)*C26,2))) -> 0 | J26: =IF(B26=0,"",IF(C26>9999,"",ROUND(VLOOKUP($B26,#REF!,21,FALSE)*$C26,2))) ->  | K26: 0
A27: 16 | E27: =IF(B27=0,"",IF(C27>9999,"",ROUND('General Variables'!$B$4*VLOOKUP(B27,#REF!,10,FALSE)/VLOOKUP(B27,#REF!,9,FALSE)*C27,2))) ->  | F27: =IF(B27=0,0,IF(C27>9999,"",ROUND(IF(VLOOKUP(B27,#REF!,12,FALSE)=0,VLOOKUP(B27,#REF!,13,FALSE)*'General Variables'!$B$8,VLOOKUP(B27,#REF!,12,FALSE)*'General Variables'!$B$7)/VLOOKUP(B27,#REF!,9,FALSE)*C27,2))) -> 0 | G27: =IF(B27=0,0,IF(C27>9999,"",ROUND(VLOOKUP(VLOOKUP(B27,#REF!,11,FALSE),#REF!,10,FALSE)/VLOOKUP(B27,#REF!,9,FALSE)*C27,2))) -> 0 | H27: =IF(B27=0,"",IF(C27>9999,"",ROUND(VLOOKUP($B27,#REF!,15,FALSE)*C27,2))) ->  | I27: =IF(B27=0,0,IF(C27>9999,"",ROUND(VLOOKUP(VLOOKUP(B27,#REF!,11,FALSE),#REF!,16,FALSE)/VLOOKUP(B27,#REF!,9,FALSE)*C27,2))) -> 0 | J27: =IF(B27=0,"",IF(C27>9999,"",ROUND(VLOOKUP($B27,#REF!,21,FALSE)*$C27,2))) ->  | K27: 0
A28: 17 | E28: =IF(B28=0,"",IF(C28>9999,"",ROUND('General Variables'!$B$4*VLOOKUP(B28,#REF!,10,FALSE)/VLOOKUP(B28,#REF!,9,FALSE)*C28,2))) ->  | F28: =IF(B28=0,0,IF(C28>9999,"",ROUND(IF(VLOOKUP(B28,#REF!,12,FALSE)=0,VLOOKUP(B28,#REF!,13,FALSE)*'General Variables'!$B$8,VLOOKUP(B28,#REF!,12,FALSE)*'General Variables'!$B$7)/VLOOKUP(B28,#REF!,9,FALSE)*C28,2))) -> 0 | G28: =IF(B28=0,0,IF(C28>9999,"",ROUND(VLOOKUP(VLOOKUP(B28,#REF!,11,FALSE),#REF!,10,FALSE)/VLOOKUP(B28,#REF!,9,FALSE)*C28,2))) -> 0 | H28: =IF(B28=0,"",IF(C28>9999,"",ROUND(VLOOKUP($B28,#REF!,15,FALSE)*C28,2))) ->  | I28: =IF(B28=0,0,IF(C28>9999,"",ROUND(VLOOKUP(VLOOKUP(B28,#REF!,11,FALSE),#REF!,16,FALSE)/VLOOKUP(B28,#REF!,9,FALSE)*C28,2))) -> 0 | J28: =IF(B28=0,"",IF(C28>9999,"",ROUND(VLOOKUP($B28,#REF!,21,FALSE)*$C28,2))) ->  | K28: 0
A29: 18 | E29: =IF(B29=0,"",IF(C29>9999,"",ROUND('General Variables'!$B$4*VLOOKUP(B29,#REF!,10,FALSE)/VLOOKUP(B29,#REF!,9,FALSE)*C29,2))) ->  | F29: =IF(B29=0,0,IF(C29>9999,"",ROUND(IF(VLOOKUP(B29,#REF!,12,FALSE)=0,VLOOKUP(B29,#REF!,13,FALSE)*'General Variables'!$B$8,VLOOKUP(B29,#REF!,12,FALSE)*'General Variables'!$B$7)/VLOOKUP(B29,#REF!,9,FALSE)*C29,2))) -> 0 | G29: =IF(B29=0,0,IF(C29>9999,"",ROUND(VLOOKUP(VLOOKUP(B29,#REF!,11,FALSE),#REF!,10,FALSE)/VLOOKUP(B29,#REF!,9,FALSE)*C29,2))) -> 0 | H29: =IF(B29=0,"",IF(C29>9999,"",ROUND(VLOOKUP($B29,#REF!,15,FALSE)*C29,2))) ->  | I29: =IF(B29=0,0,IF(C29>9999,"",ROUND(VLOOKUP(VLOOKUP(B29,#REF!,11,FALSE),#REF!,16,FALSE)/VLOOKUP(B29,#REF!,9,FALSE)*C29,2))) -> 0 | J29: =IF(B29=0,"",IF(C29>9999,"",ROUND(VLOOKUP($B29,#REF!,21,FALSE)*$C29,2))) ->  | K29: 0
A30: 19 | E30: =IF(B30=0,"",IF(C30>9999,"",ROUND('General Variables'!$B$4*VLOOKUP(B30,#REF!,10,FALSE)/VLOOKUP(B30,#REF!,9,FALSE)*C30,2))) ->  | F30: =IF(B30=0,0,IF(C30>9999,"",ROUND(IF(VLOOKUP(B30,#REF!,12,FALSE)=0,VLOOKUP(B30,#REF!,13,FALSE)*'General Variables'!$B$8,VLOOKUP(B30,#REF!,12,FALSE)*'General Variables'!$B$7)/VLOOKUP(B30,#REF!,9,FALSE)*C30,2))) -> 0 | G30: =IF(B30=0,0,IF(C30>9999,"",ROUND(VLOOKUP(VLOOKUP(B30,#REF!,11,FALSE),#REF!,10,FALSE)/VLOOKUP(B30,#REF!,9,FALSE)*C30,2))) -> 0 | H30: =IF(B30=0,"",IF(C30>9999,"",ROUND(VLOOKUP($B30,#REF!,15,FALSE)*C30,2))) ->  | I30: =IF(B30=0,0,IF(C30>9999,"",ROUND(VLOOKUP(VLOOKUP(B30,#REF!,11,FALSE),#REF!,16,FALSE)/VLOOKUP(B30,#REF!,9,FALSE)*C30,2))) -> 0 | J30: =IF(B30=0,"",IF(C30>9999,"",ROUND(VLOOKUP($B30,#REF!,21,FALSE)*$C30,2))) ->  | K30: 0
A31: 20 | E31: =IF(B31=0,"",IF(C31>9999,"",ROUND('General Variables'!$B$4*VLOOKUP(B31,#REF!,10,FALSE)/VLOOKUP(B31,#REF!,9,FALSE)*C31,2))) ->  | F31: =IF(B31=0,0,IF(C31>9999,"",ROUND(IF(VLOOKUP(B31,#REF!,12,FALSE)=0,VLOOKUP(B31,#REF!,13,FALSE)*'General Variables'!$B$8,VLOOKUP(B31,#REF!,12,FALSE)*'General Variables'!$B$7)/VLOOKUP(B31,#REF!,9,FALSE)*C31,2))) -> 0 | G31: =IF(B31=0,0,IF(C31>9999,"",ROUND(VLOOKUP(VLOOKUP(B31,#REF!,11,FALSE),#REF!,10,FALSE)/VLOOKUP(B31,#REF!,9,FALSE)*C31,2))) -> 0 | H31: =IF(B31=0,"",IF(C31>9999,"",ROUND(VLOOKUP($B31,#REF!,15,FALSE)*C31,2))) ->  | I31: =IF(B31=0,0,IF(C31>9999,"",ROUND(VLOOKUP(VLOOKUP(B31,#REF!,11,FALSE),#REF!,16,FALSE)/VLOOKUP(B31,#REF!,9,FALSE)*C31,2))) -> 0 | J31: =IF(B31=0,"",IF(C31>9999,"",ROUND(VLOOKUP($B31,#REF!,21,FALSE)*$C31,2))) ->  | K31: 0
C33: Total for Field Operations | E33: =SUM(E12:E31) ->  | F33: =SUM(F12:F31) -> 
F35: Operation Index | G35: Percent Acres Applied | H35: Application | J35: Applied Price | L35: Your Estimate
B36: Materials & Services | H36: Rate | I36: Unit | K36: Total
B37: 11-52-0 | C37: =IF(B37=0,"",VLOOKUP($B37,Table2[],2,FALSE)) -> Fertilizer | F37: 1 | G37: 1 | H37: 100 | I37: =IF($B37=0,"",VLOOKUP($B37,Table2[],5,FALSE)) -> pound | J37: =IF($B37=0,"",VLOOKUP($B37,Table2[],7,FALSE)) -> 0.24 | K37: =IF(B37=0,0,ROUND(G37*H37*J37,2)) -> 24
B38: Seeder/Packer | C38: =IF(B38=0,"",VLOOKUP($B38,Table2[],2,FALSE)) -> Rental | F38: 4 | G38: 1 | H38: 1 | I38: =IF($B38=0,"",VLOOKUP($B38,Table2[],5,FALSE)) -> acre | J38: =IF($B38=0,"",VLOOKUP($B38,Table2[],7,FALSE)) -> 13 | K38: =IF(B38=0,0,ROUND(G38*H38*J38,2)) -> 13
B39: Alfalfa RR w/Inoculant | C39: =IF(B39=0,"",VLOOKUP($B39,Table2[],2,FALSE)) -> Seed | F39: 4 | G39: 1 | H39: 12 | I39: =IF($B39=0,"",VLOOKUP($B39,Table2[],5,FALSE)) -> pound | J39: =IF($B39=0,"",VLOOKUP($B39,Table2[],7,FALSE)) -> 9 | K39: 108
B40: Lorsban Advanced | C40: =IF(B40=0,"",VLOOKUP($B40,Table2[],2,FALSE)) -> Insecticide | F40: 5 | G40: 0.2 | H40: 1 | I40: =IF($B40=0,"",VLOOKUP($B40,Table2[],5,FALSE)) -> pint | J40: =IF($B40=0,"",VLOOKUP($B40,Table2[],7,FALSE)) -> 6.875 | K40: 1.38
B41: Roundup WeatherMax | C41: =IF(B41=0,"",VLOOKUP($B41,Table2[],2,FALSE)) -> Herbicide | F41: 6 | G41: 1 | H41: 44 | I41: =IF($B41=0,"",VLOOKUP($B41,Table2[],5,FALSE)) -> ounce | J41: =IF($B41=0,"",VLOOKUP($B41,Table2[],7,FALSE)) -> 0.25 | K41: 11
B42: 21-0-0-24S | C42: =IF(B42=0,"",VLOOKUP($B42,Table2[],2,FALSE)) -> Additive | F42: 6 | G42: 1 | H42: 1.7 | I42: =IF($B42=0,"",VLOOKUP($B42,Table2[],5,FALSE)) -> pound | J42: =IF($B42=0,"",VLOOKUP($B42,Table2[],7,FALSE)) -> 0.35 | K42: 0.6
B43: Twine Small Square | C43: =IF(B43=0,"",VLOOKUP($B43,Table2[],2,FALSE)) -> Other | F43: 9 | G43: 1 | H43: =$A$4 -> 2.8 | I43: =IF($B43=0,"",VLOOKUP($B43,Table2[],5,FALSE)) -> ton | J43: =IF($B43=0,"",VLOOKUP($B43,Table2[],7,FALSE)) -> 2.333333333 | K43: 6.53
C44: =IF(B44=0,"",VLOOKUP($B44,Table2[],2,FALSE)) ->  | I44: =IF($B44=0,"",VLOOKUP($B44,Table2[],5,FALSE)) ->  | J44: =IF($B44=0,"",VLOOKUP($B44,Table2[],7,FALSE)) ->  | K44: 0
C45: =IF(B45=0,"",VLOOKUP($B45,Table2[],2,FALSE)) ->  | I45: =IF($B45=0,"",VLOOKUP($B45,Table2[],5,FALSE)) ->  | J45: =IF($B45=0,"",VLOOKUP($B45,Table2[],7,FALSE)) ->  | K45: 0
C46: =IF(B46=0,"",VLOOKUP($B46,Table2[],2,FALSE)) ->  | I46: =IF($B46=0,"",VLOOKUP($B46,Table2[],5,FALSE)) ->  | J46: =IF($B46=0,"",VLOOKUP($B46,Table2[],7,FALSE)) ->  | K46: 0
C47: =IF(B47=0,"",VLOOKUP($B47,Table2[],2,FALSE)) ->  | I47: =IF($B47=0,"",VLOOKUP($B47,Table2[],5,FALSE)) ->  | J47: =IF($B47=0,"",VLOOKUP($B47,Table2[],7,FALSE)) ->  | K47: 0
C48: =IF(B48=0,"",VLOOKUP($B48,Table2[],2,FALSE)) ->  | I48: =IF($B48=0,"",VLOOKUP($B48,Table2[],5,FALSE)) ->  | J48: =IF($B48=0,"",VLOOKUP($B48,Table2[],7,FALSE)) ->  | K48: 0
C49: =IF(B49=0,"",VLOOKUP($B49,Table2[],2,FALSE)) ->  | I49: =IF($B49=0,"",VLOOKUP($B49,Table2[],5,FALSE)) ->  | J49: =IF($B49=0,"",VLOOKUP($B49,Table2[],7,FALSE)) ->  | K49: 0
C50: =IF(B50=0,"",VLOOKUP($B50,Table2[],2,FALSE)) ->  | I50: =IF($B50=0,"",VLOOKUP($B50,Table2[],5,FALSE)) ->  | J50: =IF($B50=0,"",VLOOKUP($B50,Table2[],7,FALSE)) ->  | K50: 0
C51: =IF(B51=0,"",VLOOKUP($B51,Table2[],2,FALSE)) ->  | I51: =IF($B51=0,"",VLOOKUP($B51,Table2[],5,FALSE)) ->  | J51: =IF($B51=0,"",VLOOKUP($B51,Table2[],7,FALSE)) ->  | K51: 0
C52: =IF(B52=0,"",VLOOKUP($B52,Table2[],2,FALSE)) ->  | I52: =IF($B52=0,"",VLOOKUP($B52,Table2[],5,FALSE)) ->  | J52: =IF($B52=0,"",VLOOKUP($B52,Table2[],7,FALSE)) ->  | K52: 0
C53: =IF(B53=0,"",VLOOKUP($B53,Table2[],2,FALSE)) ->  | I53: =IF($B53=0,"",VLOOKUP($B53,Table2[],5,FALSE)) ->  | J53: =IF($B53=0,"",VLOOKUP($B53,Table2[],7,FALSE)) ->  | K53: 0
C54: =IF(B54=0,"",VLOOKUP($B54,Table2[],2,FALSE)) ->  | I54: =IF($B54=0,"",VLOOKUP($B54,Table2[],5,FALSE)) ->  | J54: =IF($B54=0,"",VLOOKUP($B54,Table2[],7,FALSE)) ->  | K54: 0
C55: =IF(B55=0,"",VLOOKUP($B55,Table2[],2,FALSE)) ->  | I55: =IF($B55=0,"",VLOOKUP($B55,Table2[],5,FALSE)) ->  | J55: =IF($B55=0,"",VLOOKUP($B55,Table2[],7,FALSE)) ->  | K55: 0
C56: =IF(B56=0,"",VLOOKUP($B56,Table2[],2,FALSE)) ->  | I56: =IF($B56=0,"",VLOOKUP($B56,Table2[],5,FALSE)) ->  | J56: =IF($B56=0,"",VLOOKUP($B56,Table2[],7,FALSE)) ->  | K56: =IF(B56=0,0,ROUND(G56*H56*J56,2)) -> 0
C57: =IF(B57=0,"",VLOOKUP($B57,Table2[],2,FALSE)) ->  | I57: =IF($B57=0,"",VLOOKUP($B57,Table2[],5,FALSE)) ->  | J57: =IF($B57=0,"",VLOOKUP($B57,Table2[],7,FALSE)) ->  | K57: =IF(B57=0,0,ROUND(G57*H57*J57,2)) -> 0
C58: =IF(B58=0,"",VLOOKUP($B58,Table2[],2,FALSE)) ->  | I58: =IF($B58=0,"",VLOOKUP($B58,Table2[],5,FALSE)) ->  | J58: =IF($B58=0,"",VLOOKUP($B58,Table2[],7,FALSE)) ->  | K58: =IF(B58=0,0,ROUND(G58*H58*J58,2)) -> 0
C59: =IF(B59=0,"",VLOOKUP($B59,Table2[],2,FALSE)) ->  | I59: =IF($B59=0,"",VLOOKUP($B59,Table2[],5,FALSE)) ->  | J59: =IF($B59=0,"",VLOOKUP($B59,Table2[],7,FALSE)) ->  | K59: =IF(B59=0,0,ROUND(G59*H59*J59,2)) -> 0
C60: =IF(B60=0,"",VLOOKUP($B60,Table2[],2,FALSE)) ->  | I60: =IF($B60=0,"",VLOOKUP($B60,Table2[],5,FALSE)) ->  | J60: =IF($B60=0,"",VLOOKUP($B60,Table2[],7,FALSE)) ->  | K60: =IF(B60=0,0,ROUND(G60*H60*J60,2)) -> 0
C61: Crop Insurance | J61: =IF($B61=0,"",VLOOKUP($B61,Materials!$B$2:$H$127,7,FALSE)) ->  | K61: 0
C63: Total Materials & Services | K63: =SUM(K37:K61) -> 164.51
B65: Total listed costs for Field Operations and Materials and Services | K65: =K33+K63 -> 
D66: Interest on Operations Capital | E66: =ROUND(SUM($E$33:$H$33)+$K$63,2) ->  | F66: cash expense @ | H66: ='General Variables'!$B$11 -> 0.055 | I66: =CONCATENATE("for ",TEXT('General Variables'!$B$12,"0.0")," mo.") -> for 6.0 mo. | K66: =E66*H66*'General Variables'!$B$12/12 -> 
B67: Total Operating and Use Related Ownership Costs | K67: =SUM(K65:K66) -> 
B69: Overhead (accounting, liability insurance, vehicle cost, office expense) | K69: ='General Variables'!B14 -> 20
B70: Real Estate Opportunity | C70: Dryland (State) | F70: =IF(C70=0,0,VLOOKUP(C70,RETable,2,FALSE)) -> 3470 | G70: per acre @ | I70: ='General Variables'!$B$10 -> 0.04 | K70: =ROUND(F70*I70,2) -> 138.8
B71: Real Estate Taxes | F71: =IF(C70=0,0,VLOOKUP(C70,RETable,2,FALSE)) -> 3470 | G71: per acre @ | I71: ='General Variables'!$B$13 -> 0.01 | K71: =ROUND(F71*I71,2) -> 34.7
B72: Total Cost per Acre Including Overhead | K72: =SUM(K67:K71) -> 
B74: ="Cost per "&$B$4 -> Cost per ton | K74: =IF(A4="Yield",0,K72/$A$4) -> 
B75: ="Cash Cost per "&$B$4 -> Cash Cost per ton | K75: =IF($A$4="Yield",0,(E66+K66+K71)/$A$4) -> 
K111: Yes
K112: No
B240: =IF(#REF!="","",#REF!) ->  | C240: =IF(Materials!B132="","",Materials!B132) -> 
B241: =IF(#REF!="","",#REF!) ->  | C241: =IF(Materials!B133="","",Materials!B133) -> 
B242: =IF(#REF!="","",#REF!) ->  | C242: =IF(Materials!B134="","",Materials!B134) -> 
B243: =IF(#REF!="","",#REF!) ->  | C243: =IF(Materials!B135="","",Materials!B135) -> 
B244: =IF(#REF!="","",#REF!) ->  | C244: =IF(Materials!B136="","",Materials!B136) -> 

Sheet 6-Alfalfa
A2: =REPLACE(CELL("filename",A1),1,FIND("]",CELL("filename",A1)),"") -> 6-Alfalfa | I2: Pivot Irrigated | J2: 800 GPM 35 PSI | L2: ='General Variables'!A3&" "&'General Variables'!B3 -> Year 2017 | O2: Acre
A3: Establish Spring Seed with Herbicides | H3: 12 | I3: acre/inches | O3: ai
A4: 3.8 | B4: ton | J4: Does Crop Follow a Legume? | O4: =B4 -> ton
A5: =A2 & IF(C2="","", ", " &C2 ) & ", " & A3 & ", " & I2 -> 6-Alfalfa, Establish Spring Seed with Herbicides, Pivot Irrigated
A7: ='General Variables'!B3 & " Budget " & A2 &", " & IF(C2=0,"", " " & C2 & ", ") & A3 & IF(A4=""," ", " (") & A4 & " " & B4 & IF(A4="",""," Actual Yield)") -> 2017 Budget 6-Alfalfa, Establish Spring Seed with Herbicides (3.8 ton Actual Yield)
A8: =IF(I2="Dryland","Dryland",I2 & IF(J2="","",", "&J2)&IF(H3="","",", "&H3&" "&I3)) -> Pivot Irrigated, 800 GPM 35 PSI, 12 acre/inches
B10: Field Operations | C10: Times or Qty | E10: ="Labor @ $" &TEXT('General Variables'!B4,"#.00")& " /Hr" -> Labor @ $20.00 /Hr | F10: ="Fuel @ $" & TEXT('General Variables'!B5,"#.00") & " and Lube" -> Fuel @ $2.25 and Lube | G10: Repairs | I10: Ownership | K10: Total | L10: Your Estimate
D11: Unit | G11: Power | H11: Imp. | I11: Power | J11: Imp.
A12: 1 | B12: Spread Fertilizer | C12: 1 | E12: =IF(B12=0,"",IF(C12>9999,"",ROUND('General Variables'!$B$4*VLOOKUP(B12,#REF!,10,FALSE)/VLOOKUP(B12,#REF!,9,FALSE)*C12,2))) ->  | F12: =IF(B12=0,0,IF(C12>9999,"",ROUND(IF(VLOOKUP(B12,#REF!,12,FALSE)=0,VLOOKUP(B12,#REF!,13,FALSE)*'General Variables'!$B$8,VLOOKUP(B12,#REF!,12,FALSE)*'General Variables'!$B$7)/VLOOKUP(B12,#REF!,9,FALSE)*C12,2))) ->  | G12: =IF(B12=0,0,IF(C12>9999,"",ROUND(VLOOKUP(VLOOKUP(B12,#REF!,11,FALSE),#REF!,10,FALSE)/VLOOKUP(B12,#REF!,9,FALSE)*C12,2))) ->  | H12: =IF(B12=0,"",IF(C12>9999,"",ROUND(VLOOKUP($B12,#REF!,15,FALSE)*C12,2))) ->  | I12: =IF(B12=0,0,IF(C12>9999,"",ROUND(VLOOKUP(VLOOKUP(B12,#REF!,11,FALSE),#REF!,16,FALSE)/VLOOKUP(B12,#REF!,9,FALSE)*C12,2))) ->  | J12: =IF(B12=0,"",IF(C12>9999,"",ROUND(VLOOKUP($B12,#REF!,21,FALSE)*$C12,2))) ->  | K12: =IF(C12>9999,"",ROUND(SUM(E12:J12),2)) -> 
A13: 2 | B13: Disk | C13: 1 | E13: =IF(B13=0,"",IF(C13>9999,"",ROUND('General Variables'!$B$4*VLOOKUP(B13,#REF!,10,FALSE)/VLOOKUP(B13,#REF!,9,FALSE)*C13,2))) ->  | F13: =IF(B13=0,0,IF(C13>9999,"",ROUND(IF(VLOOKUP(B13,#REF!,12,FALSE)=0,VLOOKUP(B13,#REF!,13,FALSE)*'General Variables'!$B$8,VLOOKUP(B13,#REF!,12,FALSE)*'General Variables'!$B$7)/VLOOKUP(B13,#REF!,9,FALSE)*C13,2))) ->  | G13: =IF(B13=0,0,IF(C13>9999,"",ROUND(VLOOKUP(VLOOKUP(B13,#REF!,11,FALSE),#REF!,10,FALSE)/VLOOKUP(B13,#REF!,9,FALSE)*C13,2))) ->  | H13: =IF(B13=0,"",IF(C13>9999,"",ROUND(VLOOKUP($B13,#REF!,15,FALSE)*C13,2))) ->  | I13: =IF(B13=0,0,IF(C13>9999,"",ROUND(VLOOKUP(VLOOKUP(B13,#REF!,11,FALSE),#REF!,16,FALSE)/VLOOKUP(B13,#REF!,9,FALSE)*C13,2))) ->  | J13: =IF(B13=0,"",IF(C13>9999,"",ROUND(VLOOKUP($B13,#REF!,21,FALSE)*$C13,2))) ->  | K13: =IF(C13>9999,"",ROUND(SUM(E13:J13),2)) -> 
A14: 3 | B14: Field Cultivation | C14: 1 | E14: =IF(B14=0,"",IF(C14>9999,"",ROUND('General Variables'!$B$4*VLOOKUP(B14,#REF!,10,FALSE)/VLOOKUP(B14,#REF!,9,FALSE)*C14,2))) ->  | F14: =IF(B14=0,0,IF(C14>9999,"",ROUND(IF(VLOOKUP(B14,#REF!,12,FALSE)=0,VLOOKUP(B14,#REF!,13,FALSE)*'General Variables'!$B$8,VLOOKUP(B14,#REF!,12,FALSE)*'General Variables'!$B$7)/VLOOKUP(B14,#REF!,9,FALSE)*C14,2))) ->  | G14: =IF(B14=0,0,IF(C14>9999,"",ROUND(VLOOKUP(VLOOKUP(B14,#REF!,11,FALSE),#REF!,10,FALSE)/VLOOKUP(B14,#REF!,9,FALSE)*C14,2))) ->  | H14: =IF(B14=0,"",IF(C14>9999,"",ROUND(VLOOKUP($B14,#REF!,15,FALSE)*C14,2))) ->  | I14: =IF(B14=0,0,IF(C14>9999,"",ROUND(VLOOKUP(VLOOKUP(B14,#REF!,11,FALSE),#REF!,16,FALSE)/VLOOKUP(B14,#REF!,9,FALSE)*C14,2))) ->  | J14: =IF(B14=0,"",IF(C14>9999,"",ROUND(VLOOKUP($B14,#REF!,21,FALSE)*$C14,2))) -> 
A15: 4 | B15: Seeder/Packer | C15: 1 | E15: =IF(B15=0,"",IF(C15>9999,"",ROUND('General Variables'!$B$4*VLOOKUP(B15,#REF!,10,FALSE)/VLOOKUP(B15,#REF!,9,FALSE)*C15,2))) ->  | F15: =IF(B15=0,0,IF(C15>9999,"",ROUND(IF(VLOOKUP(B15,#REF!,12,FALSE)=0,VLOOKUP(B15,#REF!,13,FALSE)*'General Variables'!$B$8,VLOOKUP(B15,#REF!,12,FALSE)*'General Variables'!$B$7)/VLOOKUP(B15,#REF!,9,FALSE)*C15,2))) ->  | G15: =IF(B15=0,0,IF(C15>9999,"",ROUND(VLOOKUP(VLOOKUP(B15,#REF!,11,FALSE),#REF!,10,FALSE)/VLOOKUP(B15,#REF!,9,FALSE)*C15,2))) ->  | H15: =IF(B15=0,"",IF(C15>9999,"",ROUND(VLOOKUP($B15,#REF!,15,FALSE)*C15,2))) ->  | I15: =IF(B15=0,0,IF(C15>9999,"",ROUND(VLOOKUP(VLOOKUP(B15,#REF!,11,FALSE),#REF!,16,FALSE)/VLOOKUP(B15,#REF!,9,FALSE)*C15,2))) ->  | J15: =IF(B15=0,"",IF(C15>9999,"",ROUND(VLOOKUP($B15,#REF!,21,FALSE)*$C15,2))) -> 
A16: 5 | B16: Spray | C16: 1 | E16: =IF(B16=0,"",IF(C16>9999,"",ROUND('General Variables'!$B$4*VLOOKUP(B16,#REF!,10,FALSE)/VLOOKUP(B16,#REF!,9,FALSE)*C16,2))) ->  | F16: =IF(B16=0,0,IF(C16>9999,"",ROUND(IF(VLOOKUP(B16,#REF!,12,FALSE)=0,VLOOKUP(B16,#REF!,13,FALSE)*'General Variables'!$B$8,VLOOKUP(B16,#REF!,12,FALSE)*'General Variables'!$B$7)/VLOOKUP(B16,#REF!,9,FALSE)*C16,2))) ->  | G16: =IF(B16=0,0,IF(C16>9999,"",ROUND(VLOOKUP(VLOOKUP(B16,#REF!,11,FALSE),#REF!,10,FALSE)/VLOOKUP(B16,#REF!,9,FALSE)*C16,2))) ->  | H16: =IF(B16=0,"",IF(C16>9999,"",ROUND(VLOOKUP($B16,#REF!,15,FALSE)*C16,2))) ->  | I16: =IF(B16=0,0,IF(C16>9999,"",ROUND(VLOOKUP(VLOOKUP(B16,#REF!,11,FALSE),#REF!,16,FALSE)/VLOOKUP(B16,#REF!,9,FALSE)*C16,2))) ->  | J16: =IF(B16=0,"",IF(C16>9999,"",ROUND(VLOOKUP($B16,#REF!,21,FALSE)*$C16,2))) -> 
A17: 6 | B17: Pivot D 125' Lift | C17: 12 | D17: ai | E17: =IF(B17=0,"",IF(C17>9999,"",ROUND('General Variables'!$B$4*VLOOKUP(B17,#REF!,10,FALSE)/VLOOKUP(B17,#REF!,9,FALSE)*C17,2))) ->  | F17: =IF(B17=0,0,IF(C17>9999,"",ROUND(IF(VLOOKUP(B17,#REF!,12,FALSE)=0,VLOOKUP(B17,#REF!,13,FALSE)*'General Variables'!$B$8,VLOOKUP(B17,#REF!,12,FALSE)*'General Variables'!$B$7)/VLOOKUP(B17,#REF!,9,FALSE)*C17,2))) ->  | G17: =IF(B17=0,0,IF(C17>9999,"",ROUND(VLOOKUP(VLOOKUP(B17,#REF!,11,FALSE),#REF!,10,FALSE)/VLOOKUP(B17,#REF!,9,FALSE)*C17,2))) ->  | H17: =IF(B17=0,"",IF(C17>9999,"",ROUND(VLOOKUP($B17,#REF!,15,FALSE)*C17,2))) ->  | I17: =IF(B17=0,0,IF(C17>9999,"",ROUND(VLOOKUP(VLOOKUP(B17,#REF!,11,FALSE),#REF!,16,FALSE)/VLOOKUP(B17,#REF!,9,FALSE)*C17,2))) ->  | J17: =IF(B17=0,"",IF(C17>9999,"",ROUND(VLOOKUP($B17,#REF!,21,FALSE)*$C17,2))) -> 
A18: 7 | B18: Swath/Condition Hay | C18: 2 | E18: =IF(B18=0,"",IF(C18>9999,"",ROUND('General Variables'!$B$4*VLOOKUP(B18,#REF!,10,FALSE)/VLOOKUP(B18,#REF!,9,FALSE)*C18,2))) ->  | F18: =IF(B18=0,0,IF(C18>9999,"",ROUND(IF(VLOOKUP(B18,#REF!,12,FALSE)=0,VLOOKUP(B18,#REF!,13,FALSE)*'General Variables'!$B$8,VLOOKUP(B18,#REF!,12,FALSE)*'General Variables'!$B$7)/VLOOKUP(B18,#REF!,9,FALSE)*C18,2))) ->  | G18: =IF(B18=0,0,IF(C18>9999,"",ROUND(VLOOKUP(VLOOKUP(B18,#REF!,11,FALSE),#REF!,10,FALSE)/VLOOKUP(B18,#REF!,9,FALSE)*C18,2))) ->  | H18: =IF(B18=0,"",IF(C18>9999,"",ROUND(VLOOKUP($B18,#REF!,15,FALSE)*C18,2))) ->  | I18: =IF(B18=0,0,IF(C18>9999,"",ROUND(VLOOKUP(VLOOKUP(B18,#REF!,11,FALSE),#REF!,16,FALSE)/VLOOKUP(B18,#REF!,9,FALSE)*C18,2))) ->  | J18: =IF(B18=0,"",IF(C18>9999,"",ROUND(VLOOKUP($B18,#REF!,21,FALSE)*$C18,2))) ->  | K18: =IF(C18>9999,"",ROUND(SUM(E18:J18),2)) -> 
A19: 8 | B19: Turn Windrows | C19: 0.5 | E19: =IF(B19=0,"",IF(C19>9999,"",ROUND('General Variables'!$B$4*VLOOKUP(B19,#REF!,10,FALSE)/VLOOKUP(B19,#REF!,9,FALSE)*C19,2))) ->  | F19: =IF(B19=0,0,IF(C19>9999,"",ROUND(IF(VLOOKUP(B19,#REF!,12,FALSE)=0,VLOOKUP(B19,#REF!,13,FALSE)*'General Variables'!$B$8,VLOOKUP(B19,#REF!,12,FALSE)*'General Variables'!$B$7)/VLOOKUP(B19,#REF!,9,FALSE)*C19,2))) ->  | G19: =IF(B19=0,0,IF(C19>9999,"",ROUND(VLOOKUP(VLOOKUP(B19,#REF!,11,FALSE),#REF!,10,FALSE)/VLOOKUP(B19,#REF!,9,FALSE)*C19,2))) ->  | H19: =IF(B19=0,"",IF(C19>9999,"",ROUND(VLOOKUP($B19,#REF!,15,FALSE)*C19,2))) ->  | I19: =IF(B19=0,0,IF(C19>9999,"",ROUND(VLOOKUP(VLOOKUP(B19,#REF!,11,FALSE),#REF!,16,FALSE)/VLOOKUP(B19,#REF!,9,FALSE)*C19,2))) ->  | J19: =IF(B19=0,"",IF(C19>9999,"",ROUND(VLOOKUP($B19,#REF!,21,FALSE)*$C19,2))) ->  | K19: =IF(C19>9999,"",ROUND(SUM(E19:J19),2)) -> 
A20: 9 | B20: Large Square Bale | C20: =$A$4 -> 3.8 | D20: ton | E20: =IF(B20=0,"",IF(C20>9999,"",ROUND('General Variables'!$B$4*VLOOKUP(B20,#REF!,10,FALSE)/VLOOKUP(B20,#REF!,9,FALSE)*C20,2))) ->  | F20: =IF(B20=0,0,IF(C20>9999,"",ROUND(IF(VLOOKUP(B20,#REF!,12,FALSE)=0,VLOOKUP(B20,#REF!,13,FALSE)*'General Variables'!$B$8,VLOOKUP(B20,#REF!,12,FALSE)*'General Variables'!$B$7)/VLOOKUP(B20,#REF!,9,FALSE)*C20,2))) ->  | G20: =IF(B20=0,0,IF(C20>9999,"",ROUND(VLOOKUP(VLOOKUP(B20,#REF!,11,FALSE),#REF!,10,FALSE)/VLOOKUP(B20,#REF!,9,FALSE)*C20,2))) ->  | H20: =IF(B20=0,"",IF(C20>9999,"",ROUND(VLOOKUP($B20,#REF!,15,FALSE)*C20,2))) ->  | I20: =IF(B20=0,0,IF(C20>9999,"",ROUND(VLOOKUP(VLOOKUP(B20,#REF!,11,FALSE),#REF!,16,FALSE)/VLOOKUP(B20,#REF!,9,FALSE)*C20,2))) ->  | J20: =IF(B20=0,"",IF(C20>9999,"",ROUND(VLOOKUP($B20,#REF!,21,FALSE)*$C20,2))) ->  | K20: =IF(C20>9999,"",ROUND(SUM(E20:J20),2)) -> 
A21: 10 | B21: Load Large Square | C21: =$A$4 -> 3.8 | D21: ton | E21: =IF(B21=0,"",IF(C21>9999,"",ROUND('General Variables'!$B$4*VLOOKUP(B21,#REF!,10,FALSE)/VLOOKUP(B21,#REF!,9,FALSE)*C21,2))) ->  | F21: =IF(B21=0,0,IF(C21>9999,"",ROUND(IF(VLOOKUP(B21,#REF!,12,FALSE)=0,VLOOKUP(B21,#REF!,13,FALSE)*'General Variables'!$B$8,VLOOKUP(B21,#REF!,12,FALSE)*'General Variables'!$B$7)/VLOOKUP(B21,#REF!,9,FALSE)*C21,2))) ->  | G21: =IF(B21=0,0,IF(C21>9999,"",ROUND(VLOOKUP(VLOOKUP(B21,#REF!,11,FALSE),#REF!,10,FALSE)/VLOOKUP(B21,#REF!,9,FALSE)*C21,2))) ->  | H21: =IF(B21=0,"",IF(C21>9999,"",ROUND(VLOOKUP($B21,#REF!,15,FALSE)*C21,2))) ->  | I21: =IF(B21=0,0,IF(C21>9999,"",ROUND(VLOOKUP(VLOOKUP(B21,#REF!,11,FALSE),#REF!,16,FALSE)/VLOOKUP(B21,#REF!,9,FALSE)*C21,2))) ->  | J21: =IF(B21=0,"",IF(C21>9999,"",ROUND(VLOOKUP($B21,#REF!,21,FALSE)*$C21,2))) ->  | K21: =IF(C21>9999,"",ROUND(SUM(E21:J21),2)) -> 
A22: 11 | B22: Spray | C22: 0.5 | E22: =IF(B22=0,"",IF(C22>9999,"",ROUND('General Variables'!$B$4*VLOOKUP(B22,#REF!,10,FALSE)/VLOOKUP(B22,#REF!,9,FALSE)*C22,2))) ->  | F22: =IF(B22=0,0,IF(C22>9999,"",ROUND(IF(VLOOKUP(B22,#REF!,12,FALSE)=0,VLOOKUP(B22,#REF!,13,FALSE)*'General Variables'!$B$8,VLOOKUP(B22,#REF!,12,FALSE)*'General Variables'!$B$7)/VLOOKUP(B22,#REF!,9,FALSE)*C22,2))) ->  | G22: =IF(B22=0,0,IF(C22>9999,"",ROUND(VLOOKUP(VLOOKUP(B22,#REF!,11,FALSE),#REF!,10,FALSE)/VLOOKUP(B22,#REF!,9,FALSE)*C22,2))) ->  | H22: =IF(B22=0,"",IF(C22>9999,"",ROUND(VLOOKUP($B22,#REF!,15,FALSE)*C22,2))) ->  | I22: =IF(B22=0,0,IF(C22>9999,"",ROUND(VLOOKUP(VLOOKUP(B22,#REF!,11,FALSE),#REF!,16,FALSE)/VLOOKUP(B22,#REF!,9,FALSE)*C22,2))) ->  | J22: =IF(B22=0,"",IF(C22>9999,"",ROUND(VLOOKUP($B22,#REF!,21,FALSE)*$C22,2))) ->  | K22: =IF(C22>9999,"",ROUND(SUM(E22:J22),2)) -> 
A23: 12 | E23: =IF(B23=0,"",IF(C23>9999,"",ROUND('General Variables'!$B$4*VLOOKUP(B23,#REF!,10,FALSE)/VLOOKUP(B23,#REF!,9,FALSE)*C23,2))) ->  | F23: =IF(B23=0,0,IF(C23>9999,"",ROUND(IF(VLOOKUP(B23,#REF!,12,FALSE)=0,VLOOKUP(B23,#REF!,13,FALSE)*'General Variables'!$B$8,VLOOKUP(B23,#REF!,12,FALSE)*'General Variables'!$B$7)/VLOOKUP(B23,#REF!,9,FALSE)*C23,2))) -> 0 | G23: =IF(B23=0,0,IF(C23>9999,"",ROUND(VLOOKUP(VLOOKUP(B23,#REF!,11,FALSE),#REF!,10,FALSE)/VLOOKUP(B23,#REF!,9,FALSE)*C23,2))) -> 0 | H23: =IF(B23=0,"",IF(C23>9999,"",ROUND(VLOOKUP($B23,#REF!,15,FALSE)*C23,2))) ->  | I23: =IF(B23=0,0,IF(C23>9999,"",ROUND(VLOOKUP(VLOOKUP(B23,#REF!,11,FALSE),#REF!,16,FALSE)/VLOOKUP(B23,#REF!,9,FALSE)*C23,2))) -> 0 | J23: =IF(B23=0,"",IF(C23>9999,"",ROUND(VLOOKUP($B23,#REF!,21,FALSE)*$C23,2))) ->  | K23: 0
A24: 13 | E24: =IF(B24=0,"",IF(C24>9999,"",ROUND('General Variables'!$B$4*VLOOKUP(B24,#REF!,10,FALSE)/VLOOKUP(B24,#REF!,9,FALSE)*C24,2))) ->  | F24: =IF(B24=0,0,IF(C24>9999,"",ROUND(IF(VLOOKUP(B24,#REF!,12,FALSE)=0,VLOOKUP(B24,#REF!,13,FALSE)*'General Variables'!$B$8,VLOOKUP(B24,#REF!,12,FALSE)*'General Variables'!$B$7)/VLOOKUP(B24,#REF!,9,FALSE)*C24,2))) -> 0 | G24: =IF(B24=0,0,IF(C24>9999,"",ROUND(VLOOKUP(VLOOKUP(B24,#REF!,11,FALSE),#REF!,10,FALSE)/VLOOKUP(B24,#REF!,9,FALSE)*C24,2))) -> 0 | H24: =IF(B24=0,"",IF(C24>9999,"",ROUND(VLOOKUP($B24,#REF!,15,FALSE)*C24,2))) ->  | I24: =IF(B24=0,0,IF(C24>9999,"",ROUND(VLOOKUP(VLOOKUP(B24,#REF!,11,FALSE),#REF!,16,FALSE)/VLOOKUP(B24,#REF!,9,FALSE)*C24,2))) -> 0 | J24: =IF(B24=0,"",IF(C24>9999,"",ROUND(VLOOKUP($B24,#REF!,21,FALSE)*$C24,2))) ->  | K24: 0
A25: 14 | E25: =IF(B25=0,"",IF(C25>9999,"",ROUND('General Variables'!$B$4*VLOOKUP(B25,#REF!,10,FALSE)/VLOOKUP(B25,#REF!,9,FALSE)*C25,2))) ->  | F25: =IF(B25=0,0,IF(C25>9999,"",ROUND(IF(VLOOKUP(B25,#REF!,12,FALSE)=0,VLOOKUP(B25,#REF!,13,FALSE)*'General Variables'!$B$8,VLOOKUP(B25,#REF!,12,FALSE)*'General Variables'!$B$7)/VLOOKUP(B25,#REF!,9,FALSE)*C25,2))) -> 0 | G25: =IF(B25=0,0,IF(C25>9999,"",ROUND(VLOOKUP(VLOOKUP(B25,#REF!,11,FALSE),#REF!,10,FALSE)/VLOOKUP(B25,#REF!,9,FALSE)*C25,2))) -> 0 | H25: =IF(B25=0,"",IF(C25>9999,"",ROUND(VLOOKUP($B25,#REF!,15,FALSE)*C25,2))) ->  | I25: =IF(B25=0,0,IF(C25>9999,"",ROUND(VLOOKUP(VLOOKUP(B25,#REF!,11,FALSE),#REF!,16,FALSE)/VLOOKUP(B25,#REF!,9,FALSE)*C25,2))) -> 0 | J25: =IF(B25=0,"",IF(C25>9999,"",ROUND(VLOOKUP($B25,#REF!,21,FALSE)*$C25,2))) ->  | K25: 0
A26: 15 | E26: =IF(B26=0,"",IF(C26>9999,"",ROUND('General Variables'!$B$4*VLOOKUP(B26,#REF!,10,FALSE)/VLOOKUP(B26,#REF!,9,FALSE)*C26,2))) ->  | F26: =IF(B26=0,0,IF(C26>9999,"",ROUND(IF(VLOOKUP(B26,#REF!,12,FALSE)=0,VLOOKUP(B26,#REF!,13,FALSE)*'General Variables'!$B$8,VLOOKUP(B26,#REF!,12,FALSE)*'General Variables'!$B$7)/VLOOKUP(B26,#REF!,9,FALSE)*C26,2))) -> 0 | G26: =IF(B26=0,0,IF(C26>9999,"",ROUND(VLOOKUP(VLOOKUP(B26,#REF!,11,FALSE),#REF!,10,FALSE)/VLOOKUP(B26,#REF!,9,FALSE)*C26,2))) -> 0 | H26: =IF(B26=0,"",IF(C26>9999,"",ROUND(VLOOKUP($B26,#REF!,15,FALSE)*C26,2))) ->  | I26: =IF(B26=0,0,IF(C26>9999,"",ROUND(VLOOKUP(VLOOKUP(B26,#REF!,11,FALSE),#REF!,16,FALSE)/VLOOKUP(B26,#REF!,9,FALSE)*C26,2))) -> 0 | J26: =IF(B26=0,"",IF(C26>9999,"",ROUND(VLOOKUP($B26,#REF!,21,FALSE)*$C26,2))) ->  | K26: 0
A27: 16 | E27: =IF(B27=0,"",IF(C27>9999,"",ROUND('General Variables'!$B$4*VLOOKUP(B27,#REF!,10,FALSE)/VLOOKUP(B27,#REF!,9,FALSE)*C27,2))) ->  | F27: =IF(B27=0,0,IF(C27>9999,"",ROUND(IF(VLOOKUP(B27,#REF!,12,FALSE)=0,VLOOKUP(B27,#REF!,13,FALSE)*'General Variables'!$B$8,VLOOKUP(B27,#REF!,12,FALSE)*'General Variables'!$B$7)/VLOOKUP(B27,#REF!,9,FALSE)*C27,2))) -> 0 | G27: =IF(B27=0,0,IF(C27>9999,"",ROUND(VLOOKUP(VLOOKUP(B27,#REF!,11,FALSE),#REF!,10,FALSE)/VLOOKUP(B27,#REF!,9,FALSE)*C27,2))) -> 0 | H27: =IF(B27=0,"",IF(C27>9999,"",ROUND(VLOOKUP($B27,#REF!,15,FALSE)*C27,2))) ->  | I27: =IF(B27=0,0,IF(C27>9999,"",ROUND(VLOOKUP(VLOOKUP(B27,#REF!,11,FALSE),#REF!,16,FALSE)/VLOOKUP(B27,#REF!,9,FALSE)*C27,2))) -> 0 | J27: =IF(B27=0,"",IF(C27>9999,"",ROUND(VLOOKUP($B27,#REF!,21,FALSE)*$C27,2))) ->  | K27: 0
A28: 17 | E28: =IF(B28=0,"",IF(C28>9999,"",ROUND('General Variables'!$B$4*VLOOKUP(B28,#REF!,10,FALSE)/VLOOKUP(B28,#REF!,9,FALSE)*C28,2))) ->  | F28: =IF(B28=0,0,IF(C28>9999,"",ROUND(IF(VLOOKUP(B28,#REF!,12,FALSE)=0,VLOOKUP(B28,#REF!,13,FALSE)*'General Variables'!$B$8,VLOOKUP(B28,#REF!,12,FALSE)*'General Variables'!$B$7)/VLOOKUP(B28,#REF!,9,FALSE)*C28,2))) -> 0 | G28: =IF(B28=0,0,IF(C28>9999,"",ROUND(VLOOKUP(VLOOKUP(B28,#REF!,11,FALSE),#REF!,10,FALSE)/VLOOKUP(B28,#REF!,9,FALSE)*C28,2))) -> 0 | H28: =IF(B28=0,"",IF(C28>9999,"",ROUND(VLOOKUP($B28,#REF!,15,FALSE)*C28,2))) ->  | I28: =IF(B28=0,0,IF(C28>9999,"",ROUND(VLOOKUP(VLOOKUP(B28,#REF!,11,FALSE),#REF!,16,FALSE)/VLOOKUP(B28,#REF!,9,FALSE)*C28,2))) -> 0 | J28: =IF(B28=0,"",IF(C28>9999,"",ROUND(VLOOKUP($B28,#REF!,21,FALSE)*$C28,2))) ->  | K28: 0
A29: 18 | E29: =IF(B29=0,"",IF(C29>9999,"",ROUND('General Variables'!$B$4*VLOOKUP(B29,#REF!,10,FALSE)/VLOOKUP(B29,#REF!,9,FALSE)*C29,2))) ->  | F29: =IF(B29=0,0,IF(C29>9999,"",ROUND(IF(VLOOKUP(B29,#REF!,12,FALSE)=0,VLOOKUP(B29,#REF!,13,FALSE)*'General Variables'!$B$8,VLOOKUP(B29,#REF!,12,FALSE)*'General Variables'!$B$7)/VLOOKUP(B29,#REF!,9,FALSE)*C29,2))) -> 0 | G29: =IF(B29=0,0,IF(C29>9999,"",ROUND(VLOOKUP(VLOOKUP(B29,#REF!,11,FALSE),#REF!,10,FALSE)/VLOOKUP(B29,#REF!,9,FALSE)*C29,2))) -> 0 | H29: =IF(B29=0,"",IF(C29>9999,"",ROUND(VLOOKUP($B29,#REF!,15,FALSE)*C29,2))) ->  | I29: =IF(B29=0,0,IF(C29>9999,"",ROUND(VLOOKUP(VLOOKUP(B29,#REF!,11,FALSE),#REF!,16,FALSE)/VLOOKUP(B29,#REF!,9,FALSE)*C29,2))) -> 0 | J29: =IF(B29=0,"",IF(C29>9999,"",ROUND(VLOOKUP($B29,#REF!,21,FALSE)*$C29,2))) ->  | K29: 0
A30: 19 | E30: =IF(B30=0,"",IF(C30>9999,"",ROUND('General Variables'!$B$4*VLOOKUP(B30,#REF!,10,FALSE)/VLOOKUP(B30,#REF!,9,FALSE)*C30,2))) ->  | F30: =IF(B30=0,0,IF(C30>9999,"",ROUND(IF(VLOOKUP(B30,#REF!,12,FALSE)=0,VLOOKUP(B30,#REF!,13,FALSE)*'General Variables'!$B$8,VLOOKUP(B30,#REF!,12,FALSE)*'General Variables'!$B$7)/VLOOKUP(B30,#REF!,9,FALSE)*C30,2))) -> 0 | G30: =IF(B30=0,0,IF(C30>9999,"",ROUND(VLOOKUP(VLOOKUP(B30,#REF!,11,FALSE),#REF!,10,FALSE)/VLOOKUP(B30,#REF!,9,FALSE)*C30,2))) -> 0 | H30: =IF(B30=0,"",IF(C30>9999,"",ROUND(VLOOKUP($B30,#REF!,15,FALSE)*C30,2))) ->  | I30: =IF(B30=0,0,IF(C30>9999,"",ROUND(VLOOKUP(VLOOKUP(B30,#REF!,11,FALSE),#REF!,16,FALSE)/VLOOKUP(B30,#REF!,9,FALSE)*C30,2))) -> 0 | J30: =IF(B30=0,"",IF(C30>9999,"",ROUND(VLOOKUP($B30,#REF!,21,FALSE)*$C30,2))) ->  | K30: 0
A31: 20 | E31: =IF(B31=0,"",IF(C31>9999,"",ROUND('General Variables'!$B$4*VLOOKUP(B31,#REF!,10,FALSE)/VLOOKUP(B31,#REF!,9,FALSE)*C31,2))) ->  | F31: =IF(B31=0,0,IF(C31>9999,"",ROUND(IF(VLOOKUP(B31,#REF!,12,FALSE)=0,VLOOKUP(B31,#REF!,13,FALSE)*'General Variables'!$B$8,VLOOKUP(B31,#REF!,12,FALSE)*'General Variables'!$B$7)/VLOOKUP(B31,#REF!,9,FALSE)*C31,2))) -> 0 | G31: =IF(B31=0,0,IF(C31>9999,"",ROUND(VLOOKUP(VLOOKUP(B31,#REF!,11,FALSE),#REF!,10,FALSE)/VLOOKUP(B31,#REF!,9,FALSE)*C31,2))) -> 0 | H31: =IF(B31=0,"",IF(C31>9999,"",ROUND(VLOOKUP($B31,#REF!,15,FALSE)*C31,2))) ->  | I31: =IF(B31=0,0,IF(C31>9999,"",ROUND(VLOOKUP(VLOOKUP(B31,#REF!,11,FALSE),#REF!,16,FALSE)/VLOOKUP(B31,#REF!,9,FALSE)*C31,2))) -> 0 | J31: =IF(B31=0,"",IF(C31>9999,"",ROUND(VLOOKUP($B31,#REF!,21,FALSE)*$C31,2))) ->  | K31: 0
C33: Total for Field Operations | E33: =SUM(E12:E31) ->  | F33: =SUM(F12:F31) -> 
F35: Operation Index | G35: Percent Acres Applied | H35: Application | J35: Applied Price | L35: Your Estimate
B36: Materials & Services | H36: Rate | I36: Unit | K36: Total
B37: 11-52-0 | C37: =IF(B37=0,"",VLOOKUP($B37,Table2[],2,FALSE)) -> Fertilizer | F37: 1 | G37: 1 | H37: 100 | I37: =IF($B37=0,"",VLOOKUP($B37,Table2[],5,FALSE)) -> pound | J37: =IF($B37=0,"",VLOOKUP($B37,Table2[],7,FALSE)) -> 0.24 | K37: =IF(B37=0,0,ROUND(G37*H37*J37,2)) -> 24
B38: Seeder/Packer | C38: =IF(B38=0,"",VLOOKUP($B38,Table2[],2,FALSE)) -> Rental | F38: 4 | G38: 1 | H38: 1 | I38: =IF($B38=0,"",VLOOKUP($B38,Table2[],5,FALSE)) -> acre | J38: =IF($B38=0,"",VLOOKUP($B38,Table2[],7,FALSE)) -> 13 | K38: =IF(B38=0,0,ROUND(G38*H38*J38,2)) -> 13
B39: Alfalfa w/Inoculant | C39: =IF(B39=0,"",VLOOKUP($B39,Table2[],2,FALSE)) -> Seed | F39: 4 | G39: 1 | H39: 12 | I39: =IF($B39=0,"",VLOOKUP($B39,Table2[],5,FALSE)) -> pound | J39: =IF($B39=0,"",VLOOKUP($B39,Table2[],7,FALSE)) -> 6 | K39: 72
B40: Brox 2EC | C40: =IF(B40=0,"",VLOOKUP($B40,Table2[],2,FALSE)) -> Herbicide | F40: 6 | G40: 1 | H40: 0.5 | I40: =IF($B40=0,"",VLOOKUP($B40,Table2[],5,FALSE)) -> pint | J40: =IF($B40=0,"",VLOOKUP($B40,Table2[],7,FALSE)) -> 4.25 | K40: 2.13
B41: Pursuit | C41: =IF(B41=0,"",VLOOKUP($B41,Table2[],2,FALSE)) -> Herbicide | F41: 6 | G41: 1 | H41: 3 | I41: =IF($B41=0,"",VLOOKUP($B41,Table2[],5,FALSE)) -> ounce | J41: =IF($B41=0,"",VLOOKUP($B41,Table2[],7,FALSE)) -> 3.828125 | K41: 11.48
B42: Twine Large Square | C42: =IF(B42=0,"",VLOOKUP($B42,Table2[],2,FALSE)) -> Other | F42: 10 | G42: 1 | H42: =$A$4 -> 3.8 | I42: =IF($B42=0,"",VLOOKUP($B42,Table2[],5,FALSE)) -> ton | J42: =IF($B42=0,"",VLOOKUP($B42,Table2[],7,FALSE)) -> 1.806167401 | K42: 6.86
B43: Lorsban Advanced | C43: =IF(B43=0,"",VLOOKUP($B43,Table2[],2,FALSE)) -> Insecticide | F43: 11 | G43: 0.5 | H43: 1 | I43: =IF($B43=0,"",VLOOKUP($B43,Table2[],5,FALSE)) -> pint | J43: =IF($B43=0,"",VLOOKUP($B43,Table2[],7,FALSE)) -> 6.875 | K43: 3.44
C44: =IF(B44=0,"",VLOOKUP($B44,Table2[],2,FALSE)) ->  | I44: =IF($B44=0,"",VLOOKUP($B44,Table2[],5,FALSE)) ->  | J44: =IF($B44=0,"",VLOOKUP($B44,Table2[],7,FALSE)) ->  | K44: 0
C45: =IF(B45=0,"",VLOOKUP($B45,Table2[],2,FALSE)) ->  | I45: =IF($B45=0,"",VLOOKUP($B45,Table2[],5,FALSE)) ->  | J45: =IF($B45=0,"",VLOOKUP($B45,Table2[],7,FALSE)) ->  | K45: 0
C46: =IF(B46=0,"",VLOOKUP($B46,Table2[],2,FALSE)) ->  | I46: =IF($B46=0,"",VLOOKUP($B46,Table2[],5,FALSE)) ->  | J46: =IF($B46=0,"",VLOOKUP($B46,Table2[],7,FALSE)) ->  | K46: 0
C47: =IF(B47=0,"",VLOOKUP($B47,Table2[],2,FALSE)) ->  | I47: =IF($B47=0,"",VLOOKUP($B47,Table2[],5,FALSE)) ->  | J47: =IF($B47=0,"",VLOOKUP($B47,Table2[],7,FALSE)) ->  | K47: 0
C48: =IF(B48=0,"",VLOOKUP($B48,Table2[],2,FALSE)) ->  | I48: =IF($B48=0,"",VLOOKUP($B48,Table2[],5,FALSE)) ->  | J48: =IF($B48=0,"",VLOOKUP($B48,Table2[],7,FALSE)) ->  | K48: 0
C49: =IF(B49=0,"",VLOOKUP($B49,Table2[],2,FALSE)) ->  | I49: =IF($B49=0,"",VLOOKUP($B49,Table2[],5,FALSE)) ->  | J49: =IF($B49=0,"",VLOOKUP($B49,Table2[],7,FALSE)) ->  | K49: 0
C50: =IF(B50=0,"",VLOOKUP($B50,Table2[],2,FALSE)) ->  | I50: =IF($B50=0,"",VLOOKUP($B50,Table2[],5,FALSE)) ->  | J50: =IF($B50=0,"",VLOOKUP($B50,Table2[],7,FALSE)) ->  | K50: 0
C51: =IF(B51=0,"",VLOOKUP($B51,Table2[],2,FALSE)) ->  | I51: =IF($B51=0,"",VLOOKUP($B51,Table2[],5,FALSE)) ->  | J51: =IF($B51=0,"",VLOOKUP($B51,Table2[],7,FALSE)) ->  | K51: 0
C52: =IF(B52=0,"",VLOOKUP($B52,Table2[],2,FALSE)) ->  | I52: =IF($B52=0,"",VLOOKUP($B52,Table2[],5,FALSE)) ->  | J52: =IF($B52=0,"",VLOOKUP($B52,Table2[],7,FALSE)) ->  | K52: 0
C53: =IF(B53=0,"",VLOOKUP($B53,Table2[],2,FALSE)) ->  | I53: =IF($B53=0,"",VLOOKUP($B53,Table2[],5,FALSE)) ->  | J53: =IF($B53=0,"",VLOOKUP($B53,Table2[],7,FALSE)) ->  | K53: 0
C54: =IF(B54=0,"",VLOOKUP($B54,Table2[],2,FALSE)) ->  | I54: =IF($B54=0,"",VLOOKUP($B54,Table2[],5,FALSE)) ->  | J54: =IF($B54=0,"",VLOOKUP($B54,Table2[],7,FALSE)) ->  | K54: 0
C55: =IF(B55=0,"",VLOOKUP($B55,Table2[],2,FALSE)) ->  | I55: =IF($B55=0,"",VLOOKUP($B55,Table2[],5,FALSE)) ->  | J55: =IF($B55=0,"",VLOOKUP($B55,Table2[],7,FALSE)) ->  | K55: 0
C56: =IF(B56=0,"",VLOOKUP($B56,Table2[],2,FALSE)) ->  | I56: =IF($B56=0,"",VLOOKUP($B56,Table2[],5,FALSE)) ->  | J56: =IF($B56=0,"",VLOOKUP($B56,Table2[],7,FALSE)) ->  | K56: =IF(B56=0,0,ROUND(G56*H56*J56,2)) -> 0
C57: =IF(B57=0,"",VLOOKUP($B57,Table2[],2,FALSE)) ->  | I57: =IF($B57=0,"",VLOOKUP($B57,Table2[],5,FALSE)) ->  | J57: =IF($B57=0,"",VLOOKUP($B57,Table2[],7,FALSE)) ->  | K57: =IF(B57=0,0,ROUND(G57*H57*J57,2)) -> 0
C58: =IF(B58=0,"",VLOOKUP($B58,Table2[],2,FALSE)) ->  | I58: =IF($B58=0,"",VLOOKUP($B58,Table2[],5,FALSE)) ->  | J58: =IF($B58=0,"",VLOOKUP($B58,Table2[],7,FALSE)) ->  | K58: =IF(B58=0,0,ROUND(G58*H58*J58,2)) -> 0
C59: =IF(B59=0,"",VLOOKUP($B59,Table2[],2,FALSE)) ->  | I59: =IF($B59=0,"",VLOOKUP($B59,Table2[],5,FALSE)) ->  | J59: =IF($B59=0,"",VLOOKUP($B59,Table2[],7,FALSE)) ->  | K59: =IF(B59=0,0,ROUND(G59*H59*J59,2)) -> 0
C60: =IF(B60=0,"",VLOOKUP($B60,Table2[],2,FALSE)) ->  | I60: =IF($B60=0,"",VLOOKUP($B60,Table2[],5,FALSE)) ->  | J60: =IF($B60=0,"",VLOOKUP($B60,Table2[],7,FALSE)) ->  | K60: =IF(B60=0,0,ROUND(G60*H60*J60,2)) -> 0
C61: Crop Insurance | J61: =IF($B61=0,"",VLOOKUP($B61,Materials!$B$2:$H$127,7,FALSE)) ->  | K61: 0
C63: Total Materials & Services | K63: =SUM(K37:K61) -> 132.91
B65: Total listed costs for Field Operations and Materials and Services | K65: =K33+K63 -> 
D66: Interest on Operations Capital | E66: =ROUND(SUM($E$33:$H$33)+$K$63,2) ->  | F66: cash expense @ | H66: ='General Variables'!$B$11 -> 0.055 | I66: =CONCATENATE("for ",TEXT('General Variables'!$B$12,"0.0")," mo.") -> for 6.0 mo. | K66: =E66*H66*'General Variables'!$B$12/12 -> 
B67: Total Operating and Use Related Ownership Costs | K67: =SUM(K65:K66) -> 
B69: Overhead (accounting, liability insurance, vehicle cost, office expense) | K69: ='General Variables'!B14 -> 20
B70: Real Estate Opportunity | C70: Pivot (State) | F70: =IF(C70=0,0,VLOOKUP(C70,RETable,2,FALSE)) -> 6940 | G70: per acre @ | I70: ='General Variables'!$B$10 -> 0.04 | K70: =ROUND(F70*I70,2) -> 277.6
B71: Real Estate Taxes | F71: =IF(C70=0,0,VLOOKUP(C70,RETable,2,FALSE)) -> 6940 | G71: per acre @ | I71: ='General Variables'!$B$13 -> 0.01 | K71: =ROUND(F71*I71,2) -> 69.4
B72: Total Cost per Acre Including Overhead | K72: =SUM(K67:K71) -> 
B74: ="Cost per "&$B$4 -> Cost per ton | K74: =IF(A4="Yield",0,K72/$A$4) -> 
B75: ="Cash Cost per "&$B$4 -> Cash Cost per ton | K75: =IF($A$4="Yield",0,(E66+K66+K71)/$A$4) -> 
K111: Yes
K112: No
B240: =IF(#REF!="","",#REF!) ->  | C240: =IF(Materials!B132="","",Materials!B132) -> 
B241: =IF(#REF!="","",#REF!) ->  | C241: =IF(Materials!B133="","",Materials!B133) -> 
B242: =IF(#REF!="","",#REF!) ->  | C242: =IF(Materials!B134="","",Materials!B134) -> 
B243: =IF(#REF!="","",#REF!) ->  | C243: =IF(Materials!B135="","",Materials!B135) -> 
B244: =IF(#REF!="","",#REF!) ->  | C244: =IF(Materials!B136="","",Materials!B136) -> 

Sheet 7-Alfalfa
A2: =REPLACE(CELL("filename",A1),1,FIND("]",CELL("filename",A1)),"") -> 7-Alfalfa | C2: Roundup Ready® | I2: Pivot Irrigated | J2: 800 GPM 35 PSI | L2: ='General Variables'!A3&" "&'General Variables'!B3 -> Year 2017 | O2: Acre
A3: Establish Spring Seed | H3: 12 | I3: acre/inches | O3: ai
A4: 4 | B4: ton | J4: Does Crop Follow a Legume? | O4: =B4 -> ton
A5: =A2 & IF(C2="","", ", " &C2 ) & ", " & A3 & ", " & I2 -> 7-Alfalfa, Roundup Ready®, Establish Spring Seed, Pivot Irrigated
A7: ='General Variables'!B3 & " Budget " & A2 &", " & IF(C2=0,"", " " & C2 & ", ") & A3 & IF(A4=""," ", " (") & A4 & " " & B4 & IF(A4="",""," Actual Yield)") -> 2017 Budget 7-Alfalfa, Roundup Ready®, Establish Spring Seed (4 ton Actual Yield)
A8: =IF(I2="Dryland","Dryland",I2 & IF(J2="","",", "&J2)&IF(H3="","",", "&H3&" "&I3)) -> Pivot Irrigated, 800 GPM 35 PSI, 12 acre/inches
B10: Field Operations | C10: Times or Qty | E10: ="Labor @ $" &TEXT('General Variables'!B4,"#.00")& " /Hr" -> Labor @ $20.00 /Hr | F10: ="Fuel @ $" & TEXT('General Variables'!B5,"#.00") & " and Lube" -> Fuel @ $2.25 and Lube | G10: Repairs | I10: Ownership | K10: Total | L10: Your Estimate
D11: Unit | G11: Power | H11: Imp. | I11: Power | J11: Imp.
A12: 1 | B12: Spread Fertilizer | C12: 1 | E12: =IF(B12=0,"",IF(C12>9999,"",ROUND('General Variables'!$B$4*VLOOKUP(B12,#REF!,10,FALSE)/VLOOKUP(B12,#REF!,9,FALSE)*C12,2))) ->  | F12: =IF(B12=0,0,IF(C12>9999,"",ROUND(IF(VLOOKUP(B12,#REF!,12,FALSE)=0,VLOOKUP(B12,#REF!,13,FALSE)*'General Variables'!$B$8,VLOOKUP(B12,#REF!,12,FALSE)*'General Variables'!$B$7)/VLOOKUP(B12,#REF!,9,FALSE)*C12,2))) ->  | G12: =IF(B12=0,0,IF(C12>9999,"",ROUND(VLOOKUP(VLOOKUP(B12,#REF!,11,FALSE),#REF!,10,FALSE)/VLOOKUP(B12,#REF!,9,FALSE)*C12,2))) ->  | H12: =IF(B12=0,"",IF(C12>9999,"",ROUND(VLOOKUP($B12,#REF!,15,FALSE)*C12,2))) ->  | I12: =IF(B12=0,0,IF(C12>9999,"",ROUND(VLOOKUP(VLOOKUP(B12,#REF!,11,FALSE),#REF!,16,FALSE)/VLOOKUP(B12,#REF!,9,FALSE)*C12,2))) ->  | J12: =IF(B12=0,"",IF(C12>9999,"",ROUND(VLOOKUP($B12,#REF!,21,FALSE)*$C12,2))) ->  | K12: =IF(C12>9999,"",ROUND(SUM(E12:J12),2)) -> 
A13: 2 | B13: Disk | C13: 1 | E13: =IF(B13=0,"",IF(C13>9999,"",ROUND('General Variables'!$B$4*VLOOKUP(B13,#REF!,10,FALSE)/VLOOKUP(B13,#REF!,9,FALSE)*C13,2))) ->  | F13: =IF(B13=0,0,IF(C13>9999,"",ROUND(IF(VLOOKUP(B13,#REF!,12,FALSE)=0,VLOOKUP(B13,#REF!,13,FALSE)*'General Variables'!$B$8,VLOOKUP(B13,#REF!,12,FALSE)*'General Variables'!$B$7)/VLOOKUP(B13,#REF!,9,FALSE)*C13,2))) ->  | G13: =IF(B13=0,0,IF(C13>9999,"",ROUND(VLOOKUP(VLOOKUP(B13,#REF!,11,FALSE),#REF!,10,FALSE)/VLOOKUP(B13,#REF!,9,FALSE)*C13,2))) ->  | H13: =IF(B13=0,"",IF(C13>9999,"",ROUND(VLOOKUP($B13,#REF!,15,FALSE)*C13,2))) ->  | I13: =IF(B13=0,0,IF(C13>9999,"",ROUND(VLOOKUP(VLOOKUP(B13,#REF!,11,FALSE),#REF!,16,FALSE)/VLOOKUP(B13,#REF!,9,FALSE)*C13,2))) ->  | J13: =IF(B13=0,"",IF(C13>9999,"",ROUND(VLOOKUP($B13,#REF!,21,FALSE)*$C13,2))) ->  | K13: =IF(C13>9999,"",ROUND(SUM(E13:J13),2)) -> 
A14: 3 | B14: Field Cultivation | C14: 1 | E14: =IF(B14=0,"",IF(C14>9999,"",ROUND('General Variables'!$B$4*VLOOKUP(B14,#REF!,10,FALSE)/VLOOKUP(B14,#REF!,9,FALSE)*C14,2))) ->  | F14: =IF(B14=0,0,IF(C14>9999,"",ROUND(IF(VLOOKUP(B14,#REF!,12,FALSE)=0,VLOOKUP(B14,#REF!,13,FALSE)*'General Variables'!$B$8,VLOOKUP(B14,#REF!,12,FALSE)*'General Variables'!$B$7)/VLOOKUP(B14,#REF!,9,FALSE)*C14,2))) ->  | G14: =IF(B14=0,0,IF(C14>9999,"",ROUND(VLOOKUP(VLOOKUP(B14,#REF!,11,FALSE),#REF!,10,FALSE)/VLOOKUP(B14,#REF!,9,FALSE)*C14,2))) ->  | H14: =IF(B14=0,"",IF(C14>9999,"",ROUND(VLOOKUP($B14,#REF!,15,FALSE)*C14,2))) ->  | I14: =IF(B14=0,0,IF(C14>9999,"",ROUND(VLOOKUP(VLOOKUP(B14,#REF!,11,FALSE),#REF!,16,FALSE)/VLOOKUP(B14,#REF!,9,FALSE)*C14,2))) ->  | J14: =IF(B14=0,"",IF(C14>9999,"",ROUND(VLOOKUP($B14,#REF!,21,FALSE)*$C14,2))) -> 
A15: 4 | B15: Seeder/Packer | C15: 1 | E15: =IF(B15=0,"",IF(C15>9999,"",ROUND('General Variables'!$B$4*VLOOKUP(B15,#REF!,10,FALSE)/VLOOKUP(B15,#REF!,9,FALSE)*C15,2))) ->  | F15: =IF(B15=0,0,IF(C15>9999,"",ROUND(IF(VLOOKUP(B15,#REF!,12,FALSE)=0,VLOOKUP(B15,#REF!,13,FALSE)*'General Variables'!$B$8,VLOOKUP(B15,#REF!,12,FALSE)*'General Variables'!$B$7)/VLOOKUP(B15,#REF!,9,FALSE)*C15,2))) ->  | G15: =IF(B15=0,0,IF(C15>9999,"",ROUND(VLOOKUP(VLOOKUP(B15,#REF!,11,FALSE),#REF!,10,FALSE)/VLOOKUP(B15,#REF!,9,FALSE)*C15,2))) ->  | H15: =IF(B15=0,"",IF(C15>9999,"",ROUND(VLOOKUP($B15,#REF!,15,FALSE)*C15,2))) ->  | I15: =IF(B15=0,0,IF(C15>9999,"",ROUND(VLOOKUP(VLOOKUP(B15,#REF!,11,FALSE),#REF!,16,FALSE)/VLOOKUP(B15,#REF!,9,FALSE)*C15,2))) ->  | J15: =IF(B15=0,"",IF(C15>9999,"",ROUND(VLOOKUP($B15,#REF!,21,FALSE)*$C15,2))) -> 
A16: 5 | B16: Spray | C16: 1 | E16: =IF(B16=0,"",IF(C16>9999,"",ROUND('General Variables'!$B$4*VLOOKUP(B16,#REF!,10,FALSE)/VLOOKUP(B16,#REF!,9,FALSE)*C16,2))) ->  | F16: =IF(B16=0,0,IF(C16>9999,"",ROUND(IF(VLOOKUP(B16,#REF!,12,FALSE)=0,VLOOKUP(B16,#REF!,13,FALSE)*'General Variables'!$B$8,VLOOKUP(B16,#REF!,12,FALSE)*'General Variables'!$B$7)/VLOOKUP(B16,#REF!,9,FALSE)*C16,2))) ->  | G16: =IF(B16=0,0,IF(C16>9999,"",ROUND(VLOOKUP(VLOOKUP(B16,#REF!,11,FALSE),#REF!,10,FALSE)/VLOOKUP(B16,#REF!,9,FALSE)*C16,2))) ->  | H16: =IF(B16=0,"",IF(C16>9999,"",ROUND(VLOOKUP($B16,#REF!,15,FALSE)*C16,2))) ->  | I16: =IF(B16=0,0,IF(C16>9999,"",ROUND(VLOOKUP(VLOOKUP(B16,#REF!,11,FALSE),#REF!,16,FALSE)/VLOOKUP(B16,#REF!,9,FALSE)*C16,2))) ->  | J16: =IF(B16=0,"",IF(C16>9999,"",ROUND(VLOOKUP($B16,#REF!,21,FALSE)*$C16,2))) -> 
A17: 6 | B17: Pivot D 125' Lift | C17: 12 | D17: ai | E17: =IF(B17=0,"",IF(C17>9999,"",ROUND('General Variables'!$B$4*VLOOKUP(B17,#REF!,10,FALSE)/VLOOKUP(B17,#REF!,9,FALSE)*C17,2))) ->  | F17: =IF(B17=0,0,IF(C17>9999,"",ROUND(IF(VLOOKUP(B17,#REF!,12,FALSE)=0,VLOOKUP(B17,#REF!,13,FALSE)*'General Variables'!$B$8,VLOOKUP(B17,#REF!,12,FALSE)*'General Variables'!$B$7)/VLOOKUP(B17,#REF!,9,FALSE)*C17,2))) ->  | G17: =IF(B17=0,0,IF(C17>9999,"",ROUND(VLOOKUP(VLOOKUP(B17,#REF!,11,FALSE),#REF!,10,FALSE)/VLOOKUP(B17,#REF!,9,FALSE)*C17,2))) ->  | H17: =IF(B17=0,"",IF(C17>9999,"",ROUND(VLOOKUP($B17,#REF!,15,FALSE)*C17,2))) ->  | I17: =IF(B17=0,0,IF(C17>9999,"",ROUND(VLOOKUP(VLOOKUP(B17,#REF!,11,FALSE),#REF!,16,FALSE)/VLOOKUP(B17,#REF!,9,FALSE)*C17,2))) ->  | J17: =IF(B17=0,"",IF(C17>9999,"",ROUND(VLOOKUP($B17,#REF!,21,FALSE)*$C17,2))) -> 
A18: 7 | B18: Swath/Condition Hay | C18: 2 | E18: =IF(B18=0,"",IF(C18>9999,"",ROUND('General Variables'!$B$4*VLOOKUP(B18,#REF!,10,FALSE)/VLOOKUP(B18,#REF!,9,FALSE)*C18,2))) ->  | F18: =IF(B18=0,0,IF(C18>9999,"",ROUND(IF(VLOOKUP(B18,#REF!,12,FALSE)=0,VLOOKUP(B18,#REF!,13,FALSE)*'General Variables'!$B$8,VLOOKUP(B18,#REF!,12,FALSE)*'General Variables'!$B$7)/VLOOKUP(B18,#REF!,9,FALSE)*C18,2))) ->  | G18: =IF(B18=0,0,IF(C18>9999,"",ROUND(VLOOKUP(VLOOKUP(B18,#REF!,11,FALSE),#REF!,10,FALSE)/VLOOKUP(B18,#REF!,9,FALSE)*C18,2))) ->  | H18: =IF(B18=0,"",IF(C18>9999,"",ROUND(VLOOKUP($B18,#REF!,15,FALSE)*C18,2))) ->  | I18: =IF(B18=0,0,IF(C18>9999,"",ROUND(VLOOKUP(VLOOKUP(B18,#REF!,11,FALSE),#REF!,16,FALSE)/VLOOKUP(B18,#REF!,9,FALSE)*C18,2))) ->  | J18: =IF(B18=0,"",IF(C18>9999,"",ROUND(VLOOKUP($B18,#REF!,21,FALSE)*$C18,2))) ->  | K18: =IF(C18>9999,"",ROUND(SUM(E18:J18),2)) -> 
A19: 8 | B19: Turn Windrows | C19: 0.5 | E19: =IF(B19=0,"",IF(C19>9999,"",ROUND('General Variables'!$B$4*VLOOKUP(B19,#REF!,10,FALSE)/VLOOKUP(B19,#REF!,9,FALSE)*C19,2))) ->  | F19: =IF(B19=0,0,IF(C19>9999,"",ROUND(IF(VLOOKUP(B19,#REF!,12,FALSE)=0,VLOOKUP(B19,#REF!,13,FALSE)*'General Variables'!$B$8,VLOOKUP(B19,#REF!,12,FALSE)*'General Variables'!$B$7)/VLOOKUP(B19,#REF!,9,FALSE)*C19,2))) ->  | G19: =IF(B19=0,0,IF(C19>9999,"",ROUND(VLOOKUP(VLOOKUP(B19,#REF!,11,FALSE),#REF!,10,FALSE)/VLOOKUP(B19,#REF!,9,FALSE)*C19,2))) ->  | H19: =IF(B19=0,"",IF(C19>9999,"",ROUND(VLOOKUP($B19,#REF!,15,FALSE)*C19,2))) ->  | I19: =IF(B19=0,0,IF(C19>9999,"",ROUND(VLOOKUP(VLOOKUP(B19,#REF!,11,FALSE),#REF!,16,FALSE)/VLOOKUP(B19,#REF!,9,FALSE)*C19,2))) ->  | J19: =IF(B19=0,"",IF(C19>9999,"",ROUND(VLOOKUP($B19,#REF!,21,FALSE)*$C19,2))) ->  | K19: =IF(C19>9999,"",ROUND(SUM(E19:J19),2)) -> 
A20: 9 | B20: Large Square Bale | C20: =$A$4 -> 4 | D20: ton | E20: =IF(B20=0,"",IF(C20>9999,"",ROUND('General Variables'!$B$4*VLOOKUP(B20,#REF!,10,FALSE)/VLOOKUP(B20,#REF!,9,FALSE)*C20,2))) ->  | F20: =IF(B20=0,0,IF(C20>9999,"",ROUND(IF(VLOOKUP(B20,#REF!,12,FALSE)=0,VLOOKUP(B20,#REF!,13,FALSE)*'General Variables'!$B$8,VLOOKUP(B20,#REF!,12,FALSE)*'General Variables'!$B$7)/VLOOKUP(B20,#REF!,9,FALSE)*C20,2))) ->  | G20: =IF(B20=0,0,IF(C20>9999,"",ROUND(VLOOKUP(VLOOKUP(B20,#REF!,11,FALSE),#REF!,10,FALSE)/VLOOKUP(B20,#REF!,9,FALSE)*C20,2))) ->  | H20: =IF(B20=0,"",IF(C20>9999,"",ROUND(VLOOKUP($B20,#REF!,15,FALSE)*C20,2))) ->  | I20: =IF(B20=0,0,IF(C20>9999,"",ROUND(VLOOKUP(VLOOKUP(B20,#REF!,11,FALSE),#REF!,16,FALSE)/VLOOKUP(B20,#REF!,9,FALSE)*C20,2))) ->  | J20: =IF(B20=0,"",IF(C20>9999,"",ROUND(VLOOKUP($B20,#REF!,21,FALSE)*$C20,2))) ->  | K20: =IF(C20>9999,"",ROUND(SUM(E20:J20),2)) -> 
A21: 10 | B21: Load Large Square | C21: =$A$4 -> 4 | D21: ton | E21: =IF(B21=0,"",IF(C21>9999,"",ROUND('General Variables'!$B$4*VLOOKUP(B21,#REF!,10,FALSE)/VLOOKUP(B21,#REF!,9,FALSE)*C21,2))) ->  | F21: =IF(B21=0,0,IF(C21>9999,"",ROUND(IF(VLOOKUP(B21,#REF!,12,FALSE)=0,VLOOKUP(B21,#REF!,13,FALSE)*'General Variables'!$B$8,VLOOKUP(B21,#REF!,12,FALSE)*'General Variables'!$B$7)/VLOOKUP(B21,#REF!,9,FALSE)*C21,2))) ->  | G21: =IF(B21=0,0,IF(C21>9999,"",ROUND(VLOOKUP(VLOOKUP(B21,#REF!,11,FALSE),#REF!,10,FALSE)/VLOOKUP(B21,#REF!,9,FALSE)*C21,2))) ->  | H21: =IF(B21=0,"",IF(C21>9999,"",ROUND(VLOOKUP($B21,#REF!,15,FALSE)*C21,2))) ->  | I21: =IF(B21=0,0,IF(C21>9999,"",ROUND(VLOOKUP(VLOOKUP(B21,#REF!,11,FALSE),#REF!,16,FALSE)/VLOOKUP(B21,#REF!,9,FALSE)*C21,2))) ->  | J21: =IF(B21=0,"",IF(C21>9999,"",ROUND(VLOOKUP($B21,#REF!,21,FALSE)*$C21,2))) ->  | K21: =IF(C21>9999,"",ROUND(SUM(E21:J21),2)) -> 
A22: 11 | B22: Spray | C22: 0.5 | E22: =IF(B22=0,"",IF(C22>9999,"",ROUND('General Variables'!$B$4*VLOOKUP(B22,#REF!,10,FALSE)/VLOOKUP(B22,#REF!,9,FALSE)*C22,2))) ->  | F22: =IF(B22=0,0,IF(C22>9999,"",ROUND(IF(VLOOKUP(B22,#REF!,12,FALSE)=0,VLOOKUP(B22,#REF!,13,FALSE)*'General Variables'!$B$8,VLOOKUP(B22,#REF!,12,FALSE)*'General Variables'!$B$7)/VLOOKUP(B22,#REF!,9,FALSE)*C22,2))) ->  | G22: =IF(B22=0,0,IF(C22>9999,"",ROUND(VLOOKUP(VLOOKUP(B22,#REF!,11,FALSE),#REF!,10,FALSE)/VLOOKUP(B22,#REF!,9,FALSE)*C22,2))) ->  | H22: =IF(B22=0,"",IF(C22>9999,"",ROUND(VLOOKUP($B22,#REF!,15,FALSE)*C22,2))) ->  | I22: =IF(B22=0,0,IF(C22>9999,"",ROUND(VLOOKUP(VLOOKUP(B22,#REF!,11,FALSE),#REF!,16,FALSE)/VLOOKUP(B22,#REF!,9,FALSE)*C22,2))) ->  | J22: =IF(B22=0,"",IF(C22>9999,"",ROUND(VLOOKUP($B22,#REF!,21,FALSE)*$C22,2))) ->  | K22: =IF(C22>9999,"",ROUND(SUM(E22:J22),2)) -> 
A23: 12 | E23: =IF(B23=0,"",IF(C23>9999,"",ROUND('General Variables'!$B$4*VLOOKUP(B23,#REF!,10,FALSE)/VLOOKUP(B23,#REF!,9,FALSE)*C23,2))) ->  | F23: =IF(B23=0,0,IF(C23>9999,"",ROUND(IF(VLOOKUP(B23,#REF!,12,FALSE)=0,VLOOKUP(B23,#REF!,13,FALSE)*'General Variables'!$B$8,VLOOKUP(B23,#REF!,12,FALSE)*'General Variables'!$B$7)/VLOOKUP(B23,#REF!,9,FALSE)*C23,2))) -> 0 | G23: =IF(B23=0,0,IF(C23>9999,"",ROUND(VLOOKUP(VLOOKUP(B23,#REF!,11,FALSE),#REF!,10,FALSE)/VLOOKUP(B23,#REF!,9,FALSE)*C23,2))) -> 0 | H23: =IF(B23=0,"",IF(C23>9999,"",ROUND(VLOOKUP($B23,#REF!,15,FALSE)*C23,2))) ->  | I23: =IF(B23=0,0,IF(C23>9999,"",ROUND(VLOOKUP(VLOOKUP(B23,#REF!,11,FALSE),#REF!,16,FALSE)/VLOOKUP(B23,#REF!,9,FALSE)*C23,2))) -> 0 | J23: =IF(B23=0,"",IF(C23>9999,"",ROUND(VLOOKUP($B23,#REF!,21,FALSE)*$C23,2))) ->  | K23: 0
A24: 13 | E24: =IF(B24=0,"",IF(C24>9999,"",ROUND('General Variables'!$B$4*VLOOKUP(B24,#REF!,10,FALSE)/VLOOKUP(B24,#REF!,9,FALSE)*C24,2))) ->  | F24: =IF(B24=0,0,IF(C24>9999,"",ROUND(IF(VLOOKUP(B24,#REF!,12,FALSE)=0,VLOOKUP(B24,#REF!,13,FALSE)*'General Variables'!$B$8,VLOOKUP(B24,#REF!,12,FALSE)*'General Variables'!$B$7)/VLOOKUP(B24,#REF!,9,FALSE)*C24,2))) -> 0 | G24: =IF(B24=0,0,IF(C24>9999,"",ROUND(VLOOKUP(VLOOKUP(B24,#REF!,11,FALSE),#REF!,10,FALSE)/VLOOKUP(B24,#REF!,9,FALSE)*C24,2))) -> 0 | H24: =IF(B24=0,"",IF(C24>9999,"",ROUND(VLOOKUP($B24,#REF!,15,FALSE)*C24,2))) ->  | I24: =IF(B24=0,0,IF(C24>9999,"",ROUND(VLOOKUP(VLOOKUP(B24,#REF!,11,FALSE),#REF!,16,FALSE)/VLOOKUP(B24,#REF!,9,FALSE)*C24,2))) -> 0 | J24: =IF(B24=0,"",IF(C24>9999,"",ROUND(VLOOKUP($B24,#REF!,21,FALSE)*$C24,2))) ->  | K24: 0
A25: 14 | E25: =IF(B25=0,"",IF(C25>9999,"",ROUND('General Variables'!$B$4*VLOOKUP(B25,#REF!,10,FALSE)/VLOOKUP(B25,#REF!,9,FALSE)*C25,2))) ->  | F25: =IF(B25=0,0,IF(C25>9999,"",ROUND(IF(VLOOKUP(B25,#REF!,12,FALSE)=0,VLOOKUP(B25,#REF!,13,FALSE)*'General Variables'!$B$8,VLOOKUP(B25,#REF!,12,FALSE)*'General Variables'!$B$7)/VLOOKUP(B25,#REF!,9,FALSE)*C25,2))) -> 0 | G25: =IF(B25=0,0,IF(C25>9999,"",ROUND(VLOOKUP(VLOOKUP(B25,#REF!,11,FALSE),#REF!,10,FALSE)/VLOOKUP(B25,#REF!,9,FALSE)*C25,2))) -> 0 | H25: =IF(B25=0,"",IF(C25>9999,"",ROUND(VLOOKUP($B25,#REF!,15,FALSE)*C25,2))) ->  | I25: =IF(B25=0,0,IF(C25>9999,"",ROUND(VLOOKUP(VLOOKUP(B25,#REF!,11,FALSE),#REF!,16,FALSE)/VLOOKUP(B25,#REF!,9,FALSE)*C25,2))) -> 0 | J25: =IF(B25=0,"",IF(C25>9999,"",ROUND(VLOOKUP($B25,#REF!,21,FALSE)*$C25,2))) ->  | K25: 0
A26: 15 | E26: =IF(B26=0,"",IF(C26>9999,"",ROUND('General Variables'!$B$4*VLOOKUP(B26,#REF!,10,FALSE)/VLOOKUP(B26,#REF!,9,FALSE)*C26,2))) ->  | F26: =IF(B26=0,0,IF(C26>9999,"",ROUND(IF(VLOOKUP(B26,#REF!,12,FALSE)=0,VLOOKUP(B26,#REF!,13,FALSE)*'General Variables'!$B$8,VLOOKUP(B26,#REF!,12,FALSE)*'General Variables'!$B$7)/VLOOKUP(B26,#REF!,9,FALSE)*C26,2))) -> 0 | G26: =IF(B26=0,0,IF(C26>9999,"",ROUND(VLOOKUP(VLOOKUP(B26,#REF!,11,FALSE),#REF!,10,FALSE)/VLOOKUP(B26,#REF!,9,FALSE)*C26,2))) -> 0 | H26: =IF(B26=0,"",IF(C26>9999,"",ROUND(VLOOKUP($B26,#REF!,15,FALSE)*C26,2))) ->  | I26: =IF(B26=0,0,IF(C26>9999,"",ROUND(VLOOKUP(VLOOKUP(B26,#REF!,11,FALSE),#REF!,16,FALSE)/VLOOKUP(B26,#REF!,9,FALSE)*C26,2))) -> 0 | J26: =IF(B26=0,"",IF(C26>9999,"",ROUND(VLOOKUP($B26,#REF!,21,FALSE)*$C26,2))) ->  | K26: 0
A27: 16 | E27: =IF(B27=0,"",IF(C27>9999,"",ROUND('General Variables'!$B$4*VLOOKUP(B27,#REF!,10,FALSE)/VLOOKUP(B27,#REF!,9,FALSE)*C27,2))) ->  | F27: =IF(B27=0,0,IF(C27>9999,"",ROUND(IF(VLOOKUP(B27,#REF!,12,FALSE)=0,VLOOKUP(B27,#REF!,13,FALSE)*'General Variables'!$B$8,VLOOKUP(B27,#REF!,12,FALSE)*'General Variables'!$B$7)/VLOOKUP(B27,#REF!,9,FALSE)*C27,2))) -> 0 | G27: =IF(B27=0,0,IF(C27>9999,"",ROUND(VLOOKUP(VLOOKUP(B27,#REF!,11,FALSE),#REF!,10,FALSE)/VLOOKUP(B27,#REF!,9,FALSE)*C27,2))) -> 0 | H27: =IF(B27=0,"",IF(C27>9999,"",ROUND(VLOOKUP($B27,#REF!,15,FALSE)*C27,2))) ->  | I27: =IF(B27=0,0,IF(C27>9999,"",ROUND(VLOOKUP(VLOOKUP(B27,#REF!,11,FALSE),#REF!,16,FALSE)/VLOOKUP(B27,#REF!,9,FALSE)*C27,2))) -> 0 | J27: =IF(B27=0,"",IF(C27>9999,"",ROUND(VLOOKUP($B27,#REF!,21,FALSE)*$C27,2))) ->  | K27: 0
A28: 17 | E28: =IF(B28=0,"",IF(C28>9999,"",ROUND('General Variables'!$B$4*VLOOKUP(B28,#REF!,10,FALSE)/VLOOKUP(B28,#REF!,9,FALSE)*C28,2))) ->  | F28: =IF(B28=0,0,IF(C28>9999,"",ROUND(IF(VLOOKUP(B28,#REF!,12,FALSE)=0,VLOOKUP(B28,#REF!,13,FALSE)*'General Variables'!$B$8,VLOOKUP(B28,#REF!,12,FALSE)*'General Variables'!$B$7)/VLOOKUP(B28,#REF!,9,FALSE)*C28,2))) -> 0 | G28: =IF(B28=0,0,IF(C28>9999,"",ROUND(VLOOKUP(VLOOKUP(B28,#REF!,11,FALSE),#REF!,10,FALSE)/VLOOKUP(B28,#REF!,9,FALSE)*C28,2))) -> 0 | H28: =IF(B28=0,"",IF(C28>9999,"",ROUND(VLOOKUP($B28,#REF!,15,FALSE)*C28,2))) ->  | I28: =IF(B28=0,0,IF(C28>9999,"",ROUND(VLOOKUP(VLOOKUP(B28,#REF!,11,FALSE),#REF!,16,FALSE)/VLOOKUP(B28,#REF!,9,FALSE)*C28,2))) -> 0 | J28: =IF(B28=0,"",IF(C28>9999,"",ROUND(VLOOKUP($B28,#REF!,21,FALSE)*$C28,2))) ->  | K28: 0
A29: 18 | E29: =IF(B29=0,"",IF(C29>9999,"",ROUND('General Variables'!$B$4*VLOOKUP(B29,#REF!,10,FALSE)/VLOOKUP(B29,#REF!,9,FALSE)*C29,2))) ->  | F29: =IF(B29=0,0,IF(C29>9999,"",ROUND(IF(VLOOKUP(B29,#REF!,12,FALSE)=0,VLOOKUP(B29,#REF!,13,FALSE)*'General Variables'!$B$8,VLOOKUP(B29,#REF!,12,FALSE)*'General Variables'!$B$7)/VLOOKUP(B29,#REF!,9,FALSE)*C29,2))) -> 0 | G29: =IF(B29=0,0,IF(C29>9999,"",ROUND(VLOOKUP(VLOOKUP(B29,#REF!,11,FALSE),#REF!,10,FALSE)/VLOOKUP(B29,#REF!,9,FALSE)*C29,2))) -> 0 | H29: =IF(B29=0,"",IF(C29>9999,"",ROUND(VLOOKUP($B29,#REF!,15,FALSE)*C29,2))) ->  | I29: =IF(B29=0,0,IF(C29>9999,"",ROUND(VLOOKUP(VLOOKUP(B29,#REF!,11,FALSE),#REF!,16,FALSE)/VLOOKUP(B29,#REF!,9,FALSE)*C29,2))) -> 0 | J29: =IF(B29=0,"",IF(C29>9999,"",ROUND(VLOOKUP($B29,#REF!,21,FALSE)*$C29,2))) ->  | K29: 0
A30: 19 | E30: =IF(B30=0,"",IF(C30>9999,"",ROUND('General Variables'!$B$4*VLOOKUP(B30,#REF!,10,FALSE)/VLOOKUP(B30,#REF!,9,FALSE)*C30,2))) ->  | F30: =IF(B30=0,0,IF(C30>9999,"",ROUND(IF(VLOOKUP(B30,#REF!,12,FALSE)=0,VLOOKUP(B30,#REF!,13,FALSE)*'General Variables'!$B$8,VLOOKUP(B30,#REF!,12,FALSE)*'General Variables'!$B$7)/VLOOKUP(B30,#REF!,9,FALSE)*C30,2))) -> 0 | G30: =IF(B30=0,0,IF(C30>9999,"",ROUND(VLOOKUP(VLOOKUP(B30,#REF!,11,FALSE),#REF!,10,FALSE)/VLOOKUP(B30,#REF!,9,FALSE)*C30,2))) -> 0 | H30: =IF(B30=0,"",IF(C30>9999,"",ROUND(VLOOKUP($B30,#REF!,15,FALSE)*C30,2))) ->  | I30: =IF(B30=0,0,IF(C30>9999,"",ROUND(VLOOKUP(VLOOKUP(B30,#REF!,11,FALSE),#REF!,16,FALSE)/VLOOKUP(B30,#REF!,9,FALSE)*C30,2))) -> 0 | J30: =IF(B30=0,"",IF(C30>9999,"",ROUND(VLOOKUP($B30,#REF!,21,FALSE)*$C30,2))) ->  | K30: 0
A31: 20 | E31: =IF(B31=0,"",IF(C31>9999,"",ROUND('General Variables'!$B$4*VLOOKUP(B31,#REF!,10,FALSE)/VLOOKUP(B31,#REF!,9,FALSE)*C31,2))) ->  | F31: =IF(B31=0,0,IF(C31>9999,"",ROUND(IF(VLOOKUP(B31,#REF!,12,FALSE)=0,VLOOKUP(B31,#REF!,13,FALSE)*'General Variables'!$B$8,VLOOKUP(B31,#REF!,12,FALSE)*'General Variables'!$B$7)/VLOOKUP(B31,#REF!,9,FALSE)*C31,2))) -> 0 | G31: =IF(B31=0,0,IF(C31>9999,"",ROUND(VLOOKUP(VLOOKUP(B31,#REF!,11,FALSE),#REF!,10,FALSE)/VLOOKUP(B31,#REF!,9,FALSE)*C31,2))) -> 0 | H31: =IF(B31=0,"",IF(C31>9999,"",ROUND(VLOOKUP($B31,#REF!,15,FALSE)*C31,2))) ->  | I31: =IF(B31=0,0,IF(C31>9999,"",ROUND(VLOOKUP(VLOOKUP(B31,#REF!,11,FALSE),#REF!,16,FALSE)/VLOOKUP(B31,#REF!,9,FALSE)*C31,2))) -> 0 | J31: =IF(B31=0,"",IF(C31>9999,"",ROUND(VLOOKUP($B31,#REF!,21,FALSE)*$C31,2))) ->  | K31: 0
C33: Total for Field Operations | E33: =SUM(E12:E31) ->  | F33: =SUM(F12:F31) -> 
F35: Operation Index | G35: Percent Acres Applied | H35: Application | J35: Applied Price | L35: Your Estimate
B36: Materials & Services | H36: Rate | I36: Unit | K36: Total
B37: 11-52-0 | C37: =IF(B37=0,"",VLOOKUP($B37,Table2[],2,FALSE)) -> Fertilizer | F37: 1 | G37: 1 | H37: 100 | I37: =IF($B37=0,"",VLOOKUP($B37,Table2[],5,FALSE)) -> pound | J37: =IF($B37=0,"",VLOOKUP($B37,Table2[],7,FALSE)) -> 0.24 | K37: =IF(B37=0,0,ROUND(G37*H37*J37,2)) -> 24
B38: Seeder/Packer | C38: =IF(B38=0,"",VLOOKUP($B38,Table2[],2,FALSE)) -> Rental | F38: 4 | G38: 1 | H38: 1 | I38: =IF($B38=0,"",VLOOKUP($B38,Table2[],5,FALSE)) -> acre | J38: =IF($B38=0,"",VLOOKUP($B38,Table2[],7,FALSE)) -> 13 | K38: =IF(B38=0,0,ROUND(G38*H38*J38,2)) -> 13
B39: Alfalfa RR w/Inoculant | C39: =IF(B39=0,"",VLOOKUP($B39,Table2[],2,FALSE)) -> Seed | F39: 4 | G39: 1 | H39: 12 | I39: =IF($B39=0,"",VLOOKUP($B39,Table2[],5,FALSE)) -> pound | J39: =IF($B39=0,"",VLOOKUP($B39,Table2[],7,FALSE)) -> 9 | K39: 108
B40: Roundup WeatherMax | C40: =IF(B40=0,"",VLOOKUP($B40,Table2[],2,FALSE)) -> Herbicide | F40: 5 | G40: 1 | H40: 44 | I40: =IF($B40=0,"",VLOOKUP($B40,Table2[],5,FALSE)) -> ounce | J40: =IF($B40=0,"",VLOOKUP($B40,Table2[],7,FALSE)) -> 0.25 | K40: 11
B41: 21-0-0-24S | C41: =IF(B41=0,"",VLOOKUP($B41,Table2[],2,FALSE)) -> Additive | F41: 5 | G41: 1 | H41: 1.7 | I41: =IF($B41=0,"",VLOOKUP($B41,Table2[],5,FALSE)) -> pound | J41: =IF($B41=0,"",VLOOKUP($B41,Table2[],7,FALSE)) -> 0.35 | K41: 0.6
B42: Twine Large Square | C42: =IF(B42=0,"",VLOOKUP($B42,Table2[],2,FALSE)) -> Other | F42: 9 | G42: 1 | H42: =$A$4 -> 4 | I42: =IF($B42=0,"",VLOOKUP($B42,Table2[],5,FALSE)) -> ton | J42: =IF($B42=0,"",VLOOKUP($B42,Table2[],7,FALSE)) -> 1.806167401 | K42: 7.22
B43: Lorsban Advanced | C43: =IF(B43=0,"",VLOOKUP($B43,Table2[],2,FALSE)) -> Insecticide | F43: 11 | G43: 0.5 | H43: 1 | I43: =IF($B43=0,"",VLOOKUP($B43,Table2[],5,FALSE)) -> pint | J43: =IF($B43=0,"",VLOOKUP($B43,Table2[],7,FALSE)) -> 6.875 | K43: 3.44
C44: =IF(B44=0,"",VLOOKUP($B44,Table2[],2,FALSE)) ->  | I44: =IF($B44=0,"",VLOOKUP($B44,Table2[],5,FALSE)) ->  | J44: =IF($B44=0,"",VLOOKUP($B44,Table2[],7,FALSE)) ->  | K44: 0
C45: =IF(B45=0,"",VLOOKUP($B45,Table2[],2,FALSE)) ->  | I45: =IF($B45=0,"",VLOOKUP($B45,Table2[],5,FALSE)) ->  | J45: =IF($B45=0,"",VLOOKUP($B45,Table2[],7,FALSE)) ->  | K45: 0
C46: =IF(B46=0,"",VLOOKUP($B46,Table2[],2,FALSE)) ->  | I46: =IF($B46=0,"",VLOOKUP($B46,Table2[],5,FALSE)) ->  | J46: =IF($B46=0,"",VLOOKUP($B46,Table2[],7,FALSE)) ->  | K46: 0
C47: =IF(B47=0,"",VLOOKUP($B47,Table2[],2,FALSE)) ->  | I47: =IF($B47=0,"",VLOOKUP($B47,Table2[],5,FALSE)) ->  | J47: =IF($B47=0,"",VLOOKUP($B47,Table2[],7,FALSE)) ->  | K47: 0
C48: =IF(B48=0,"",VLOOKUP($B48,Table2[],2,FALSE)) ->  | I48: =IF($B48=0,"",VLOOKUP($B48,Table2[],5,FALSE)) ->  | J48: =IF($B48=0,"",VLOOKUP($B48,Table2[],7,FALSE)) ->  | K48: 0
C49: =IF(B49=0,"",VLOOKUP($B49,Table2[],2,FALSE)) ->  | I49: =IF($B49=0,"",VLOOKUP($B49,Table2[],5,FALSE)) ->  | J49: =IF($B49=0,"",VLOOKUP($B49,Table2[],7,FALSE)) ->  | K49: 0
C50: =IF(B50=0,"",VLOOKUP($B50,Table2[],2,FALSE)) ->  | I50: =IF($B50=0,"",VLOOKUP($B50,Table2[],5,FALSE)) ->  | J50: =IF($B50=0,"",VLOOKUP($B50,Table2[],7,FALSE)) ->  | K50: 0
C51: =IF(B51=0,"",VLOOKUP($B51,Table2[],2,FALSE)) ->  | I51: =IF($B51=0,"",VLOOKUP($B51,Table2[],5,FALSE)) ->  | J51: =IF($B51=0,"",VLOOKUP($B51,Table2[],7,FALSE)) ->  | K51: 0
C52: =IF(B52=0,"",VLOOKUP($B52,Table2[],2,FALSE)) ->  | I52: =IF($B52=0,"",VLOOKUP($B52,Table2[],5,FALSE)) ->  | J52: =IF($B52=0,"",VLOOKUP($B52,Table2[],7,FALSE)) ->  | K52: 0
C53: =IF(B53=0,"",VLOOKUP($B53,Table2[],2,FALSE)) ->  | I53: =IF($B53=0,"",VLOOKUP($B53,Table2[],5,FALSE)) ->  | J53: =IF($B53=0,"",VLOOKUP($B53,Table2[],7,FALSE)) ->  | K53: 0
C54: =IF(B54=0,"",VLOOKUP($B54,Table2[],2,FALSE)) ->  | I54: =IF($B54=0,"",VLOOKUP($B54,Table2[],5,FALSE)) ->  | J54: =IF($B54=0,"",VLOOKUP($B54,Table2[],7,FALSE)) ->  | K54: 0
C55: =IF(B55=0,"",VLOOKUP($B55,Table2[],2,FALSE)) ->  | I55: =IF($B55=0,"",VLOOKUP($B55,Table2[],5,FALSE)) ->  | J55: =IF($B55=0,"",VLOOKUP($B55,Table2[],7,FALSE)) ->  | K55: 0
C56: =IF(B56=0,"",VLOOKUP($B56,Table2[],2,FALSE)) ->  | I56: =IF($B56=0,"",VLOOKUP($B56,Table2[],5,FALSE)) ->  | J56: =IF($B56=0,"",VLOOKUP($B56,Table2[],7,FALSE)) ->  | K56: =IF(B56=0,0,ROUND(G56*H56*J56,2)) -> 0
C57: =IF(B57=0,"",VLOOKUP($B57,Table2[],2,FALSE)) ->  | I57: =IF($B57=0,"",VLOOKUP($B57,Table2[],5,FALSE)) ->  | J57: =IF($B57=0,"",VLOOKUP($B57,Table2[],7,FALSE)) ->  | K57: =IF(B57=0,0,ROUND(G57*H57*J57,2)) -> 0
C58: =IF(B58=0,"",VLOOKUP($B58,Table2[],2,FALSE)) ->  | I58: =IF($B58=0,"",VLOOKUP($B58,Table2[],5,FALSE)) ->  | J58: =IF($B58=0,"",VLOOKUP($B58,Table2[],7,FALSE)) ->  | K58: =IF(B58=0,0,ROUND(G58*H58*J58,2)) -> 0
C59: =IF(B59=0,"",VLOOKUP($B59,Table2[],2,FALSE)) ->  | I59: =IF($B59=0,"",VLOOKUP($B59,Table2[],5,FALSE)) ->  | J59: =IF($B59=0,"",VLOOKUP($B59,Table2[],7,FALSE)) ->  | K59: =IF(B59=0,0,ROUND(G59*H59*J59,2)) -> 0
C60: =IF(B60=0,"",VLOOKUP($B60,Table2[],2,FALSE)) ->  | I60: =IF($B60=0,"",VLOOKUP($B60,Table2[],5,FALSE)) ->  | J60: =IF($B60=0,"",VLOOKUP($B60,Table2[],7,FALSE)) ->  | K60: =IF(B60=0,0,ROUND(G60*H60*J60,2)) -> 0
C61: Crop Insurance | J61: =IF($B61=0,"",VLOOKUP($B61,Materials!$B$2:$H$127,7,FALSE)) ->  | K61: 0
C63: Total Materials & Services | K63: =SUM(K37:K61) -> 167.26
B65: Total listed costs for Field Operations and Materials and Services | K65: =K33+K63 -> 
D66: Interest on Operations Capital | E66: =ROUND(SUM($E$33:$H$33)+$K$63,2) ->  | F66: cash expense @ | H66: ='General Variables'!$B$11 -> 0.055 | I66: =CONCATENATE("for ",TEXT('General Variables'!$B$12,"0.0")," mo.") -> for 6.0 mo. | K66: =E66*H66*'General Variables'!$B$12/12 -> 
B67: Total Operating and Use Related Ownership Costs | K67: =SUM(K65:K66) -> 
B69: Overhead (accounting, liability insurance, vehicle cost, office expense) | K69: ='General Variables'!B14 -> 20
B70: Real Estate Opportunity | C70: Pivot (State) | F70: =IF(C70=0,0,VLOOKUP(C70,RETable,2,FALSE)) -> 6940 | G70: per acre @ | I70: ='General Variables'!$B$10 -> 0.04 | K70: =ROUND(F70*I70,2) -> 277.6
B71: Real Estate Taxes | F71: =IF(C70=0,0,VLOOKUP(C70,RETable,2,FALSE)) -> 6940 | G71: per acre @ | I71: ='General Variables'!$B$13 -> 0.01 | K71: =ROUND(F71*I71,2) -> 69.4
B72: Total Cost per Acre Including Overhead | K72: =SUM(K67:K71) -> 
B74: ="Cost per "&$B$4 -> Cost per ton | K74: =IF(A4="Yield",0,K72/$A$4) -> 
B75: ="Cash Cost per "&$B$4 -> Cash Cost per ton | K75: =IF($A$4="Yield",0,(E66+K66+K71)/$A$4) -> 
K111: Yes
K112: No
B240: =IF(#REF!="","",#REF!) ->  | C240: =IF(Materials!B132="","",Materials!B132) -> 
B241: =IF(#REF!="","",#REF!) ->  | C241: =IF(Materials!B133="","",Materials!B133) -> 
B242: =IF(#REF!="","",#REF!) ->  | C242: =IF(Materials!B134="","",Materials!B134) -> 
B243: =IF(#REF!="","",#REF!) ->  | C243: =IF(Materials!B135="","",Materials!B135) -> 
B244: =IF(#REF!="","",#REF!) ->  | C244: =IF(Materials!B136="","",Materials!B136) -> 

Sheet 8-Alfalfa
A2: =REPLACE(CELL("filename",A1),1,FIND("]",CELL("filename",A1)),"") -> 8-Alfalfa | I2: Gravity Irrigated, Canal | L2: ='General Variables'!A3&" "&'General Variables'!B3 -> Year 2017 | O2: Acre
A3: Fall Seeded with Subsequent Year Production | H3: 18 | I3: acre/inches | O3: ai
A4: 2.5 | B4: ton | J4: Does Crop Follow a Legume? | O4: =B4 -> ton
A5: =A2 & IF(C2="","", ", " &C2 ) & ", " & A3 & ", " & I2 -> 8-Alfalfa, Fall Seeded with Subsequent Year Production, Gravity Irrigated, Canal
A7: ='General Variables'!B3 & " Budget " & A2 &", " & IF(C2=0,"", " " & C2 & ", ") & A3 & IF(A4=""," ", " (") & A4 & " " & B4 & IF(A4="",""," Actual Yield)") -> 2017 Budget 8-Alfalfa, Fall Seeded with Subsequent Year Production (2.5 ton Actual Yield)
A8: =IF(I2="Dryland","Dryland",I2 & IF(J2="","",", "&J2)&IF(H3="","",", "&H3&" "&I3)) -> Gravity Irrigated, Canal, 18 acre/inches
B10: Field Operations | C10: Times or Qty | E10: ="Labor @ $" &TEXT('General Variables'!B4,"#.00")& " /Hr" -> Labor @ $20.00 /Hr | F10: ="Fuel @ $" & TEXT('General Variables'!B5,"#.00") & " and Lube" -> Fuel @ $2.25 and Lube | G10: Repairs | I10: Ownership | K10: Total | L10: Your Estimate
D11: Unit | G11: Power | H11: Imp. | I11: Power | J11: Imp.
A12: 1 | B12: Disk | C12: 1 | E12: =IF(B12=0,"",IF(C12>9999,"",ROUND('General Variables'!$B$4*VLOOKUP(B12,#REF!,10,FALSE)/VLOOKUP(B12,#REF!,9,FALSE)*C12,2))) ->  | F12: =IF(B12=0,0,IF(C12>9999,"",ROUND(IF(VLOOKUP(B12,#REF!,12,FALSE)=0,VLOOKUP(B12,#REF!,13,FALSE)*'General Variables'!$B$8,VLOOKUP(B12,#REF!,12,FALSE)*'General Variables'!$B$7)/VLOOKUP(B12,#REF!,9,FALSE)*C12,2))) ->  | G12: =IF(B12=0,0,IF(C12>9999,"",ROUND(VLOOKUP(VLOOKUP(B12,#REF!,11,FALSE),#REF!,10,FALSE)/VLOOKUP(B12,#REF!,9,FALSE)*C12,2))) ->  | H12: =IF(B12=0,"",IF(C12>9999,"",ROUND(VLOOKUP($B12,#REF!,15,FALSE)*C12,2))) ->  | I12: =IF(B12=0,0,IF(C12>9999,"",ROUND(VLOOKUP(VLOOKUP(B12,#REF!,11,FALSE),#REF!,16,FALSE)/VLOOKUP(B12,#REF!,9,FALSE)*C12,2))) ->  | J12: =IF(B12=0,"",IF(C12>9999,"",ROUND(VLOOKUP($B12,#REF!,21,FALSE)*$C12,2))) ->  | K12: =IF(C12>9999,"",ROUND(SUM(E12:J12),2)) -> 
A13: 2 | B13: Spread Fertilizer | C13: 1 | E13: =IF(B13=0,"",IF(C13>9999,"",ROUND('General Variables'!$B$4*VLOOKUP(B13,#REF!,10,FALSE)/VLOOKUP(B13,#REF!,9,FALSE)*C13,2))) ->  | F13: =IF(B13=0,0,IF(C13>9999,"",ROUND(IF(VLOOKUP(B13,#REF!,12,FALSE)=0,VLOOKUP(B13,#REF!,13,FALSE)*'General Variables'!$B$8,VLOOKUP(B13,#REF!,12,FALSE)*'General Variables'!$B$7)/VLOOKUP(B13,#REF!,9,FALSE)*C13,2))) ->  | G13: =IF(B13=0,0,IF(C13>9999,"",ROUND(VLOOKUP(VLOOKUP(B13,#REF!,11,FALSE),#REF!,10,FALSE)/VLOOKUP(B13,#REF!,9,FALSE)*C13,2))) ->  | H13: =IF(B13=0,"",IF(C13>9999,"",ROUND(VLOOKUP($B13,#REF!,15,FALSE)*C13,2))) ->  | I13: =IF(B13=0,0,IF(C13>9999,"",ROUND(VLOOKUP(VLOOKUP(B13,#REF!,11,FALSE),#REF!,16,FALSE)/VLOOKUP(B13,#REF!,9,FALSE)*C13,2))) ->  | J13: =IF(B13=0,"",IF(C13>9999,"",ROUND(VLOOKUP($B13,#REF!,21,FALSE)*$C13,2))) ->  | K13: =IF(C13>9999,"",ROUND(SUM(E13:J13),2)) -> 
A14: 3 | B14: Roll | C14: 1 | E14: =IF(B14=0,"",IF(C14>9999,"",ROUND('General Variables'!$B$4*VLOOKUP(B14,#REF!,10,FALSE)/VLOOKUP(B14,#REF!,9,FALSE)*C14,2))) ->  | F14: =IF(B14=0,0,IF(C14>9999,"",ROUND(IF(VLOOKUP(B14,#REF!,12,FALSE)=0,VLOOKUP(B14,#REF!,13,FALSE)*'General Variables'!$B$8,VLOOKUP(B14,#REF!,12,FALSE)*'General Variables'!$B$7)/VLOOKUP(B14,#REF!,9,FALSE)*C14,2))) ->  | G14: =IF(B14=0,0,IF(C14>9999,"",ROUND(VLOOKUP(VLOOKUP(B14,#REF!,11,FALSE),#REF!,10,FALSE)/VLOOKUP(B14,#REF!,9,FALSE)*C14,2))) ->  | H14: =IF(B14=0,"",IF(C14>9999,"",ROUND(VLOOKUP($B14,#REF!,15,FALSE)*C14,2))) ->  | I14: =IF(B14=0,0,IF(C14>9999,"",ROUND(VLOOKUP(VLOOKUP(B14,#REF!,11,FALSE),#REF!,16,FALSE)/VLOOKUP(B14,#REF!,9,FALSE)*C14,2))) ->  | J14: =IF(B14=0,"",IF(C14>9999,"",ROUND(VLOOKUP($B14,#REF!,21,FALSE)*$C14,2))) -> 
A15: 4 | B15: Drill | C15: 1 | E15: =IF(B15=0,"",IF(C15>9999,"",ROUND('General Variables'!$B$4*VLOOKUP(B15,#REF!,10,FALSE)/VLOOKUP(B15,#REF!,9,FALSE)*C15,2))) ->  | F15: =IF(B15=0,0,IF(C15>9999,"",ROUND(IF(VLOOKUP(B15,#REF!,12,FALSE)=0,VLOOKUP(B15,#REF!,13,FALSE)*'General Variables'!$B$8,VLOOKUP(B15,#REF!,12,FALSE)*'General Variables'!$B$7)/VLOOKUP(B15,#REF!,9,FALSE)*C15,2))) ->  | G15: =IF(B15=0,0,IF(C15>9999,"",ROUND(VLOOKUP(VLOOKUP(B15,#REF!,11,FALSE),#REF!,10,FALSE)/VLOOKUP(B15,#REF!,9,FALSE)*C15,2))) ->  | H15: =IF(B15=0,"",IF(C15>9999,"",ROUND(VLOOKUP($B15,#REF!,15,FALSE)*C15,2))) ->  | I15: =IF(B15=0,0,IF(C15>9999,"",ROUND(VLOOKUP(VLOOKUP(B15,#REF!,11,FALSE),#REF!,16,FALSE)/VLOOKUP(B15,#REF!,9,FALSE)*C15,2))) ->  | J15: =IF(B15=0,"",IF(C15>9999,"",ROUND(VLOOKUP($B15,#REF!,21,FALSE)*$C15,2))) -> 
A16: 5 | B16: Spray | C16: 0.2 | E16: =IF(B16=0,"",IF(C16>9999,"",ROUND('General Variables'!$B$4*VLOOKUP(B16,#REF!,10,FALSE)/VLOOKUP(B16,#REF!,9,FALSE)*C16,2))) ->  | F16: =IF(B16=0,0,IF(C16>9999,"",ROUND(IF(VLOOKUP(B16,#REF!,12,FALSE)=0,VLOOKUP(B16,#REF!,13,FALSE)*'General Variables'!$B$8,VLOOKUP(B16,#REF!,12,FALSE)*'General Variables'!$B$7)/VLOOKUP(B16,#REF!,9,FALSE)*C16,2))) ->  | G16: =IF(B16=0,0,IF(C16>9999,"",ROUND(VLOOKUP(VLOOKUP(B16,#REF!,11,FALSE),#REF!,10,FALSE)/VLOOKUP(B16,#REF!,9,FALSE)*C16,2))) ->  | H16: =IF(B16=0,"",IF(C16>9999,"",ROUND(VLOOKUP($B16,#REF!,15,FALSE)*C16,2))) ->  | I16: =IF(B16=0,0,IF(C16>9999,"",ROUND(VLOOKUP(VLOOKUP(B16,#REF!,11,FALSE),#REF!,16,FALSE)/VLOOKUP(B16,#REF!,9,FALSE)*C16,2))) ->  | J16: =IF(B16=0,"",IF(C16>9999,"",ROUND(VLOOKUP($B16,#REF!,21,FALSE)*$C16,2))) -> 
A17: 6 | B17: Corrugate | C17: 1 | E17: =IF(B17=0,"",IF(C17>9999,"",ROUND('General Variables'!$B$4*VLOOKUP(B17,#REF!,10,FALSE)/VLOOKUP(B17,#REF!,9,FALSE)*C17,2))) ->  | F17: =IF(B17=0,0,IF(C17>9999,"",ROUND(IF(VLOOKUP(B17,#REF!,12,FALSE)=0,VLOOKUP(B17,#REF!,13,FALSE)*'General Variables'!$B$8,VLOOKUP(B17,#REF!,12,FALSE)*'General Variables'!$B$7)/VLOOKUP(B17,#REF!,9,FALSE)*C17,2))) ->  | G17: =IF(B17=0,0,IF(C17>9999,"",ROUND(VLOOKUP(VLOOKUP(B17,#REF!,11,FALSE),#REF!,10,FALSE)/VLOOKUP(B17,#REF!,9,FALSE)*C17,2))) ->  | H17: =IF(B17=0,"",IF(C17>9999,"",ROUND(VLOOKUP($B17,#REF!,15,FALSE)*C17,2))) ->  | I17: =IF(B17=0,0,IF(C17>9999,"",ROUND(VLOOKUP(VLOOKUP(B17,#REF!,11,FALSE),#REF!,16,FALSE)/VLOOKUP(B17,#REF!,9,FALSE)*C17,2))) ->  | J17: =IF(B17=0,"",IF(C17>9999,"",ROUND(VLOOKUP($B17,#REF!,21,FALSE)*$C17,2))) -> 
A18: 7 | B18: Swath/Condition Hay | C18: 2 | E18: =IF(B18=0,"",IF(C18>9999,"",ROUND('General Variables'!$B$4*VLOOKUP(B18,#REF!,10,FALSE)/VLOOKUP(B18,#REF!,9,FALSE)*C18,2))) ->  | F18: =IF(B18=0,0,IF(C18>9999,"",ROUND(IF(VLOOKUP(B18,#REF!,12,FALSE)=0,VLOOKUP(B18,#REF!,13,FALSE)*'General Variables'!$B$8,VLOOKUP(B18,#REF!,12,FALSE)*'General Variables'!$B$7)/VLOOKUP(B18,#REF!,9,FALSE)*C18,2))) ->  | G18: =IF(B18=0,0,IF(C18>9999,"",ROUND(VLOOKUP(VLOOKUP(B18,#REF!,11,FALSE),#REF!,10,FALSE)/VLOOKUP(B18,#REF!,9,FALSE)*C18,2))) ->  | H18: =IF(B18=0,"",IF(C18>9999,"",ROUND(VLOOKUP($B18,#REF!,15,FALSE)*C18,2))) ->  | I18: =IF(B18=0,0,IF(C18>9999,"",ROUND(VLOOKUP(VLOOKUP(B18,#REF!,11,FALSE),#REF!,16,FALSE)/VLOOKUP(B18,#REF!,9,FALSE)*C18,2))) ->  | J18: =IF(B18=0,"",IF(C18>9999,"",ROUND(VLOOKUP($B18,#REF!,21,FALSE)*$C18,2))) -> 
A19: 8 | B19: Turn Windrows | C19: 0.5 | E19: =IF(B19=0,"",IF(C19>9999,"",ROUND('General Variables'!$B$4*VLOOKUP(B19,#REF!,10,FALSE)/VLOOKUP(B19,#REF!,9,FALSE)*C19,2))) ->  | F19: =IF(B19=0,0,IF(C19>9999,"",ROUND(IF(VLOOKUP(B19,#REF!,12,FALSE)=0,VLOOKUP(B19,#REF!,13,FALSE)*'General Variables'!$B$8,VLOOKUP(B19,#REF!,12,FALSE)*'General Variables'!$B$7)/VLOOKUP(B19,#REF!,9,FALSE)*C19,2))) ->  | G19: =IF(B19=0,0,IF(C19>9999,"",ROUND(VLOOKUP(VLOOKUP(B19,#REF!,11,FALSE),#REF!,10,FALSE)/VLOOKUP(B19,#REF!,9,FALSE)*C19,2))) ->  | H19: =IF(B19=0,"",IF(C19>9999,"",ROUND(VLOOKUP($B19,#REF!,15,FALSE)*C19,2))) ->  | I19: =IF(B19=0,0,IF(C19>9999,"",ROUND(VLOOKUP(VLOOKUP(B19,#REF!,11,FALSE),#REF!,16,FALSE)/VLOOKUP(B19,#REF!,9,FALSE)*C19,2))) ->  | J19: =IF(B19=0,"",IF(C19>9999,"",ROUND(VLOOKUP($B19,#REF!,21,FALSE)*$C19,2))) -> 
A20: 9 | B20: Large Round Bale | C20: =A4 -> 2.5 | D20: ton | E20: =IF(B20=0,"",IF(C20>9999,"",ROUND('General Variables'!$B$4*VLOOKUP(B20,#REF!,10,FALSE)/VLOOKUP(B20,#REF!,9,FALSE)*C20,2))) ->  | F20: =IF(B20=0,0,IF(C20>9999,"",ROUND(IF(VLOOKUP(B20,#REF!,12,FALSE)=0,VLOOKUP(B20,#REF!,13,FALSE)*'General Variables'!$B$8,VLOOKUP(B20,#REF!,12,FALSE)*'General Variables'!$B$7)/VLOOKUP(B20,#REF!,9,FALSE)*C20,2))) ->  | G20: =IF(B20=0,0,IF(C20>9999,"",ROUND(VLOOKUP(VLOOKUP(B20,#REF!,11,FALSE),#REF!,10,FALSE)/VLOOKUP(B20,#REF!,9,FALSE)*C20,2))) ->  | H20: =IF(B20=0,"",IF(C20>9999,"",ROUND(VLOOKUP($B20,#REF!,15,FALSE)*C20,2))) ->  | I20: =IF(B20=0,0,IF(C20>9999,"",ROUND(VLOOKUP(VLOOKUP(B20,#REF!,11,FALSE),#REF!,16,FALSE)/VLOOKUP(B20,#REF!,9,FALSE)*C20,2))) ->  | J20: =IF(B20=0,"",IF(C20>9999,"",ROUND(VLOOKUP($B20,#REF!,21,FALSE)*$C20,2))) ->  | K20: =IF(C20>9999,"",ROUND(SUM(E20:J20),2)) -> 
A21: 10 | B21: Move Large Round | C21: =A4 -> 2.5 | D21: ton | E21: =IF(B21=0,"",IF(C21>9999,"",ROUND('General Variables'!$B$4*VLOOKUP(B21,#REF!,10,FALSE)/VLOOKUP(B21,#REF!,9,FALSE)*C21,2))) ->  | F21: =IF(B21=0,0,IF(C21>9999,"",ROUND(IF(VLOOKUP(B21,#REF!,12,FALSE)=0,VLOOKUP(B21,#REF!,13,FALSE)*'General Variables'!$B$8,VLOOKUP(B21,#REF!,12,FALSE)*'General Variables'!$B$7)/VLOOKUP(B21,#REF!,9,FALSE)*C21,2))) ->  | G21: =IF(B21=0,0,IF(C21>9999,"",ROUND(VLOOKUP(VLOOKUP(B21,#REF!,11,FALSE),#REF!,10,FALSE)/VLOOKUP(B21,#REF!,9,FALSE)*C21,2))) ->  | H21: =IF(B21=0,"",IF(C21>9999,"",ROUND(VLOOKUP($B21,#REF!,15,FALSE)*C21,2))) ->  | I21: =IF(B21=0,0,IF(C21>9999,"",ROUND(VLOOKUP(VLOOKUP(B21,#REF!,11,FALSE),#REF!,16,FALSE)/VLOOKUP(B21,#REF!,9,FALSE)*C21,2))) ->  | J21: =IF(B21=0,"",IF(C21>9999,"",ROUND(VLOOKUP($B21,#REF!,21,FALSE)*$C21,2))) ->  | K21: =IF(C21>9999,"",ROUND(SUM(E21:J21),2)) -> 
A22: 11 | B22: Ditch Irrigation | C22: =$H$3 -> 18 | D22: ai | E22: =IF(B22=0,"",IF(C22>9999,"",ROUND('General Variables'!$B$4*VLOOKUP(B22,#REF!,10,FALSE)/VLOOKUP(B22,#REF!,9,FALSE)*C22,2))) ->  | F22: =IF(B22=0,0,IF(C22>9999,"",ROUND(IF(VLOOKUP(B22,#REF!,12,FALSE)=0,VLOOKUP(B22,#REF!,13,FALSE)*'General Variables'!$B$8,VLOOKUP(B22,#REF!,12,FALSE)*'General Variables'!$B$7)/VLOOKUP(B22,#REF!,9,FALSE)*C22,2))) ->  | G22: =IF(B22=0,0,IF(C22>9999,"",ROUND(VLOOKUP(VLOOKUP(B22,#REF!,11,FALSE),#REF!,10,FALSE)/VLOOKUP(B22,#REF!,9,FALSE)*C22,2))) ->  | H22: =IF(B22=0,"",IF(C22>9999,"",ROUND(VLOOKUP($B22,#REF!,15,FALSE)*C22,2))) ->  | I22: =IF(B22=0,0,IF(C22>9999,"",ROUND(VLOOKUP(VLOOKUP(B22,#REF!,11,FALSE),#REF!,16,FALSE)/VLOOKUP(B22,#REF!,9,FALSE)*C22,2))) ->  | J22: =IF(B22=0,"",IF(C22>9999,"",ROUND(VLOOKUP($B22,#REF!,21,FALSE)*$C22,2))) ->  | K22: =IF(C22>9999,"",ROUND(SUM(E22:J22),2)) -> 
A23: 12 | B23: Spray | C23: 1 | E23: =IF(B23=0,"",IF(C23>9999,"",ROUND('General Variables'!$B$4*VLOOKUP(B23,#REF!,10,FALSE)/VLOOKUP(B23,#REF!,9,FALSE)*C23,2))) ->  | F23: =IF(B23=0,0,IF(C23>9999,"",ROUND(IF(VLOOKUP(B23,#REF!,12,FALSE)=0,VLOOKUP(B23,#REF!,13,FALSE)*'General Variables'!$B$8,VLOOKUP(B23,#REF!,12,FALSE)*'General Variables'!$B$7)/VLOOKUP(B23,#REF!,9,FALSE)*C23,2))) ->  | G23: =IF(B23=0,0,IF(C23>9999,"",ROUND(VLOOKUP(VLOOKUP(B23,#REF!,11,FALSE),#REF!,10,FALSE)/VLOOKUP(B23,#REF!,9,FALSE)*C23,2))) ->  | H23: =IF(B23=0,"",IF(C23>9999,"",ROUND(VLOOKUP($B23,#REF!,15,FALSE)*C23,2))) ->  | I23: =IF(B23=0,0,IF(C23>9999,"",ROUND(VLOOKUP(VLOOKUP(B23,#REF!,11,FALSE),#REF!,16,FALSE)/VLOOKUP(B23,#REF!,9,FALSE)*C23,2))) ->  | J23: =IF(B23=0,"",IF(C23>9999,"",ROUND(VLOOKUP($B23,#REF!,21,FALSE)*$C23,2))) -> 
A24: 13 | E24: =IF(B24=0,"",IF(C24>9999,"",ROUND('General Variables'!$B$4*VLOOKUP(B24,#REF!,10,FALSE)/VLOOKUP(B24,#REF!,9,FALSE)*C24,2))) ->  | F24: =IF(B24=0,0,IF(C24>9999,"",ROUND(IF(VLOOKUP(B24,#REF!,12,FALSE)=0,VLOOKUP(B24,#REF!,13,FALSE)*'General Variables'!$B$8,VLOOKUP(B24,#REF!,12,FALSE)*'General Variables'!$B$7)/VLOOKUP(B24,#REF!,9,FALSE)*C24,2))) -> 0 | G24: =IF(B24=0,0,IF(C24>9999,"",ROUND(VLOOKUP(VLOOKUP(B24,#REF!,11,FALSE),#REF!,10,FALSE)/VLOOKUP(B24,#REF!,9,FALSE)*C24,2))) -> 0 | H24: =IF(B24=0,"",IF(C24>9999,"",ROUND(VLOOKUP($B24,#REF!,15,FALSE)*C24,2))) ->  | I24: =IF(B24=0,0,IF(C24>9999,"",ROUND(VLOOKUP(VLOOKUP(B24,#REF!,11,FALSE),#REF!,16,FALSE)/VLOOKUP(B24,#REF!,9,FALSE)*C24,2))) -> 0 | J24: =IF(B24=0,"",IF(C24>9999,"",ROUND(VLOOKUP($B24,#REF!,21,FALSE)*$C24,2))) ->  | K24: 0
A25: 14 | E25: =IF(B25=0,"",IF(C25>9999,"",ROUND('General Variables'!$B$4*VLOOKUP(B25,#REF!,10,FALSE)/VLOOKUP(B25,#REF!,9,FALSE)*C25,2))) ->  | F25: =IF(B25=0,0,IF(C25>9999,"",ROUND(IF(VLOOKUP(B25,#REF!,12,FALSE)=0,VLOOKUP(B25,#REF!,13,FALSE)*'General Variables'!$B$8,VLOOKUP(B25,#REF!,12,FALSE)*'General Variables'!$B$7)/VLOOKUP(B25,#REF!,9,FALSE)*C25,2))) -> 0 | G25: =IF(B25=0,0,IF(C25>9999,"",ROUND(VLOOKUP(VLOOKUP(B25,#REF!,11,FALSE),#REF!,10,FALSE)/VLOOKUP(B25,#REF!,9,FALSE)*C25,2))) -> 0 | H25: =IF(B25=0,"",IF(C25>9999,"",ROUND(VLOOKUP($B25,#REF!,15,FALSE)*C25,2))) ->  | I25: =IF(B25=0,0,IF(C25>9999,"",ROUND(VLOOKUP(VLOOKUP(B25,#REF!,11,FALSE),#REF!,16,FALSE)/VLOOKUP(B25,#REF!,9,FALSE)*C25,2))) -> 0 | J25: =IF(B25=0,"",IF(C25>9999,"",ROUND(VLOOKUP($B25,#REF!,21,FALSE)*$C25,2))) ->  | K25: 0
A26: 15 | E26: =IF(B26=0,"",IF(C26>9999,"",ROUND('General Variables'!$B$4*VLOOKUP(B26,#REF!,10,FALSE)/VLOOKUP(B26,#REF!,9,FALSE)*C26,2))) ->  | F26: =IF(B26=0,0,IF(C26>9999,"",ROUND(IF(VLOOKUP(B26,#REF!,12,FALSE)=0,VLOOKUP(B26,#REF!,13,FALSE)*'General Variables'!$B$8,VLOOKUP(B26,#REF!,12,FALSE)*'General Variables'!$B$7)/VLOOKUP(B26,#REF!,9,FALSE)*C26,2))) -> 0 | G26: =IF(B26=0,0,IF(C26>9999,"",ROUND(VLOOKUP(VLOOKUP(B26,#REF!,11,FALSE),#REF!,10,FALSE)/VLOOKUP(B26,#REF!,9,FALSE)*C26,2))) -> 0 | H26: =IF(B26=0,"",IF(C26>9999,"",ROUND(VLOOKUP($B26,#REF!,15,FALSE)*C26,2))) ->  | I26: =IF(B26=0,0,IF(C26>9999,"",ROUND(VLOOKUP(VLOOKUP(B26,#REF!,11,FALSE),#REF!,16,FALSE)/VLOOKUP(B26,#REF!,9,FALSE)*C26,2))) -> 0 | J26: =IF(B26=0,"",IF(C26>9999,"",ROUND(VLOOKUP($B26,#REF!,21,FALSE)*$C26,2))) ->  | K26: 0
A27: 16 | E27: =IF(B27=0,"",IF(C27>9999,"",ROUND('General Variables'!$B$4*VLOOKUP(B27,#REF!,10,FALSE)/VLOOKUP(B27,#REF!,9,FALSE)*C27,2))) ->  | F27: =IF(B27=0,0,IF(C27>9999,"",ROUND(IF(VLOOKUP(B27,#REF!,12,FALSE)=0,VLOOKUP(B27,#REF!,13,FALSE)*'General Variables'!$B$8,VLOOKUP(B27,#REF!,12,FALSE)*'General Variables'!$B$7)/VLOOKUP(B27,#REF!,9,FALSE)*C27,2))) -> 0 | G27: =IF(B27=0,0,IF(C27>9999,"",ROUND(VLOOKUP(VLOOKUP(B27,#REF!,11,FALSE),#REF!,10,FALSE)/VLOOKUP(B27,#REF!,9,FALSE)*C27,2))) -> 0 | H27: =IF(B27=0,"",IF(C27>9999,"",ROUND(VLOOKUP($B27,#REF!,15,FALSE)*C27,2))) ->  | I27: =IF(B27=0,0,IF(C27>9999,"",ROUND(VLOOKUP(VLOOKUP(B27,#REF!,11,FALSE),#REF!,16,FALSE)/VLOOKUP(B27,#REF!,9,FALSE)*C27,2))) -> 0 | J27: =IF(B27=0,"",IF(C27>9999,"",ROUND(VLOOKUP($B27,#REF!,21,FALSE)*$C27,2))) ->  | K27: 0
A28: 17 | E28: =IF(B28=0,"",IF(C28>9999,"",ROUND('General Variables'!$B$4*VLOOKUP(B28,#REF!,10,FALSE)/VLOOKUP(B28,#REF!,9,FALSE)*C28,2))) ->  | F28: =IF(B28=0,0,IF(C28>9999,"",ROUND(IF(VLOOKUP(B28,#REF!,12,FALSE)=0,VLOOKUP(B28,#REF!,13,FALSE)*'General Variables'!$B$8,VLOOKUP(B28,#REF!,12,FALSE)*'General Variables'!$B$7)/VLOOKUP(B28,#REF!,9,FALSE)*C28,2))) -> 0 | G28: =IF(B28=0,0,IF(C28>9999,"",ROUND(VLOOKUP(VLOOKUP(B28,#REF!,11,FALSE),#REF!,10,FALSE)/VLOOKUP(B28,#REF!,9,FALSE)*C28,2))) -> 0 | H28: =IF(B28=0,"",IF(C28>9999,"",ROUND(VLOOKUP($B28,#REF!,15,FALSE)*C28,2))) ->  | I28: =IF(B28=0,0,IF(C28>9999,"",ROUND(VLOOKUP(VLOOKUP(B28,#REF!,11,FALSE),#REF!,16,FALSE)/VLOOKUP(B28,#REF!,9,FALSE)*C28,2))) -> 0 | J28: =IF(B28=0,"",IF(C28>9999,"",ROUND(VLOOKUP($B28,#REF!,21,FALSE)*$C28,2))) ->  | K28: 0
A29: 18 | E29: =IF(B29=0,"",IF(C29>9999,"",ROUND('General Variables'!$B$4*VLOOKUP(B29,#REF!,10,FALSE)/VLOOKUP(B29,#REF!,9,FALSE)*C29,2))) ->  | F29: =IF(B29=0,0,IF(C29>9999,"",ROUND(IF(VLOOKUP(B29,#REF!,12,FALSE)=0,VLOOKUP(B29,#REF!,13,FALSE)*'General Variables'!$B$8,VLOOKUP(B29,#REF!,12,FALSE)*'General Variables'!$B$7)/VLOOKUP(B29,#REF!,9,FALSE)*C29,2))) -> 0 | G29: =IF(B29=0,0,IF(C29>9999,"",ROUND(VLOOKUP(VLOOKUP(B29,#REF!,11,FALSE),#REF!,10,FALSE)/VLOOKUP(B29,#REF!,9,FALSE)*C29,2))) -> 0 | H29: =IF(B29=0,"",IF(C29>9999,"",ROUND(VLOOKUP($B29,#REF!,15,FALSE)*C29,2))) ->  | I29: =IF(B29=0,0,IF(C29>9999,"",ROUND(VLOOKUP(VLOOKUP(B29,#REF!,11,FALSE),#REF!,16,FALSE)/VLOOKUP(B29,#REF!,9,FALSE)*C29,2))) -> 0 | J29: =IF(B29=0,"",IF(C29>9999,"",ROUND(VLOOKUP($B29,#REF!,21,FALSE)*$C29,2))) ->  | K29: 0
A30: 19 | E30: =IF(B30=0,"",IF(C30>9999,"",ROUND('General Variables'!$B$4*VLOOKUP(B30,#REF!,10,FALSE)/VLOOKUP(B30,#REF!,9,FALSE)*C30,2))) ->  | F30: =IF(B30=0,0,IF(C30>9999,"",ROUND(IF(VLOOKUP(B30,#REF!,12,FALSE)=0,VLOOKUP(B30,#REF!,13,FALSE)*'General Variables'!$B$8,VLOOKUP(B30,#REF!,12,FALSE)*'General Variables'!$B$7)/VLOOKUP(B30,#REF!,9,FALSE)*C30,2))) -> 0 | G30: =IF(B30=0,0,IF(C30>9999,"",ROUND(VLOOKUP(VLOOKUP(B30,#REF!,11,FALSE),#REF!,10,FALSE)/VLOOKUP(B30,#REF!,9,FALSE)*C30,2))) -> 0 | H30: =IF(B30=0,"",IF(C30>9999,"",ROUND(VLOOKUP($B30,#REF!,15,FALSE)*C30,2))) ->  | I30: =IF(B30=0,0,IF(C30>9999,"",ROUND(VLOOKUP(VLOOKUP(B30,#REF!,11,FALSE),#REF!,16,FALSE)/VLOOKUP(B30,#REF!,9,FALSE)*C30,2))) -> 0 | J30: =IF(B30=0,"",IF(C30>9999,"",ROUND(VLOOKUP($B30,#REF!,21,FALSE)*$C30,2))) ->  | K30: 0
A31: 20 | E31: =IF(B31=0,"",IF(C31>9999,"",ROUND('General Variables'!$B$4*VLOOKUP(B31,#REF!,10,FALSE)/VLOOKUP(B31,#REF!,9,FALSE)*C31,2))) ->  | F31: =IF(B31=0,0,IF(C31>9999,"",ROUND(IF(VLOOKUP(B31,#REF!,12,FALSE)=0,VLOOKUP(B31,#REF!,13,FALSE)*'General Variables'!$B$8,VLOOKUP(B31,#REF!,12,FALSE)*'General Variables'!$B$7)/VLOOKUP(B31,#REF!,9,FALSE)*C31,2))) -> 0 | G31: =IF(B31=0,0,IF(C31>9999,"",ROUND(VLOOKUP(VLOOKUP(B31,#REF!,11,FALSE),#REF!,10,FALSE)/VLOOKUP(B31,#REF!,9,FALSE)*C31,2))) -> 0 | H31: =IF(B31=0,"",IF(C31>9999,"",ROUND(VLOOKUP($B31,#REF!,15,FALSE)*C31,2))) ->  | I31: =IF(B31=0,0,IF(C31>9999,"",ROUND(VLOOKUP(VLOOKUP(B31,#REF!,11,FALSE),#REF!,16,FALSE)/VLOOKUP(B31,#REF!,9,FALSE)*C31,2))) -> 0 | J31: =IF(B31=0,"",IF(C31>9999,"",ROUND(VLOOKUP($B31,#REF!,21,FALSE)*$C31,2))) ->  | K31: 0
C33: Total for Field Operations | E33: =SUM(E12:E31) ->  | F33: =SUM(F12:F31) -> 
F35: Operation Index | G35: Percent Acres Applied | H35: Application | J35: Applied Price | L35: Your Estimate
B36: Materials & Services | H36: Rate | I36: Unit | K36: Total
B37: 11-52-0 | C37: =IF(B37=0,"",VLOOKUP($B37,Table2[],2,FALSE)) -> Fertilizer | F37: 2 | G37: 1 | H37: 100 | I37: =IF($B37=0,"",VLOOKUP($B37,Table2[],5,FALSE)) -> pound | J37: =IF($B37=0,"",VLOOKUP($B37,Table2[],7,FALSE)) -> 0.24 | K37: =IF(B37=0,0,ROUND(G37*H37*J37,2)) -> 24
B38: Alfalfa w/Inoculant | C38: =IF(B38=0,"",VLOOKUP($B38,Table2[],2,FALSE)) -> Seed | F38: 4 | G38: 1 | H38: 12 | I38: =IF($B38=0,"",VLOOKUP($B38,Table2[],5,FALSE)) -> pound | J38: =IF($B38=0,"",VLOOKUP($B38,Table2[],7,FALSE)) -> 6 | K38: =IF(B38=0,0,ROUND(G38*H38*J38,2)) -> 72
B39: Oats | C39: =IF(B39=0,"",VLOOKUP($B39,Table2[],2,FALSE)) -> Seed | F39: 4 | G39: 1 | H39: 0.5 | I39: =IF($B39=0,"",VLOOKUP($B39,Table2[],5,FALSE)) -> bushel | J39: =IF($B39=0,"",VLOOKUP($B39,Table2[],7,FALSE)) -> 9 | K39: 4.5
B40: Lorsban Advanced | C40: =IF(B40=0,"",VLOOKUP($B40,Table2[],2,FALSE)) -> Insecticide | F40: 5 | G40: 0.2 | H40: 1 | I40: =IF($B40=0,"",VLOOKUP($B40,Table2[],5,FALSE)) -> pint | J40: =IF($B40=0,"",VLOOKUP($B40,Table2[],7,FALSE)) -> 6.875 | K40: 1.38
B41: Twine Large Round | C41: =IF(B41=0,"",VLOOKUP($B41,Table2[],2,FALSE)) -> Other | F41: 9 | G41: 1 | H41: =A4 -> 2.5 | I41: =IF($B41=0,"",VLOOKUP($B41,Table2[],5,FALSE)) -> ton | J41: =IF($B41=0,"",VLOOKUP($B41,Table2[],7,FALSE)) -> 0.9096816114 | K41: 2.27
B42: Irrigation District O&M Charge | C42: =IF(B42=0,"",VLOOKUP($B42,Table2[],2,FALSE)) -> Other | F42: 11 | G42: 1 | H42: 1 | I42: =IF($B42=0,"",VLOOKUP($B42,Table2[],5,FALSE)) -> acre | J42: =IF($B42=0,"",VLOOKUP($B42,Table2[],7,FALSE)) -> 30 | K42: 30
B43: Raptor | C43: =IF(B43=0,"",VLOOKUP($B43,Table2[],2,FALSE)) -> Herbicide | F43: 12 | G43: 1 | H43: 5 | I43: =IF($B43=0,"",VLOOKUP($B43,Table2[],5,FALSE)) -> ounce | J43: =IF($B43=0,"",VLOOKUP($B43,Table2[],7,FALSE)) -> 4.765625 | K43: 23.83
B44: Crop Oil Concentrate | C44: =IF(B44=0,"",VLOOKUP($B44,Table2[],2,FALSE)) -> Additive | F44: 12 | G44: 1 | H44: 1.6 | I44: =IF($B44=0,"",VLOOKUP($B44,Table2[],5,FALSE)) -> pint | J44: =IF($B44=0,"",VLOOKUP($B44,Table2[],7,FALSE)) -> 1.125 | K44: 1.8
B45: UAN | C45: =IF(B45=0,"",VLOOKUP($B45,Table2[],2,FALSE)) -> Additive | F45: 12 | G45: 1 | H45: 2 | I45: =IF($B45=0,"",VLOOKUP($B45,Table2[],5,FALSE)) -> pint | J45: =IF($B45=0,"",VLOOKUP($B45,Table2[],7,FALSE)) -> 0.1875 | K45: 0.38
C46: =IF(B46=0,"",VLOOKUP($B46,Table2[],2,FALSE)) ->  | I46: =IF($B46=0,"",VLOOKUP($B46,Table2[],5,FALSE)) ->  | J46: =IF($B46=0,"",VLOOKUP($B46,Table2[],7,FALSE)) ->  | K46: 0
C47: =IF(B47=0,"",VLOOKUP($B47,Table2[],2,FALSE)) ->  | I47: =IF($B47=0,"",VLOOKUP($B47,Table2[],5,FALSE)) ->  | J47: =IF($B47=0,"",VLOOKUP($B47,Table2[],7,FALSE)) ->  | K47: 0
C48: =IF(B48=0,"",VLOOKUP($B48,Table2[],2,FALSE)) ->  | I48: =IF($B48=0,"",VLOOKUP($B48,Table2[],5,FALSE)) ->  | J48: =IF($B48=0,"",VLOOKUP($B48,Table2[],7,FALSE)) ->  | K48: 0
C49: =IF(B49=0,"",VLOOKUP($B49,Table2[],2,FALSE)) ->  | I49: =IF($B49=0,"",VLOOKUP($B49,Table2[],5,FALSE)) ->  | J49: =IF($B49=0,"",VLOOKUP($B49,Table2[],7,FALSE)) ->  | K49: 0
C50: =IF(B50=0,"",VLOOKUP($B50,Table2[],2,FALSE)) ->  | I50: =IF($B50=0,"",VLOOKUP($B50,Table2[],5,FALSE)) ->  | J50: =IF($B50=0,"",VLOOKUP($B50,Table2[],7,FALSE)) ->  | K50: 0
C51: =IF(B51=0,"",VLOOKUP($B51,Table2[],2,FALSE)) ->  | I51: =IF($B51=0,"",VLOOKUP($B51,Table2[],5,FALSE)) ->  | J51: =IF($B51=0,"",VLOOKUP($B51,Table2[],7,FALSE)) ->  | K51: 0
C52: =IF(B52=0,"",VLOOKUP($B52,Table2[],2,FALSE)) ->  | I52: =IF($B52=0,"",VLOOKUP($B52,Table2[],5,FALSE)) ->  | J52: =IF($B52=0,"",VLOOKUP($B52,Table2[],7,FALSE)) ->  | K52: 0
C53: =IF(B53=0,"",VLOOKUP($B53,Table2[],2,FALSE)) ->  | I53: =IF($B53=0,"",VLOOKUP($B53,Table2[],5,FALSE)) ->  | J53: =IF($B53=0,"",VLOOKUP($B53,Table2[],7,FALSE)) ->  | K53: 0
C54: =IF(B54=0,"",VLOOKUP($B54,Table2[],2,FALSE)) ->  | I54: =IF($B54=0,"",VLOOKUP($B54,Table2[],5,FALSE)) ->  | J54: =IF($B54=0,"",VLOOKUP($B54,Table2[],7,FALSE)) ->  | K54: 0
C55: =IF(B55=0,"",VLOOKUP($B55,Table2[],2,FALSE)) ->  | I55: =IF($B55=0,"",VLOOKUP($B55,Table2[],5,FALSE)) ->  | J55: =IF($B55=0,"",VLOOKUP($B55,Table2[],7,FALSE)) ->  | K55: 0
C56: =IF(B56=0,"",VLOOKUP($B56,Table2[],2,FALSE)) ->  | I56: =IF($B56=0,"",VLOOKUP($B56,Table2[],5,FALSE)) ->  | J56: =IF($B56=0,"",VLOOKUP($B56,Table2[],7,FALSE)) ->  | K56: =IF(B56=0,0,ROUND(G56*H56*J56,2)) -> 0
C57: =IF(B57=0,"",VLOOKUP($B57,Table2[],2,FALSE)) ->  | I57: =IF($B57=0,"",VLOOKUP($B57,Table2[],5,FALSE)) ->  | J57: =IF($B57=0,"",VLOOKUP($B57,Table2[],7,FALSE)) ->  | K57: =IF(B57=0,0,ROUND(G57*H57*J57,2)) -> 0
C58: =IF(B58=0,"",VLOOKUP($B58,Table2[],2,FALSE)) ->  | I58: =IF($B58=0,"",VLOOKUP($B58,Table2[],5,FALSE)) ->  | J58: =IF($B58=0,"",VLOOKUP($B58,Table2[],7,FALSE)) ->  | K58: =IF(B58=0,0,ROUND(G58*H58*J58,2)) -> 0
C59: =IF(B59=0,"",VLOOKUP($B59,Table2[],2,FALSE)) ->  | I59: =IF($B59=0,"",VLOOKUP($B59,Table2[],5,FALSE)) ->  | J59: =IF($B59=0,"",VLOOKUP($B59,Table2[],7,FALSE)) ->  | K59: =IF(B59=0,0,ROUND(G59*H59*J59,2)) -> 0
C60: =IF(B60=0,"",VLOOKUP($B60,Table2[],2,FALSE)) ->  | I60: =IF($B60=0,"",VLOOKUP($B60,Table2[],5,FALSE)) ->  | J60: =IF($B60=0,"",VLOOKUP($B60,Table2[],7,FALSE)) ->  | K60: =IF(B60=0,0,ROUND(G60*H60*J60,2)) -> 0
C61: Crop Insurance | J61: =IF($B61=0,"",VLOOKUP($B61,Materials!$B$2:$H$127,7,FALSE)) ->  | K61: 0
C63: Total Materials & Services | K63: =SUM(K37:K61) -> 160.16
B65: Total listed costs for Field Operations and Materials and Services | K65: =K33+K63 -> 
D66: Interest on Operations Capital | E66: =ROUND(SUM($E$33:$H$33)+$K$63,2) ->  | F66: cash expense @ | H66: ='General Variables'!$B$11 -> 0.055 | I66: =CONCATENATE("for ",TEXT('General Variables'!$B$12,"0.0")," mo.") -> for 6.0 mo. | K66: =E66*H66*'General Variables'!$B$12/12 -> 
B67: Total Operating and Use Related Ownership Costs | K67: =SUM(K65:K66) -> 
B69: Overhead (accounting, liability insurance, vehicle cost, office expense) | K69: ='General Variables'!B14 -> 20
B70: Real Estate Opportunity | C70: Gravity (Panhandle) | F70: =IF(C70=0,0,VLOOKUP(C70,RETable,2,FALSE)) -> 2970 | G70: per acre @ | I70: ='General Variables'!$B$10 -> 0.04 | K70: =ROUND(F70*I70,2) -> 118.8
B71: Real Estate Taxes | F71: =IF(C70=0,0,VLOOKUP(C70,RETable,2,FALSE)) -> 2970 | G71: per acre @ | I71: ='General Variables'!$B$13 -> 0.01 | K71: =ROUND(F71*I71,2) -> 29.7
B72: Total Cost per Acre Including Overhead | K72: =SUM(K67:K71) -> 
B74: ="Cost per "&$B$4 -> Cost per ton | K74: =IF(A4="Yield",0,K72/$A$4) -> 
B75: ="Cash Cost per "&$B$4 -> Cash Cost per ton | K75: =IF($A$4="Yield",0,(E66+K66+K71)/$A$4) -> 
K111: Yes
K112: No
B240: =IF(#REF!="","",#REF!) ->  | C240: =IF(Materials!B132="","",Materials!B132) -> 
B241: =IF(#REF!="","",#REF!) ->  | C241: =IF(Materials!B133="","",Materials!B133) -> 
B242: =IF(#REF!="","",#REF!) ->  | C242: =IF(Materials!B134="","",Materials!B134) -> 
B243: =IF(#REF!="","",#REF!) ->  | C243: =IF(Materials!B135="","",Materials!B135) -> 
B244: =IF(#REF!="","",#REF!) ->  | C244: =IF(Materials!B136="","",Materials!B136) -> 

Sheet 9-Alfalfa
A2: =REPLACE(CELL("filename",A1),1,FIND("]",CELL("filename",A1)),"") -> 9-Alfalfa | I2: Dryland | L2: ='General Variables'!A3&" "&'General Variables'!B3 -> Year 2017 | O2: Acre
A3: Large Round Bale | I3: acre/inches | O3: ai
A4: 4.4 | B4: ton | J4: Does Crop Follow a Legume? | O4: =B4 -> ton
A5: =A2 & IF(C2="","", ", " &C2 ) & ", " & A3 & ", " & I2 -> 9-Alfalfa, Large Round Bale, Dryland
A7: ='General Variables'!B3 & " Budget " & A2 &", " & IF(C2=0,"", " " & C2 & ", ") & A3 & IF(A4=""," ", " (") & A4 & " " & B4 & IF(A4="",""," Actual Yield)") -> 2017 Budget 9-Alfalfa, Large Round Bale (4.4 ton Actual Yield)
A8: =IF(I2="Dryland","Dryland",I2 & IF(J2="","",", "&J2)&IF(H3="","",", "&H3&" "&I3)) -> Dryland
B10: Field Operations | C10: Times or Qty | E10: ="Labor @ $" &TEXT('General Variables'!B4,"#.00")& " /Hr" -> Labor @ $20.00 /Hr | F10: ="Fuel @ $" & TEXT('General Variables'!B5,"#.00") & " and Lube" -> Fuel @ $2.25 and Lube | G10: Repairs | I10: Ownership | K10: Total | L10: Your Estimate
D11: Unit | G11: Power | H11: Imp. | I11: Power | J11: Imp.
A12: 1 | B12: Spread Fertilizer | C12: 1 | E12: =IF(B12=0,"",IF(C12>9999,"",ROUND('General Variables'!$B$4*VLOOKUP(B12,#REF!,10,FALSE)/VLOOKUP(B12,#REF!,9,FALSE)*C12,2))) ->  | F12: =IF(B12=0,0,IF(C12>9999,"",ROUND(IF(VLOOKUP(B12,#REF!,12,FALSE)=0,VLOOKUP(B12,#REF!,13,FALSE)*'General Variables'!$B$8,VLOOKUP(B12,#REF!,12,FALSE)*'General Variables'!$B$7)/VLOOKUP(B12,#REF!,9,FALSE)*C12,2))) ->  | G12: =IF(B12=0,0,IF(C12>9999,"",ROUND(VLOOKUP(VLOOKUP(B12,#REF!,11,FALSE),#REF!,10,FALSE)/VLOOKUP(B12,#REF!,9,FALSE)*C12,2))) ->  | H12: =IF(B12=0,"",IF(C12>9999,"",ROUND(VLOOKUP($B12,#REF!,15,FALSE)*C12,2))) ->  | I12: =IF(B12=0,0,IF(C12>9999,"",ROUND(VLOOKUP(VLOOKUP(B12,#REF!,11,FALSE),#REF!,16,FALSE)/VLOOKUP(B12,#REF!,9,FALSE)*C12,2))) ->  | J12: =IF(B12=0,"",IF(C12>9999,"",ROUND(VLOOKUP($B12,#REF!,21,FALSE)*$C12,2))) ->  | K12: =IF(C12>9999,"",ROUND(SUM(E12:J12),2)) -> 
A13: 2 | B13: Swath/Condition Hay | C13: 4 | E13: =IF(B13=0,"",IF(C13>9999,"",ROUND('General Variables'!$B$4*VLOOKUP(B13,#REF!,10,FALSE)/VLOOKUP(B13,#REF!,9,FALSE)*C13,2))) ->  | F13: =IF(B13=0,0,IF(C13>9999,"",ROUND(IF(VLOOKUP(B13,#REF!,12,FALSE)=0,VLOOKUP(B13,#REF!,13,FALSE)*'General Variables'!$B$8,VLOOKUP(B13,#REF!,12,FALSE)*'General Variables'!$B$7)/VLOOKUP(B13,#REF!,9,FALSE)*C13,2))) ->  | G13: =IF(B13=0,0,IF(C13>9999,"",ROUND(VLOOKUP(VLOOKUP(B13,#REF!,11,FALSE),#REF!,10,FALSE)/VLOOKUP(B13,#REF!,9,FALSE)*C13,2))) ->  | H13: =IF(B13=0,"",IF(C13>9999,"",ROUND(VLOOKUP($B13,#REF!,15,FALSE)*C13,2))) ->  | I13: =IF(B13=0,0,IF(C13>9999,"",ROUND(VLOOKUP(VLOOKUP(B13,#REF!,11,FALSE),#REF!,16,FALSE)/VLOOKUP(B13,#REF!,9,FALSE)*C13,2))) ->  | J13: =IF(B13=0,"",IF(C13>9999,"",ROUND(VLOOKUP($B13,#REF!,21,FALSE)*$C13,2))) ->  | K13: =IF(C13>9999,"",ROUND(SUM(E13:J13),2)) -> 
A14: 3 | B14: Turn Windrows | C14: 1 | E14: =IF(B14=0,"",IF(C14>9999,"",ROUND('General Variables'!$B$4*VLOOKUP(B14,#REF!,10,FALSE)/VLOOKUP(B14,#REF!,9,FALSE)*C14,2))) ->  | F14: =IF(B14=0,0,IF(C14>9999,"",ROUND(IF(VLOOKUP(B14,#REF!,12,FALSE)=0,VLOOKUP(B14,#REF!,13,FALSE)*'General Variables'!$B$8,VLOOKUP(B14,#REF!,12,FALSE)*'General Variables'!$B$7)/VLOOKUP(B14,#REF!,9,FALSE)*C14,2))) ->  | G14: =IF(B14=0,0,IF(C14>9999,"",ROUND(VLOOKUP(VLOOKUP(B14,#REF!,11,FALSE),#REF!,10,FALSE)/VLOOKUP(B14,#REF!,9,FALSE)*C14,2))) ->  | H14: =IF(B14=0,"",IF(C14>9999,"",ROUND(VLOOKUP($B14,#REF!,15,FALSE)*C14,2))) ->  | I14: =IF(B14=0,0,IF(C14>9999,"",ROUND(VLOOKUP(VLOOKUP(B14,#REF!,11,FALSE),#REF!,16,FALSE)/VLOOKUP(B14,#REF!,9,FALSE)*C14,2))) ->  | J14: =IF(B14=0,"",IF(C14>9999,"",ROUND(VLOOKUP($B14,#REF!,21,FALSE)*$C14,2))) -> 
A15: 4 | B15: Double Windrows | C15: 3 | E15: =IF(B15=0,"",IF(C15>9999,"",ROUND('General Variables'!$B$4*VLOOKUP(B15,#REF!,10,FALSE)/VLOOKUP(B15,#REF!,9,FALSE)*C15,2))) ->  | F15: =IF(B15=0,0,IF(C15>9999,"",ROUND(IF(VLOOKUP(B15,#REF!,12,FALSE)=0,VLOOKUP(B15,#REF!,13,FALSE)*'General Variables'!$B$8,VLOOKUP(B15,#REF!,12,FALSE)*'General Variables'!$B$7)/VLOOKUP(B15,#REF!,9,FALSE)*C15,2))) ->  | G15: =IF(B15=0,0,IF(C15>9999,"",ROUND(VLOOKUP(VLOOKUP(B15,#REF!,11,FALSE),#REF!,10,FALSE)/VLOOKUP(B15,#REF!,9,FALSE)*C15,2))) ->  | H15: =IF(B15=0,"",IF(C15>9999,"",ROUND(VLOOKUP($B15,#REF!,15,FALSE)*C15,2))) ->  | I15: =IF(B15=0,0,IF(C15>9999,"",ROUND(VLOOKUP(VLOOKUP(B15,#REF!,11,FALSE),#REF!,16,FALSE)/VLOOKUP(B15,#REF!,9,FALSE)*C15,2))) ->  | J15: =IF(B15=0,"",IF(C15>9999,"",ROUND(VLOOKUP($B15,#REF!,21,FALSE)*$C15,2))) ->  | K15: =IF(C15>9999,"",ROUND(SUM(E15:J15),2)) -> 
A16: 5 | B16: Large Round Bale | C16: 4.4 | D16: ton | E16: =IF(B16=0,"",IF(C16>9999,"",ROUND('General Variables'!$B$4*VLOOKUP(B16,#REF!,10,FALSE)/VLOOKUP(B16,#REF!,9,FALSE)*C16,2))) ->  | F16: =IF(B16=0,0,IF(C16>9999,"",ROUND(IF(VLOOKUP(B16,#REF!,12,FALSE)=0,VLOOKUP(B16,#REF!,13,FALSE)*'General Variables'!$B$8,VLOOKUP(B16,#REF!,12,FALSE)*'General Variables'!$B$7)/VLOOKUP(B16,#REF!,9,FALSE)*C16,2))) ->  | G16: =IF(B16=0,0,IF(C16>9999,"",ROUND(VLOOKUP(VLOOKUP(B16,#REF!,11,FALSE),#REF!,10,FALSE)/VLOOKUP(B16,#REF!,9,FALSE)*C16,2))) ->  | H16: =IF(B16=0,"",IF(C16>9999,"",ROUND(VLOOKUP($B16,#REF!,15,FALSE)*C16,2))) ->  | I16: =IF(B16=0,0,IF(C16>9999,"",ROUND(VLOOKUP(VLOOKUP(B16,#REF!,11,FALSE),#REF!,16,FALSE)/VLOOKUP(B16,#REF!,9,FALSE)*C16,2))) ->  | J16: =IF(B16=0,"",IF(C16>9999,"",ROUND(VLOOKUP($B16,#REF!,21,FALSE)*$C16,2))) ->  | K16: =IF(C16>9999,"",ROUND(SUM(E16:J16),2)) -> 
A17: 6 | B17: Move Large Round | C17: 4.4 | D17: ton | E17: =IF(B17=0,"",IF(C17>9999,"",ROUND('General Variables'!$B$4*VLOOKUP(B17,#REF!,10,FALSE)/VLOOKUP(B17,#REF!,9,FALSE)*C17,2))) ->  | F17: =IF(B17=0,0,IF(C17>9999,"",ROUND(IF(VLOOKUP(B17,#REF!,12,FALSE)=0,VLOOKUP(B17,#REF!,13,FALSE)*'General Variables'!$B$8,VLOOKUP(B17,#REF!,12,FALSE)*'General Variables'!$B$7)/VLOOKUP(B17,#REF!,9,FALSE)*C17,2))) ->  | G17: =IF(B17=0,0,IF(C17>9999,"",ROUND(VLOOKUP(VLOOKUP(B17,#REF!,11,FALSE),#REF!,10,FALSE)/VLOOKUP(B17,#REF!,9,FALSE)*C17,2))) ->  | H17: =IF(B17=0,"",IF(C17>9999,"",ROUND(VLOOKUP($B17,#REF!,15,FALSE)*C17,2))) ->  | I17: =IF(B17=0,0,IF(C17>9999,"",ROUND(VLOOKUP(VLOOKUP(B17,#REF!,11,FALSE),#REF!,16,FALSE)/VLOOKUP(B17,#REF!,9,FALSE)*C17,2))) ->  | J17: =IF(B17=0,"",IF(C17>9999,"",ROUND(VLOOKUP($B17,#REF!,21,FALSE)*$C17,2))) -> 
A18: 7 | B18: Spray | C18: 0.25 | E18: =IF(B18=0,"",IF(C18>9999,"",ROUND('General Variables'!$B$4*VLOOKUP(B18,#REF!,10,FALSE)/VLOOKUP(B18,#REF!,9,FALSE)*C18,2))) ->  | F18: =IF(B18=0,0,IF(C18>9999,"",ROUND(IF(VLOOKUP(B18,#REF!,12,FALSE)=0,VLOOKUP(B18,#REF!,13,FALSE)*'General Variables'!$B$8,VLOOKUP(B18,#REF!,12,FALSE)*'General Variables'!$B$7)/VLOOKUP(B18,#REF!,9,FALSE)*C18,2))) ->  | G18: =IF(B18=0,0,IF(C18>9999,"",ROUND(VLOOKUP(VLOOKUP(B18,#REF!,11,FALSE),#REF!,10,FALSE)/VLOOKUP(B18,#REF!,9,FALSE)*C18,2))) ->  | H18: =IF(B18=0,"",IF(C18>9999,"",ROUND(VLOOKUP($B18,#REF!,15,FALSE)*C18,2))) ->  | I18: =IF(B18=0,0,IF(C18>9999,"",ROUND(VLOOKUP(VLOOKUP(B18,#REF!,11,FALSE),#REF!,16,FALSE)/VLOOKUP(B18,#REF!,9,FALSE)*C18,2))) ->  | J18: =IF(B18=0,"",IF(C18>9999,"",ROUND(VLOOKUP($B18,#REF!,21,FALSE)*$C18,2))) -> 
A19: 8 | E19: =IF(B19=0,"",IF(C19>9999,"",ROUND('General Variables'!$B$4*VLOOKUP(B19,#REF!,10,FALSE)/VLOOKUP(B19,#REF!,9,FALSE)*C19,2))) ->  | F19: =IF(B19=0,0,IF(C19>9999,"",ROUND(IF(VLOOKUP(B19,#REF!,12,FALSE)=0,VLOOKUP(B19,#REF!,13,FALSE)*'General Variables'!$B$8,VLOOKUP(B19,#REF!,12,FALSE)*'General Variables'!$B$7)/VLOOKUP(B19,#REF!,9,FALSE)*C19,2))) -> 0 | G19: =IF(B19=0,0,IF(C19>9999,"",ROUND(VLOOKUP(VLOOKUP(B19,#REF!,11,FALSE),#REF!,10,FALSE)/VLOOKUP(B19,#REF!,9,FALSE)*C19,2))) -> 0 | H19: =IF(B19=0,"",IF(C19>9999,"",ROUND(VLOOKUP($B19,#REF!,15,FALSE)*C19,2))) ->  | I19: =IF(B19=0,0,IF(C19>9999,"",ROUND(VLOOKUP(VLOOKUP(B19,#REF!,11,FALSE),#REF!,16,FALSE)/VLOOKUP(B19,#REF!,9,FALSE)*C19,2))) -> 0 | J19: =IF(B19=0,"",IF(C19>9999,"",ROUND(VLOOKUP($B19,#REF!,21,FALSE)*$C19,2))) ->  | K19: 0
A20: 9 | E20: =IF(B20=0,"",IF(C20>9999,"",ROUND('General Variables'!$B$4*VLOOKUP(B20,#REF!,10,FALSE)/VLOOKUP(B20,#REF!,9,FALSE)*C20,2))) ->  | F20: =IF(B20=0,0,IF(C20>9999,"",ROUND(IF(VLOOKUP(B20,#REF!,12,FALSE)=0,VLOOKUP(B20,#REF!,13,FALSE)*'General Variables'!$B$8,VLOOKUP(B20,#REF!,12,FALSE)*'General Variables'!$B$7)/VLOOKUP(B20,#REF!,9,FALSE)*C20,2))) -> 0 | G20: =IF(B20=0,0,IF(C20>9999,"",ROUND(VLOOKUP(VLOOKUP(B20,#REF!,11,FALSE),#REF!,10,FALSE)/VLOOKUP(B20,#REF!,9,FALSE)*C20,2))) -> 0 | H20: =IF(B20=0,"",IF(C20>9999,"",ROUND(VLOOKUP($B20,#REF!,15,FALSE)*C20,2))) ->  | I20: =IF(B20=0,0,IF(C20>9999,"",ROUND(VLOOKUP(VLOOKUP(B20,#REF!,11,FALSE),#REF!,16,FALSE)/VLOOKUP(B20,#REF!,9,FALSE)*C20,2))) -> 0 | J20: =IF(B20=0,"",IF(C20>9999,"",ROUND(VLOOKUP($B20,#REF!,21,FALSE)*$C20,2))) ->  | K20: 0
A21: 10 | E21: =IF(B21=0,"",IF(C21>9999,"",ROUND('General Variables'!$B$4*VLOOKUP(B21,#REF!,10,FALSE)/VLOOKUP(B21,#REF!,9,FALSE)*C21,2))) ->  | F21: =IF(B21=0,0,IF(C21>9999,"",ROUND(IF(VLOOKUP(B21,#REF!,12,FALSE)=0,VLOOKUP(B21,#REF!,13,FALSE)*'General Variables'!$B$8,VLOOKUP(B21,#REF!,12,FALSE)*'General Variables'!$B$7)/VLOOKUP(B21,#REF!,9,FALSE)*C21,2))) -> 0 | G21: =IF(B21=0,0,IF(C21>9999,"",ROUND(VLOOKUP(VLOOKUP(B21,#REF!,11,FALSE),#REF!,10,FALSE)/VLOOKUP(B21,#REF!,9,FALSE)*C21,2))) -> 0 | H21: =IF(B21=0,"",IF(C21>9999,"",ROUND(VLOOKUP($B21,#REF!,15,FALSE)*C21,2))) ->  | I21: =IF(B21=0,0,IF(C21>9999,"",ROUND(VLOOKUP(VLOOKUP(B21,#REF!,11,FALSE),#REF!,16,FALSE)/VLOOKUP(B21,#REF!,9,FALSE)*C21,2))) -> 0 | J21: =IF(B21=0,"",IF(C21>9999,"",ROUND(VLOOKUP($B21,#REF!,21,FALSE)*$C21,2))) ->  | K21: 0
A22: 11 | E22: =IF(B22=0,"",IF(C22>9999,"",ROUND('General Variables'!$B$4*VLOOKUP(B22,#REF!,10,FALSE)/VLOOKUP(B22,#REF!,9,FALSE)*C22,2))) ->  | F22: =IF(B22=0,0,IF(C22>9999,"",ROUND(IF(VLOOKUP(B22,#REF!,12,FALSE)=0,VLOOKUP(B22,#REF!,13,FALSE)*'General Variables'!$B$8,VLOOKUP(B22,#REF!,12,FALSE)*'General Variables'!$B$7)/VLOOKUP(B22,#REF!,9,FALSE)*C22,2))) -> 0 | G22: =IF(B22=0,0,IF(C22>9999,"",ROUND(VLOOKUP(VLOOKUP(B22,#REF!,11,FALSE),#REF!,10,FALSE)/VLOOKUP(B22,#REF!,9,FALSE)*C22,2))) -> 0 | H22: =IF(B22=0,"",IF(C22>9999,"",ROUND(VLOOKUP($B22,#REF!,15,FALSE)*C22,2))) ->  | I22: =IF(B22=0,0,IF(C22>9999,"",ROUND(VLOOKUP(VLOOKUP(B22,#REF!,11,FALSE),#REF!,16,FALSE)/VLOOKUP(B22,#REF!,9,FALSE)*C22,2))) -> 0 | J22: =IF(B22=0,"",IF(C22>9999,"",ROUND(VLOOKUP($B22,#REF!,21,FALSE)*$C22,2))) ->  | K22: 0
A23: 12 | E23: =IF(B23=0,"",IF(C23>9999,"",ROUND('General Variables'!$B$4*VLOOKUP(B23,#REF!,10,FALSE)/VLOOKUP(B23,#REF!,9,FALSE)*C23,2))) ->  | F23: =IF(B23=0,0,IF(C23>9999,"",ROUND(IF(VLOOKUP(B23,#REF!,12,FALSE)=0,VLOOKUP(B23,#REF!,13,FALSE)*'General Variables'!$B$8,VLOOKUP(B23,#REF!,12,FALSE)*'General Variables'!$B$7)/VLOOKUP(B23,#REF!,9,FALSE)*C23,2))) -> 0 | G23: =IF(B23=0,0,IF(C23>9999,"",ROUND(VLOOKUP(VLOOKUP(B23,#REF!,11,FALSE),#REF!,10,FALSE)/VLOOKUP(B23,#REF!,9,FALSE)*C23,2))) -> 0 | H23: =IF(B23=0,"",IF(C23>9999,"",ROUND(VLOOKUP($B23,#REF!,15,FALSE)*C23,2))) ->  | I23: =IF(B23=0,0,IF(C23>9999,"",ROUND(VLOOKUP(VLOOKUP(B23,#REF!,11,FALSE),#REF!,16,FALSE)/VLOOKUP(B23,#REF!,9,FALSE)*C23,2))) -> 0 | J23: =IF(B23=0,"",IF(C23>9999,"",ROUND(VLOOKUP($B23,#REF!,21,FALSE)*$C23,2))) ->  | K23: 0
A24: 13 | E24: =IF(B24=0,"",IF(C24>9999,"",ROUND('General Variables'!$B$4*VLOOKUP(B24,#REF!,10,FALSE)/VLOOKUP(B24,#REF!,9,FALSE)*C24,2))) ->  | F24: =IF(B24=0,0,IF(C24>9999,"",ROUND(IF(VLOOKUP(B24,#REF!,12,FALSE)=0,VLOOKUP(B24,#REF!,13,FALSE)*'General Variables'!$B$8,VLOOKUP(B24,#REF!,12,FALSE)*'General Variables'!$B$7)/VLOOKUP(B24,#REF!,9,FALSE)*C24,2))) -> 0 | G24: =IF(B24=0,0,IF(C24>9999,"",ROUND(VLOOKUP(VLOOKUP(B24,#REF!,11,FALSE),#REF!,10,FALSE)/VLOOKUP(B24,#REF!,9,FALSE)*C24,2))) -> 0 | H24: =IF(B24=0,"",IF(C24>9999,"",ROUND(VLOOKUP($B24,#REF!,15,FALSE)*C24,2))) ->  | I24: =IF(B24=0,0,IF(C24>9999,"",ROUND(VLOOKUP(VLOOKUP(B24,#REF!,11,FALSE),#REF!,16,FALSE)/VLOOKUP(B24,#REF!,9,FALSE)*C24,2))) -> 0 | J24: =IF(B24=0,"",IF(C24>9999,"",ROUND(VLOOKUP($B24,#REF!,21,FALSE)*$C24,2))) ->  | K24: 0
A25: 14 | E25: =IF(B25=0,"",IF(C25>9999,"",ROUND('General Variables'!$B$4*VLOOKUP(B25,#REF!,10,FALSE)/VLOOKUP(B25,#REF!,9,FALSE)*C25,2))) ->  | F25: =IF(B25=0,0,IF(C25>9999,"",ROUND(IF(VLOOKUP(B25,#REF!,12,FALSE)=0,VLOOKUP(B25,#REF!,13,FALSE)*'General Variables'!$B$8,VLOOKUP(B25,#REF!,12,FALSE)*'General Variables'!$B$7)/VLOOKUP(B25,#REF!,9,FALSE)*C25,2))) -> 0 | G25: =IF(B25=0,0,IF(C25>9999,"",ROUND(VLOOKUP(VLOOKUP(B25,#REF!,11,FALSE),#REF!,10,FALSE)/VLOOKUP(B25,#REF!,9,FALSE)*C25,2))) -> 0 | H25: =IF(B25=0,"",IF(C25>9999,"",ROUND(VLOOKUP($B25,#REF!,15,FALSE)*C25,2))) ->  | I25: =IF(B25=0,0,IF(C25>9999,"",ROUND(VLOOKUP(VLOOKUP(B25,#REF!,11,FALSE),#REF!,16,FALSE)/VLOOKUP(B25,#REF!,9,FALSE)*C25,2))) -> 0 | J25: =IF(B25=0,"",IF(C25>9999,"",ROUND(VLOOKUP($B25,#REF!,21,FALSE)*$C25,2))) ->  | K25: 0
A26: 15 | E26: =IF(B26=0,"",IF(C26>9999,"",ROUND('General Variables'!$B$4*VLOOKUP(B26,#REF!,10,FALSE)/VLOOKUP(B26,#REF!,9,FALSE)*C26,2))) ->  | F26: =IF(B26=0,0,IF(C26>9999,"",ROUND(IF(VLOOKUP(B26,#REF!,12,FALSE)=0,VLOOKUP(B26,#REF!,13,FALSE)*'General Variables'!$B$8,VLOOKUP(B26,#REF!,12,FALSE)*'General Variables'!$B$7)/VLOOKUP(B26,#REF!,9,FALSE)*C26,2))) -> 0 | G26: =IF(B26=0,0,IF(C26>9999,"",ROUND(VLOOKUP(VLOOKUP(B26,#REF!,11,FALSE),#REF!,10,FALSE)/VLOOKUP(B26,#REF!,9,FALSE)*C26,2))) -> 0 | H26: =IF(B26=0,"",IF(C26>9999,"",ROUND(VLOOKUP($B26,#REF!,15,FALSE)*C26,2))) ->  | I26: =IF(B26=0,0,IF(C26>9999,"",ROUND(VLOOKUP(VLOOKUP(B26,#REF!,11,FALSE),#REF!,16,FALSE)/VLOOKUP(B26,#REF!,9,FALSE)*C26,2))) -> 0 | J26: =IF(B26=0,"",IF(C26>9999,"",ROUND(VLOOKUP($B26,#REF!,21,FALSE)*$C26,2))) ->  | K26: 0
A27: 16 | E27: =IF(B27=0,"",IF(C27>9999,"",ROUND('General Variables'!$B$4*VLOOKUP(B27,#REF!,10,FALSE)/VLOOKUP(B27,#REF!,9,FALSE)*C27,2))) ->  | F27: =IF(B27=0,0,IF(C27>9999,"",ROUND(IF(VLOOKUP(B27,#REF!,12,FALSE)=0,VLOOKUP(B27,#REF!,13,FALSE)*'General Variables'!$B$8,VLOOKUP(B27,#REF!,12,FALSE)*'General Variables'!$B$7)/VLOOKUP(B27,#REF!,9,FALSE)*C27,2))) -> 0 | G27: =IF(B27=0,0,IF(C27>9999,"",ROUND(VLOOKUP(VLOOKUP(B27,#REF!,11,FALSE),#REF!,10,FALSE)/VLOOKUP(B27,#REF!,9,FALSE)*C27,2))) -> 0 | H27: =IF(B27=0,"",IF(C27>9999,"",ROUND(VLOOKUP($B27,#REF!,15,FALSE)*C27,2))) ->  | I27: =IF(B27=0,0,IF(C27>9999,"",ROUND(VLOOKUP(VLOOKUP(B27,#REF!,11,FALSE),#REF!,16,FALSE)/VLOOKUP(B27,#REF!,9,FALSE)*C27,2))) -> 0 | J27: =IF(B27=0,"",IF(C27>9999,"",ROUND(VLOOKUP($B27,#REF!,21,FALSE)*$C27,2))) ->  | K27: 0
A28: 17 | E28: =IF(B28=0,"",IF(C28>9999,"",ROUND('General Variables'!$B$4*VLOOKUP(B28,#REF!,10,FALSE)/VLOOKUP(B28,#REF!,9,FALSE)*C28,2))) ->  | F28: =IF(B28=0,0,IF(C28>9999,"",ROUND(IF(VLOOKUP(B28,#REF!,12,FALSE)=0,VLOOKUP(B28,#REF!,13,FALSE)*'General Variables'!$B$8,VLOOKUP(B28,#REF!,12,FALSE)*'General Variables'!$B$7)/VLOOKUP(B28,#REF!,9,FALSE)*C28,2))) -> 0 | G28: =IF(B28=0,0,IF(C28>9999,"",ROUND(VLOOKUP(VLOOKUP(B28,#REF!,11,FALSE),#REF!,10,FALSE)/VLOOKUP(B28,#REF!,9,FALSE)*C28,2))) -> 0 | H28: =IF(B28=0,"",IF(C28>9999,"",ROUND(VLOOKUP($B28,#REF!,15,FALSE)*C28,2))) ->  | I28: =IF(B28=0,0,IF(C28>9999,"",ROUND(VLOOKUP(VLOOKUP(B28,#REF!,11,FALSE),#REF!,16,FALSE)/VLOOKUP(B28,#REF!,9,FALSE)*C28,2))) -> 0 | J28: =IF(B28=0,"",IF(C28>9999,"",ROUND(VLOOKUP($B28,#REF!,21,FALSE)*$C28,2))) ->  | K28: 0
A29: 18 | E29: =IF(B29=0,"",IF(C29>9999,"",ROUND('General Variables'!$B$4*VLOOKUP(B29,#REF!,10,FALSE)/VLOOKUP(B29,#REF!,9,FALSE)*C29,2))) ->  | F29: =IF(B29=0,0,IF(C29>9999,"",ROUND(IF(VLOOKUP(B29,#REF!,12,FALSE)=0,VLOOKUP(B29,#REF!,13,FALSE)*'General Variables'!$B$8,VLOOKUP(B29,#REF!,12,FALSE)*'General Variables'!$B$7)/VLOOKUP(B29,#REF!,9,FALSE)*C29,2))) -> 0 | G29: =IF(B29=0,0,IF(C29>9999,"",ROUND(VLOOKUP(VLOOKUP(B29,#REF!,11,FALSE),#REF!,10,FALSE)/VLOOKUP(B29,#REF!,9,FALSE)*C29,2))) -> 0 | H29: =IF(B29=0,"",IF(C29>9999,"",ROUND(VLOOKUP($B29,#REF!,15,FALSE)*C29,2))) ->  | I29: =IF(B29=0,0,IF(C29>9999,"",ROUND(VLOOKUP(VLOOKUP(B29,#REF!,11,FALSE),#REF!,16,FALSE)/VLOOKUP(B29,#REF!,9,FALSE)*C29,2))) -> 0 | J29: =IF(B29=0,"",IF(C29>9999,"",ROUND(VLOOKUP($B29,#REF!,21,FALSE)*$C29,2))) ->  | K29: 0
A30: 19 | E30: =IF(B30=0,"",IF(C30>9999,"",ROUND('General Variables'!$B$4*VLOOKUP(B30,#REF!,10,FALSE)/VLOOKUP(B30,#REF!,9,FALSE)*C30,2))) ->  | F30: =IF(B30=0,0,IF(C30>9999,"",ROUND(IF(VLOOKUP(B30,#REF!,12,FALSE)=0,VLOOKUP(B30,#REF!,13,FALSE)*'General Variables'!$B$8,VLOOKUP(B30,#REF!,12,FALSE)*'General Variables'!$B$7)/VLOOKUP(B30,#REF!,9,FALSE)*C30,2))) -> 0 | G30: =IF(B30=0,0,IF(C30>9999,"",ROUND(VLOOKUP(VLOOKUP(B30,#REF!,11,FALSE),#REF!,10,FALSE)/VLOOKUP(B30,#REF!,9,FALSE)*C30,2))) -> 0 | H30: =IF(B30=0,"",IF(C30>9999,"",ROUND(VLOOKUP($B30,#REF!,15,FALSE)*C30,2))) ->  | I30: =IF(B30=0,0,IF(C30>9999,"",ROUND(VLOOKUP(VLOOKUP(B30,#REF!,11,FALSE),#REF!,16,FALSE)/VLOOKUP(B30,#REF!,9,FALSE)*C30,2))) -> 0 | J30: =IF(B30=0,"",IF(C30>9999,"",ROUND(VLOOKUP($B30,#REF!,21,FALSE)*$C30,2))) ->  | K30: 0
A31: 20 | E31: =IF(B31=0,"",IF(C31>9999,"",ROUND('General Variables'!$B$4*VLOOKUP(B31,#REF!,10,FALSE)/VLOOKUP(B31,#REF!,9,FALSE)*C31,2))) ->  | F31: =IF(B31=0,0,IF(C31>9999,"",ROUND(IF(VLOOKUP(B31,#REF!,12,FALSE)=0,VLOOKUP(B31,#REF!,13,FALSE)*'General Variables'!$B$8,VLOOKUP(B31,#REF!,12,FALSE)*'General Variables'!$B$7)/VLOOKUP(B31,#REF!,9,FALSE)*C31,2))) -> 0 | G31: =IF(B31=0,0,IF(C31>9999,"",ROUND(VLOOKUP(VLOOKUP(B31,#REF!,11,FALSE),#REF!,10,FALSE)/VLOOKUP(B31,#REF!,9,FALSE)*C31,2))) -> 0 | H31: =IF(B31=0,"",IF(C31>9999,"",ROUND(VLOOKUP($B31,#REF!,15,FALSE)*C31,2))) ->  | I31: =IF(B31=0,0,IF(C31>9999,"",ROUND(VLOOKUP(VLOOKUP(B31,#REF!,11,FALSE),#REF!,16,FALSE)/VLOOKUP(B31,#REF!,9,FALSE)*C31,2))) -> 0 | J31: =IF(B31=0,"",IF(C31>9999,"",ROUND(VLOOKUP($B31,#REF!,21,FALSE)*$C31,2))) ->  | K31: 0
C33: Total for Field Operations | E33: =SUM(E12:E31) ->  | F33: =SUM(F12:F31) -> 
F35: Operation Index | G35: Percent Acres Applied | H35: Application | J35: Applied Price | L35: Your Estimate
B36: Materials & Services | H36: Rate | I36: Unit | K36: Total
B37: 11-52-0 | C37: =IF(B37=0,"",VLOOKUP($B37,Table2[],2,FALSE)) -> Fertilizer | F37: 1 | G37: 1 | H37: 75 | I37: =IF($B37=0,"",VLOOKUP($B37,Table2[],5,FALSE)) -> pound | J37: =IF($B37=0,"",VLOOKUP($B37,Table2[],7,FALSE)) -> 0.24 | K37: =IF(B37=0,0,ROUND(G37*H37*J37,2)) -> 18
B38: Twine Large Round | C38: =IF(B38=0,"",VLOOKUP($B38,Table2[],2,FALSE)) -> Other | F38: 5 | G38: 1 | H38: =A4 -> 4.4 | I38: =IF($B38=0,"",VLOOKUP($B38,Table2[],5,FALSE)) -> ton | J38: =IF($B38=0,"",VLOOKUP($B38,Table2[],7,FALSE)) -> 0.9096816114 | K38: =IF(B38=0,0,ROUND(G38*H38*J38,2)) -> 4
B39: Mustang Max EC | C39: =IF(B39=0,"",VLOOKUP($B39,Table2[],2,FALSE)) -> Insecticide | F39: 7 | G39: 0.25 | H39: 3 | I39: =IF($B39=0,"",VLOOKUP($B39,Table2[],5,FALSE)) -> ounce | J39: =IF($B39=0,"",VLOOKUP($B39,Table2[],7,FALSE)) -> 1.484375 | K39: 1.11
C40: =IF(B40=0,"",VLOOKUP($B40,Table2[],2,FALSE)) ->  | I40: =IF($B40=0,"",VLOOKUP($B40,Table2[],5,FALSE)) ->  | J40: =IF($B40=0,"",VLOOKUP($B40,Table2[],7,FALSE)) ->  | K40: 0
C41: =IF(B41=0,"",VLOOKUP($B41,Table2[],2,FALSE)) ->  | I41: =IF($B41=0,"",VLOOKUP($B41,Table2[],5,FALSE)) ->  | J41: =IF($B41=0,"",VLOOKUP($B41,Table2[],7,FALSE)) ->  | K41: 0
C42: =IF(B42=0,"",VLOOKUP($B42,Table2[],2,FALSE)) ->  | I42: =IF($B42=0,"",VLOOKUP($B42,Table2[],5,FALSE)) ->  | J42: =IF($B42=0,"",VLOOKUP($B42,Table2[],7,FALSE)) ->  | K42: 0
C43: =IF(B43=0,"",VLOOKUP($B43,Table2[],2,FALSE)) ->  | I43: =IF($B43=0,"",VLOOKUP($B43,Table2[],5,FALSE)) ->  | J43: =IF($B43=0,"",VLOOKUP($B43,Table2[],7,FALSE)) ->  | K43: 0
C44: =IF(B44=0,"",VLOOKUP($B44,Table2[],2,FALSE)) ->  | I44: =IF($B44=0,"",VLOOKUP($B44,Table2[],5,FALSE)) ->  | J44: =IF($B44=0,"",VLOOKUP($B44,Table2[],7,FALSE)) ->  | K44: 0
C45: =IF(B45=0,"",VLOOKUP($B45,Table2[],2,FALSE)) ->  | I45: =IF($B45=0,"",VLOOKUP($B45,Table2[],5,FALSE)) ->  | J45: =IF($B45=0,"",VLOOKUP($B45,Table2[],7,FALSE)) ->  | K45: 0
C46: =IF(B46=0,"",VLOOKUP($B46,Table2[],2,FALSE)) ->  | I46: =IF($B46=0,"",VLOOKUP($B46,Table2[],5,FALSE)) ->  | J46: =IF($B46=0,"",VLOOKUP($B46,Table2[],7,FALSE)) ->  | K46: 0
C47: =IF(B47=0,"",VLOOKUP($B47,Table2[],2,FALSE)) ->  | I47: =IF($B47=0,"",VLOOKUP($B47,Table2[],5,FALSE)) ->  | J47: =IF($B47=0,"",VLOOKUP($B47,Table2[],7,FALSE)) ->  | K47: 0
C48: =IF(B48=0,"",VLOOKUP($B48,Table2[],2,FALSE)) ->  | I48: =IF($B48=0,"",VLOOKUP($B48,Table2[],5,FALSE)) ->  | J48: =IF($B48=0,"",VLOOKUP($B48,Table2[],7,FALSE)) ->  | K48: 0
C49: =IF(B49=0,"",VLOOKUP($B49,Table2[],2,FALSE)) ->  | I49: =IF($B49=0,"",VLOOKUP($B49,Table2[],5,FALSE)) ->  | J49: =IF($B49=0,"",VLOOKUP($B49,Table2[],7,FALSE)) ->  | K49: 0
C50: =IF(B50=0,"",VLOOKUP($B50,Table2[],2,FALSE)) ->  | I50: =IF($B50=0,"",VLOOKUP($B50,Table2[],5,FALSE)) ->  | J50: =IF($B50=0,"",VLOOKUP($B50,Table2[],7,FALSE)) ->  | K50: 0
C51: =IF(B51=0,"",VLOOKUP($B51,Table2[],2,FALSE)) ->  | I51: =IF($B51=0,"",VLOOKUP($B51,Table2[],5,FALSE)) ->  | J51: =IF($B51=0,"",VLOOKUP($B51,Table2[],7,FALSE)) ->  | K51: 0
C52: =IF(B52=0,"",VLOOKUP($B52,Table2[],2,FALSE)) ->  | I52: =IF($B52=0,"",VLOOKUP($B52,Table2[],5,FALSE)) ->  | J52: =IF($B52=0,"",VLOOKUP($B52,Table2[],7,FALSE)) ->  | K52: 0
C53: =IF(B53=0,"",VLOOKUP($B53,Table2[],2,FALSE)) ->  | I53: =IF($B53=0,"",VLOOKUP($B53,Table2[],5,FALSE)) ->  | J53: =IF($B53=0,"",VLOOKUP($B53,Table2[],7,FALSE)) ->  | K53: 0
C54: =IF(B54=0,"",VLOOKUP($B54,Table2[],2,FALSE)) ->  | I54: =IF($B54=0,"",VLOOKUP($B54,Table2[],5,FALSE)) ->  | J54: =IF($B54=0,"",VLOOKUP($B54,Table2[],7,FALSE)) ->  | K54: 0
C55: =IF(B55=0,"",VLOOKUP($B55,Table2[],2,FALSE)) ->  | I55: =IF($B55=0,"",VLOOKUP($B55,Table2[],5,FALSE)) ->  | J55: =IF($B55=0,"",VLOOKUP($B55,Table2[],7,FALSE)) ->  | K55: 0
C56: =IF(B56=0,"",VLOOKUP($B56,Table2[],2,FALSE)) ->  | I56: =IF($B56=0,"",VLOOKUP($B56,Table2[],5,FALSE)) ->  | J56: =IF($B56=0,"",VLOOKUP($B56,Table2[],7,FALSE)) ->  | K56: =IF(B56=0,0,ROUND(G56*H56*J56,2)) -> 0
C57: =IF(B57=0,"",VLOOKUP($B57,Table2[],2,FALSE)) ->  | I57: =IF($B57=0,"",VLOOKUP($B57,Table2[],5,FALSE)) ->  | J57: =IF($B57=0,"",VLOOKUP($B57,Table2[],7,FALSE)) ->  | K57: =IF(B57=0,0,ROUND(G57*H57*J57,2)) -> 0
C58: =IF(B58=0,"",VLOOKUP($B58,Table2[],2,FALSE)) ->  | I58: =IF($B58=0,"",VLOOKUP($B58,Table2[],5,FALSE)) ->  | J58: =IF($B58=0,"",VLOOKUP($B58,Table2[],7,FALSE)) ->  | K58: =IF(B58=0,0,ROUND(G58*H58*J58,2)) -> 0
C59: =IF(B59=0,"",VLOOKUP($B59,Table2[],2,FALSE)) ->  | I59: =IF($B59=0,"",VLOOKUP($B59,Table2[],5,FALSE)) ->  | J59: =IF($B59=0,"",VLOOKUP($B59,Table2[],7,FALSE)) ->  | K59: =IF(B59=0,0,ROUND(G59*H59*J59,2)) -> 0
C60: =IF(B60=0,"",VLOOKUP($B60,Table2[],2,FALSE)) ->  | I60: =IF($B60=0,"",VLOOKUP($B60,Table2[],5,FALSE)) ->  | J60: =IF($B60=0,"",VLOOKUP($B60,Table2[],7,FALSE)) ->  | K60: =IF(B60=0,0,ROUND(G60*H60*J60,2)) -> 0
C61: Crop Insurance | J61: =IF($B61=0,"",VLOOKUP($B61,Materials!$B$2:$H$127,7,FALSE)) ->  | K61: 0
C63: Total Materials & Services | K63: =SUM(K37:K61) -> 23.11
B65: Total listed costs for Field Operations and Materials and Services | K65: =K33+K63 -> 
D66: Interest on Operations Capital | E66: =ROUND(SUM($E$33:$H$33)+$K$63,2) ->  | F66: cash expense @ | H66: ='General Variables'!$B$11 -> 0.055 | I66: =CONCATENATE("for ",TEXT('General Variables'!$B$12,"0.0")," mo.") -> for 6.0 mo. | K66: =E66*H66*'General Variables'!$B$12/12 -> 
B67: Total Operating and Use Related Ownership Costs | K67: =SUM(K65:K66) -> 
B69: Overhead (accounting, liability insurance, vehicle cost, office expense) | K69: ='General Variables'!B14 -> 20
B70: Real Estate Opportunity | C70: Dryland (State) | F70: =IF(C70=0,0,VLOOKUP(C70,RETable,2,FALSE)) -> 3470 | G70: per acre @ | I70: ='General Variables'!$B$10 -> 0.04 | K70: =ROUND(F70*I70,2) -> 138.8
B71: Real Estate Taxes | F71: =IF(C70=0,0,VLOOKUP(C70,RETable,2,FALSE)) -> 3470 | G71: per acre @ | I71: ='General Variables'!$B$13 -> 0.01 | K71: =ROUND(F71*I71,2) -> 34.7
B72: Total Cost per Acre Including Overhead | K72: =SUM(K67:K71) -> 
B74: ="Cost per "&$B$4 -> Cost per ton | K74: =IF(A4="Yield",0,K72/$A$4) -> 
B75: ="Cash Cost per "&$B$4 -> Cash Cost per ton | K75: =IF($A$4="Yield",0,(E66+K66+K71)/$A$4) -> 
K111: Yes
K112: No
B240: =IF(#REF!="","",#REF!) ->  | C240: =IF(Materials!B132="","",Materials!B132) -> 
B241: =IF(#REF!="","",#REF!) ->  | C241: =IF(Materials!B133="","",Materials!B133) -> 
B242: =IF(#REF!="","",#REF!) ->  | C242: =IF(Materials!B134="","",Materials!B134) -> 
B243: =IF(#REF!="","",#REF!) ->  | C243: =IF(Materials!B135="","",Materials!B135) -> 
B244: =IF(#REF!="","",#REF!) ->  | C244: =IF(Materials!B136="","",Materials!B136) -> 

Sheet 10-Alfalfa
A2: =REPLACE(CELL("filename",A1),1,FIND("]",CELL("filename",A1)),"") -> 10-Alfalfa | I2: Pivot Irrigated | J2: 800 GPM 35 PSI | L2: ='General Variables'!A3&" "&'General Variables'!B3 -> Year 2017 | O2: Acre
A3: Large and Small Square Bale | H3: 16 | I3: acre/inches | O3: ai
A4: 6.7 | B4: ton | J4: Does Crop Follow a Legume? | O4: =B4 -> ton
A5: =A2 & IF(C2="","", ", " &C2 ) & ", " & A3 & ", " & I2 -> 10-Alfalfa, Large and Small Square Bale, Pivot Irrigated
A7: ='General Variables'!B3 & " Budget " & A2 &", " & IF(C2=0,"", " " & C2 & ", ") & A3 & IF(A4=""," ", " (") & A4 & " " & B4 & IF(A4="",""," Actual Yield)") -> 2017 Budget 10-Alfalfa, Large and Small Square Bale (6.7 ton Actual Yield)
A8: =IF(I2="Dryland","Dryland",I2 & IF(J2="","",", "&J2)&IF(H3="","",", "&H3&" "&I3)) -> Pivot Irrigated, 800 GPM 35 PSI, 16 acre/inches
B10: Field Operations | C10: Times or Qty | E10: ="Labor @ $" &TEXT('General Variables'!B4,"#.00")& " /Hr" -> Labor @ $20.00 /Hr | F10: ="Fuel @ $" & TEXT('General Variables'!B5,"#.00") & " and Lube" -> Fuel @ $2.25 and Lube | G10: Repairs | I10: Ownership | K10: Total | L10: Your Estimate
D11: Unit | G11: Power | H11: Imp. | I11: Power | J11: Imp.
A12: 1 | B12: Spread Fertilizer | C12: 1 | E12: =IF(B12=0,"",IF(C12>9999,"",ROUND('General Variables'!$B$4*VLOOKUP(B12,#REF!,10,FALSE)/VLOOKUP(B12,#REF!,9,FALSE)*C12,2))) ->  | F12: =IF(B12=0,0,IF(C12>9999,"",ROUND(IF(VLOOKUP(B12,#REF!,12,FALSE)=0,VLOOKUP(B12,#REF!,13,FALSE)*'General Variables'!$B$8,VLOOKUP(B12,#REF!,12,FALSE)*'General Variables'!$B$7)/VLOOKUP(B12,#REF!,9,FALSE)*C12,2))) ->  | G12: =IF(B12=0,0,IF(C12>9999,"",ROUND(VLOOKUP(VLOOKUP(B12,#REF!,11,FALSE),#REF!,10,FALSE)/VLOOKUP(B12,#REF!,9,FALSE)*C12,2))) ->  | H12: =IF(B12=0,"",IF(C12>9999,"",ROUND(VLOOKUP($B12,#REF!,15,FALSE)*C12,2))) ->  | I12: =IF(B12=0,0,IF(C12>9999,"",ROUND(VLOOKUP(VLOOKUP(B12,#REF!,11,FALSE),#REF!,16,FALSE)/VLOOKUP(B12,#REF!,9,FALSE)*C12,2))) ->  | J12: =IF(B12=0,"",IF(C12>9999,"",ROUND(VLOOKUP($B12,#REF!,21,FALSE)*$C12,2))) ->  | K12: =IF(C12>9999,"",ROUND(SUM(E12:J12),2)) -> 
A13: 2 | B13: Swath/Condition Hay | C13: 4 | E13: =IF(B13=0,"",IF(C13>9999,"",ROUND('General Variables'!$B$4*VLOOKUP(B13,#REF!,10,FALSE)/VLOOKUP(B13,#REF!,9,FALSE)*C13,2))) ->  | F13: =IF(B13=0,0,IF(C13>9999,"",ROUND(IF(VLOOKUP(B13,#REF!,12,FALSE)=0,VLOOKUP(B13,#REF!,13,FALSE)*'General Variables'!$B$8,VLOOKUP(B13,#REF!,12,FALSE)*'General Variables'!$B$7)/VLOOKUP(B13,#REF!,9,FALSE)*C13,2))) ->  | G13: =IF(B13=0,0,IF(C13>9999,"",ROUND(VLOOKUP(VLOOKUP(B13,#REF!,11,FALSE),#REF!,10,FALSE)/VLOOKUP(B13,#REF!,9,FALSE)*C13,2))) ->  | H13: =IF(B13=0,"",IF(C13>9999,"",ROUND(VLOOKUP($B13,#REF!,15,FALSE)*C13,2))) ->  | I13: =IF(B13=0,0,IF(C13>9999,"",ROUND(VLOOKUP(VLOOKUP(B13,#REF!,11,FALSE),#REF!,16,FALSE)/VLOOKUP(B13,#REF!,9,FALSE)*C13,2))) ->  | J13: =IF(B13=0,"",IF(C13>9999,"",ROUND(VLOOKUP($B13,#REF!,21,FALSE)*$C13,2))) ->  | K13: =IF(C13>9999,"",ROUND(SUM(E13:J13),2)) -> 
A14: 3 | B14: Turn Windrows | C14: 1 | E14: =IF(B14=0,"",IF(C14>9999,"",ROUND('General Variables'!$B$4*VLOOKUP(B14,#REF!,10,FALSE)/VLOOKUP(B14,#REF!,9,FALSE)*C14,2))) ->  | F14: =IF(B14=0,0,IF(C14>9999,"",ROUND(IF(VLOOKUP(B14,#REF!,12,FALSE)=0,VLOOKUP(B14,#REF!,13,FALSE)*'General Variables'!$B$8,VLOOKUP(B14,#REF!,12,FALSE)*'General Variables'!$B$7)/VLOOKUP(B14,#REF!,9,FALSE)*C14,2))) ->  | G14: =IF(B14=0,0,IF(C14>9999,"",ROUND(VLOOKUP(VLOOKUP(B14,#REF!,11,FALSE),#REF!,10,FALSE)/VLOOKUP(B14,#REF!,9,FALSE)*C14,2))) ->  | H14: =IF(B14=0,"",IF(C14>9999,"",ROUND(VLOOKUP($B14,#REF!,15,FALSE)*C14,2))) ->  | I14: =IF(B14=0,0,IF(C14>9999,"",ROUND(VLOOKUP(VLOOKUP(B14,#REF!,11,FALSE),#REF!,16,FALSE)/VLOOKUP(B14,#REF!,9,FALSE)*C14,2))) ->  | J14: =IF(B14=0,"",IF(C14>9999,"",ROUND(VLOOKUP($B14,#REF!,21,FALSE)*$C14,2))) -> 
A15: 4 | B15: Double Windrows | C15: 4 | E15: =IF(B15=0,"",IF(C15>9999,"",ROUND('General Variables'!$B$4*VLOOKUP(B15,#REF!,10,FALSE)/VLOOKUP(B15,#REF!,9,FALSE)*C15,2))) ->  | F15: =IF(B15=0,0,IF(C15>9999,"",ROUND(IF(VLOOKUP(B15,#REF!,12,FALSE)=0,VLOOKUP(B15,#REF!,13,FALSE)*'General Variables'!$B$8,VLOOKUP(B15,#REF!,12,FALSE)*'General Variables'!$B$7)/VLOOKUP(B15,#REF!,9,FALSE)*C15,2))) ->  | G15: =IF(B15=0,0,IF(C15>9999,"",ROUND(VLOOKUP(VLOOKUP(B15,#REF!,11,FALSE),#REF!,10,FALSE)/VLOOKUP(B15,#REF!,9,FALSE)*C15,2))) ->  | H15: =IF(B15=0,"",IF(C15>9999,"",ROUND(VLOOKUP($B15,#REF!,15,FALSE)*C15,2))) ->  | I15: =IF(B15=0,0,IF(C15>9999,"",ROUND(VLOOKUP(VLOOKUP(B15,#REF!,11,FALSE),#REF!,16,FALSE)/VLOOKUP(B15,#REF!,9,FALSE)*C15,2))) ->  | J15: =IF(B15=0,"",IF(C15>9999,"",ROUND(VLOOKUP($B15,#REF!,21,FALSE)*$C15,2))) -> 
A16: 5 | B16: Large Square Bale | C16: =A4*2/3 -> 4.466666667 | D16: ton | E16: =IF(B16=0,"",IF(C16>9999,"",ROUND('General Variables'!$B$4*VLOOKUP(B16,#REF!,10,FALSE)/VLOOKUP(B16,#REF!,9,FALSE)*C16,2))) ->  | F16: =IF(B16=0,0,IF(C16>9999,"",ROUND(IF(VLOOKUP(B16,#REF!,12,FALSE)=0,VLOOKUP(B16,#REF!,13,FALSE)*'General Variables'!$B$8,VLOOKUP(B16,#REF!,12,FALSE)*'General Variables'!$B$7)/VLOOKUP(B16,#REF!,9,FALSE)*C16,2))) ->  | G16: =IF(B16=0,0,IF(C16>9999,"",ROUND(VLOOKUP(VLOOKUP(B16,#REF!,11,FALSE),#REF!,10,FALSE)/VLOOKUP(B16,#REF!,9,FALSE)*C16,2))) ->  | H16: =IF(B16=0,"",IF(C16>9999,"",ROUND(VLOOKUP($B16,#REF!,15,FALSE)*C16,2))) ->  | I16: =IF(B16=0,0,IF(C16>9999,"",ROUND(VLOOKUP(VLOOKUP(B16,#REF!,11,FALSE),#REF!,16,FALSE)/VLOOKUP(B16,#REF!,9,FALSE)*C16,2))) ->  | J16: =IF(B16=0,"",IF(C16>9999,"",ROUND(VLOOKUP($B16,#REF!,21,FALSE)*$C16,2))) ->  | K16: =IF(C16>9999,"",ROUND(SUM(E16:J16),2)) -> 
A17: 6 | B17: Load Large Square | C17: Custom | D17: ton | E17: =IF(B17=0,"",IF(C17>9999,"",ROUND('General Variables'!$B$4*VLOOKUP(B17,#REF!,10,FALSE)/VLOOKUP(B17,#REF!,9,FALSE)*C17,2))) ->  | F17: =IF(B17=0,0,IF(C17>9999,"",ROUND(IF(VLOOKUP(B17,#REF!,12,FALSE)=0,VLOOKUP(B17,#REF!,13,FALSE)*'General Variables'!$B$8,VLOOKUP(B17,#REF!,12,FALSE)*'General Variables'!$B$7)/VLOOKUP(B17,#REF!,9,FALSE)*C17,2))) ->  | G17: =IF(B17=0,0,IF(C17>9999,"",ROUND(VLOOKUP(VLOOKUP(B17,#REF!,11,FALSE),#REF!,10,FALSE)/VLOOKUP(B17,#REF!,9,FALSE)*C17,2))) ->  | H17: =IF(B17=0,"",IF(C17>9999,"",ROUND(VLOOKUP($B17,#REF!,15,FALSE)*C17,2))) ->  | I17: =IF(B17=0,0,IF(C17>9999,"",ROUND(VLOOKUP(VLOOKUP(B17,#REF!,11,FALSE),#REF!,16,FALSE)/VLOOKUP(B17,#REF!,9,FALSE)*C17,2))) ->  | J17: =IF(B17=0,"",IF(C17>9999,"",ROUND(VLOOKUP($B17,#REF!,21,FALSE)*$C17,2))) ->  | K17: =IF(C17>9999,"",ROUND(SUM(E17:J17),2)) -> 
A18: 7 | B18: Bale Small Square | C18: =A4/3 -> 2.233333333 | D18: ton | E18: =IF(B18=0,"",IF(C18>9999,"",ROUND('General Variables'!$B$4*VLOOKUP(B18,#REF!,10,FALSE)/VLOOKUP(B18,#REF!,9,FALSE)*C18,2))) ->  | F18: =IF(B18=0,0,IF(C18>9999,"",ROUND(IF(VLOOKUP(B18,#REF!,12,FALSE)=0,VLOOKUP(B18,#REF!,13,FALSE)*'General Variables'!$B$8,VLOOKUP(B18,#REF!,12,FALSE)*'General Variables'!$B$7)/VLOOKUP(B18,#REF!,9,FALSE)*C18,2))) ->  | G18: =IF(B18=0,0,IF(C18>9999,"",ROUND(VLOOKUP(VLOOKUP(B18,#REF!,11,FALSE),#REF!,10,FALSE)/VLOOKUP(B18,#REF!,9,FALSE)*C18,2))) ->  | H18: =IF(B18=0,"",IF(C18>9999,"",ROUND(VLOOKUP($B18,#REF!,15,FALSE)*C18,2))) ->  | I18: =IF(B18=0,0,IF(C18>9999,"",ROUND(VLOOKUP(VLOOKUP(B18,#REF!,11,FALSE),#REF!,16,FALSE)/VLOOKUP(B18,#REF!,9,FALSE)*C18,2))) ->  | J18: =IF(B18=0,"",IF(C18>9999,"",ROUND(VLOOKUP($B18,#REF!,21,FALSE)*$C18,2))) ->  | K18: =IF(C18>9999,"",ROUND(SUM(E18:J18),2)) -> 
A19: 8 | B19: Stack Small Square | C19: =A4/3 -> 2.233333333 | D19: ton | E19: =IF(B19=0,"",IF(C19>9999,"",ROUND('General Variables'!$B$4*VLOOKUP(B19,#REF!,10,FALSE)/VLOOKUP(B19,#REF!,9,FALSE)*C19,2))) ->  | F19: =IF(B19=0,0,IF(C19>9999,"",ROUND(IF(VLOOKUP(B19,#REF!,12,FALSE)=0,VLOOKUP(B19,#REF!,13,FALSE)*'General Variables'!$B$8,VLOOKUP(B19,#REF!,12,FALSE)*'General Variables'!$B$7)/VLOOKUP(B19,#REF!,9,FALSE)*C19,2))) ->  | G19: =IF(B19=0,0,IF(C19>9999,"",ROUND(VLOOKUP(VLOOKUP(B19,#REF!,11,FALSE),#REF!,10,FALSE)/VLOOKUP(B19,#REF!,9,FALSE)*C19,2))) ->  | H19: =IF(B19=0,"",IF(C19>9999,"",ROUND(VLOOKUP($B19,#REF!,15,FALSE)*C19,2))) ->  | I19: =IF(B19=0,0,IF(C19>9999,"",ROUND(VLOOKUP(VLOOKUP(B19,#REF!,11,FALSE),#REF!,16,FALSE)/VLOOKUP(B19,#REF!,9,FALSE)*C19,2))) ->  | J19: =IF(B19=0,"",IF(C19>9999,"",ROUND(VLOOKUP($B19,#REF!,21,FALSE)*$C19,2))) ->  | K19: =IF(C19>9999,"",ROUND(SUM(E19:J19),2)) -> 
A20: 9 | B20: Pivot E 125' Lift | C20: =$H$3 -> 16 | D20: ai | E20: =IF(B20=0,"",IF(C20>9999,"",ROUND('General Variables'!$B$4*VLOOKUP(B20,#REF!,10,FALSE)/VLOOKUP(B20,#REF!,9,FALSE)*C20,2))) ->  | F20: =IF(B20=0,0,IF(C20>9999,"",ROUND(IF(VLOOKUP(B20,#REF!,12,FALSE)=0,VLOOKUP(B20,#REF!,13,FALSE)*'General Variables'!$B$8,VLOOKUP(B20,#REF!,12,FALSE)*'General Variables'!$B$7)/VLOOKUP(B20,#REF!,9,FALSE)*C20,2))) ->  | G20: =IF(B20=0,0,IF(C20>9999,"",ROUND(VLOOKUP(VLOOKUP(B20,#REF!,11,FALSE),#REF!,10,FALSE)/VLOOKUP(B20,#REF!,9,FALSE)*C20,2))) ->  | H20: =IF(B20=0,"",IF(C20>9999,"",ROUND(VLOOKUP($B20,#REF!,15,FALSE)*C20,2))) ->  | I20: =IF(B20=0,0,IF(C20>9999,"",ROUND(VLOOKUP(VLOOKUP(B20,#REF!,11,FALSE),#REF!,16,FALSE)/VLOOKUP(B20,#REF!,9,FALSE)*C20,2))) ->  | J20: =IF(B20=0,"",IF(C20>9999,"",ROUND(VLOOKUP($B20,#REF!,21,FALSE)*$C20,2))) ->  | K20: =IF(C20>9999,"",ROUND(SUM(E20:J20),2)) -> 
A21: 10 | B21: Spray | C21: 0.25 | E21: =IF(B21=0,"",IF(C21>9999,"",ROUND('General Variables'!$B$4*VLOOKUP(B21,#REF!,10,FALSE)/VLOOKUP(B21,#REF!,9,FALSE)*C21,2))) ->  | F21: =IF(B21=0,0,IF(C21>9999,"",ROUND(IF(VLOOKUP(B21,#REF!,12,FALSE)=0,VLOOKUP(B21,#REF!,13,FALSE)*'General Variables'!$B$8,VLOOKUP(B21,#REF!,12,FALSE)*'General Variables'!$B$7)/VLOOKUP(B21,#REF!,9,FALSE)*C21,2))) ->  | G21: =IF(B21=0,0,IF(C21>9999,"",ROUND(VLOOKUP(VLOOKUP(B21,#REF!,11,FALSE),#REF!,10,FALSE)/VLOOKUP(B21,#REF!,9,FALSE)*C21,2))) ->  | H21: =IF(B21=0,"",IF(C21>9999,"",ROUND(VLOOKUP($B21,#REF!,15,FALSE)*C21,2))) ->  | I21: =IF(B21=0,0,IF(C21>9999,"",ROUND(VLOOKUP(VLOOKUP(B21,#REF!,11,FALSE),#REF!,16,FALSE)/VLOOKUP(B21,#REF!,9,FALSE)*C21,2))) ->  | J21: =IF(B21=0,"",IF(C21>9999,"",ROUND(VLOOKUP($B21,#REF!,21,FALSE)*$C21,2))) -> 
A22: 11 | B22: Spray | C22: 0.25 | E22: =IF(B22=0,"",IF(C22>9999,"",ROUND('General Variables'!$B$4*VLOOKUP(B22,#REF!,10,FALSE)/VLOOKUP(B22,#REF!,9,FALSE)*C22,2))) ->  | F22: =IF(B22=0,0,IF(C22>9999,"",ROUND(IF(VLOOKUP(B22,#REF!,12,FALSE)=0,VLOOKUP(B22,#REF!,13,FALSE)*'General Variables'!$B$8,VLOOKUP(B22,#REF!,12,FALSE)*'General Variables'!$B$7)/VLOOKUP(B22,#REF!,9,FALSE)*C22,2))) ->  | G22: =IF(B22=0,0,IF(C22>9999,"",ROUND(VLOOKUP(VLOOKUP(B22,#REF!,11,FALSE),#REF!,10,FALSE)/VLOOKUP(B22,#REF!,9,FALSE)*C22,2))) ->  | H22: =IF(B22=0,"",IF(C22>9999,"",ROUND(VLOOKUP($B22,#REF!,15,FALSE)*C22,2))) ->  | I22: =IF(B22=0,0,IF(C22>9999,"",ROUND(VLOOKUP(VLOOKUP(B22,#REF!,11,FALSE),#REF!,16,FALSE)/VLOOKUP(B22,#REF!,9,FALSE)*C22,2))) ->  | J22: =IF(B22=0,"",IF(C22>9999,"",ROUND(VLOOKUP($B22,#REF!,21,FALSE)*$C22,2))) -> 
A23: 12 | E23: =IF(B23=0,"",IF(C23>9999,"",ROUND('General Variables'!$B$4*VLOOKUP(B23,#REF!,10,FALSE)/VLOOKUP(B23,#REF!,9,FALSE)*C23,2))) ->  | F23: =IF(B23=0,0,IF(C23>9999,"",ROUND(IF(VLOOKUP(B23,#REF!,12,FALSE)=0,VLOOKUP(B23,#REF!,13,FALSE)*'General Variables'!$B$8,VLOOKUP(B23,#REF!,12,FALSE)*'General Variables'!$B$7)/VLOOKUP(B23,#REF!,9,FALSE)*C23,2))) -> 0 | G23: =IF(B23=0,0,IF(C23>9999,"",ROUND(VLOOKUP(VLOOKUP(B23,#REF!,11,FALSE),#REF!,10,FALSE)/VLOOKUP(B23,#REF!,9,FALSE)*C23,2))) -> 0 | H23: =IF(B23=0,"",IF(C23>9999,"",ROUND(VLOOKUP($B23,#REF!,15,FALSE)*C23,2))) ->  | I23: =IF(B23=0,0,IF(C23>9999,"",ROUND(VLOOKUP(VLOOKUP(B23,#REF!,11,FALSE),#REF!,16,FALSE)/VLOOKUP(B23,#REF!,9,FALSE)*C23,2))) -> 0 | J23: =IF(B23=0,"",IF(C23>9999,"",ROUND(VLOOKUP($B23,#REF!,21,FALSE)*$C23,2))) ->  | K23: 0
A24: 13 | E24: =IF(B24=0,"",IF(C24>9999,"",ROUND('General Variables'!$B$4*VLOOKUP(B24,#REF!,10,FALSE)/VLOOKUP(B24,#REF!,9,FALSE)*C24,2))) ->  | F24: =IF(B24=0,0,IF(C24>9999,"",ROUND(IF(VLOOKUP(B24,#REF!,12,FALSE)=0,VLOOKUP(B24,#REF!,13,FALSE)*'General Variables'!$B$8,VLOOKUP(B24,#REF!,12,FALSE)*'General Variables'!$B$7)/VLOOKUP(B24,#REF!,9,FALSE)*C24,2))) -> 0 | G24: =IF(B24=0,0,IF(C24>9999,"",ROUND(VLOOKUP(VLOOKUP(B24,#REF!,11,FALSE),#REF!,10,FALSE)/VLOOKUP(B24,#REF!,9,FALSE)*C24,2))) -> 0 | H24: =IF(B24=0,"",IF(C24>9999,"",ROUND(VLOOKUP($B24,#REF!,15,FALSE)*C24,2))) ->  | I24: =IF(B24=0,0,IF(C24>9999,"",ROUND(VLOOKUP(VLOOKUP(B24,#REF!,11,FALSE),#REF!,16,FALSE)/VLOOKUP(B24,#REF!,9,FALSE)*C24,2))) -> 0 | J24: =IF(B24=0,"",IF(C24>9999,"",ROUND(VLOOKUP($B24,#REF!,21,FALSE)*$C24,2))) ->  | K24: 0
A25: 14 | E25: =IF(B25=0,"",IF(C25>9999,"",ROUND('General Variables'!$B$4*VLOOKUP(B25,#REF!,10,FALSE)/VLOOKUP(B25,#REF!,9,FALSE)*C25,2))) ->  | F25: =IF(B25=0,0,IF(C25>9999,"",ROUND(IF(VLOOKUP(B25,#REF!,12,FALSE)=0,VLOOKUP(B25,#REF!,13,FALSE)*'General Variables'!$B$8,VLOOKUP(B25,#REF!,12,FALSE)*'General Variables'!$B$7)/VLOOKUP(B25,#REF!,9,FALSE)*C25,2))) -> 0 | G25: =IF(B25=0,0,IF(C25>9999,"",ROUND(VLOOKUP(VLOOKUP(B25,#REF!,11,FALSE),#REF!,10,FALSE)/VLOOKUP(B25,#REF!,9,FALSE)*C25,2))) -> 0 | H25: =IF(B25=0,"",IF(C25>9999,"",ROUND(VLOOKUP($B25,#REF!,15,FALSE)*C25,2))) ->  | I25: =IF(B25=0,0,IF(C25>9999,"",ROUND(VLOOKUP(VLOOKUP(B25,#REF!,11,FALSE),#REF!,16,FALSE)/VLOOKUP(B25,#REF!,9,FALSE)*C25,2))) -> 0 | J25: =IF(B25=0,"",IF(C25>9999,"",ROUND(VLOOKUP($B25,#REF!,21,FALSE)*$C25,2))) ->  | K25: 0
A26: 15 | E26: =IF(B26=0,"",IF(C26>9999,"",ROUND('General Variables'!$B$4*VLOOKUP(B26,#REF!,10,FALSE)/VLOOKUP(B26,#REF!,9,FALSE)*C26,2))) ->  | F26: =IF(B26=0,0,IF(C26>9999,"",ROUND(IF(VLOOKUP(B26,#REF!,12,FALSE)=0,VLOOKUP(B26,#REF!,13,FALSE)*'General Variables'!$B$8,VLOOKUP(B26,#REF!,12,FALSE)*'General Variables'!$B$7)/VLOOKUP(B26,#REF!,9,FALSE)*C26,2))) -> 0 | G26: =IF(B26=0,0,IF(C26>9999,"",ROUND(VLOOKUP(VLOOKUP(B26,#REF!,11,FALSE),#REF!,10,FALSE)/VLOOKUP(B26,#REF!,9,FALSE)*C26,2))) -> 0 | H26: =IF(B26=0,"",IF(C26>9999,"",ROUND(VLOOKUP($B26,#REF!,15,FALSE)*C26,2))) ->  | I26: =IF(B26=0,0,IF(C26>9999,"",ROUND(VLOOKUP(VLOOKUP(B26,#REF!,11,FALSE),#REF!,16,FALSE)/VLOOKUP(B26,#REF!,9,FALSE)*C26,2))) -> 0 | J26: =IF(B26=0,"",IF(C26>9999,"",ROUND(VLOOKUP($B26,#REF!,21,FALSE)*$C26,2))) ->  | K26: 0
A27: 16 | E27: =IF(B27=0,"",IF(C27>9999,"",ROUND('General Variables'!$B$4*VLOOKUP(B27,#REF!,10,FALSE)/VLOOKUP(B27,#REF!,9,FALSE)*C27,2))) ->  | F27: =IF(B27=0,0,IF(C27>9999,"",ROUND(IF(VLOOKUP(B27,#REF!,12,FALSE)=0,VLOOKUP(B27,#REF!,13,FALSE)*'General Variables'!$B$8,VLOOKUP(B27,#REF!,12,FALSE)*'General Variables'!$B$7)/VLOOKUP(B27,#REF!,9,FALSE)*C27,2))) -> 0 | G27: =IF(B27=0,0,IF(C27>9999,"",ROUND(VLOOKUP(VLOOKUP(B27,#REF!,11,FALSE),#REF!,10,FALSE)/VLOOKUP(B27,#REF!,9,FALSE)*C27,2))) -> 0 | H27: =IF(B27=0,"",IF(C27>9999,"",ROUND(VLOOKUP($B27,#REF!,15,FALSE)*C27,2))) ->  | I27: =IF(B27=0,0,IF(C27>9999,"",ROUND(VLOOKUP(VLOOKUP(B27,#REF!,11,FALSE),#REF!,16,FALSE)/VLOOKUP(B27,#REF!,9,FALSE)*C27,2))) -> 0 | J27: =IF(B27=0,"",IF(C27>9999,"",ROUND(VLOOKUP($B27,#REF!,21,FALSE)*$C27,2))) ->  | K27: 0
A28: 17 | E28: =IF(B28=0,"",IF(C28>9999,"",ROUND('General Variables'!$B$4*VLOOKUP(B28,#REF!,10,FALSE)/VLOOKUP(B28,#REF!,9,FALSE)*C28,2))) ->  | F28: =IF(B28=0,0,IF(C28>9999,"",ROUND(IF(VLOOKUP(B28,#REF!,12,FALSE)=0,VLOOKUP(B28,#REF!,13,FALSE)*'General Variables'!$B$8,VLOOKUP(B28,#REF!,12,FALSE)*'General Variables'!$B$7)/VLOOKUP(B28,#REF!,9,FALSE)*C28,2))) -> 0 | G28: =IF(B28=0,0,IF(C28>9999,"",ROUND(VLOOKUP(VLOOKUP(B28,#REF!,11,FALSE),#REF!,10,FALSE)/VLOOKUP(B28,#REF!,9,FALSE)*C28,2))) -> 0 | H28: =IF(B28=0,"",IF(C28>9999,"",ROUND(VLOOKUP($B28,#REF!,15,FALSE)*C28,2))) ->  | I28: =IF(B28=0,0,IF(C28>9999,"",ROUND(VLOOKUP(VLOOKUP(B28,#REF!,11,FALSE),#REF!,16,FALSE)/VLOOKUP(B28,#REF!,9,FALSE)*C28,2))) -> 0 | J28: =IF(B28=0,"",IF(C28>9999,"",ROUND(VLOOKUP($B28,#REF!,21,FALSE)*$C28,2))) ->  | K28: 0
A29: 18 | E29: =IF(B29=0,"",IF(C29>9999,"",ROUND('General Variables'!$B$4*VLOOKUP(B29,#REF!,10,FALSE)/VLOOKUP(B29,#REF!,9,FALSE)*C29,2))) ->  | F29: =IF(B29=0,0,IF(C29>9999,"",ROUND(IF(VLOOKUP(B29,#REF!,12,FALSE)=0,VLOOKUP(B29,#REF!,13,FALSE)*'General Variables'!$B$8,VLOOKUP(B29,#REF!,12,FALSE)*'General Variables'!$B$7)/VLOOKUP(B29,#REF!,9,FALSE)*C29,2))) -> 0 | G29: =IF(B29=0,0,IF(C29>9999,"",ROUND(VLOOKUP(VLOOKUP(B29,#REF!,11,FALSE),#REF!,10,FALSE)/VLOOKUP(B29,#REF!,9,FALSE)*C29,2))) -> 0 | H29: =IF(B29=0,"",IF(C29>9999,"",ROUND(VLOOKUP($B29,#REF!,15,FALSE)*C29,2))) ->  | I29: =IF(B29=0,0,IF(C29>9999,"",ROUND(VLOOKUP(VLOOKUP(B29,#REF!,11,FALSE),#REF!,16,FALSE)/VLOOKUP(B29,#REF!,9,FALSE)*C29,2))) -> 0 | J29: =IF(B29=0,"",IF(C29>9999,"",ROUND(VLOOKUP($B29,#REF!,21,FALSE)*$C29,2))) ->  | K29: 0
A30: 19 | E30: =IF(B30=0,"",IF(C30>9999,"",ROUND('General Variables'!$B$4*VLOOKUP(B30,#REF!,10,FALSE)/VLOOKUP(B30,#REF!,9,FALSE)*C30,2))) ->  | F30: =IF(B30=0,0,IF(C30>9999,"",ROUND(IF(VLOOKUP(B30,#REF!,12,FALSE)=0,VLOOKUP(B30,#REF!,13,FALSE)*'General Variables'!$B$8,VLOOKUP(B30,#REF!,12,FALSE)*'General Variables'!$B$7)/VLOOKUP(B30,#REF!,9,FALSE)*C30,2))) -> 0 | G30: =IF(B30=0,0,IF(C30>9999,"",ROUND(VLOOKUP(VLOOKUP(B30,#REF!,11,FALSE),#REF!,10,FALSE)/VLOOKUP(B30,#REF!,9,FALSE)*C30,2))) -> 0 | H30: =IF(B30=0,"",IF(C30>9999,"",ROUND(VLOOKUP($B30,#REF!,15,FALSE)*C30,2))) ->  | I30: =IF(B30=0,0,IF(C30>9999,"",ROUND(VLOOKUP(VLOOKUP(B30,#REF!,11,FALSE),#REF!,16,FALSE)/VLOOKUP(B30,#REF!,9,FALSE)*C30,2))) -> 0 | J30: =IF(B30=0,"",IF(C30>9999,"",ROUND(VLOOKUP($B30,#REF!,21,FALSE)*$C30,2))) ->  | K30: 0
A31: 20 | E31: =IF(B31=0,"",IF(C31>9999,"",ROUND('General Variables'!$B$4*VLOOKUP(B31,#REF!,10,FALSE)/VLOOKUP(B31,#REF!,9,FALSE)*C31,2))) ->  | F31: =IF(B31=0,0,IF(C31>9999,"",ROUND(IF(VLOOKUP(B31,#REF!,12,FALSE)=0,VLOOKUP(B31,#REF!,13,FALSE)*'General Variables'!$B$8,VLOOKUP(B31,#REF!,12,FALSE)*'General Variables'!$B$7)/VLOOKUP(B31,#REF!,9,FALSE)*C31,2))) -> 0 | G31: =IF(B31=0,0,IF(C31>9999,"",ROUND(VLOOKUP(VLOOKUP(B31,#REF!,11,FALSE),#REF!,10,FALSE)/VLOOKUP(B31,#REF!,9,FALSE)*C31,2))) -> 0 | H31: =IF(B31=0,"",IF(C31>9999,"",ROUND(VLOOKUP($B31,#REF!,15,FALSE)*C31,2))) ->  | I31: =IF(B31=0,0,IF(C31>9999,"",ROUND(VLOOKUP(VLOOKUP(B31,#REF!,11,FALSE),#REF!,16,FALSE)/VLOOKUP(B31,#REF!,9,FALSE)*C31,2))) -> 0 | J31: =IF(B31=0,"",IF(C31>9999,"",ROUND(VLOOKUP($B31,#REF!,21,FALSE)*$C31,2))) ->  | K31: 0
C33: Total for Field Operations | E33: =SUM(E12:E31) ->  | F33: =SUM(F12:F31) -> 
F35: Operation Index | G35: Percent Acres Applied | H35: Application | J35: Applied Price | L35: Your Estimate
B36: Materials & Services | H36: Rate | I36: Unit | K36: Total
B37: 11-52-0 | C37: =IF(B37=0,"",VLOOKUP($B37,Table2[],2,FALSE)) -> Fertilizer | F37: 1 | G37: 1 | H37: 75 | I37: =IF($B37=0,"",VLOOKUP($B37,Table2[],5,FALSE)) -> pound | J37: =IF($B37=0,"",VLOOKUP($B37,Table2[],7,FALSE)) -> 0.24 | K37: =IF(B37=0,0,ROUND(G37*H37*J37,2)) -> 18
B38: Twine Large Square | C38: =IF(B38=0,"",VLOOKUP($B38,Table2[],2,FALSE)) -> Other | F38: 5 | G38: =2/3 -> 0.6666666667 | H38: =C16 -> 4.466666667 | I38: =IF($B38=0,"",VLOOKUP($B38,Table2[],5,FALSE)) -> ton | J38: =IF($B38=0,"",VLOOKUP($B38,Table2[],7,FALSE)) -> 1.806167401 | K38: 5.38
B39: Load Large Square Bales | C39: =IF(B39=0,"",VLOOKUP($B39,Table2[],2,FALSE)) -> Custom | F39: 6 | G39: 1 | H39: =C16 -> 4.466666667 | I39: =IF($B39=0,"",VLOOKUP($B39,Table2[],5,FALSE)) -> ton | J39: =IF($B39=0,"",VLOOKUP($B39,Table2[],7,FALSE)) -> 2.936857562 | K39: 13.12
B40: Twine Small Square | C40: =IF(B40=0,"",VLOOKUP($B40,Table2[],2,FALSE)) -> Other | F40: 7 | G40: =1/3 -> 0.3333333333 | H40: =C19 -> 2.233333333 | I40: =IF($B40=0,"",VLOOKUP($B40,Table2[],5,FALSE)) -> ton | J40: =IF($B40=0,"",VLOOKUP($B40,Table2[],7,FALSE)) -> 2.333333333 | K40: 1.74
B41: Electricity Fixed | C41: =IF(B41=0,"",VLOOKUP($B41,Table2[],2,FALSE)) -> Other | F41: 9 | G41: 1 | H41: 1 | I41: =IF($B41=0,"",VLOOKUP($B41,Table2[],5,FALSE)) -> acre | J41: =IF($B41=0,"",VLOOKUP($B41,Table2[],7,FALSE)) -> 30 | K41: 30
B42: Pursuit | C42: =IF(B42=0,"",VLOOKUP($B42,Table2[],2,FALSE)) -> Herbicide | F42: 10 | G42: 0.25 | H42: 4.5 | I42: =IF($B42=0,"",VLOOKUP($B42,Table2[],5,FALSE)) -> ounce | J42: =IF($B42=0,"",VLOOKUP($B42,Table2[],7,FALSE)) -> 3.828125 | K42: 4.31
B43: Crop Oil Concentrate | C43: =IF(B43=0,"",VLOOKUP($B43,Table2[],2,FALSE)) -> Additive | F43: 10 | G43: 0.25 | H43: 1.6 | I43: =IF($B43=0,"",VLOOKUP($B43,Table2[],5,FALSE)) -> pint | J43: =IF($B43=0,"",VLOOKUP($B43,Table2[],7,FALSE)) -> 1.125 | K43: =IF(B43=0,0,ROUND(G43*H43*J43,2)) -> 0.45
B44: UAN | C44: =IF(B44=0,"",VLOOKUP($B44,Table2[],2,FALSE)) -> Additive | F44: 10 | G44: 0.25 | H44: 2 | I44: =IF($B44=0,"",VLOOKUP($B44,Table2[],5,FALSE)) -> pint | J44: =IF($B44=0,"",VLOOKUP($B44,Table2[],7,FALSE)) -> 0.1875 | K44: 0.09
B45: Mustang Max EC | C45: =IF(B45=0,"",VLOOKUP($B45,Table2[],2,FALSE)) -> Insecticide | F45: 11 | G45: 0.25 | H45: 3 | I45: =IF($B45=0,"",VLOOKUP($B45,Table2[],5,FALSE)) -> ounce | J45: =IF($B45=0,"",VLOOKUP($B45,Table2[],7,FALSE)) -> 1.484375 | K45: 1.11
C46: =IF(B46=0,"",VLOOKUP($B46,Table2[],2,FALSE)) ->  | I46: =IF($B46=0,"",VLOOKUP($B46,Table2[],5,FALSE)) ->  | J46: =IF($B46=0,"",VLOOKUP($B46,Table2[],7,FALSE)) ->  | K46: 0
C47: =IF(B47=0,"",VLOOKUP($B47,Table2[],2,FALSE)) ->  | I47: =IF($B47=0,"",VLOOKUP($B47,Table2[],5,FALSE)) ->  | J47: =IF($B47=0,"",VLOOKUP($B47,Table2[],7,FALSE)) ->  | K47: 0
C48: =IF(B48=0,"",VLOOKUP($B48,Table2[],2,FALSE)) ->  | I48: =IF($B48=0,"",VLOOKUP($B48,Table2[],5,FALSE)) ->  | J48: =IF($B48=0,"",VLOOKUP($B48,Table2[],7,FALSE)) ->  | K48: 0
C49: =IF(B49=0,"",VLOOKUP($B49,Table2[],2,FALSE)) ->  | I49: =IF($B49=0,"",VLOOKUP($B49,Table2[],5,FALSE)) ->  | J49: =IF($B49=0,"",VLOOKUP($B49,Table2[],7,FALSE)) ->  | K49: 0
C50: =IF(B50=0,"",VLOOKUP($B50,Table2[],2,FALSE)) ->  | I50: =IF($B50=0,"",VLOOKUP($B50,Table2[],5,FALSE)) ->  | J50: =IF($B50=0,"",VLOOKUP($B50,Table2[],7,FALSE)) ->  | K50: 0
C51: =IF(B51=0,"",VLOOKUP($B51,Table2[],2,FALSE)) ->  | I51: =IF($B51=0,"",VLOOKUP($B51,Table2[],5,FALSE)) ->  | J51: =IF($B51=0,"",VLOOKUP($B51,Table2[],7,FALSE)) ->  | K51: 0
C52: =IF(B52=0,"",VLOOKUP($B52,Table2[],2,FALSE)) ->  | I52: =IF($B52=0,"",VLOOKUP($B52,Table2[],5,FALSE)) ->  | J52: =IF($B52=0,"",VLOOKUP($B52,Table2[],7,FALSE)) ->  | K52: 0
C53: =IF(B53=0,"",VLOOKUP($B53,Table2[],2,FALSE)) ->  | I53: =IF($B53=0,"",VLOOKUP($B53,Table2[],5,FALSE)) ->  | J53: =IF($B53=0,"",VLOOKUP($B53,Table2[],7,FALSE)) ->  | K53: 0
C54: =IF(B54=0,"",VLOOKUP($B54,Table2[],2,FALSE)) ->  | I54: =IF($B54=0,"",VLOOKUP($B54,Table2[],5,FALSE)) ->  | J54: =IF($B54=0,"",VLOOKUP($B54,Table2[],7,FALSE)) ->  | K54: 0
C55: =IF(B55=0,"",VLOOKUP($B55,Table2[],2,FALSE)) ->  | I55: =IF($B55=0,"",VLOOKUP($B55,Table2[],5,FALSE)) ->  | J55: =IF($B55=0,"",VLOOKUP($B55,Table2[],7,FALSE)) ->  | K55: 0
C56: =IF(B56=0,"",VLOOKUP($B56,Table2[],2,FALSE)) ->  | I56: =IF($B56=0,"",VLOOKUP($B56,Table2[],5,FALSE)) ->  | J56: =IF($B56=0,"",VLOOKUP($B56,Table2[],7,FALSE)) ->  | K56: 0
C57: =IF(B57=0,"",VLOOKUP($B57,Table2[],2,FALSE)) ->  | I57: =IF($B57=0,"",VLOOKUP($B57,Table2[],5,FALSE)) ->  | J57: =IF($B57=0,"",VLOOKUP($B57,Table2[],7,FALSE)) ->  | K57: 0
C58: =IF(B58=0,"",VLOOKUP($B58,Table2[],2,FALSE)) ->  | I58: =IF($B58=0,"",VLOOKUP($B58,Table2[],5,FALSE)) ->  | J58: =IF($B58=0,"",VLOOKUP($B58,Table2[],7,FALSE)) ->  | K58: 0
C59: =IF(B59=0,"",VLOOKUP($B59,Table2[],2,FALSE)) ->  | I59: =IF($B59=0,"",VLOOKUP($B59,Table2[],5,FALSE)) ->  | J59: =IF($B59=0,"",VLOOKUP($B59,Table2[],7,FALSE)) ->  | K59: 0
C60: =IF(B60=0,"",VLOOKUP($B60,Table2[],2,FALSE)) ->  | I60: =IF($B60=0,"",VLOOKUP($B60,Table2[],5,FALSE)) ->  | J60: =IF($B60=0,"",VLOOKUP($B60,Table2[],7,FALSE)) ->  | K60: 0
C61: Crop Insurance | J61: =IF($B61=0,"",VLOOKUP($B61,Materials!$B$2:$H$127,7,FALSE)) ->  | K61: 0
C63: Total Materials & Services | K63: =SUM(K37:K61) -> 74.2
B65: Total listed costs for Field Operations and Materials and Services | K65: =K33+K63 -> 
D66: Interest on Operations Capital | E66: =ROUND(SUM($E$33:$H$33)+$K$63,2) ->  | F66: cash expense @ | H66: ='General Variables'!$B$11 -> 0.055 | I66: =CONCATENATE("for ",TEXT('General Variables'!$B$12,"0.0")," mo.") -> for 6.0 mo. | K66: =E66*H66*'General Variables'!$B$12/12 -> 
B67: Total Operating and Use Related Ownership Costs | K67: =SUM(K65:K66) -> 
B69: Overhead (accounting, liability insurance, vehicle cost, office expense) | K69: ='General Variables'!B14 -> 20
B70: Real Estate Opportunity | C70: Pivot (State) | F70: =IF(C70=0,0,VLOOKUP(C70,RETable,2,FALSE)) -> 6940 | G70: per acre @ | I70: ='General Variables'!$B$10 -> 0.04 | K70: =ROUND(F70*I70,2) -> 277.6
B71: Real Estate Taxes | F71: =IF(C70=0,0,VLOOKUP(C70,RETable,2,FALSE)) -> 6940 | G71: per acre @ | I71: ='General Variables'!$B$13 -> 0.01 | K71: =ROUND(F71*I71,2) -> 69.4
B72: Total Cost per Acre Including Overhead | K72: =SUM(K67:K71) -> 
B74: ="Cost per "&$B$4 -> Cost per ton | K74: =IF(A4="Yield",0,K72/$A$4) -> 
B75: ="Cash Cost per "&$B$4 -> Cash Cost per ton | K75: =IF($A$4="Yield",0,(E66+K66+K71)/$A$4) -> 
K111: Yes
K112: No
B240: =IF(#REF!="","",#REF!) ->  | C240: =IF(Materials!B132="","",Materials!B132) -> 
B241: =IF(#REF!="","",#REF!) ->  | C241: =IF(Materials!B133="","",Materials!B133) -> 
B242: =IF(#REF!="","",#REF!) ->  | C242: =IF(Materials!B134="","",Materials!B134) -> 
B243: =IF(#REF!="","",#REF!) ->  | C243: =IF(Materials!B135="","",Materials!B135) -> 
B244: =IF(#REF!="","",#REF!) ->  | C244: =IF(Materials!B136="","",Materials!B136) -> 

Sheet 11-Alfalfa
A2: =REPLACE(CELL("filename",A1),1,FIND("]",CELL("filename",A1)),"") -> 11-Alfalfa | C2: Roundup Ready® | I2: Pivot Irrigated | J2: 800 GPM 35 PSI | L2: ='General Variables'!A3&" "&'General Variables'!B3 -> Year 2017 | O2: Acre
A3: Large and Small Square Bale | H3: 16 | I3: acre/inches | O3: ai
A4: 6.8 | B4: ton | J4: Does Crop Follow a Legume? | O4: =B4 -> ton
A5: =A2 & IF(C2="","", ", " &C2 ) & ", " & A3 & ", " & I2 -> 11-Alfalfa, Roundup Ready®, Large and Small Square Bale, Pivot Irrigated
A7: ='General Variables'!B3 & " Budget " & A2 &", " & IF(C2=0,"", " " & C2 & ", ") & A3 & IF(A4=""," ", " (") & A4 & " " & B4 & IF(A4="",""," Actual Yield)") -> 2017 Budget 11-Alfalfa, Roundup Ready®, Large and Small Square Bale (6.8 ton Actual Yield)
A8: =IF(I2="Dryland","Dryland",I2 & IF(J2="","",", "&J2)&IF(H3="","",", "&H3&" "&I3)) -> Pivot Irrigated, 800 GPM 35 PSI, 16 acre/inches
B10: Field Operations | C10: Times or Qty | E10: ="Labor @ $" &TEXT('General Variables'!B4,"#.00")& " /Hr" -> Labor @ $20.00 /Hr | F10: ="Fuel @ $" & TEXT('General Variables'!B5,"#.00") & " and Lube" -> Fuel @ $2.25 and Lube | G10: Repairs | I10: Ownership | K10: Total | L10: Your Estimate
D11: Unit | G11: Power | H11: Imp. | I11: Power | J11: Imp.
A12: 1 | B12: Spread Fertilizer | C12: 1 | E12: =IF(B12=0,"",IF(C12>9999,"",ROUND('General Variables'!$B$4*VLOOKUP(B12,#REF!,10,FALSE)/VLOOKUP(B12,#REF!,9,FALSE)*C12,2))) ->  | F12: =IF(B12=0,0,IF(C12>9999,"",ROUND(IF(VLOOKUP(B12,#REF!,12,FALSE)=0,VLOOKUP(B12,#REF!,13,FALSE)*'General Variables'!$B$8,VLOOKUP(B12,#REF!,12,FALSE)*'General Variables'!$B$7)/VLOOKUP(B12,#REF!,9,FALSE)*C12,2))) ->  | G12: =IF(B12=0,0,IF(C12>9999,"",ROUND(VLOOKUP(VLOOKUP(B12,#REF!,11,FALSE),#REF!,10,FALSE)/VLOOKUP(B12,#REF!,9,FALSE)*C12,2))) ->  | H12: =IF(B12=0,"",IF(C12>9999,"",ROUND(VLOOKUP($B12,#REF!,15,FALSE)*C12,2))) ->  | I12: =IF(B12=0,0,IF(C12>9999,"",ROUND(VLOOKUP(VLOOKUP(B12,#REF!,11,FALSE),#REF!,16,FALSE)/VLOOKUP(B12,#REF!,9,FALSE)*C12,2))) ->  | J12: =IF(B12=0,"",IF(C12>9999,"",ROUND(VLOOKUP($B12,#REF!,21,FALSE)*$C12,2))) ->  | K12: =IF(C12>9999,"",ROUND(SUM(E12:J12),2)) -> 
A13: 2 | B13: Swath/Condition Hay | C13: 4 | E13: =IF(B13=0,"",IF(C13>9999,"",ROUND('General Variables'!$B$4*VLOOKUP(B13,#REF!,10,FALSE)/VLOOKUP(B13,#REF!,9,FALSE)*C13,2))) ->  | F13: =IF(B13=0,0,IF(C13>9999,"",ROUND(IF(VLOOKUP(B13,#REF!,12,FALSE)=0,VLOOKUP(B13,#REF!,13,FALSE)*'General Variables'!$B$8,VLOOKUP(B13,#REF!,12,FALSE)*'General Variables'!$B$7)/VLOOKUP(B13,#REF!,9,FALSE)*C13,2))) ->  | G13: =IF(B13=0,0,IF(C13>9999,"",ROUND(VLOOKUP(VLOOKUP(B13,#REF!,11,FALSE),#REF!,10,FALSE)/VLOOKUP(B13,#REF!,9,FALSE)*C13,2))) ->  | H13: =IF(B13=0,"",IF(C13>9999,"",ROUND(VLOOKUP($B13,#REF!,15,FALSE)*C13,2))) ->  | I13: =IF(B13=0,0,IF(C13>9999,"",ROUND(VLOOKUP(VLOOKUP(B13,#REF!,11,FALSE),#REF!,16,FALSE)/VLOOKUP(B13,#REF!,9,FALSE)*C13,2))) ->  | J13: =IF(B13=0,"",IF(C13>9999,"",ROUND(VLOOKUP($B13,#REF!,21,FALSE)*$C13,2))) ->  | K13: =IF(C13>9999,"",ROUND(SUM(E13:J13),2)) -> 
A14: 3 | B14: Turn Windrows | C14: 1 | E14: =IF(B14=0,"",IF(C14>9999,"",ROUND('General Variables'!$B$4*VLOOKUP(B14,#REF!,10,FALSE)/VLOOKUP(B14,#REF!,9,FALSE)*C14,2))) ->  | F14: =IF(B14=0,0,IF(C14>9999,"",ROUND(IF(VLOOKUP(B14,#REF!,12,FALSE)=0,VLOOKUP(B14,#REF!,13,FALSE)*'General Variables'!$B$8,VLOOKUP(B14,#REF!,12,FALSE)*'General Variables'!$B$7)/VLOOKUP(B14,#REF!,9,FALSE)*C14,2))) ->  | G14: =IF(B14=0,0,IF(C14>9999,"",ROUND(VLOOKUP(VLOOKUP(B14,#REF!,11,FALSE),#REF!,10,FALSE)/VLOOKUP(B14,#REF!,9,FALSE)*C14,2))) ->  | H14: =IF(B14=0,"",IF(C14>9999,"",ROUND(VLOOKUP($B14,#REF!,15,FALSE)*C14,2))) ->  | I14: =IF(B14=0,0,IF(C14>9999,"",ROUND(VLOOKUP(VLOOKUP(B14,#REF!,11,FALSE),#REF!,16,FALSE)/VLOOKUP(B14,#REF!,9,FALSE)*C14,2))) ->  | J14: =IF(B14=0,"",IF(C14>9999,"",ROUND(VLOOKUP($B14,#REF!,21,FALSE)*$C14,2))) -> 
A15: 4 | B15: Double Windrows | C15: 4 | E15: =IF(B15=0,"",IF(C15>9999,"",ROUND('General Variables'!$B$4*VLOOKUP(B15,#REF!,10,FALSE)/VLOOKUP(B15,#REF!,9,FALSE)*C15,2))) ->  | F15: =IF(B15=0,0,IF(C15>9999,"",ROUND(IF(VLOOKUP(B15,#REF!,12,FALSE)=0,VLOOKUP(B15,#REF!,13,FALSE)*'General Variables'!$B$8,VLOOKUP(B15,#REF!,12,FALSE)*'General Variables'!$B$7)/VLOOKUP(B15,#REF!,9,FALSE)*C15,2))) ->  | G15: =IF(B15=0,0,IF(C15>9999,"",ROUND(VLOOKUP(VLOOKUP(B15,#REF!,11,FALSE),#REF!,10,FALSE)/VLOOKUP(B15,#REF!,9,FALSE)*C15,2))) ->  | H15: =IF(B15=0,"",IF(C15>9999,"",ROUND(VLOOKUP($B15,#REF!,15,FALSE)*C15,2))) ->  | I15: =IF(B15=0,0,IF(C15>9999,"",ROUND(VLOOKUP(VLOOKUP(B15,#REF!,11,FALSE),#REF!,16,FALSE)/VLOOKUP(B15,#REF!,9,FALSE)*C15,2))) ->  | J15: =IF(B15=0,"",IF(C15>9999,"",ROUND(VLOOKUP($B15,#REF!,21,FALSE)*$C15,2))) -> 
A16: 5 | B16: Large Square Bale | C16: =A4*2/3 -> 4.533333333 | D16: ton | E16: =IF(B16=0,"",IF(C16>9999,"",ROUND('General Variables'!$B$4*VLOOKUP(B16,#REF!,10,FALSE)/VLOOKUP(B16,#REF!,9,FALSE)*C16,2))) ->  | F16: =IF(B16=0,0,IF(C16>9999,"",ROUND(IF(VLOOKUP(B16,#REF!,12,FALSE)=0,VLOOKUP(B16,#REF!,13,FALSE)*'General Variables'!$B$8,VLOOKUP(B16,#REF!,12,FALSE)*'General Variables'!$B$7)/VLOOKUP(B16,#REF!,9,FALSE)*C16,2))) ->  | G16: =IF(B16=0,0,IF(C16>9999,"",ROUND(VLOOKUP(VLOOKUP(B16,#REF!,11,FALSE),#REF!,10,FALSE)/VLOOKUP(B16,#REF!,9,FALSE)*C16,2))) ->  | H16: =IF(B16=0,"",IF(C16>9999,"",ROUND(VLOOKUP($B16,#REF!,15,FALSE)*C16,2))) ->  | I16: =IF(B16=0,0,IF(C16>9999,"",ROUND(VLOOKUP(VLOOKUP(B16,#REF!,11,FALSE),#REF!,16,FALSE)/VLOOKUP(B16,#REF!,9,FALSE)*C16,2))) ->  | J16: =IF(B16=0,"",IF(C16>9999,"",ROUND(VLOOKUP($B16,#REF!,21,FALSE)*$C16,2))) ->  | K16: =IF(C16>9999,"",ROUND(SUM(E16:J16),2)) -> 
A17: 6 | B17: Load Lg Sq | C17: Custom | D17: ton | E17: =IF(B17=0,"",IF(C17>9999,"",ROUND('General Variables'!$B$4*VLOOKUP(B17,#REF!,10,FALSE)/VLOOKUP(B17,#REF!,9,FALSE)*C17,2))) ->  | F17: =IF(B17=0,0,IF(C17>9999,"",ROUND(IF(VLOOKUP(B17,#REF!,12,FALSE)=0,VLOOKUP(B17,#REF!,13,FALSE)*'General Variables'!$B$8,VLOOKUP(B17,#REF!,12,FALSE)*'General Variables'!$B$7)/VLOOKUP(B17,#REF!,9,FALSE)*C17,2))) ->  | G17: =IF(B17=0,0,IF(C17>9999,"",ROUND(VLOOKUP(VLOOKUP(B17,#REF!,11,FALSE),#REF!,10,FALSE)/VLOOKUP(B17,#REF!,9,FALSE)*C17,2))) ->  | H17: =IF(B17=0,"",IF(C17>9999,"",ROUND(VLOOKUP($B17,#REF!,15,FALSE)*C17,2))) ->  | I17: =IF(B17=0,0,IF(C17>9999,"",ROUND(VLOOKUP(VLOOKUP(B17,#REF!,11,FALSE),#REF!,16,FALSE)/VLOOKUP(B17,#REF!,9,FALSE)*C17,2))) ->  | J17: =IF(B17=0,"",IF(C17>9999,"",ROUND(VLOOKUP($B17,#REF!,21,FALSE)*$C17,2))) ->  | K17: =IF(C17>9999,"",ROUND(SUM(E17:J17),2)) -> 
A18: 7 | B18: Bale Small Square | C18: =A4/3 -> 2.266666667 | D18: ton | E18: =IF(B18=0,"",IF(C18>9999,"",ROUND('General Variables'!$B$4*VLOOKUP(B18,#REF!,10,FALSE)/VLOOKUP(B18,#REF!,9,FALSE)*C18,2))) ->  | F18: =IF(B18=0,0,IF(C18>9999,"",ROUND(IF(VLOOKUP(B18,#REF!,12,FALSE)=0,VLOOKUP(B18,#REF!,13,FALSE)*'General Variables'!$B$8,VLOOKUP(B18,#REF!,12,FALSE)*'General Variables'!$B$7)/VLOOKUP(B18,#REF!,9,FALSE)*C18,2))) ->  | G18: =IF(B18=0,0,IF(C18>9999,"",ROUND(VLOOKUP(VLOOKUP(B18,#REF!,11,FALSE),#REF!,10,FALSE)/VLOOKUP(B18,#REF!,9,FALSE)*C18,2))) ->  | H18: =IF(B18=0,"",IF(C18>9999,"",ROUND(VLOOKUP($B18,#REF!,15,FALSE)*C18,2))) ->  | I18: =IF(B18=0,0,IF(C18>9999,"",ROUND(VLOOKUP(VLOOKUP(B18,#REF!,11,FALSE),#REF!,16,FALSE)/VLOOKUP(B18,#REF!,9,FALSE)*C18,2))) ->  | J18: =IF(B18=0,"",IF(C18>9999,"",ROUND(VLOOKUP($B18,#REF!,21,FALSE)*$C18,2))) ->  | K18: =IF(C18>9999,"",ROUND(SUM(E18:J18),2)) -> 
A19: 8 | B19: Stack Small Square | C19: =A4/3 -> 2.266666667 | D19: ton | E19: =IF(B19=0,"",IF(C19>9999,"",ROUND('General Variables'!$B$4*VLOOKUP(B19,#REF!,10,FALSE)/VLOOKUP(B19,#REF!,9,FALSE)*C19,2))) ->  | F19: =IF(B19=0,0,IF(C19>9999,"",ROUND(IF(VLOOKUP(B19,#REF!,12,FALSE)=0,VLOOKUP(B19,#REF!,13,FALSE)*'General Variables'!$B$8,VLOOKUP(B19,#REF!,12,FALSE)*'General Variables'!$B$7)/VLOOKUP(B19,#REF!,9,FALSE)*C19,2))) ->  | G19: =IF(B19=0,0,IF(C19>9999,"",ROUND(VLOOKUP(VLOOKUP(B19,#REF!,11,FALSE),#REF!,10,FALSE)/VLOOKUP(B19,#REF!,9,FALSE)*C19,2))) ->  | H19: =IF(B19=0,"",IF(C19>9999,"",ROUND(VLOOKUP($B19,#REF!,15,FALSE)*C19,2))) ->  | I19: =IF(B19=0,0,IF(C19>9999,"",ROUND(VLOOKUP(VLOOKUP(B19,#REF!,11,FALSE),#REF!,16,FALSE)/VLOOKUP(B19,#REF!,9,FALSE)*C19,2))) ->  | J19: =IF(B19=0,"",IF(C19>9999,"",ROUND(VLOOKUP($B19,#REF!,21,FALSE)*$C19,2))) ->  | K19: =IF(C19>9999,"",ROUND(SUM(E19:J19),2)) -> 
A20: 9 | B20: Pivot E 125' Lift | C20: =$H$3 -> 16 | D20: ai | E20: =IF(B20=0,"",IF(C20>9999,"",ROUND('General Variables'!$B$4*VLOOKUP(B20,#REF!,10,FALSE)/VLOOKUP(B20,#REF!,9,FALSE)*C20,2))) ->  | F20: =IF(B20=0,0,IF(C20>9999,"",ROUND(IF(VLOOKUP(B20,#REF!,12,FALSE)=0,VLOOKUP(B20,#REF!,13,FALSE)*'General Variables'!$B$8,VLOOKUP(B20,#REF!,12,FALSE)*'General Variables'!$B$7)/VLOOKUP(B20,#REF!,9,FALSE)*C20,2))) ->  | G20: =IF(B20=0,0,IF(C20>9999,"",ROUND(VLOOKUP(VLOOKUP(B20,#REF!,11,FALSE),#REF!,10,FALSE)/VLOOKUP(B20,#REF!,9,FALSE)*C20,2))) ->  | H20: =IF(B20=0,"",IF(C20>9999,"",ROUND(VLOOKUP($B20,#REF!,15,FALSE)*C20,2))) ->  | I20: =IF(B20=0,0,IF(C20>9999,"",ROUND(VLOOKUP(VLOOKUP(B20,#REF!,11,FALSE),#REF!,16,FALSE)/VLOOKUP(B20,#REF!,9,FALSE)*C20,2))) ->  | J20: =IF(B20=0,"",IF(C20>9999,"",ROUND(VLOOKUP($B20,#REF!,21,FALSE)*$C20,2))) ->  | K20: =IF(C20>9999,"",ROUND(SUM(E20:J20),2)) -> 
A21: 10 | B21: Spray | C21: 1 | E21: =IF(B21=0,"",IF(C21>9999,"",ROUND('General Variables'!$B$4*VLOOKUP(B21,#REF!,10,FALSE)/VLOOKUP(B21,#REF!,9,FALSE)*C21,2))) ->  | F21: =IF(B21=0,0,IF(C21>9999,"",ROUND(IF(VLOOKUP(B21,#REF!,12,FALSE)=0,VLOOKUP(B21,#REF!,13,FALSE)*'General Variables'!$B$8,VLOOKUP(B21,#REF!,12,FALSE)*'General Variables'!$B$7)/VLOOKUP(B21,#REF!,9,FALSE)*C21,2))) ->  | G21: =IF(B21=0,0,IF(C21>9999,"",ROUND(VLOOKUP(VLOOKUP(B21,#REF!,11,FALSE),#REF!,10,FALSE)/VLOOKUP(B21,#REF!,9,FALSE)*C21,2))) ->  | H21: =IF(B21=0,"",IF(C21>9999,"",ROUND(VLOOKUP($B21,#REF!,15,FALSE)*C21,2))) ->  | I21: =IF(B21=0,0,IF(C21>9999,"",ROUND(VLOOKUP(VLOOKUP(B21,#REF!,11,FALSE),#REF!,16,FALSE)/VLOOKUP(B21,#REF!,9,FALSE)*C21,2))) ->  | J21: =IF(B21=0,"",IF(C21>9999,"",ROUND(VLOOKUP($B21,#REF!,21,FALSE)*$C21,2))) -> 
A22: 11 | B22: Spray | C22: 0.25 | E22: =IF(B22=0,"",IF(C22>9999,"",ROUND('General Variables'!$B$4*VLOOKUP(B22,#REF!,10,FALSE)/VLOOKUP(B22,#REF!,9,FALSE)*C22,2))) ->  | F22: =IF(B22=0,0,IF(C22>9999,"",ROUND(IF(VLOOKUP(B22,#REF!,12,FALSE)=0,VLOOKUP(B22,#REF!,13,FALSE)*'General Variables'!$B$8,VLOOKUP(B22,#REF!,12,FALSE)*'General Variables'!$B$7)/VLOOKUP(B22,#REF!,9,FALSE)*C22,2))) ->  | G22: =IF(B22=0,0,IF(C22>9999,"",ROUND(VLOOKUP(VLOOKUP(B22,#REF!,11,FALSE),#REF!,10,FALSE)/VLOOKUP(B22,#REF!,9,FALSE)*C22,2))) ->  | H22: =IF(B22=0,"",IF(C22>9999,"",ROUND(VLOOKUP($B22,#REF!,15,FALSE)*C22,2))) ->  | I22: =IF(B22=0,0,IF(C22>9999,"",ROUND(VLOOKUP(VLOOKUP(B22,#REF!,11,FALSE),#REF!,16,FALSE)/VLOOKUP(B22,#REF!,9,FALSE)*C22,2))) ->  | J22: =IF(B22=0,"",IF(C22>9999,"",ROUND(VLOOKUP($B22,#REF!,21,FALSE)*$C22,2))) -> 
A23: 12 | E23: =IF(B23=0,"",IF(C23>9999,"",ROUND('General Variables'!$B$4*VLOOKUP(B23,#REF!,10,FALSE)/VLOOKUP(B23,#REF!,9,FALSE)*C23,2))) ->  | F23: =IF(B23=0,0,IF(C23>9999,"",ROUND(IF(VLOOKUP(B23,#REF!,12,FALSE)=0,VLOOKUP(B23,#REF!,13,FALSE)*'General Variables'!$B$8,VLOOKUP(B23,#REF!,12,FALSE)*'General Variables'!$B$7)/VLOOKUP(B23,#REF!,9,FALSE)*C23,2))) -> 0 | G23: =IF(B23=0,0,IF(C23>9999,"",ROUND(VLOOKUP(VLOOKUP(B23,#REF!,11,FALSE),#REF!,10,FALSE)/VLOOKUP(B23,#REF!,9,FALSE)*C23,2))) -> 0 | H23: =IF(B23=0,"",IF(C23>9999,"",ROUND(VLOOKUP($B23,#REF!,15,FALSE)*C23,2))) ->  | I23: =IF(B23=0,0,IF(C23>9999,"",ROUND(VLOOKUP(VLOOKUP(B23,#REF!,11,FALSE),#REF!,16,FALSE)/VLOOKUP(B23,#REF!,9,FALSE)*C23,2))) -> 0 | J23: =IF(B23=0,"",IF(C23>9999,"",ROUND(VLOOKUP($B23,#REF!,21,FALSE)*$C23,2))) ->  | K23: 0
A24: 13 | E24: =IF(B24=0,"",IF(C24>9999,"",ROUND('General Variables'!$B$4*VLOOKUP(B24,#REF!,10,FALSE)/VLOOKUP(B24,#REF!,9,FALSE)*C24,2))) ->  | F24: =IF(B24=0,0,IF(C24>9999,"",ROUND(IF(VLOOKUP(B24,#REF!,12,FALSE)=0,VLOOKUP(B24,#REF!,13,FALSE)*'General Variables'!$B$8,VLOOKUP(B24,#REF!,12,FALSE)*'General Variables'!$B$7)/VLOOKUP(B24,#REF!,9,FALSE)*C24,2))) -> 0 | G24: =IF(B24=0,0,IF(C24>9999,"",ROUND(VLOOKUP(VLOOKUP(B24,#REF!,11,FALSE),#REF!,10,FALSE)/VLOOKUP(B24,#REF!,9,FALSE)*C24,2))) -> 0 | H24: =IF(B24=0,"",IF(C24>9999,"",ROUND(VLOOKUP($B24,#REF!,15,FALSE)*C24,2))) ->  | I24: =IF(B24=0,0,IF(C24>9999,"",ROUND(VLOOKUP(VLOOKUP(B24,#REF!,11,FALSE),#REF!,16,FALSE)/VLOOKUP(B24,#REF!,9,FALSE)*C24,2))) -> 0 | J24: =IF(B24=0,"",IF(C24>9999,"",ROUND(VLOOKUP($B24,#REF!,21,FALSE)*$C24,2))) ->  | K24: 0
A25: 14 | E25: =IF(B25=0,"",IF(C25>9999,"",ROUND('General Variables'!$B$4*VLOOKUP(B25,#REF!,10,FALSE)/VLOOKUP(B25,#REF!,9,FALSE)*C25,2))) ->  | F25: =IF(B25=0,0,IF(C25>9999,"",ROUND(IF(VLOOKUP(B25,#REF!,12,FALSE)=0,VLOOKUP(B25,#REF!,13,FALSE)*'General Variables'!$B$8,VLOOKUP(B25,#REF!,12,FALSE)*'General Variables'!$B$7)/VLOOKUP(B25,#REF!,9,FALSE)*C25,2))) -> 0 | G25: =IF(B25=0,0,IF(C25>9999,"",ROUND(VLOOKUP(VLOOKUP(B25,#REF!,11,FALSE),#REF!,10,FALSE)/VLOOKUP(B25,#REF!,9,FALSE)*C25,2))) -> 0 | H25: =IF(B25=0,"",IF(C25>9999,"",ROUND(VLOOKUP($B25,#REF!,15,FALSE)*C25,2))) ->  | I25: =IF(B25=0,0,IF(C25>9999,"",ROUND(VLOOKUP(VLOOKUP(B25,#REF!,11,FALSE),#REF!,16,FALSE)/VLOOKUP(B25,#REF!,9,FALSE)*C25,2))) -> 0 | J25: =IF(B25=0,"",IF(C25>9999,"",ROUND(VLOOKUP($B25,#REF!,21,FALSE)*$C25,2))) ->  | K25: 0
A26: 15 | E26: =IF(B26=0,"",IF(C26>9999,"",ROUND('General Variables'!$B$4*VLOOKUP(B26,#REF!,10,FALSE)/VLOOKUP(B26,#REF!,9,FALSE)*C26,2))) ->  | F26: =IF(B26=0,0,IF(C26>9999,"",ROUND(IF(VLOOKUP(B26,#REF!,12,FALSE)=0,VLOOKUP(B26,#REF!,13,FALSE)*'General Variables'!$B$8,VLOOKUP(B26,#REF!,12,FALSE)*'General Variables'!$B$7)/VLOOKUP(B26,#REF!,9,FALSE)*C26,2))) -> 0 | G26: =IF(B26=0,0,IF(C26>9999,"",ROUND(VLOOKUP(VLOOKUP(B26,#REF!,11,FALSE),#REF!,10,FALSE)/VLOOKUP(B26,#REF!,9,FALSE)*C26,2))) -> 0 | H26: =IF(B26=0,"",IF(C26>9999,"",ROUND(VLOOKUP($B26,#REF!,15,FALSE)*C26,2))) ->  | I26: =IF(B26=0,0,IF(C26>9999,"",ROUND(VLOOKUP(VLOOKUP(B26,#REF!,11,FALSE),#REF!,16,FALSE)/VLOOKUP(B26,#REF!,9,FALSE)*C26,2))) -> 0 | J26: =IF(B26=0,"",IF(C26>9999,"",ROUND(VLOOKUP($B26,#REF!,21,FALSE)*$C26,2))) ->  | K26: 0
A27: 16 | E27: =IF(B27=0,"",IF(C27>9999,"",ROUND('General Variables'!$B$4*VLOOKUP(B27,#REF!,10,FALSE)/VLOOKUP(B27,#REF!,9,FALSE)*C27,2))) ->  | F27: =IF(B27=0,0,IF(C27>9999,"",ROUND(IF(VLOOKUP(B27,#REF!,12,FALSE)=0,VLOOKUP(B27,#REF!,13,FALSE)*'General Variables'!$B$8,VLOOKUP(B27,#REF!,12,FALSE)*'General Variables'!$B$7)/VLOOKUP(B27,#REF!,9,FALSE)*C27,2))) -> 0 | G27: =IF(B27=0,0,IF(C27>9999,"",ROUND(VLOOKUP(VLOOKUP(B27,#REF!,11,FALSE),#REF!,10,FALSE)/VLOOKUP(B27,#REF!,9,FALSE)*C27,2))) -> 0 | H27: =IF(B27=0,"",IF(C27>9999,"",ROUND(VLOOKUP($B27,#REF!,15,FALSE)*C27,2))) ->  | I27: =IF(B27=0,0,IF(C27>9999,"",ROUND(VLOOKUP(VLOOKUP(B27,#REF!,11,FALSE),#REF!,16,FALSE)/VLOOKUP(B27,#REF!,9,FALSE)*C27,2))) -> 0 | J27: =IF(B27=0,"",IF(C27>9999,"",ROUND(VLOOKUP($B27,#REF!,21,FALSE)*$C27,2))) ->  | K27: 0
A28: 17 | E28: =IF(B28=0,"",IF(C28>9999,"",ROUND('General Variables'!$B$4*VLOOKUP(B28,#REF!,10,FALSE)/VLOOKUP(B28,#REF!,9,FALSE)*C28,2))) ->  | F28: =IF(B28=0,0,IF(C28>9999,"",ROUND(IF(VLOOKUP(B28,#REF!,12,FALSE)=0,VLOOKUP(B28,#REF!,13,FALSE)*'General Variables'!$B$8,VLOOKUP(B28,#REF!,12,FALSE)*'General Variables'!$B$7)/VLOOKUP(B28,#REF!,9,FALSE)*C28,2))) -> 0 | G28: =IF(B28=0,0,IF(C28>9999,"",ROUND(VLOOKUP(VLOOKUP(B28,#REF!,11,FALSE),#REF!,10,FALSE)/VLOOKUP(B28,#REF!,9,FALSE)*C28,2))) -> 0 | H28: =IF(B28=0,"",IF(C28>9999,"",ROUND(VLOOKUP($B28,#REF!,15,FALSE)*C28,2))) ->  | I28: =IF(B28=0,0,IF(C28>9999,"",ROUND(VLOOKUP(VLOOKUP(B28,#REF!,11,FALSE),#REF!,16,FALSE)/VLOOKUP(B28,#REF!,9,FALSE)*C28,2))) -> 0 | J28: =IF(B28=0,"",IF(C28>9999,"",ROUND(VLOOKUP($B28,#REF!,21,FALSE)*$C28,2))) ->  | K28: 0
A29: 18 | E29: =IF(B29=0,"",IF(C29>9999,"",ROUND('General Variables'!$B$4*VLOOKUP(B29,#REF!,10,FALSE)/VLOOKUP(B29,#REF!,9,FALSE)*C29,2))) ->  | F29: =IF(B29=0,0,IF(C29>9999,"",ROUND(IF(VLOOKUP(B29,#REF!,12,FALSE)=0,VLOOKUP(B29,#REF!,13,FALSE)*'General Variables'!$B$8,VLOOKUP(B29,#REF!,12,FALSE)*'General Variables'!$B$7)/VLOOKUP(B29,#REF!,9,FALSE)*C29,2))) -> 0 | G29: =IF(B29=0,0,IF(C29>9999,"",ROUND(VLOOKUP(VLOOKUP(B29,#REF!,11,FALSE),#REF!,10,FALSE)/VLOOKUP(B29,#REF!,9,FALSE)*C29,2))) -> 0 | H29: =IF(B29=0,"",IF(C29>9999,"",ROUND(VLOOKUP($B29,#REF!,15,FALSE)*C29,2))) ->  | I29: =IF(B29=0,0,IF(C29>9999,"",ROUND(VLOOKUP(VLOOKUP(B29,#REF!,11,FALSE),#REF!,16,FALSE)/VLOOKUP(B29,#REF!,9,FALSE)*C29,2))) -> 0 | J29: =IF(B29=0,"",IF(C29>9999,"",ROUND(VLOOKUP($B29,#REF!,21,FALSE)*$C29,2))) ->  | K29: 0
A30: 19 | E30: =IF(B30=0,"",IF(C30>9999,"",ROUND('General Variables'!$B$4*VLOOKUP(B30,#REF!,10,FALSE)/VLOOKUP(B30,#REF!,9,FALSE)*C30,2))) ->  | F30: =IF(B30=0,0,IF(C30>9999,"",ROUND(IF(VLOOKUP(B30,#REF!,12,FALSE)=0,VLOOKUP(B30,#REF!,13,FALSE)*'General Variables'!$B$8,VLOOKUP(B30,#REF!,12,FALSE)*'General Variables'!$B$7)/VLOOKUP(B30,#REF!,9,FALSE)*C30,2))) -> 0 | G30: =IF(B30=0,0,IF(C30>9999,"",ROUND(VLOOKUP(VLOOKUP(B30,#REF!,11,FALSE),#REF!,10,FALSE)/VLOOKUP(B30,#REF!,9,FALSE)*C30,2))) -> 0 | H30: =IF(B30=0,"",IF(C30>9999,"",ROUND(VLOOKUP($B30,#REF!,15,FALSE)*C30,2))) ->  | I30: =IF(B30=0,0,IF(C30>9999,"",ROUND(VLOOKUP(VLOOKUP(B30,#REF!,11,FALSE),#REF!,16,FALSE)/VLOOKUP(B30,#REF!,9,FALSE)*C30,2))) -> 0 | J30: =IF(B30=0,"",IF(C30>9999,"",ROUND(VLOOKUP($B30,#REF!,21,FALSE)*$C30,2))) ->  | K30: 0
A31: 20 | E31: =IF(B31=0,"",IF(C31>9999,"",ROUND('General Variables'!$B$4*VLOOKUP(B31,#REF!,10,FALSE)/VLOOKUP(B31,#REF!,9,FALSE)*C31,2))) ->  | F31: =IF(B31=0,0,IF(C31>9999,"",ROUND(IF(VLOOKUP(B31,#REF!,12,FALSE)=0,VLOOKUP(B31,#REF!,13,FALSE)*'General Variables'!$B$8,VLOOKUP(B31,#REF!,12,FALSE)*'General Variables'!$B$7)/VLOOKUP(B31,#REF!,9,FALSE)*C31,2))) -> 0 | G31: =IF(B31=0,0,IF(C31>9999,"",ROUND(VLOOKUP(VLOOKUP(B31,#REF!,11,FALSE),#REF!,10,FALSE)/VLOOKUP(B31,#REF!,9,FALSE)*C31,2))) -> 0 | H31: =IF(B31=0,"",IF(C31>9999,"",ROUND(VLOOKUP($B31,#REF!,15,FALSE)*C31,2))) ->  | I31: =IF(B31=0,0,IF(C31>9999,"",ROUND(VLOOKUP(VLOOKUP(B31,#REF!,11,FALSE),#REF!,16,FALSE)/VLOOKUP(B31,#REF!,9,FALSE)*C31,2))) -> 0 | J31: =IF(B31=0,"",IF(C31>9999,"",ROUND(VLOOKUP($B31,#REF!,21,FALSE)*$C31,2))) ->  | K31: 0
C33: Total for Field Operations | E33: =SUM(E12:E31) ->  | F33: =SUM(F12:F31) -> 
F35: Operation Index | G35: Percent Acres Applied | H35: Application | J35: Applied Price | L35: Your Estimate
B36: Materials & Services | H36: Rate | I36: Unit | K36: Total
B37: 11-52-0 | C37: =IF(B37=0,"",VLOOKUP($B37,Table2[],2,FALSE)) -> Fertilizer | F37: 1 | G37: 1 | H37: 80 | I37: =IF($B37=0,"",VLOOKUP($B37,Table2[],5,FALSE)) -> pound | J37: =IF($B37=0,"",VLOOKUP($B37,Table2[],7,FALSE)) -> 0.24 | K37: =IF(B37=0,0,ROUND(G37*H37*J37,2)) -> 19.2
B38: Twine Large Square | C38: =IF(B38=0,"",VLOOKUP($B38,Table2[],2,FALSE)) -> Other | F38: 5 | G38: =2/3 -> 0.6666666667 | H38: =C16 -> 4.533333333 | I38: =IF($B38=0,"",VLOOKUP($B38,Table2[],5,FALSE)) -> ton | J38: =IF($B38=0,"",VLOOKUP($B38,Table2[],7,FALSE)) -> 1.806167401 | K38: =IF(B38=0,0,ROUND(G38*H38*J38,2)) -> 5.46
B39: Load Large Square Bales | C39: =IF(B39=0,"",VLOOKUP($B39,Table2[],2,FALSE)) -> Custom | F39: 6 | G39: 1 | H39: 4.4 | I39: =IF($B39=0,"",VLOOKUP($B39,Table2[],5,FALSE)) -> ton | J39: =IF($B39=0,"",VLOOKUP($B39,Table2[],7,FALSE)) -> 2.936857562 | K39: 12.92
B40: Twine Small Square | C40: =IF(B40=0,"",VLOOKUP($B40,Table2[],2,FALSE)) -> Other | F40: 7 | G40: =1/3 -> 0.3333333333 | H40: =C19 -> 2.266666667 | I40: =IF($B40=0,"",VLOOKUP($B40,Table2[],5,FALSE)) -> ton | J40: =IF($B40=0,"",VLOOKUP($B40,Table2[],7,FALSE)) -> 2.333333333 | K40: 1.76
B41: Electricity Fixed | C41: =IF(B41=0,"",VLOOKUP($B41,Table2[],2,FALSE)) -> Other | F41: 9 | G41: 1 | H41: 1 | I41: =IF($B41=0,"",VLOOKUP($B41,Table2[],5,FALSE)) -> acre | J41: =IF($B41=0,"",VLOOKUP($B41,Table2[],7,FALSE)) -> 30 | K41: 30
B42: Roundup WeatherMax | C42: =IF(B42=0,"",VLOOKUP($B42,Table2[],2,FALSE)) -> Herbicide | F42: 10 | G42: 1 | H42: 44 | I42: =IF($B42=0,"",VLOOKUP($B42,Table2[],5,FALSE)) -> ounce | J42: =IF($B42=0,"",VLOOKUP($B42,Table2[],7,FALSE)) -> 0.25 | K42: 11
B43: 21-0-0-24S | C43: =IF(B43=0,"",VLOOKUP($B43,Table2[],2,FALSE)) -> Additive | F43: 10 | G43: 1 | H43: 1.7 | I43: =IF($B43=0,"",VLOOKUP($B43,Table2[],5,FALSE)) -> pound | J43: =IF($B43=0,"",VLOOKUP($B43,Table2[],7,FALSE)) -> 0.35 | K43: 0.6
B44: Mustang Max EC | C44: =IF(B44=0,"",VLOOKUP($B44,Table2[],2,FALSE)) -> Insecticide | F44: 11 | G44: 0.25 | H44: 3 | I44: =IF($B44=0,"",VLOOKUP($B44,Table2[],5,FALSE)) -> ounce | J44: =IF($B44=0,"",VLOOKUP($B44,Table2[],7,FALSE)) -> 1.484375 | K44: 1.11
C45: =IF(B45=0,"",VLOOKUP($B45,Table2[],2,FALSE)) ->  | I45: =IF($B45=0,"",VLOOKUP($B45,Table2[],5,FALSE)) ->  | J45: =IF($B45=0,"",VLOOKUP($B45,Table2[],7,FALSE)) ->  | K45: 0
C46: =IF(B46=0,"",VLOOKUP($B46,Table2[],2,FALSE)) ->  | I46: =IF($B46=0,"",VLOOKUP($B46,Table2[],5,FALSE)) ->  | J46: =IF($B46=0,"",VLOOKUP($B46,Table2[],7,FALSE)) ->  | K46: 0
C47: =IF(B47=0,"",VLOOKUP($B47,Table2[],2,FALSE)) ->  | I47: =IF($B47=0,"",VLOOKUP($B47,Table2[],5,FALSE)) ->  | J47: =IF($B47=0,"",VLOOKUP($B47,Table2[],7,FALSE)) ->  | K47: 0
C48: =IF(B48=0,"",VLOOKUP($B48,Table2[],2,FALSE)) ->  | I48: =IF($B48=0,"",VLOOKUP($B48,Table2[],5,FALSE)) ->  | J48: =IF($B48=0,"",VLOOKUP($B48,Table2[],7,FALSE)) ->  | K48: 0
C49: =IF(B49=0,"",VLOOKUP($B49,Table2[],2,FALSE)) ->  | I49: =IF($B49=0,"",VLOOKUP($B49,Table2[],5,FALSE)) ->  | J49: =IF($B49=0,"",VLOOKUP($B49,Table2[],7,FALSE)) ->  | K49: 0
C50: =IF(B50=0,"",VLOOKUP($B50,Table2[],2,FALSE)) ->  | I50: =IF($B50=0,"",VLOOKUP($B50,Table2[],5,FALSE)) ->  | J50: =IF($B50=0,"",VLOOKUP($B50,Table2[],7,FALSE)) ->  | K50: 0
C51: =IF(B51=0,"",VLOOKUP($B51,Table2[],2,FALSE)) ->  | I51: =IF($B51=0,"",VLOOKUP($B51,Table2[],5,FALSE)) ->  | J51: =IF($B51=0,"",VLOOKUP($B51,Table2[],7,FALSE)) ->  | K51: 0
C52: =IF(B52=0,"",VLOOKUP($B52,Table2[],2,FALSE)) ->  | I52: =IF($B52=0,"",VLOOKUP($B52,Table2[],5,FALSE)) ->  | J52: =IF($B52=0,"",VLOOKUP($B52,Table2[],7,FALSE)) ->  | K52: 0
C53: =IF(B53=0,"",VLOOKUP($B53,Table2[],2,FALSE)) ->  | I53: =IF($B53=0,"",VLOOKUP($B53,Table2[],5,FALSE)) ->  | J53: =IF($B53=0,"",VLOOKUP($B53,Table2[],7,FALSE)) ->  | K53: 0
C54: =IF(B54=0,"",VLOOKUP($B54,Table2[],2,FALSE)) ->  | I54: =IF($B54=0,"",VLOOKUP($B54,Table2[],5,FALSE)) ->  | J54: =IF($B54=0,"",VLOOKUP($B54,Table2[],7,FALSE)) ->  | K54: 0
C55: =IF(B55=0,"",VLOOKUP($B55,Table2[],2,FALSE)) ->  | I55: =IF($B55=0,"",VLOOKUP($B55,Table2[],5,FALSE)) ->  | J55: =IF($B55=0,"",VLOOKUP($B55,Table2[],7,FALSE)) ->  | K55: 0
C56: =IF(B56=0,"",VLOOKUP($B56,Table2[],2,FALSE)) ->  | I56: =IF($B56=0,"",VLOOKUP($B56,Table2[],5,FALSE)) ->  | J56: =IF($B56=0,"",VLOOKUP($B56,Table2[],7,FALSE)) ->  | K56: 0
C57: =IF(B57=0,"",VLOOKUP($B57,Table2[],2,FALSE)) ->  | I57: =IF($B57=0,"",VLOOKUP($B57,Table2[],5,FALSE)) ->  | J57: =IF($B57=0,"",VLOOKUP($B57,Table2[],7,FALSE)) ->  | K57: 0
C58: =IF(B58=0,"",VLOOKUP($B58,Table2[],2,FALSE)) ->  | I58: =IF($B58=0,"",VLOOKUP($B58,Table2[],5,FALSE)) ->  | J58: =IF($B58=0,"",VLOOKUP($B58,Table2[],7,FALSE)) ->  | K58: 0
C59: =IF(B59=0,"",VLOOKUP($B59,Table2[],2,FALSE)) ->  | I59: =IF($B59=0,"",VLOOKUP($B59,Table2[],5,FALSE)) ->  | J59: =IF($B59=0,"",VLOOKUP($B59,Table2[],7,FALSE)) ->  | K59: 0
C60: =IF(B60=0,"",VLOOKUP($B60,Table2[],2,FALSE)) ->  | I60: =IF($B60=0,"",VLOOKUP($B60,Table2[],5,FALSE)) ->  | J60: =IF($B60=0,"",VLOOKUP($B60,Table2[],7,FALSE)) ->  | K60: 0
C61: Crop Insurance | J61: =IF($B61=0,"",VLOOKUP($B61,Materials!$B$2:$H$127,7,FALSE)) ->  | K61: 0
C63: Total Materials & Services | K63: =SUM(K37:K61) -> 82.05
B65: Total listed costs for Field Operations and Materials and Services | K65: =K33+K63 -> 
D66: Interest on Operations Capital | E66: =ROUND(SUM($E$33:$H$33)+$K$63,2) ->  | F66: cash expense @ | H66: ='General Variables'!$B$11 -> 0.055 | I66: =CONCATENATE("for ",TEXT('General Variables'!$B$12,"0.0")," mo.") -> for 6.0 mo. | K66: =E66*H66*'General Variables'!$B$12/12 -> 
B67: Total Operating and Use Related Ownership Costs | K67: =SUM(K65:K66) -> 
B69: Overhead (accounting, liability insurance, vehicle cost, office expense) | K69: ='General Variables'!B14 -> 20
B70: Real Estate Opportunity | C70: Pivot (State) | F70: =IF(C70=0,0,VLOOKUP(C70,RETable,2,FALSE)) -> 6940 | G70: per acre @ | I70: ='General Variables'!$B$10 -> 0.04 | K70: =ROUND(F70*I70,2) -> 277.6
B71: Real Estate Taxes | F71: =IF(C70=0,0,VLOOKUP(C70,RETable,2,FALSE)) -> 6940 | G71: per acre @ | I71: ='General Variables'!$B$13 -> 0.01 | K71: =ROUND(F71*I71,2) -> 69.4
B72: Total Cost per Acre Including Overhead | K72: =SUM(K67:K71) -> 
B74: ="Cost per "&$B$4 -> Cost per ton | K74: =IF(A4="Yield",0,K72/$A$4) -> 
B75: ="Cash Cost per "&$B$4 -> Cash Cost per ton | K75: =IF($A$4="Yield",0,(E66+K66+K71)/$A$4) -> 
K111: Yes
K112: No
B240: =IF(#REF!="","",#REF!) ->  | C240: =IF(Materials!B132="","",Materials!B132) -> 
B241: =IF(#REF!="","",#REF!) ->  | C241: =IF(Materials!B133="","",Materials!B133) -> 
B242: =IF(#REF!="","",#REF!) ->  | C242: =IF(Materials!B134="","",Materials!B134) -> 
B243: =IF(#REF!="","",#REF!) ->  | C243: =IF(Materials!B135="","",Materials!B135) -> 
B244: =IF(#REF!="","",#REF!) ->  | C244: =IF(Materials!B136="","",Materials!B136) -> 

Sheet 12-Alfalfa
A2: =REPLACE(CELL("filename",A1),1,FIND("]",CELL("filename",A1)),"") -> 12-Alfalfa | I2: Pivot Irrigated | J2: 800 GPM 35 PSI | L2: ='General Variables'!A3&" "&'General Variables'!B3 -> Year 2017 | O2: Acre
A3: Large and Small Square Bale | H3: 16 | I3: acre/inches | O3: ai
A4: 6.6 | B4: ton | J4: Does Crop Follow a Legume? | O4: =B4 -> ton
A5: =A2 & IF(C2="","", ", " &C2 ) & ", " & A3 & ", " & I2 -> 12-Alfalfa, Large and Small Square Bale, Pivot Irrigated
A7: ='General Variables'!B3 & " Budget " & A2 &", " & IF(C2=0,"", " " & C2 & ", ") & A3 & IF(A4=""," ", " (") & A4 & " " & B4 & IF(A4="",""," Actual Yield)") -> 2017 Budget 12-Alfalfa, Large and Small Square Bale (6.6 ton Actual Yield)
A8: =IF(I2="Dryland","Dryland",I2 & IF(J2="","",", "&J2)&IF(H3="","",", "&H3&" "&I3)) -> Pivot Irrigated, 800 GPM 35 PSI, 16 acre/inches
B10: Field Operations | C10: Times or Qty | E10: ="Labor @ $" &TEXT('General Variables'!B4,"#.00")& " /Hr" -> Labor @ $20.00 /Hr | F10: ="Fuel @ $" & TEXT('General Variables'!B5,"#.00") & " and Lube" -> Fuel @ $2.25 and Lube | G10: Repairs | I10: Ownership | K10: Total | L10: Your Estimate
D11: Unit | G11: Power | H11: Imp. | I11: Power | J11: Imp.
A12: 1 | B12: Spread Fertilizer | C12: 1 | E12: =IF(B12=0,"",IF(C12>9999,"",ROUND('General Variables'!$B$4*VLOOKUP(B12,#REF!,10,FALSE)/VLOOKUP(B12,#REF!,9,FALSE)*C12,2))) ->  | F12: =IF(B12=0,0,IF(C12>9999,"",ROUND(IF(VLOOKUP(B12,#REF!,12,FALSE)=0,VLOOKUP(B12,#REF!,13,FALSE)*'General Variables'!$B$8,VLOOKUP(B12,#REF!,12,FALSE)*'General Variables'!$B$7)/VLOOKUP(B12,#REF!,9,FALSE)*C12,2))) ->  | G12: =IF(B12=0,0,IF(C12>9999,"",ROUND(VLOOKUP(VLOOKUP(B12,#REF!,11,FALSE),#REF!,10,FALSE)/VLOOKUP(B12,#REF!,9,FALSE)*C12,2))) ->  | H12: =IF(B12=0,"",IF(C12>9999,"",ROUND(VLOOKUP($B12,#REF!,15,FALSE)*C12,2))) ->  | I12: =IF(B12=0,0,IF(C12>9999,"",ROUND(VLOOKUP(VLOOKUP(B12,#REF!,11,FALSE),#REF!,16,FALSE)/VLOOKUP(B12,#REF!,9,FALSE)*C12,2))) ->  | J12: =IF(B12=0,"",IF(C12>9999,"",ROUND(VLOOKUP($B12,#REF!,21,FALSE)*$C12,2))) ->  | K12: =IF(C12>9999,"",ROUND(SUM(E12:J12),2)) -> 
A13: 2 | B13: Swath/Condition Hay | C13: 3 | E13: =IF(B13=0,"",IF(C13>9999,"",ROUND('General Variables'!$B$4*VLOOKUP(B13,#REF!,10,FALSE)/VLOOKUP(B13,#REF!,9,FALSE)*C13,2))) ->  | F13: =IF(B13=0,0,IF(C13>9999,"",ROUND(IF(VLOOKUP(B13,#REF!,12,FALSE)=0,VLOOKUP(B13,#REF!,13,FALSE)*'General Variables'!$B$8,VLOOKUP(B13,#REF!,12,FALSE)*'General Variables'!$B$7)/VLOOKUP(B13,#REF!,9,FALSE)*C13,2))) ->  | G13: =IF(B13=0,0,IF(C13>9999,"",ROUND(VLOOKUP(VLOOKUP(B13,#REF!,11,FALSE),#REF!,10,FALSE)/VLOOKUP(B13,#REF!,9,FALSE)*C13,2))) ->  | H13: =IF(B13=0,"",IF(C13>9999,"",ROUND(VLOOKUP($B13,#REF!,15,FALSE)*C13,2))) ->  | I13: =IF(B13=0,0,IF(C13>9999,"",ROUND(VLOOKUP(VLOOKUP(B13,#REF!,11,FALSE),#REF!,16,FALSE)/VLOOKUP(B13,#REF!,9,FALSE)*C13,2))) ->  | J13: =IF(B13=0,"",IF(C13>9999,"",ROUND(VLOOKUP($B13,#REF!,21,FALSE)*$C13,2))) ->  | K13: =IF(C13>9999,"",ROUND(SUM(E13:J13),2)) -> 
A14: 3 | B14: Large Square Bale | C14: =$A$4/3*2 -> 4.4 | D14: ton | E14: =IF(B14=0,"",IF(C14>9999,"",ROUND('General Variables'!$B$4*VLOOKUP(B14,#REF!,10,FALSE)/VLOOKUP(B14,#REF!,9,FALSE)*C14,2))) ->  | F14: =IF(B14=0,0,IF(C14>9999,"",ROUND(IF(VLOOKUP(B14,#REF!,12,FALSE)=0,VLOOKUP(B14,#REF!,13,FALSE)*'General Variables'!$B$8,VLOOKUP(B14,#REF!,12,FALSE)*'General Variables'!$B$7)/VLOOKUP(B14,#REF!,9,FALSE)*C14,2))) ->  | G14: =IF(B14=0,0,IF(C14>9999,"",ROUND(VLOOKUP(VLOOKUP(B14,#REF!,11,FALSE),#REF!,10,FALSE)/VLOOKUP(B14,#REF!,9,FALSE)*C14,2))) ->  | H14: =IF(B14=0,"",IF(C14>9999,"",ROUND(VLOOKUP($B14,#REF!,15,FALSE)*C14,2))) ->  | I14: =IF(B14=0,0,IF(C14>9999,"",ROUND(VLOOKUP(VLOOKUP(B14,#REF!,11,FALSE),#REF!,16,FALSE)/VLOOKUP(B14,#REF!,9,FALSE)*C14,2))) ->  | J14: =IF(B14=0,"",IF(C14>9999,"",ROUND(VLOOKUP($B14,#REF!,21,FALSE)*$C14,2))) -> 
A15: 4 | B15: Load Lg Sq | C15: Custom | D15: ton | E15: =IF(B15=0,"",IF(C15>9999,"",ROUND('General Variables'!$B$4*VLOOKUP(B15,#REF!,10,FALSE)/VLOOKUP(B15,#REF!,9,FALSE)*C15,2))) ->  | F15: =IF(B15=0,0,IF(C15>9999,"",ROUND(IF(VLOOKUP(B15,#REF!,12,FALSE)=0,VLOOKUP(B15,#REF!,13,FALSE)*'General Variables'!$B$8,VLOOKUP(B15,#REF!,12,FALSE)*'General Variables'!$B$7)/VLOOKUP(B15,#REF!,9,FALSE)*C15,2))) ->  | G15: =IF(B15=0,0,IF(C15>9999,"",ROUND(VLOOKUP(VLOOKUP(B15,#REF!,11,FALSE),#REF!,10,FALSE)/VLOOKUP(B15,#REF!,9,FALSE)*C15,2))) ->  | H15: =IF(B15=0,"",IF(C15>9999,"",ROUND(VLOOKUP($B15,#REF!,15,FALSE)*C15,2))) ->  | I15: =IF(B15=0,0,IF(C15>9999,"",ROUND(VLOOKUP(VLOOKUP(B15,#REF!,11,FALSE),#REF!,16,FALSE)/VLOOKUP(B15,#REF!,9,FALSE)*C15,2))) ->  | J15: =IF(B15=0,"",IF(C15>9999,"",ROUND(VLOOKUP($B15,#REF!,21,FALSE)*$C15,2))) -> 
A16: 5 | B16: Bale Small Square | C16: =$A$4/3 -> 2.2 | D16: ton | E16: =IF(B16=0,"",IF(C16>9999,"",ROUND('General Variables'!$B$4*VLOOKUP(B16,#REF!,10,FALSE)/VLOOKUP(B16,#REF!,9,FALSE)*C16,2))) ->  | F16: =IF(B16=0,0,IF(C16>9999,"",ROUND(IF(VLOOKUP(B16,#REF!,12,FALSE)=0,VLOOKUP(B16,#REF!,13,FALSE)*'General Variables'!$B$8,VLOOKUP(B16,#REF!,12,FALSE)*'General Variables'!$B$7)/VLOOKUP(B16,#REF!,9,FALSE)*C16,2))) ->  | G16: =IF(B16=0,0,IF(C16>9999,"",ROUND(VLOOKUP(VLOOKUP(B16,#REF!,11,FALSE),#REF!,10,FALSE)/VLOOKUP(B16,#REF!,9,FALSE)*C16,2))) ->  | H16: =IF(B16=0,"",IF(C16>9999,"",ROUND(VLOOKUP($B16,#REF!,15,FALSE)*C16,2))) ->  | I16: =IF(B16=0,0,IF(C16>9999,"",ROUND(VLOOKUP(VLOOKUP(B16,#REF!,11,FALSE),#REF!,16,FALSE)/VLOOKUP(B16,#REF!,9,FALSE)*C16,2))) ->  | J16: =IF(B16=0,"",IF(C16>9999,"",ROUND(VLOOKUP($B16,#REF!,21,FALSE)*$C16,2))) -> 
A17: 6 | B17: Stack Small Square | C17: =$A$4/3 -> 2.2 | D17: ton | E17: =IF(B17=0,"",IF(C17>9999,"",ROUND('General Variables'!$B$4*VLOOKUP(B17,#REF!,10,FALSE)/VLOOKUP(B17,#REF!,9,FALSE)*C17,2))) ->  | F17: =IF(B17=0,0,IF(C17>9999,"",ROUND(IF(VLOOKUP(B17,#REF!,12,FALSE)=0,VLOOKUP(B17,#REF!,13,FALSE)*'General Variables'!$B$8,VLOOKUP(B17,#REF!,12,FALSE)*'General Variables'!$B$7)/VLOOKUP(B17,#REF!,9,FALSE)*C17,2))) ->  | G17: =IF(B17=0,0,IF(C17>9999,"",ROUND(VLOOKUP(VLOOKUP(B17,#REF!,11,FALSE),#REF!,10,FALSE)/VLOOKUP(B17,#REF!,9,FALSE)*C17,2))) ->  | H17: =IF(B17=0,"",IF(C17>9999,"",ROUND(VLOOKUP($B17,#REF!,15,FALSE)*C17,2))) ->  | I17: =IF(B17=0,0,IF(C17>9999,"",ROUND(VLOOKUP(VLOOKUP(B17,#REF!,11,FALSE),#REF!,16,FALSE)/VLOOKUP(B17,#REF!,9,FALSE)*C17,2))) ->  | J17: =IF(B17=0,"",IF(C17>9999,"",ROUND(VLOOKUP($B17,#REF!,21,FALSE)*$C17,2))) -> 
A18: 7 | B18: Pivot E 125' Lift | C18: =$H$3 -> 16 | D18: ai | E18: =IF(B18=0,"",IF(C18>9999,"",ROUND('General Variables'!$B$4*VLOOKUP(B18,#REF!,10,FALSE)/VLOOKUP(B18,#REF!,9,FALSE)*C18,2))) ->  | F18: =IF(B18=0,0,IF(C18>9999,"",ROUND(IF(VLOOKUP(B18,#REF!,12,FALSE)=0,VLOOKUP(B18,#REF!,13,FALSE)*'General Variables'!$B$8,VLOOKUP(B18,#REF!,12,FALSE)*'General Variables'!$B$7)/VLOOKUP(B18,#REF!,9,FALSE)*C18,2))) ->  | G18: =IF(B18=0,0,IF(C18>9999,"",ROUND(VLOOKUP(VLOOKUP(B18,#REF!,11,FALSE),#REF!,10,FALSE)/VLOOKUP(B18,#REF!,9,FALSE)*C18,2))) ->  | H18: =IF(B18=0,"",IF(C18>9999,"",ROUND(VLOOKUP($B18,#REF!,15,FALSE)*C18,2))) ->  | I18: =IF(B18=0,0,IF(C18>9999,"",ROUND(VLOOKUP(VLOOKUP(B18,#REF!,11,FALSE),#REF!,16,FALSE)/VLOOKUP(B18,#REF!,9,FALSE)*C18,2))) ->  | J18: =IF(B18=0,"",IF(C18>9999,"",ROUND(VLOOKUP($B18,#REF!,21,FALSE)*$C18,2))) -> 
